Workbook

Sheet Ch03
B2: Excel Business Statistical Analysis:
B8: Chapter 03 - Descriptive Statistics
B9: Numerical Measures
B12: Excel Business Statistics 9-15
B17: Excel Statistical Analysis 7: Cross Tabulation, Visualizations, AND Logical Tests, Simpson’s Paradox
B18: =LEN(B17) -> 100
C19: =LEN(C18) -> 0
H23: Microsoft 365 Excel

Sheet ES(9)
B2: Excel Business Statistical Analysis:
B8: Measures of Central Location
B9: Mean, Median, Mode, Moving Ave., Skew & Power Query too!
B12: Excel Business Statistics 9
B17: Excel Statistical Analysis 7: Cross Tabulation, Visualizations, AND Logical Tests, Simpson’s Paradox
B18: =LEN(B17) -> 100
C19: =LEN(C18) -> 0
H23: Microsoft 365 Excel

Sheet ES(10)
B2: Excel Business Statistical Analysis:
B8: Measures of Central Location:
B9: Weighted Mean
B12: Excel Business Statistics 10
B17: Excel Statistical Analysis 7: Cross Tabulation, Visualizations, AND Logical Tests, Simpson’s Paradox
B18: =LEN(B17) -> 100
C19: =LEN(C18) -> 0
H23: Microsoft 365 Excel

Sheet ES(11)
B2: Excel Business Statistical Analysis:
B8: Measures of Central Location:
B9: Geometric Mean
B12: Excel Business Statistics 11
B17: Excel Statistical Analysis 7: Cross Tabulation, Visualizations, AND Logical Tests, Simpson’s Paradox
B18: =LEN(B17) -> 100
C19: =LEN(C18) -> 0
H23: Microsoft 365 Excel

Sheet ES(12)
B2: Excel Business Statistical Analysis:
B8: Measures of Location:
B9: Percentile, Quartile and Rank
B12: Excel Business Statistics 12
B17: Excel Statistical Analysis 7: Cross Tabulation, Visualizations, AND Logical Tests, Simpson’s Paradox
B18: =LEN(B17) -> 100
C19: =LEN(C18) -> 0
H23: Microsoft 365 Excel

Sheet ES(13)
B2: Excel Business Statistical Analysis:
B8: Measures of Variation & Dispersion:
B9: Range, Variance, Standard Deviation, Coefficient of Variation
B12: Excel Business Statistics 13
B17: Excel Statistical Analysis 7: Cross Tabulation, Visualizations, AND Logical Tests, Simpson’s Paradox
B18: =LEN(B17) -> 100
C19: =LEN(C18) -> 0
H23: Microsoft 365 Excel

Sheet ES(14)
B2: Excel Business Statistical Analysis:
B8: Measures of Relative Location:
B9: Z-Score, Empirical Rule, Chebyshev's Theorem, Outliers
B12: Excel Business Statistics 14
B17: Excel Statistical Analysis 7: Cross Tabulation, Visualizations, AND Logical Tests, Simpson’s Paradox
B18: =LEN(B17) -> 100
C19: =LEN(C18) -> 0
H23: Microsoft 365 Excel

Sheet ES(15)
B2: Excel Business Statistical Analysis:
B8: Power Query & Array Formulas for:
B9: 5-Number Summary Box & Whiskers Chart
B12: Excel Business Statistics 15
B17: Excel Statistical Analysis 7: Cross Tabulation, Visualizations, AND Logical Tests, Simpson’s Paradox
B18: =LEN(B17) -> 100
C19: =LEN(C18) -> 0
H23: Microsoft 365 Excel

Sheet Topics
B2: Chapter 3
B4: Descriptive Statistics: Numerical Measures
C6: Measures of Location
B7: Video 9 | C7: Mean | K7: Excel Statistical Analysis 09: Mean, Median, Mode, Skew
C8: Meadin
C9: Mode
C10: Moving Average
C11: Measures of Distribution Shape
C12: Histgrams
C13: Skew
B14: Video 10 | C14: Weighted Mean | K14: Excel Statistical Analysis 10: Weighted Mean
B15: Video 11 | C15: Geometric Mean | K15: Excel Statistical Analysis 11: Geometric Mean
B16: Video 12 | C16: Percentiles | K16: Excel Statistical Analysis 12: Percentile and Quartile
C17: Quartiles
B18: Video 13 | C18: Measures of Variabilty | K18: Excel Statistical Analysis 13: Range, Variance, Standard Deviation, Coefficient of Variation
C19: Range
C20: Interquartile Range
C21: Variance
C22: Standard Deviation
C23: Coefficinet of Variation
C24: Finance & Standard Deviation
B25: Video 14 | C25: Relative Location: Z-Score, Chebyshev's & Empirical Rule and Outliers | K25: Excel Statistical Analysis 14: Z-Score, Chebyshev's Theorem, Empirical Rule, Outliers
C26: Z-Score
C27: Chebyshev's Theorem
C28: Empirical Rule
C29: Detecting Outliers
B30: Video 15 | C30: Five-Number Summary & Boxplots | K30: Excel Statistical Analysis 15: 5-Number Summary and Box Plot (Box & Whiskers Chart)

Sheet Notes
B2: Sampling Terms
B3: Population: The set of all elements of interest in a particular study
B4: Sample: A subset of the population
B5: Inferential Statistics: The process of using data obtained from a sample to make estimates and test hypotheses about the characteristics/attribute of a population
B6: If the measures are computed for data from a sample, they are called sample statistics.
B7: If the measures are computed for data from a population, they are called population parameters.
B8: In Statistical Inference, a sample statistic is referred to as the point estimator of the corresponding population parameter.
B9: Since it is usually impossible to get all the numbers for a population, we have to use sample statistics to reasonably estimate the population parameter!
B10: Example: calculate an sample average of number of salmon in Puget Sound and use it as the estimate of the population average of number of salmon in Puget Sound - "We can't count all the fish in the sea!!"
B12: More about Point estimation in chapter 7.
B14: Measures of Location:
B15: Location
B16: Location locates, or positions, a data point against the full data set such as:
B17: The Mean calculation which calculates a central value, a typical value, a value near the middle,
B18: The Percentile calculation that can say things like "for that particular number, 75% of the other values are below that value and 25% of the other values are below that value".
B19: The Z-Score, which tells you the relative position of a number in units of Standard Deviation.
B20: Average = Typical Value = Measure of central location
B21: "Typical Values" calculated so that we have one value that can represent all the data points.
B22: Mean
B23: Arithmetic Mean: Add them up and divide by the count. Use these math formulas:
B25: Good for quantitative data when there are not extreme values - extreme values can make the mean look too big or too small (Median more representative of a typical value in that case)
B26: The sample mean is a point estimator of the population mean
B27: In Excel use: AVERAGE function
B28: Median
B29: Sort, then take the one in the middle. If count odd, take one in middle, if even, average middle two.
B30: Marks the point in the sorted list (an actual number) where approximately 50% of the numbers are above and 50% of the numbers are below
B31: Good for quantitative data when there are extreme values (like house prices and salaries)
B32: Median can be a better measure of central location, than mean, when there are extreme values
B33: In Excel use: MEDIAN function
B34: Mode
B35: One that occurs most frequently (can be bimodal, multimodal)
B36: Bimodal means two numbers are tied with highest frequency. Multimodal means there are multiple modes.
B37: Good for Categorical Data (Nominal and Ordinal)
B38: Mode is the only way to calculate an "average" for categorical data
B39: In Excel use: MODE.SNGL or MODE.MULT functions for quantitative data and PivotTables for Categorical or quantitative data.
B40: MODE.SNGL will only show 1 mode if the data set is bi-modal or multi-modal. MODE.MULT can be used for multiple modes.
B41: MODE.MULT can be used for multiple modes and will spill the results from the top cell where the formula lives.
B42: Weighted Mean
B43: Fast way to calculate Mean when you have a Frequency Table or Relative Frequency Table. Use these math formulas:
B45: Use Excel Formula: SUMPRODUCT(Values, Weights)/SUM(Weights)
B46: Geometric Mean
B47: Used to calculate the average compounding rate per period for % change or % growth numbers. The average compounding rate per period is the rate that can be used in multiplicative growth formulas to calculate an end amount from a begin amount across equal size time periods. In finance it is used to calculate the "Average Compounding Rate Per Period" for an investment. Use one of two formulas: | E47: "Rates of Change" and "Growth Rates" are synonyms
B48: Geometric Mean Formula 1:
B49: Use when you are given all the "Growth Rates" or "Rates of Change" or "% Change" amounts across all equal sized periods
B51: "Growth Rates" or "Rates of Change" or "% Change" = % change from one equal size period to the next
B52: Growth Factor = 1 + Growth Rate = Factor you can multiply by Begin Value to get End Value. Growth Factor ALWAYS >= 0
B53: In Excel use:
B54: GEOMEAN(RangeOfGrowthRates+1) = 1 + Geometric Mean = 1 + Average Compounding Rate per Period
B55: GEOMEAN(RangeOfGrowthRates+1)-1 = Geometric Mean = Average Compounding Rate per Period
B56: Geometric Mean Formula 2:
B57: Use when you are given the Begin Value, End Value and the number of periods
B59: In Excel use:
B60: RRI function. Function arguments: RRI(n,PV,FV) = RRI(NumberOfPeriods,BegValue, EndValue) = Geometric Mean = Average Compounding Rate per Period
B61: Formula: =(EndValue/BegValue)^(1/NumberOfPeriods)-1 = Geometric Mean = Ave. Compounding Rate per Period
B62: MUST use Geometric Mean (not arithmetic mean) if you want the true "average" compounding rate per period
B63: Arithmetic Mean overestimates
B64: Arithmetic Mean is for additive processes. Geomean is for multiplicative processes
B65: In finance, when calculating End Values, use Geometric Mean; however, arithmetic mean is used in some situations like for Standard Deviation, Correlation, and other calculations that do not require true "average" compounding rate per period.
B66: Percentiles/Quartiles
B67: Marker that divides the sorted data set and says what % are above and what % are below
B68: Percentiles
B69: Provides information about how the data are spread over an interval from smallest to largest value (ascending)
B70: A number that divides the ascending sorted data set, or marks the point in the ascending sorted list where approximately X% of the numbers are below and approximately 1-X% of the numbers are above the marking point. For example, on a recent exam a score of 78.75 marks the point in the ascending sorted data set, where 75% of the scores were below that score ands 25% of the scores were above that score.
B71: Use Percentiles for quantitative data without a lot of duplicates
B72: Note: There is NOT just one way to calculate percentiles. Percentile calculations are estimations, this is why we use the word "approximate" when we talk about percentiles
B73: In Excel use:
B74: PERCENTILE.EXC function. Function arguments: PERCENTILE.EXC(array,k) = PERCENTILE.EXC(ArrayOfNumbers, %PercentileValue) = Number that divides the ascending sorted list. The function uses formula: P%*(n+1) to get the position. If the k argument contains a 0% or 100% (min or max values), the function yields an error. THE "EXC" in the function name indicates that the function excludes the min and max values. This is the function that the textbook uses.
B75: PERCENTILE.INC function. Function arguments: PERCENTILE.INC(array,k) = PERCENTILE.INC(ArrayOfNumbers, %PercentileValue) = Number that divides the ascending sorted list. The function uses formula: p*n+(1-p) to get the position. This function allows the k argument to contain a 0% or 100% to deliver the min or max values. THE "INC" in the function name indicates that the function includes the min and max values.
B76: For big data sets, these two function deliver similar results.
B77: Quartiles
B78: Provides the three values that will divides the ascending sorted data set into four parts: first 25%, second 25%, third 25% and fourth 25%
B79: In Excel use:
B80: QUARTILE.EXC function. Function arguments: QUARTILE.EXC(array,quart) = QUARTILE.EXC(ArrayOfNumbers, 1or2or3). The function uses formula: P%*(n+1) to get the position. THE "EXC" in the function name indicates that the function excludes the min and max values. This is the function that the textbook uses. | E80: QUARTILE.EXC function uses P%*(n+1) to get the position.
B81: QUARTILE.INC function. Function arguments: QUARTILE.INC(array,quart) = QUARTILE.INC(ArrayOfNumbers, 0or1or2or3,or4). The function uses formula: p*n+(1-p) to get the position. THE "INC" in the function name indicates that the function includes the min and max values. To deliver the Five Number Summary, use the formula: =QUARTILE.INC(ArrayOfNumbers, {0;1;2;3;4}) to display the numbers vertically, or =QUARTILE.INC(ArrayOfNumbers, {0,1,2,3,4}) to display the numbers horizontally. | E81: QUARTILE.INC function p*n+(1-p) to get the position.
B82: Percentile Rank
B83: PERCENTRANK.EXC and PERCENTRANK.INC opposite of PERCENTILE.EXC and PERCENTILE.INC. Whereas PERCENTILE functions calculates the marker value when you give it a % Percentile Value, PERCENTRANK functions calculates % Percentile Value when you give it a value.
B84: Rank
B85: Ranks numbers, 1st, 2nd, 3rd and so on for "Biggest to Smallest" or "Smallest to Biggest"
B86: In Excel use:
B87: RANK.AVG function. This provides an average of ranks when there is a tie. Function arguments: RANK.AVG function(number,ref,order) = RANK.AVG function(NumberToRank,ArrayOfNumbers, AscendingOrDescending)
B88: RANK.EQ function. This provides equivalent ranks when there is a tie. Function arguments: RANK.EQ function(number,ref,order) = RANK.EQ function(NumberToRank,ArrayOfNumbers, AscendingOrDescending)
B89: Variability
B90: Variability answers the questions:
B91: What is the dispersion in the data?
B92: How spread out is the data?
B93: Range
B94: Range = Max value - Min value
B95: The bigger the range, the more the variability or spread in the data
B96: It is simple to calculate, but sensitive to extreme values
B97: Interquartile Range
B98: Interquartile Range = Quartile 3 - Quartile 1
B99: The bigger the range, the more the variability or spread in the data
B100: The Interquartile Range tells you the range for the middle 50% of the data. It overcomes the sensitivity to extreme values that range has
B101: Deviation
B102: Deviation = Particular X value - Mean
B103: It tells you how far one datum is from the mean. "How far above or below the mean is the particular value?"
B104: For any data set, the sum of the deviations is always zero!!!! This is why mathematically, when we calculate variance or standard deviation, we either square the values before we add.
B105: Variance
B106: A Numerical Measure that says how much variability there is in the data points
B107: Variance uses all the data points, not just some like Range and Interquartile Range
B108: Variance has squared units, which makes interpreting it difficult. Standard Deviation undoes the squared units and is thus easier to interpret and is more commonly used | F108: Sample 𝑆𝑡𝑎𝑛𝑑𝑎𝑟𝑑 𝐷𝑒𝑣𝑖𝑎𝑡𝑖𝑜𝑛
B109: Math Formulas:
B111: In Excel use: VAR.P function for population data and VAR.S for sample data.
B112: Standard Deviation = SD
B113: Standard Deviation uses all the data points, not just some like Range and Interquartile Range
B114: Standard Deviation does not have squared units (like Variance) and is thus easier to interpret; the standard deviation has the same units as the data.
B115: Population Standard Deviation = "little sigma" = s ; Sample Standard Deviation = s
B116: The sample standard deviation is a point estimator of the population standard deviation
B117: Interpretation of Standard Deviation:
B118: A numerical measure that says how much variability/dispersion there is in the data in relation to the mean
B119: Standard Deviation is like an average of the deviations
B120: Standard Deviation tells us how fairly the mean represents its data points
B121: Standard Deviation tells us how clustered the data points are around the mean
B122: For financial assets standard deviation is a measure of risk or fluctuation in asset value
B123: Math Formulas:
B125: In Excel use: STDEV.P function for population data and STDEV.S for sample data.
B126: Coefficient of Variation
B127: In Excel create math formula = (Standard Deviation)/Mean = Coefficient of Variation
B128: Coefficient of Variation converts Standard Deviation to Standard Deviation per unit of Mean so you can compare:
B129: 1) Data in different units.
B130: or
B131: 2) Data in the same units, but the means are far apart.
B132: Coefficient of Variation answers the question: "For every one unit of mean, what is the Standard Deviation?"
B133: In Finance you see the inverse formula = (Average Return)/(Standard Deviation) = Return for 1 unit of risk
B134: Shape of Distribution, Relative Location, Outliers
B135: Shape of Distribution
B136: Histograms
B137: Histograms show the shape of the distribution visually.
B138: A few short column heights to the left means skew negative of left
B139: A few tall column heights to the right means skew positive or right
B140: Bell shape or Symmetrical Shape indicates no skew
B141: Skew
B142: Skew measures the shape of the data distribution
B143: Skew tells to which way the distribution is tilting
B144: Skew = tilt of Histogram
B145: In Excel use: The SKEW function to calculate the Skew. SKEW function uses the formula listed below =>
B147: When we calculate skew, the result can be negative (skew left), positive (skew right) or zero (no skew).
B148: Left or Negative Skew
B149: The frequency for small numbers is low and the frequency for large numbers is high
B150: A few small values will tend to pull the Mean down away from Median
B151: Mean usually less than Median
B152: Right or Positive Skew
B153: The frequency for large numbers is low and the frequency for small numbers is high
B154: A few big values will tend to pull the Mean up away from Median
B155: Mean usually greater than Median
B156: No Skew = Bell Shape or Symmetrical Shape
B157: Mean and Median equal, and Mean, Median and Mode tend to all be right near the middle of the data set.
B158: Relative Location
B159: The goal of relative location is to determine, in a data set, how far a particular x value is from the mean.
B160: Z-Score = Standardized Value
B161: Z-score measures the relative location of a particular x in the data set (as compared to the mean), in units of standard deviation.
B162: Z-Score tells you "How Many Standard Deviations The Particular Value Is Away From The Mean". 1? -1? 1.5? 0?
B163: zi < 0, value below mean zi > 0, value above mean zi = 0, value is equal to mean
B164: Observations in 2 different data sets that have the same z-score are said to have the same relative location or the same number of standard deviations away from the mean.
B165: In Excel use the formulas:
B166: Z-Score = (Particular Value - Mean)/StandardDeviation = zi = (xi-Xbar)/s
B167: Use STANDARDIZE function to calculate z-score. Function arguments: STANDARDIZE(a,mean, standard_dev) = STANDARDIZE(ParticularXiValue,Mean,StandardDeviation
B168: Chebyshev's Theorem
B169: Chebyshev's Theorem can determine the proportion of data values that lie between +/- a given number of standard deviations (z-score) for any shape distribution
B170: Russian Mathematician, P.L. Chebyshev (1821-1894)
B171: Chebyshev's Theorem:
B172: Allows us to make a statement about the proportion of data values that must be within a specified number of standard deviations of the mean. For example: 75% of the students must have a test score between 34 and 86
B173: Rule: At least (1 - 1/z^2) of the values in any data set will be within z standard deviations of the mean, where z is any value greater than 1.
B174: Real power of this Theorem: Applies to any data set regardless of the shape of the distribution of the data!
B175: At least 0.75, or 75.00%, of the data values must be within z = 2 standard deviations of the mean
B176: At least 0.89, or 89.00%, of the data values must be within z = 3 standard deviations of the mean
B177: At least 0.94, or 94.00%, of the data values must be within z = 4 standard deviations of the mean
B178: Empirical Rule:
B179: The Empirical Rule can determine the proportion of data values that lie between +/- a given number of standard deviations (z-score) for a bell-shape or normal distribution (symmetric distribution)
B180: Empirical Rule:
B181: Approximately 68% of the data values will be within 1 Standard Deviation of the Mean
B182: Approximately 95% of the data values will be within 2 Standard Deviations of the Mean
B183: Approximately 99% of the data values (almost all the data) will be within 3 Standard Deviations of Mean
B184: * MUCH more about Normal Distribution / Bell Shaped Distribution and the Empirical Rule later in the class.
B185: Detecting Outliers
B186: Outlier
B187: An outlier is an unusually small or unusually large value in a data set.
B188: +/- 3 Z Scores Outlier Rule
B189: A data value with a z-score less than -3 or greater than +3 might be considered an outlier.
B190: An Outlier can be: 1)an incorrectly recorded data value 2)a data value that was incorrectly included in the data set 3) a correctly recorded data value that belongs in the data set
B191: In Excel, the ABS function determines the absolute value of a number (distance away from zero)
B192: 5 Number Summary
B193: 5 Number Summary Provides information like:
B194: Minimum Value
B195: Maximum Value
B196: Median
B197: Range (Max - Min)
B198: Quartiles
B199: Interquartile Range (Quart 3 - Quart 1 = range for middle 50%)
B200: Basis for building Box Plot
B201: Box Plot (Box and Whisker) Chart and Outliers Rule of 1.5
B202: A Box Plot is a visual way to show the spread in the data. It visualizes the 5 Number Summary and shows outliers
B203: In Excel use the: "Box and Whisker" Chart.
B204: Horizontal lines for Lower and Upper Limits that indicate that anything past is an Outlier. Lower Limit = Quartile 1 - 1.5*Interquartile Range, or 0. Upper Limit = Quartile 3 + 1.5*Interquartile Range **Although for this class we will use 1.5, other multiples can be used
B205: Example of Excel Box and Whisker Chart:
B208: Excel Notes:
B209: Dynamic spilled array formulas details:
B210: For dynamic spilled array formulas, the formula lives in the top left cell of the spilled range and must be edited in that cell. Spilled results below top cell are greyed out in the formula bar.
B211: The spilled values can be dynamically referred to with the cell address of the top left cell in the spilled range and the spilled range operator, #. For example, if the spilled array formula resides in cell E3, the spilled range reference is #E3.
B212: If there is data in the way of a spilled array, a #SPILL! error is displayed in the top left cell.
... 22 more rows

Sheet Location
B2: Location locates, or positions, a data point against the full data set such as:
B3: The Mean calculation which calculates a central value, a typical value, a value near the middle,
B4: The Percentile calculation that can say things like "for that particular number, approx.. 75% of the other values are below that value and approx. 25% of the other values are below that value"
B5: The Z-Score, which tells you the relative position of a number in units of Standard Deviation.
B7: Test Score | D7: You: | E7: 85
B8: 31
B9: 47 | D9: Are you above average?
B10: 54 | D10: Mean | G10: =_xlfn.IFNA("Cell "&ADDRESS(ROW(E10),COLUMN(E10),4)&": "&_xlfn.FORMULATEXT(E10),"") -> 
B11: 55 | D11: Median | G11: =_xlfn.IFNA("Cell "&ADDRESS(ROW(E11),COLUMN(E11),4)&": "&_xlfn.FORMULATEXT(E11),"") -> 
B12: 57
B13: 58
B14: 60 | D14: ="Are you above the "&E15*100&"th percentile?" -> Are you above the 75th percentile?
B15: 61 | D15: ="Percentile Marker for "&TEXT(E15,"0%") -> Percentile Marker for 75% | E15: 0.75
B16: 63 | D16: ="Marker for "&E15*100&"th percentile:" -> Marker for 75th percentile: | G16: =_xlfn.IFNA("Cell "&ADDRESS(ROW(E16),COLUMN(E16),4)&": "&_xlfn.FORMULATEXT(E16),"") -> 
B17: 67 | G17: =IF(ISBLANK(E16),"","Approximately "&TEXT(E15,"0%")&" of scores are below "&E16&" and "&TEXT(1-E15,"0%")&" are above.") -> 
B18: 68
B19: 69
B20: 72
B21: 76
B22: 78
B23: 84
B24: 85
B25: 89
B26: 91
B27: 93
B28: 95
H33: ="Values less than "&TEXT(E15,"0.0%")&" marker" -> Values less than 75.0% marker
H35: Test Score
H36: =_xlfn._xlws.SORT(_xlfn._xlws.FILTER(B8:B28,B8:B28<_xlfn.PERCENTILE.INC(B8:B28,E15))) -> 31
H37: 47
H38: 54
H39: 55
H40: 57
H41: 58
H42: 60
H43: 61
H44: 63
H45: 67
H46: 68
H47: 69
H48: 72
H49: 76
H50: 78

Sheet Location (an)
B2: Location locates, or positions, a data point against the full data set such as:
B3: The Mean calculation which calculates a central value, a typical value, a value near the middle,
B4: The Percentile calculation that can say things like "for that particular number, approx.. 75% of the other values are below that value and approx. 25% of the other values are below that value"
B5: The Z-Score, which tells you the relative position of a number in units of Standard Deviation.
B7: Test Score | D7: You: | E7: 85
B8: 31
B9: 47 | D9: Are you above average?
B10: 54 | D10: Mean | E10: =AVERAGE(B8:B28) -> 69.19047619 | G10: =_xlfn.IFNA("Cell "&ADDRESS(ROW(E10),COLUMN(E10),4)&": "&_xlfn.FORMULATEXT(E10),"") -> Cell E10: =AVERAGE(B8:B28)
B11: 55 | D11: Median | E11: =MEDIAN(B8:B28) -> 68 | G11: =_xlfn.IFNA("Cell "&ADDRESS(ROW(E11),COLUMN(E11),4)&": "&_xlfn.FORMULATEXT(E11),"") -> Cell E11: =MEDIAN(B8:B28)
B12: 57
B13: 58
B14: 60 | D14: ="Are you above the "&E15*100&"th percentile?" -> Are you above the 75th percentile?
B15: 61 | D15: ="Percentile Marker for "&TEXT(E15,"0%") -> Percentile Marker for 75% | E15: 0.75
B16: 63 | D16: ="Marker for "&E15*100&"th percentile:" -> Marker for 75th percentile: | E16: =_xlfn.PERCENTILE.EXC(B8:B28,E15) -> 84.5 | G16: =_xlfn.IFNA("Cell "&ADDRESS(ROW(E16),COLUMN(E16),4)&": "&_xlfn.FORMULATEXT(E16),"") -> Cell E16: =PERCENTILE.EXC(B8:B28,E15)
B17: 67 | G17: =IF(ISBLANK(E16),"","Approximately "&TEXT(E15,"0%")&" of scores are below "&E16&" and "&TEXT(1-E15,"0%")&" are above.") -> Approximately 75% of scores are below 84.5 and 25% are above.
B18: 68
B19: 69
B20: 72
B21: 76
B22: 78
B23: 84
B24: 85
B25: 89
B26: 91
B27: 93
B28: 95
H33: ="Values less than "&TEXT(E15,"0.0%")&" marker" -> Values less than 75.0% marker
H35: Test Score
H36: =_xlfn._xlws.SORT(_xlfn._xlws.FILTER(B8:B28,B8:B28<_xlfn.PERCENTILE.INC(B8:B28,E15))) -> 31
H37: 47
H38: 54
H39: 55
H40: 57
H41: 58
H42: 60
H43: 61
H44: 63
H45: 67
H46: 68
H47: 69
H48: 72
H49: 76
H50: 78

Sheet MeanPorS
B2: Measure of central location
B3: Mean = Average = "Typical Values" calculated so that we have one value that can represent all the data points
B5: Particular X | C5: Population Data | E5: Particular X | F5: Sample Data
B6: X1 | C6: 15 | E6: X1 | F6: =INDEX($C$6:$C$20,(ROWS(F$6:F6)-1)*2+1) -> 15
B7: X2 | C7: 10 | E7: X2 | F7: =INDEX($C$6:$C$20,(ROWS(F$6:F7)-1)*2+1) -> 14
B8: X3 | C8: 14 | E8: X3 | F8: =INDEX($C$6:$C$20,(ROWS(F$6:F8)-1)*2+1) -> 14
B9: X4 | C9: 13 | E9: X4 | F9: =INDEX($C$6:$C$20,(ROWS(F$6:F9)-1)*2+1) -> 11
B10: X5 | C10: 14 | E10: X5 | F10: =INDEX($C$6:$C$20,(ROWS(F$6:F10)-1)*2+1) -> 10
B11: X6 | C11: 8 | E11: X6 | F11: =INDEX($C$6:$C$20,(ROWS(F$6:F11)-1)*2+1) -> 9 | H11: Xbar | I11: = | J11: Sample Mean | K11: "Xbar"
B12: X7 | C12: 11 | E12: X7 | F12: =INDEX($C$6:$C$20,(ROWS(F$6:F12)-1)*2+1) -> 9 | H12: xi | I12: = | J12: Particular Value | K12: "x sub i"
B13: X8 | C13: 11 | E13: X8 | F13: =INDEX($C$6:$C$20,(ROWS(F$6:F13)-1)*2+1) -> 6 | H13: ∑ | I13: = | J13: Greek Letter used for "adding" | K13: "Sigma"
B14: X9 | C14: 10 | H14: n | I14: = | J14: Count of sample items | K14: "n"
B15: X10 | C15: 13 | E15: Xbar = | M15: =_xlfn.IFNA("Cell "&ADDRESS(ROW(F15),COLUMN(F15),4)&": "&_xlfn.FORMULATEXT(F15),"") -> 
B16: X11 | C16: 9
B17: X12 | C17: 11 | E17: =IF(F15="","","The Sample Statistic 'Sample Mean Xbar', "&DOLLAR(F15)&" is the point estimate of the Population Parameter 'Population Mean Mew'") -> 
B18: X13 | C18: 9
B19: X14 | C19: 9
B20: X15 | C20: 6
B22: Mew = μ = | H22: µ | I22: = | J22: Population Mean | K22: "Mew"
H23: xi | I23: = | J23: Particular Value | K23: "x sub i"
H24: ∑ | I24: = | J24: Greek Letter used for "adding" | K24: "Sigma"
C25: =_xlfn.IFNA("Cell "&ADDRESS(ROW(C22),COLUMN(C22),4)&": "&_xlfn.FORMULATEXT(C22),"") ->  | H25: N | I25: = | J25: Count of population items | K25: "N"

Sheet MeanPorS (an)
B2: Measure of central location
B3: Mean = Average = "Typical Values" calculated so that we have one value that can represent all the data points
B5: Particular X | C5: Population Data | E5: Particular X | F5: Sample Data
B6: X1 | C6: 15 | E6: X1 | F6: =INDEX($C$6:$C$20,(ROWS(F$6:F6)-1)*2+1) -> 15
B7: X2 | C7: 10 | E7: X2 | F7: =INDEX($C$6:$C$20,(ROWS(F$6:F7)-1)*2+1) -> 14
B8: X3 | C8: 14 | E8: X3 | F8: =INDEX($C$6:$C$20,(ROWS(F$6:F8)-1)*2+1) -> 14
B9: X4 | C9: 13 | E9: X4 | F9: =INDEX($C$6:$C$20,(ROWS(F$6:F9)-1)*2+1) -> 11
B10: X5 | C10: 14 | E10: X5 | F10: =INDEX($C$6:$C$20,(ROWS(F$6:F10)-1)*2+1) -> 10
B11: X6 | C11: 8 | E11: X6 | F11: =INDEX($C$6:$C$20,(ROWS(F$6:F11)-1)*2+1) -> 9 | H11: Xbar | I11: = | J11: Sample Mean | K11: "Xbar"
B12: X7 | C12: 11 | E12: X7 | F12: =INDEX($C$6:$C$20,(ROWS(F$6:F12)-1)*2+1) -> 9 | H12: xi | I12: = | J12: Particular Value | K12: "x sub i"
B13: X8 | C13: 11 | E13: X8 | F13: =INDEX($C$6:$C$20,(ROWS(F$6:F13)-1)*2+1) -> 6 | H13: ∑ | I13: = | J13: Greek Letter used for "adding" | K13: "Sigma"
B14: X9 | C14: 10 | H14: n | I14: = | J14: Count of sample items | K14: "n"
B15: X10 | C15: 13 | E15: Xbar = | F15: =AVERAGE(F6:F13) -> 11 | M15: =_xlfn.IFNA("Cell "&ADDRESS(ROW(F15),COLUMN(F15),4)&": "&_xlfn.FORMULATEXT(F15),"") -> Cell F15: =AVERAGE(F6:F13)
B16: X11 | C16: 9
B17: X12 | C17: 11 | E17: =IF(F15="","","The Sample Statistic 'Sample Mean Xbar', "&DOLLAR(F15)&" is the point estimate of the Population Parameter 'Population Mean Mew'") -> The Sample Statistic 'Sample Mean Xbar', $11.00 is the point estimate of the Population Parameter 'Population Mean Mew'
B18: X13 | C18: 9
B19: X14 | C19: 9
B20: X15 | C20: 6
B22: Mew = μ = | C22: =AVERAGE(C6:C20) -> 10.86666667 | H22: µ | I22: = | J22: Population Mean | K22: "Mew"
H23: xi | I23: = | J23: Particular Value | K23: "x sub i"
H24: ∑ | I24: = | J24: Greek Letter used for "adding" | K24: "Sigma"
C25: =_xlfn.IFNA("Cell "&ADDRESS(ROW(C22),COLUMN(C22),4)&": "&_xlfn.FORMULATEXT(C22),"") -> Cell C22: =AVERAGE(C6:C20) | H25: N | I25: = | J25: Count of population items | K25: "N"

Sheet Mean
B2: Measure of central location
B3: Average = "Typical Values" calculated so that we have one value that can represent all the data points
B4: 1) Mean
B5: Arithmetic Mean: Add them up and divide by the count
B6: Good for quantitative data when there are not extreme values - extreme values can make the mean look too big or too small
B7: (Median more representative of a typical value in that case)
B8: In Excel use: AVERAGE function
B10: Mean Test Scores | E10: Mean Weights (oz.) | H10: =_xlfn.IFNA("Cell "&ADDRESS(ROW(F10),COLUMN(F10),4)&": "&_xlfn.FORMULATEXT(F10),"") -> 
B11: =IF(C10<>"","We can use this average to compare to our scores and gage how well we did. We can also use the average of "&ROUND(C10,0)&" in discussions about the classes performance.","") ->  | E11: =IF(F10<>"","We can use this average to help us estimate whether the machine is filling correctly.","") ->  | H11: =_xlfn.IFNA("Cell "&ADDRESS(ROW(C10),COLUMN(C10),4)&": "&_xlfn.FORMULATEXT(C10),"") -> 
B13: Test Scores (Population) | E13: Weights (oz.) of Salad Bag from Filling Machine (Sample)
B14: 60 | E14: 10.8
B15: 68 | E15: 10.74
B16: 76 | E16: 10.32
B17: 84 | E17: 9.73
B18: 55 | E18: 9.15
B19: 63 | E19: 10.94
B20: 89 | E20: 10.83
B21: 31 | E21: 9.36
B22: 47 | E22: 10.42
B23: 68 | E23: 9.97
B24: 54 | E24: 10.23
B25: 58 | E25: 9.83
B26: 57 | E26: 10.41
B27: 61 | E27: 10.35
B28: 72 | E28: 9.87
B29: 91 | E29: 10.02
B30: 95 | E30: 9.45
B31: 68 | E31: 10.46
B32: 76 | E32: 10.8
B33: 76 | E33: 10.01

Sheet Mean (an)
B2: Measure of central location
B3: Average = "Typical Values" calculated so that we have one value that can represent all the data points
B4: 1) Mean
B5: Arithmetic Mean: Add them up and divide by the count
B6: Good for quantitative data when there are not extreme values - extreme values can make the mean look too big or too small
B7: (Median more representative of a typical value in that case)
B8: In Excel use: AVERAGE function
B10: Mean Test Scores | C10: =AVERAGE(B14:B33) -> 67.45 | E10: Mean Weights (oz.) | F10: =AVERAGE(E14:E33) -> 10.1845 | H10: =_xlfn.IFNA("Cell "&ADDRESS(ROW(F10),COLUMN(F10),4)&": "&_xlfn.FORMULATEXT(F10),"") -> Cell F10: =AVERAGE(E14:E33)
B11: =IF(C10<>"","We can use this average to compare to our scores and gage how well we did. We can also use the average of "&ROUND(C10,0)&" in discussions about the classes performance.","") -> We can use this average to compare to our scores and gage how well we did. We can also use the average of 67 in discussions about the classes performance. | E11: =IF(F10<>"","We can use this average to help us estimate whether the machine is filling correctly.","") -> We can use this average to help us estimate whether the machine is filling correctly. | H11: =_xlfn.IFNA("Cell "&ADDRESS(ROW(C10),COLUMN(C10),4)&": "&_xlfn.FORMULATEXT(C10),"") -> Cell C10: =AVERAGE(B14:B33)
B13: Test Scores (Population) | E13: Weights (oz.) of Salad Bag from Filling Machine (Sample)
B14: 60 | E14: 10.8
B15: 68 | E15: 10.74
B16: 76 | E16: 10.32
B17: 84 | E17: 9.73
B18: 55 | E18: 9.15
B19: 63 | E19: 10.94
B20: 89 | E20: 10.83
B21: 31 | E21: 9.36
B22: 47 | E22: 10.42
B23: 68 | E23: 9.97
B24: 54 | E24: 10.23
B25: 58 | E25: 9.83
B26: 57 | E26: 10.41
B27: 61 | E27: 10.35
B28: 72 | E28: 9.87
B29: 91 | E29: 10.02
B30: 95 | E30: 9.45
B31: 68 | E31: 10.46
B32: 76 | E32: 10.8
B33: 76 | E33: 10.01

Sheet Median
B2: Measure of central location
B3: Average = "Typical Values" calculated so that we have one value that can represent all the data points
B4: 2) Median
B5: Sort numbers smallest to biggest (ascending), then take the one in the middle. If count odd, take one in middle, if even, average middle two.
B6: Marks the point in the sorted list (an actual number) where aproximately 50% of the numbers are above and 50% of the numbers are below
B7: Good for quantitative data when there are extreme values (like house prices and salaries)
B8: Median can be a better measure of central location, than mean, when there are extreme values | N8: =_xlfn.IFNA("Cell "&ADDRESS(ROW(D11),COLUMN(D11),4)&": "&_xlfn.FORMULATEXT(D11),"") -> 
B9: In Excel use: MEDIAN function | N9: =_xlfn.IFNA("Cell "&ADDRESS(ROW(D12),COLUMN(D12),4)&": "&_xlfn.FORMULATEXT(D12),"") -> 
N10: =_xlfn.IFNA("Cell "&ADDRESS(ROW(E12),COLUMN(E12),4)&": "&_xlfn.FORMULATEXT(E12),"") -> 
B11: Mean House Price | J11: Mean Salary | N11: =_xlfn.IFNA("Cell "&ADDRESS(ROW(L11),COLUMN(L11),4)&": "&_xlfn.FORMULATEXT(L11),"") -> 
B12: Median House Price | J12: Median Salary | N12: =_xlfn.IFNA("Cell "&ADDRESS(ROW(L12),COLUMN(L12),4)&": "&_xlfn.FORMULATEXT(L12),"") -> 
B13: =IF(D12<>"","Median gives us a more representative 'typical value' to use in discussions and ads - because it is not affected by extreme values.","") ->  | J13: =IF(L12<>"","Median gives us a more representative 'typical value' to make decisions. When the mean is larger than the median, it usually means that a few large values are pulling the mean up.","") -> 
B15: House Prices | D15: House Prices | J15: Salaries at Accounting Firm | L15: Salaries at Accounting Firm
B16: 297873 | D16: 99857 | J16: 103332 | L16: 51671
B17: 170143 | D17: 109159 | J17: 120102 | L17: 54594
B18: 109159 | D18: 114460 | J18: 144354 | L18: 58072
B19: 277309 | D19: 118492 | J19: 138409 | L19: 59196
B20: 239136 | D20: 143400 | J20: 93949 | L20: 59915
B21: 114460 | D21: 144244 | J21: 59915 | L21: 92784
B22: 224649 | D22: 144686 | J22: 54594 | L22: 93949
B23: 99857 | D23: 170143 | J23: 92784 | L23: 96842
B24: 144686 | D24: 178708 | J24: 550250 | L24: 103332
B25: 193308 | D25: 193308 | J25: 59196 | L25: 105127
B26: 144244 | D26: 198345 | J26: 58072 | L26: 109151
B27: 118492 | D27: 201661 | J27: 51671 | L27: 119001
B28: 178708 | D28: 224649 | J28: 119001 | L28: 119831
B29: 750022 | D29: 239136 | J29: 126737 | L29: 120102
B30: 143400 | D30: 277309 | J30: 105127 | L30: 126737
B31: 201661 | D31: 297873 | J31: 139330 | L31: 138409
B32: 1258963 | D32: 394136 | J32: 109151 | L32: 139330
B33: 198345 | D33: 750022 | J33: 119831 | L33: 144354
B34: 394136 | D34: 1258963 | J34: 255800 | L34: 255800
B35: 2589657 | D35: 2589657 | J35: 790500 | L35: 550250
J36: 96842 | L36: 790500

Sheet Median (an)
B2: Measure of central location
B3: Average = "Typical Values" calculated so that we have one value that can represent all the data points
B4: 2) Median
B5: Sort numbers smallest to biggest (ascending), then take the one in the middle. If count odd, take one in middle, if even, average middle two.
B6: Marks the point in the sorted list (an actual number) where aproximately 50% of the numbers are above and 50% of the numbers are below
B7: Good for quantitative data when there are extreme values (like house prices and salaries)
B8: Median can be a better measure of central location, than mean, when there are extreme values | N8: =_xlfn.IFNA("Cell "&ADDRESS(ROW(D11),COLUMN(D11),4)&": "&_xlfn.FORMULATEXT(D11),"") -> Cell D11: =AVERAGE(B16:B35)
B9: In Excel use: MEDIAN function | N9: =_xlfn.IFNA("Cell "&ADDRESS(ROW(D12),COLUMN(D12),4)&": "&_xlfn.FORMULATEXT(D12),"") -> Cell D12: =MEDIAN(B16:B35)
N10: =_xlfn.IFNA("Cell "&ADDRESS(ROW(E12),COLUMN(E12),4)&": "&_xlfn.FORMULATEXT(E12),"") -> Cell E12: =AVERAGE(O25:O26)
B11: Mean House Price | D11: =AVERAGE(B16:B35) -> 392410.4 | J11: Mean Salary | L11: =AVERAGE(J16:J36) -> 161378.4286 | N11: =_xlfn.IFNA("Cell "&ADDRESS(ROW(L11),COLUMN(L11),4)&": "&_xlfn.FORMULATEXT(L11),"") -> Cell L11: =AVERAGE(J16:J36)
B12: Median House Price | D12: =MEDIAN(B16:B35) -> 195826.5 | E12: =AVERAGE(O25:O26) -> 195826.5 | J12: Median Salary | L12: =MEDIAN(J16:J36) -> 109151 | N12: =_xlfn.IFNA("Cell "&ADDRESS(ROW(L12),COLUMN(L12),4)&": "&_xlfn.FORMULATEXT(L12),"") -> Cell L12: =MEDIAN(J16:J36)
B13: =IF(D12<>"","Median gives us a more representative 'typical value' to use in discussions and ads - because it is not affected by extreme values.","") -> Median gives us a more representative 'typical value' to use in discussions and ads - because it is not affected by extreme values. | J13: =IF(L12<>"","Median gives us a more representative 'typical value' to make decisions. When the mean is larger than the median, it usually means that a few large values are pulling the mean up.","") -> Median gives us a more representative 'typical value' to make decisions. When the mean is larger than the median, it usually means that a few large values are pulling the mean up.
B15: House Prices | D15: House Prices | J15: Salaries at Accounting Firm | L15: Salaries at Accounting Firm | O15: House Prices
B16: 297873 | D16: 99857 | J16: 103332 | L16: 51671 | O16: 99857
B17: 170143 | D17: 109159 | J17: 120102 | L17: 54594 | O17: 109159
B18: 109159 | D18: 114460 | J18: 144354 | L18: 58072 | O18: 114460
B19: 277309 | D19: 118492 | J19: 138409 | L19: 59196 | O19: 118492
B20: 239136 | D20: 143400 | J20: 93949 | L20: 59915 | O20: 143400
B21: 114460 | D21: 144244 | J21: 59915 | L21: 92784 | O21: 144244
B22: 224649 | D22: 144686 | J22: 54594 | L22: 93949 | O22: 144686
B23: 99857 | D23: 170143 | J23: 92784 | L23: 96842 | O23: 170143
B24: 144686 | D24: 178708 | J24: 550250 | L24: 103332 | O24: 178708
B25: 193308 | D25: 193308 | J25: 59196 | L25: 105127 | O25: 193308
B26: 144244 | D26: 198345 | J26: 58072 | L26: 109151 | O26: 198345
B27: 118492 | D27: 201661 | J27: 51671 | L27: 119001 | O27: 201661
B28: 178708 | D28: 224649 | J28: 119001 | L28: 119831 | O28: 224649
B29: 750022 | D29: 239136 | J29: 126737 | L29: 120102 | O29: 239136
B30: 143400 | D30: 277309 | J30: 105127 | L30: 126737 | O30: 277309
B31: 201661 | D31: 297873 | J31: 139330 | L31: 138409 | O31: 297873
B32: 1258963 | D32: 394136 | J32: 109151 | L32: 139330 | O32: 394136
B33: 198345 | D33: 750022 | J33: 119831 | L33: 144354 | O33: 750022
B34: 394136 | D34: 1258963 | J34: 255800 | L34: 255800 | O34: 1258963
B35: 2589657 | D35: 2589657 | J35: 790500 | L35: 550250 | O35: 2589657
J36: 96842 | L36: 790500

Sheet Mode
B2: Measure of central location
B3: Average = "Typical Values" calculated so that we have one value that can represent all the data points
B4: 3) Mode
B5: One that occurs most frequently (can be bimodal, multimodal)
B6: Bimodal means two numbers are tied with highest frequency. Multimodal means there are multiple modes.
B7: Good for Categorical Data (Nominal and Ordinal)
B8: Mode is the only way to calculate an "average" for categorical data
B9: In Excel use: MODE.SNGL or MODE.MULT for quantitative data and PivotTables for Categorical or quantitative data.
B10: MODE.SNGL will only show 1 mode if the data set is bi-modal or multi-modal. MODE.MULT can be used for multiple modes.
B11: MODE.MULT can be used for multiple modes and will spill the results from the top cell where the formula lives.
B14: Favorite Cola | D14: For Categorical Data, to gage a 'Typical Value', use the Mode Calculation. | K14: Test Scores | M14: It is common to use Mode on quatitative data also
B15: Pepsi | K15: 60
B16: Coke | K16: 68
B17: Bloxy | K17: 76 | M17: Mode For Test Data | P17: =_xlfn.IFNA("Cell "&ADDRESS(ROW(N17),COLUMN(N17),4)&": "&_xlfn.FORMULATEXT(N17),"") -> 
B18: Shasta | K18: 84
B19: Bloxy | K19: 55 | M19: Mode For Test Data | P19: =_xlfn.IFNA("Cell "&ADDRESS(ROW(N19),COLUMN(N19),4)&": "&_xlfn.FORMULATEXT(N19),"") -> 
B20: Coke | K20: 63
B21: Bloxy | K21: 89
B22: Coke | K22: 31
B23: Pepsi | K23: 47
B24: Pepsi | K24: 68
B25: Bloxy | K25: 54
B26: Bloxy | K26: 58
B27: Pepsi | K27: 57
B28: Shasta | K28: 61
B29: Pepsi | K29: 72
B30: Bloxy | K30: 91
B31: Bloxy | K31: 95
B32: Coke | K32: 68
B33: Coke | K33: 76
B34: Shasta | K34: 76
D41: Dynamic Spilled Array Formula Solution #1:
D43: Unique List Count | E43: =COUNTA(_xlfn.UNIQUE(B15:B34)) -> 4
D45: Favorite Cola | E45: Frequency | G45: Dynamic Spilled Array Formula Solution #2:
D46: =IF(_xlfn.SEQUENCE(E43+1,,E43,-1),_xlfn._xlws.SORT(_xlfn.UNIQUE(B15:B34)),"Total") -> Bloxy | E46: =IF(_xlfn.ANCHORARRAY(D46)="Total",COUNTA(B15:B34),COUNTIFS(B15:B34,_xlfn.ANCHORARRAY(D46))) -> 7
D47: Coke | E47: 5 | G47: List all Categorical Data Mode/s:
D48: Pepsi | E48: 5 | G48: =_xlfn.LET(_xlpm.c,B15:B34,_xlpm.ul,_xlfn._xlws.SORT(_xlfn.UNIQUE(_xlpm.c)),_xlpm.f,COUNTIFS(_xlpm.c,_xlpm.ul),_xlpm.fd,CHOOSE({1,2},_xlpm.ul,_xlpm.f),_xlpm.mode,_xlfn._xlws.FILTER(_xlpm.fd,_xlpm.f=MAX(_xlpm.f)),_xlpm.mode) -> Bloxy | H48: 7
D49: Shasta | E49: 3
D50: Total | E50: 20

Sheet Mode (an)
B2: Measure of central location
B3: Average = "Typical Values" calculated so that we have one value that can represent all the data points
B4: 3) Mode
B5: One that occurs most frequently (can be bimodal, multimodal)
B6: Bimodal means two numbers are tied with highest frequency. Multimodal means there are multiple modes.
B7: Good for Categorical Data (Nominal and Ordinal)
B8: Mode is the only way to calculate an "average" for categorical data
B9: In Excel use: MODE.SNGL or MODE.MULT for quantitative data and PivotTables for Categorical or quantitative data.
B10: MODE.SNGL will only show 1 mode if the data set is bi-modal or multi-modal. MODE.MULT can be used for multiple modes.
B11: MODE.MULT can be used for multiple modes and will spill the results from the top cell where the formula lives.
B14: Favorite Cola | D14: For Categorical Data, to gage a 'Typical Value', use the Mode Calculation. | K14: Test Scores | M14: It is common to use Mode on quatitative data also
B15: Pepsi | K15: 60
B16: Coke | D16: Favorite Cola | E16: Frequency | G16: Favorite Cola | H16: Frequency | K16: 68
B17: Bloxy | D17: Bloxy | E17: 7 | G17: =_xlfn._xlws.SORT(_xlfn.UNIQUE(B15:B34)) -> Bloxy | H17: =COUNTIFS(B15:B34,_xlfn.ANCHORARRAY(G17)) -> 7 | K17: 76 | M17: Mode For Test Data | N17: =_xlfn.MODE.SNGL(K15:K34) -> 68 | P17: =_xlfn.IFNA("Cell "&ADDRESS(ROW(N17),COLUMN(N17),4)&": "&_xlfn.FORMULATEXT(N17),"") -> Cell N17: =MODE.SNGL(K15:K34)
B18: Shasta | D18: Coke | E18: 5 | G18: Coke | H18: 5 | K18: 84
B19: Bloxy | D19: Pepsi | E19: 5 | G19: Pepsi | H19: 5 | K19: 55 | M19: Mode For Test Data | N19: Frequency | P19: =_xlfn.IFNA("Cell "&ADDRESS(ROW(M20),COLUMN(M20),4)&": "&_xlfn.FORMULATEXT(M20),"") -> Cell M20: =MODE.MULT(K15:K34)
B20: Coke | D20: Shasta | E20: 3 | G20: Shasta | H20: 3 | K20: 63 | M20: =_xlfn.MODE.MULT(K15:K34) -> 68 | N20: =COUNTIFS(K15:K34,_xlfn.ANCHORARRAY(M20)) -> 3
B21: Bloxy | D21: Grand Total | E21: 20 | K21: 89 | M21: 76 | N21: 3
B22: Coke | K22: 31
B23: Pepsi | K23: 47
B24: Pepsi | K24: 68
B25: Bloxy | K25: 54 | M25: Test Scores | N25: Frequency
B26: Bloxy | K26: 58 | M26: 31 | N26: 1
B27: Pepsi | K27: 57 | M27: 47 | N27: 1
B28: Shasta | K28: 61 | M28: 54 | N28: 1
B29: Pepsi | K29: 72 | M29: 55 | N29: 1
B30: Bloxy | K30: 91 | M30: 57 | N30: 1
B31: Bloxy | K31: 95 | M31: 58 | N31: 1
B32: Coke | K32: 68 | M32: 60 | N32: 1
B33: Coke | K33: 76 | M33: 61 | N33: 1
B34: Shasta | K34: 76 | M34: 63 | N34: 1
M35: 68 | N35: 3
M36: 72 | N36: 1
M37: 76 | N37: 3
M38: 84 | N38: 1
M39: 89 | N39: 1
M40: 91 | N40: 1
D41: Dynamic Spilled Array Formula Solution #1: | M41: 95 | N41: 1
M42: Grand Total | N42: 20
D43: Unique List Count | E43: =COUNTA(_xlfn.UNIQUE(B15:B34)) -> 4
D45: Favorite Cola | E45: Frequency | G45: Dynamic Spilled Array Formula Solution #2:
D46: =IF(_xlfn.SEQUENCE(E43+1,,E43,-1),_xlfn._xlws.SORT(_xlfn.UNIQUE(B15:B34)),"Total") -> Bloxy | E46: =IF(_xlfn.ANCHORARRAY(D46)="Total",COUNTA(B15:B34),COUNTIFS(B15:B34,_xlfn.ANCHORARRAY(D46))) -> 7
D47: Coke | E47: 5 | G47: List all Categorical Data Mode/s:
D48: Pepsi | E48: 5 | G48: =_xlfn.LET(_xlpm.c,B15:B34,_xlpm.ul,_xlfn._xlws.SORT(_xlfn.UNIQUE(_xlpm.c)),_xlpm.f,COUNTIFS(_xlpm.c,_xlpm.ul),_xlpm.fd,CHOOSE({1,2},_xlpm.ul,_xlpm.f),_xlpm.mode,_xlfn._xlws.FILTER(_xlpm.fd,_xlpm.f=MAX(_xlpm.f)),_xlpm.mode) -> Bloxy | H48: 7
D49: Shasta | E49: 3
D50: Total | E50: 20

Sheet Skew
B2: Measure of shape of data distribution:
B3: Skew measures the shape of the data distribution
B4: Skew tells to which way the distribution is tilting
B5: Skew = tilt of Histogram
B6: In Excel use: The SKEW function to calculate the Skew. SKEW function uses the formula listed to right =>
B7: When we calculate skew, the result can be negative (skew left), positive (skew right) or zero (no skew).
B8: Left or Negative Skew | G8: Xbar | H8: = | I8: Sample Mean | J8: "Xbar"
B9: The frequency for small numbers is low and the frequency for large numbers is high | G9: xi | H9: = | I9: Particular Value | J9: "x sub i"
B10: A few small values will tend to pull the Mean down away from Median | G10: ∑ | H10: = | I10: Greek Letter used for "adding" | J10: "Sigma"
B11: Mean usually less than Median | G11: n | H11: = | I11: Count of sample items | J11: "n"
B12: Right or Positive Skew | G12: s | H12: = | I12: Sample Standard Deviation | J12: "s"
B13: The frequency for large numbers is low and the frequency for small numbers is high
B14: A few big values will tend to pull the Mean up away from Median
B15: Mean usually greater than Median
B16: No Skew = Bell Shape or Symmetrical Shape
B17: Mean and Median equal, and Mean, Median and Mode tend to all be right near the middle of the data set.
K22: 12
K23: 526
K24: 32
K25: 1
B26: Negative (Left) Skew Small values pull Mean down | C26: No Skew (Normal or Bell) Mean = Median = Mode | D26: Positive (Right) Skew Large values pull Mean up
A27: Count = n | F27: =_xlfn.IFNA("Cell "&ADDRESS(ROW(D27),COLUMN(D27),4)&": "&_xlfn.FORMULATEXT(D27),"") -> 
A28: Mean | L28: =SUMPRODUCT(K22:K25,--(LEN(K22:K25)=2)) -> 44
A29: Median | L29: =SUM(_xlfn._xlws.FILTER(K22:K25,LEN(K22:K25)=2)) -> 44
A30: Mode
A31: Skew
A32: Skew
B34: Data 1 | C34: Data 2 | D34: Data 3
B35: 7 | C35: 7.9 | D35: 1
B36: 43 | C36: 15 | D36: 7
B37: 33 | C37: 11 | D37: 7
B38: 21 | C38: 21 | D38: 12
B39: 15 | C39: 25 | D39: 11
B40: 31 | C40: 25 | D40: 14
B41: 36 | C41: 27 | D41: 2
B42: 43 | C42: 35 | D42: 1.9
B43: 48 | C43: 38 | D43: 39
B44: 49 | C44: 41 | D44: 49
B46: Negative (Left) Skew Small values pull Mean down | C46: No Skew (Normal or Bell) Mean = Median = Mode | D46: Positive (Right) Skew Large values pull Mean up | F46: Spilled aggregate formulas:
A47: Count = n | B47: =_xlfn.BYCOL(B35:D44,_xlfn.LAMBDA(_xlpm.v,COUNT(_xlpm.v))) -> 10 | C47: 10 | D47: 10 | F47: =_xlfn.IFNA("Cell "&ADDRESS(ROW(B47),COLUMN(B47),4)&": "&_xlfn.FORMULATEXT(B47),"") -> Cell B47: =BYCOL(B35:D44,LAMBDA(v,COUNT(v)))
A48: Mean | B48: =_xlfn.BYCOL(B35:D44,_xlfn.LAMBDA(_xlpm.v,AVERAGE(_xlpm.v))) -> 32.6 | C48: 24.59 | D48: 14.39 | F48: =_xlfn.IFNA("Cell "&ADDRESS(ROW(B48),COLUMN(B48),4)&": "&_xlfn.FORMULATEXT(B48),"") -> Cell B48: =BYCOL(B35:D44,LAMBDA(v,AVERAGE(v)))
A49: Median | B49: =_xlfn.BYCOL(B35:D44,_xlfn.LAMBDA(_xlpm.v,MEDIAN(_xlpm.v))) -> 34.5 | C49: 25 | D49: 9 | F49: Cell B49: =BYCOL(B35:D44,LAMBDA(v,MEDIAN(v)))
A50: Mode | B50: =_xlfn.BYCOL(B35:D44,_xlfn.LAMBDA(_xlpm.v,_xlfn.MODE.SNGL(_xlpm.v))) -> 43 | C50: 25 | D50: 7 | F50: Cell B50: =BYCOL(B35:D44,LAMBDA(v,MODE.SNGL(v)))
A51: Skew | B51: =_xlfn.BYCOL(B35:D44,_xlfn.LAMBDA(_xlpm.v,SKEW(_xlpm.v))) -> -0.640521768 | C51: -0.01127728555 | D51: 1.552490626 | F51: Cell B51: =BYCOL(B35:D44,LAMBDA(v,SKEW(v)))
A57: Method to create Mini-Charts above:
A59: Labels | B59: Frequency | C59: Frequency | D59: Frequency
A60: =A67&"-"&B67-1 -> 0-9 | B60: =INDEX(FREQUENCY(B35:B44,B67:B71),_xlfn.SEQUENCE(ROWS(B67:B71))) -> 1 | C60: =INDEX(FREQUENCY(C35:C44,C67:C71),_xlfn.SEQUENCE(ROWS(C67:C71))) -> 1 | D60: =INDEX(FREQUENCY(D35:D44,D67:D71),_xlfn.SEQUENCE(ROWS(D67:D71))) -> 5
A61: =A68&"-"&B68-1 -> 10-19 | B61: 1 | C61: 2 | D61: 3
A62: =A69&"-"&B69-1 -> 20-29 | B62: 1 | C62: 4 | D62: 0
A63: =A70&"-"&B70-1 -> 30-39 | B63: 3 | C63: 2 | D63: 1
A64: =A71&"-"&B71-1 -> 40-49 | B64: 4 | C64: 1 | D64: 1
A66: Low | B66: Bins | C66: Bins | D66: Bins
A67: =B67-10 -> 0 | B67: 10 | C67: 10 | D67: 10
A68: =B68-10 -> 10 | B68: 20 | C68: 20 | D68: 20
A69: =B69-10 -> 20 | B69: 30 | C69: 30 | D69: 30
A70: =B70-10 -> 30 | B70: 40 | C70: 40 | D70: 40
A71: 40 | B71: 50 | C71: 50 | D71: 50

Sheet Skew (an)
B2: Measure of shape of data distribution:
B3: Skew measures the shape of the data distribution
B4: Skew tells to which way the distribution is tilting
B5: Skew = tilt of Histogram
B6: In Excel use: The SKEW function to calculate the Skew. SKEW function uses the formula listed to right =>
B7: When we calculate skew, the result can be negative (skew left), positive (skew right) or zero (no skew).
B8: Left or Negative Skew | G8: Xbar | H8: = | I8: Sample Mean | J8: "Xbar"
B9: The frequency for small numbers is low and the frequency for large numbers is high | G9: xi | H9: = | I9: Particular Value | J9: "x sub i"
B10: A few small values will tend to pull the Mean down away from Median | G10: ∑ | H10: = | I10: Greek Letter used for "adding" | J10: "Sigma"
B11: Mean usually less than Median | G11: n | H11: = | I11: Count of sample items | J11: "n"
B12: Right or Positive Skew | G12: s | H12: = | I12: Sample Standard Deviation | J12: "s"
B13: The frequency for large numbers is low and the frequency for small numbers is high
B14: A few big values will tend to pull the Mean up away from Median
B15: Mean usually greater than Median
B16: No Skew = Bell Shape or Symmetrical Shape
B17: Mean and Median equal, and Mean, Median and Mode tend to all be right near the middle of the data set.
K22: 12
K23: 526
K24: 32
K25: 1
B26: Negative (Left) Skew Small values pull Mean down | C26: No Skew (Normal or Bell) Mean = Median = Mode | D26: Positive (Right) Skew Large values pull Mean up
A27: Count = n | B27: =COUNT(B35:B44) -> 10 | C27: =COUNT(C35:C44) -> 10 | D27: =COUNT(D35:D44) -> 10 | F27: =_xlfn.IFNA("Cell "&ADDRESS(ROW(D27),COLUMN(D27),4)&": "&_xlfn.FORMULATEXT(D27),"") -> Cell D27: =COUNT(D35:D44)
A28: Mean | B28: =AVERAGE(B35:B44) -> 32.6 | C28: =AVERAGE(C35:C44) -> 24.59 | D28: 14.39 | F28: Cell D28: =AVERAGE(D35:D44) | L28: =SUMPRODUCT(K22:K25,--(LEN(K22:K25)=2)) -> 44
A29: Median | B29: =MEDIAN(B35:B44) -> 34.5 | C29: =MEDIAN(C35:C44) -> 25 | D29: 9 | F29: Cell D29: =MEDIAN(D35:D44) | L29: =SUM(_xlfn._xlws.FILTER(K22:K25,LEN(K22:K25)=2)) -> 44
A30: Mode | B30: =_xlfn.MODE.MULT(B35:B44) -> 43 | C30: =_xlfn.MODE.MULT(C35:C44) -> 25 | D30: =_xlfn.MODE.MULT(D35:D44) -> 7 | F30: Cell D30: =MODE.MULT(D35:D44)
A31: Skew | B31: =SKEW(B35:B44) -> -0.640521768 | C31: =SKEW(C35:C44) -> -0.01127728555 | D31: =SKEW(D35:D44) -> 1.552490626 | F31: Cell D31: =SKEW(D35:D44)
A32: Skew | B32: =B27/((B27-1)*(B27-2))*SUM(((B35:B44-B28)/_xlfn.STDEV.S(B35:B44))^3) -> -0.640521768 | C32: =C27/((C27-1)*(C27-2))*SUM(((C35:C44-C28)/_xlfn.STDEV.S(C35:C44))^3) -> -0.01127728555 | D32: =D27/((D27-1)*(D27-2))*SUM(((D35:D44-D28)/_xlfn.STDEV.S(D35:D44))^3) -> 1.552490626 | F32: Cell D32: =D27/((D27-1)*(D27-2))*SUM(((D35:D44-D28)/STDEV.S(D35:D44))^3)
B34: Data 1 | C34: Data 2 | D34: Data 3
B35: 7 | C35: 7.9 | D35: 1
B36: 43 | C36: 15 | D36: 7
B37: 33 | C37: 11 | D37: 7
B38: 21 | C38: 21 | D38: 12
B39: 15 | C39: 25 | D39: 11
B40: 31 | C40: 25 | D40: 14
B41: 36 | C41: 27 | D41: 2
B42: 43 | C42: 35 | D42: 1.9
B43: 48 | C43: 38 | D43: 39
B44: 49 | C44: 41 | D44: 49
B46: Negative (Left) Skew Small values pull Mean down | C46: No Skew (Normal or Bell) Mean = Median = Mode | D46: Positive (Right) Skew Large values pull Mean up | F46: Spilled aggregate formulas:
A47: Count = n | B47: =_xlfn.BYCOL(B35:D44,_xlfn.LAMBDA(_xlpm.v,COUNT(_xlpm.v))) -> 10 | C47: 10 | D47: 10 | F47: =_xlfn.IFNA("Cell "&ADDRESS(ROW(B47),COLUMN(B47),4)&": "&_xlfn.FORMULATEXT(B47),"") -> Cell B47: =BYCOL(B35:D44,LAMBDA(v,COUNT(v)))
A48: Mean | B48: =_xlfn.BYCOL(B35:D44,_xlfn.LAMBDA(_xlpm.v,AVERAGE(_xlpm.v))) -> 32.6 | C48: 24.59 | D48: 14.39 | F48: =_xlfn.IFNA("Cell "&ADDRESS(ROW(B48),COLUMN(B48),4)&": "&_xlfn.FORMULATEXT(B48),"") -> Cell B48: =BYCOL(B35:D44,LAMBDA(v,AVERAGE(v)))
A49: Median | B49: =_xlfn.BYCOL(B35:D44,_xlfn.LAMBDA(_xlpm.v,MEDIAN(_xlpm.v))) -> 34.5 | C49: 25 | D49: 9 | F49: Cell B49: =BYCOL(B35:D44,LAMBDA(v,MEDIAN(v)))
A50: Mode | B50: =_xlfn.BYCOL(B35:D44,_xlfn.LAMBDA(_xlpm.v,_xlfn.MODE.SNGL(_xlpm.v))) -> 43 | C50: 25 | D50: 7 | F50: Cell B50: =BYCOL(B35:D44,LAMBDA(v,MODE.SNGL(v)))
A51: Skew | B51: =_xlfn.BYCOL(B35:D44,_xlfn.LAMBDA(_xlpm.v,SKEW(_xlpm.v))) -> -0.640521768 | C51: -0.01127728555 | D51: 1.552490626 | F51: Cell B51: =BYCOL(B35:D44,LAMBDA(v,SKEW(v)))
A57: Method to create Mini-Charts above:
A59: Labels | B59: Frequency | C59: Frequency | D59: Frequency
A60: =A67&"-"&B67-1 -> 0-9 | B60: =INDEX(FREQUENCY(B35:B44,B67:B71),_xlfn.SEQUENCE(ROWS(B67:B71))) -> 1 | C60: =INDEX(FREQUENCY(C35:C44,C67:C71),_xlfn.SEQUENCE(ROWS(C67:C71))) -> 1 | D60: =INDEX(FREQUENCY(D35:D44,D67:D71),_xlfn.SEQUENCE(ROWS(D67:D71))) -> 5
A61: =A68&"-"&B68-1 -> 10-19 | B61: 1 | C61: 2 | D61: 3
A62: =A69&"-"&B69-1 -> 20-29 | B62: 1 | C62: 4 | D62: 0
A63: =A70&"-"&B70-1 -> 30-39 | B63: 3 | C63: 2 | D63: 1
A64: =A71&"-"&B71-1 -> 40-49 | B64: 4 | C64: 1 | D64: 1
A66: Low | B66: Bins | C66: Bins | D66: Bins
A67: =B67-10 -> 0 | B67: 10 | C67: 10 | D67: 10
A68: =B68-10 -> 10 | B68: 20 | C68: 20 | D68: 20
A69: =B69-10 -> 20 | B69: 30 | C69: 30 | D69: 30
A70: =B70-10 -> 30 | B70: 40 | C70: 40 | D70: 40
A71: 40 | B71: 50 | C71: 50 | D71: 50

Sheet S(L)
A1: For Quantitative Data, Create Frequency Distribution and Histogram | O1: Other Examples of Skew Left/Negative:
O2: Death Rates
O4: Skew
O5: =SKEW(A7:A47) -> -1.724360344
A6: Tests Scores often Skewed Left - a few small values will tend to pull the Average (Mean) down | C6: COUNT function = No. in Sample = n = | D6: =COUNT(A7:A47) -> 41
A7: =IF(MOD(ROW(),4),RANDBETWEEN(65,100),RANDBETWEEN(0,100)) -> 70 | C7: MAX function | D7: =MAX(A7:A47) -> 100
A8: 1 | C8: MIN function | D8: =MIN(A7:A47) -> 1
A9: 97 | C9: ="Range = (MAX - MIN) = "&D7&" - "&D8&" =" -> Range = (MAX - MIN) = 100 - 1 = | D9: =D7-D8 -> 99
A10: 83 | C10: # of Classes = k = | D10: 7 | E10: This is a judgment call (the art side of statistics)
A11: 78 | C11: ="Is 2^"&D10&" ("&2^D10&") >= "&D6 -> Is 2^7 (128) >= 41 | D11: =2^D10>=D6 -> TRUE
A12: 27 | C12: ="Approximate Class Width = Range/k = "&D9&"/"&D10&" =" -> Approximate Class Width = Range/k = 99/7 = | D12: =(D7-D8)/D10 -> 14.14285714
A13: 75 | C13: Class width = | D13: 15 | E13: This is a judgment call (the art side of statistics)
A14: 98 | C14: ="Actual Range for Classes = ClassWidth*k = "&D13&"*"&D10&" =" -> Actual Range for Classes = ClassWidth*k = 15*7 = | D14: =D13*D10 -> 105
A15: 72 | C15: Lower Limit of First Class (look at MIN then estimate) | D15: 0 | E15: This is a judgment call (the art side of statistics)
A16: 100 | O16: Skew
A17: 78 | F17: Class | G17: Frequency | H17: % Frequency | O17: =SKEW(A53:A93) -> 0.03288843459
A18: 85 | D18: =D15 -> 0 | E18: =D18+D$13 -> 15 | F18: =D18&" up to "&E18 -> 0 up to 15 | G18: =COUNTIF($A$7:$A$47,"<"&E18)-COUNTIF($A$7:$A$47,"<"&D18) -> 4 | H18: =G18/G$25 -> 0.09756097561
A19: 85 | D19: =E18 -> 15 | E19: 30 | F19: 15 up to 30 | G19: 2 | H19: 0.0487804878
A20: 9 | D20: 30 | E20: 45 | F20: 30 up to 45 | G20: 0 | H20: 0
A21: 90 | D21: 45 | E21: 60 | F21: 45 up to 60 | G21: 0 | H21: 0
A22: 71 | D22: 60 | E22: 75 | F22: 60 up to 75 | G22: 8 | H22: 0.1951219512
A23: 87 | D23: 75 | E23: 90 | F23: 75 up to 90 | G23: 20 | H23: 0.487804878
A24: 9 | D24: 90 | E24: 105 | F24: 90 up to 105 | G24: 7 | H24: 0.1707317073
A25: 73 | G25: =SUM(G18:G24) -> 41 | H25: =SUM(H18:H24) -> 1
A26: 78
A27: 98
A28: 81
A29: 89
A30: 81
A31: 85
A32: 21
A33: 85
A34: 65
A35: 72
A36: 86
A37: 76
A38: 82
A39: 93
A40: 67
A41: 81
A42: 69
A43: 88
A44: 1
A45: 79
A46: 81
A47: 93
A52: Tests Scores can be bi-modal | C52: COUNT function = No. in Sample = n = | D52: =COUNT(A53:A93) -> 41
A53: =CHOOSE(RANDBETWEEN(1,5),RANDBETWEEN(0,30),RANDBETWEEN(0,30),RANDBETWEEN(60,100),RANDBETWEEN(60,100),RANDBETWEEN(0,100)) -> 6 | C53: MAX function | D53: =MAX(A53:A93) -> 100
A54: 34 | C54: MIN function | D54: =MIN(A53:A93) -> 0
A55: 24 | C55: ="Range = (MAX - MIN) = "&D53&" - "&D54&" =" -> Range = (MAX - MIN) = 100 - 0 = | D55: =D53-D54 -> 100
A56: 33 | C56: # of Classes = k = | D56: 7 | E56: This is a judgment call (the art side of statistics)
A57: 61 | C57: ="Is 2^"&D56&" ("&2^D56&") >= "&D52 -> Is 2^7 (128) >= 41 | D57: =2^D56>=D52 -> TRUE
A58: 9 | C58: ="Approximate Class Width = Range/k = "&D55&"/"&D56&" =" -> Approximate Class Width = Range/k = 100/7 = | D58: =(D53-D54)/D56 -> 14.28571429
A59: 6 | C59: Class width = | D59: 15 | E59: This is a judgment call (the art side of statistics)
A60: 93 | C60: ="Actual Range for Classes = ClassWidth*k = "&D59&"*"&D56&" =" -> Actual Range for Classes = ClassWidth*k = 15*7 = | D60: =D59*D56 -> 105
A61: 60 | C61: Lower Limit of First Class (look at MIN then estimate) | D61: 0 | E61: This is a judgment call (the art side of statistics)
A62: 62
A63: 80 | F63: Class | G63: Frequency | H63: % Frequency
A64: 6 | D64: =D61 -> 0 | E64: =D64+D$59 -> 15 | F64: =D64&" up to "&E64 -> 0 up to 15 | G64: =COUNTIF($A$53:$A$93,"<"&E64)-COUNTIF($A$53:$A$93,"<"&D64) -> 12 | H64: =G64/G$25 -> 0.2926829268
A65: 5 | D65: =E64 -> 15 | E65: 30 | F65: 15 up to 30 | G65: 5 | H65: 0.1219512195
A66: 82 | D66: 30 | E66: 45 | F66: 30 up to 45 | G66: 2 | H66: 0.0487804878
A67: 99 | D67: 45 | E67: 60 | F67: 45 up to 60 | G67: 0 | H67: 0
A68: 68 | D68: 60 | E68: 75 | F68: 60 up to 75 | G68: 10 | H68: 0.243902439
A69: 6 | D69: 75 | E69: 90 | F69: 75 up to 90 | G69: 4 | H69: 0.09756097561
A70: 100 | D70: 90 | E70: 105 | F70: 90 up to 105 | G70: 8 | H70: 0.1951219512
A71: 0 | G71: =SUM(G64:G70) -> 41 | H71: =SUM(H64:H70) -> 1
A72: 69
A73: 7
A74: 69
A75: 60
A76: 90
A77: 23
A78: 91
A79: 82
A80: 27
A81: 98
A82: 7
A83: 9
A84: 98
A85: 18
A86: 97
A87: 85
A88: 3
A89: 62
A90: 60
A91: 21
A92: 6
A93: 61

Sheet S(B)
A1: For Quantitative Data, Create Frequency Distribution and Histogram | R1: Notes for Bell Shaped Curve:
R2: Few population distributions have a Bell Shape, but some are close:
R3: Human height & weight
R4: Cereal box weight
R5: SAT scores
A6: Human Height often Close to Symmetrical - bell shape - high in the middle and tapering off in both directions | C6: COUNT function = No. in Sample = n = | D6: =COUNT(A7:A47) -> 41
A7: =IF(MOD(ROW(),4),RANDBETWEEN(450,650)/100,RANDBETWEEN(200,820)/100) -> 5.49 | C7: MAX function | D7: =MAX(A7:A47) -> 8.19 | R7: Skew
A8: 5.59 | C8: MIN function | D8: =MIN(A7:A47) -> 2.02 | R8: =SKEW(A7:A47) -> -0.2100257973
A9: 4.91 | C9: ="Range = (MAX - MIN) = "&D7&" - "&D8&" =" -> Range = (MAX - MIN) = 8.19 - 2.02 = | D9: =D7-D8 -> 6.17
A10: 6.16 | C10: # of Classes = k = | D10: 7 | E10: This is a judgment call (the art side of statistics)
A11: 6.34 | C11: ="Is 2^"&D10&" ("&2^D10&") >= "&D6 -> Is 2^7 (128) >= 41 | D11: =2^D10>=D6 -> TRUE
A12: 4.7 | C12: ="Approximate Class Width = Range/k = "&D9&"/"&D10&" =" -> Approximate Class Width = Range/k = 6.17/7 = | D12: =(D7-D8)/D10 -> 0.8814285714
A13: 6.24 | C13: Class width = | D13: 1 | E13: This is a judgment call (the art side of statistics)
A14: 4.61 | C14: ="Actual Range for Classes = ClassWidth*k = "&D13&"*"&D10&" =" -> Actual Range for Classes = ClassWidth*k = 1*7 = | D14: =D13*D10 -> 7
A15: 4.64 | C15: Lower Limit of First Class (look at MIN then estimate) | D15: 2 | E15: This is a judgment call (the art side of statistics)
A16: 4.12
A17: 5.91 | F17: Class | G17: Frequency | H17: % Frequency
A18: 4.58 | D18: =D15 -> 2 | E18: =D18+D$13 -> 3 | F18: =D18&" up to "&E18 -> 2 up to 3 | G18: =COUNTIF($A$7:$A$47,"<"&E18)-COUNTIF($A$7:$A$47,"<"&D18) -> 1 | H18: =G18/G$25 -> 0.0243902439
A19: 4.9 | D19: =E18 -> 3 | E19: 4 | F19: 3 up to 4 | G19: 0 | H19: 0
A20: 2.02 | D20: 4 | E20: 5 | F20: 4 up to 5 | G20: 12 | H20: 0.2926829268
A21: 5.75 | D21: 5 | E21: 6 | F21: 5 up to 6 | G21: 18 | H21: 0.4390243902
A22: 5.82 | D22: 6 | E22: 7 | F22: 6 up to 7 | G22: 7 | H22: 0.1707317073
A23: 6.4 | D23: 7 | E23: 8 | F23: 7 up to 8 | G23: 2 | H23: 0.0487804878
A24: 7.02 | D24: 8 | E24: 9 | F24: 8 up to 9 | G24: 1 | H24: 0.0243902439
A25: 5.25 | G25: =SUM(G18:G24) -> 41 | H25: =SUM(H18:H24) -> 1
A26: 5.66
A27: 4.95
A28: 5.1
A29: 5.81
A30: 5.27
A31: 6.15
A32: 5.94
A33: 5.73
A34: 6.31
A35: 4.87
A36: 4.54
A37: 5.24
A38: 5.22
A39: 6.41
A40: 8.19
A41: 5.8
A42: 5.12
A43: 4.75
A44: 7.9
A45: 5.76
A46: 4.8
A47: 5.22

Sheet S(R)
Q1: Other Examples of Skew Right/Positive:
Q2: House Prices
Q3: Data Entry Errors
Q4: Manufacturing Defects
Q5: Salaries
A6: House Prices ($) often Skewed Right - a few small values will tend to pull the Average (Mean) down | C6: COUNT function = No. in Sample = n = | D6: =COUNT(A7:A47) -> 41 | Q6: All these examples start at zero and have no theoretical upper limit, but
A7: =IF(MOD(ROW(),7),RANDBETWEEN(95000,500000),RANDBETWEEN(450000,1000000)) -> 677036 | C7: MAX function | D7: =MAX(A7:A47) -> 935593 | Q7: the likelihood of getting a high value is low: thus positive/right skew
A8: 124961 | C8: MIN function | D8: =MIN(A7:A47) -> 103519
A9: 414372 | C9: ="Range = (MAX - MIN) = "&D7&" - "&D8&" =" -> Range = (MAX - MIN) = 935593 - 103519 = | D9: =D7-D8 -> 832074
A10: 173448 | C10: # of Classes = k = | D10: 7 | E10: This is a judgment call (the art side of statistics) | R10: Skew:
A11: 272179 | C11: ="Is 2^"&D10&" ("&2^D10&") >= "&D6 -> Is 2^7 (128) >= 41 | D11: =2^D10>=D6 -> TRUE | R11: =SKEW(A7:A47) -> 1.506987218
A12: 331714 | C12: ="Approximate Class Width = Range/k = "&D9&"/"&D10&" =" -> Approximate Class Width = Range/k = 832074/7 = | D12: =(D7-D8)/D10 -> 118867.7143
A13: 311664 | C13: Class width = | D13: 150000 | E13: This is a judgment call (the art side of statistics)
A14: 837810 | C14: ="Actual Range for Classes = ClassWidth*k = "&D13&"*"&D10&" =" -> Actual Range for Classes = ClassWidth*k = 150000*7 = | D14: =D13*D10 -> 1050000
A15: 455168 | C15: Lower Limit of First Class (look at MIN then estimate) | D15: 0 | E15: This is a judgment call (the art side of statistics)
A16: 252846
A17: 211493 | F17: Class | G17: Frequency | H17: % Frequency
A18: 341437 | D18: =D15 -> 0 | E18: =D18+D$13 -> 150000 | F18: =DOLLAR(D18,0)&" up to "&DOLLAR(E18,0) -> $0 up to $150,000 | G18: =COUNTIF($A$7:$A$47,"<"&E18)-COUNTIF($A$7:$A$47,"<"&D18) -> 7 | H18: =G18/G$25 -> 0.1707317073
A19: 318258 | D19: =E18 -> 150000 | E19: 300000 | F19: $150,000 up to $300,000 | G19: 12 | H19: 0.2926829268
A20: 332137 | D20: 300000 | E20: 450000 | F20: $300,000 up to $450,000 | G20: 15 | H20: 0.3658536585
A21: 621951 | D21: 450000 | E21: 600000 | F21: $450,000 up to $600,000 | G21: 2 | H21: 0.0487804878
A22: 327196 | D22: 600000 | E22: 750000 | F22: $600,000 up to $750,000 | G22: 3 | H22: 0.07317073171
A23: 213903 | D23: 750000 | E23: 900000 | F23: $750,000 up to $900,000 | G23: 1 | H23: 0.0243902439
A24: 161457 | D24: 900000 | E24: 1050000 | F24: $900,000 up to $1,050,000 | G24: 1 | H24: 0.0243902439
A25: 278285 | G25: =SUM(G18:G24) -> 41 | H25: =SUM(H18:H24) -> 1
A26: 354609
A27: 131905
A28: 935593
A29: 387275
A30: 248738
A31: 131101
A32: 289910
A33: 182022
A34: 139042
A35: 632312
A36: 145876
A37: 324734
A38: 309039
A39: 173050
A40: 346674
A41: 420336
A42: 518988
A43: 217724
A44: 305613
A45: 117741
A46: 314671
A47: 103519

Sheet BonusV(9)
B2: What if you need the mean (average) from many ranges? | R2: What if you need the "moving average", like average of last 7 days or last 6 months? | AC2: ="Sales Boom Inc. "&TEXT(MIN(AC7:AC32),"mmm, yy")&" to "&TEXT(MAX(AC7:AC32),"mmm, yy") -> Sales Boom Inc. Jun, 20 to Jul, 22
R3: Moving averages "smooth out" numbers to give you a better over view of the trend.
B4: Mean Test Score | F4: =_xlfn.IFNA(_xlfn.FORMULATEXT(D4),"") ->  | R4: https://covid.cdc.gov/covid-data-tracker/#trends_dailycases
B5: Mean Quiz Score
AC6: Month End | AD6: Sales | AE6: 6-month Moving Ave.
B7: Student | C7: Test 1 | D7: Quiz 1 | E7: Quiz 2 | F7: Quiz 3 | G7: Test 2 | H7: Test 3 | I7: Quiz 4 | J7: Test 4 | K7: Quiz 5 | AC7: 2022-07-31 | AD7: 614212
B8: Jo | C8: 61 | D8: 5 | E8: 9 | F8: 1 | G8: 96 | H8: 24 | I8: 5 | J8: 55 | K8: 7 | AC8: 2022-06-30 | AD8: 551250
B9: Mo | C9: 43 | D9: 5 | E9: 6 | F9: 4 | G9: 32 | H9: 69 | I9: 3 | J9: 31 | K9: 8 | AC9: 2022-05-31 | AD9: 352220
B10: Pham | C10: 63 | D10: 10 | E10: 6 | F10: 5 | G10: 45 | H10: 63 | I10: 2 | J10: 89 | K10: 2 | AC10: 2022-04-30 | AD10: 607028
B11: Chin | C11: 48 | D11: 3 | E11: 10 | F11: 0 | G11: 96 | H11: 77 | I11: 3 | J11: 94 | K11: 3 | AC11: 2022-03-31 | AD11: 494401
B12: Bob | C12: 49 | D12: 4 | E12: 2 | F12: 6 | G12: 57 | H12: 97 | I12: 4 | J12: 45 | K12: 6 | AC12: 2022-02-28 | AD12: 348672
B13: Ty | C13: 100 | D13: 2 | E13: 2 | F13: 1 | G13: 25 | H13: 45 | I13: 4 | J13: 28 | K13: 0 | AC13: 2022-01-31 | AD13: 385596
B14: Chantel | C14: 89 | D14: 10 | E14: 10 | F14: 8 | G14: 92 | H14: 98 | I14: 10 | J14: 100 | K14: 9 | AC14: 2021-12-31 | AD14: 273864
B15: Tyrone | C15: 94 | D15: 8 | E15: 8 | F15: 10 | G15: 97 | H15: 98 | I15: 8 | J15: 93 | K15: 10 | AC15: 2021-11-30 | AD15: 320980
B16: Miki | C16: 52 | D16: 7 | E16: 7 | F16: 8 | G16: 95 | H16: 105 | I16: 1 | J16: 42 | K16: 3 | AC16: 2021-10-31 | AD16: 229383
B17: Dylan | C17: 31 | D17: 0 | E17: 3 | F17: 1 | G17: 80 | H17: 57 | I17: 8 | J17: 48 | K17: 7 | AC17: 2021-09-30 | AD17: 143395
B18: Shariee | C18: 88 | D18: 8 | E18: 10 | F18: 9 | G18: 101 | H18: 89 | I18: 9 | J18: 97 | K18: 9 | AC18: 2021-08-31 | AD18: 288865
B19: Dean | C19: 25 | D19: 7 | E19: 0 | F19: 9 | G19: 105 | H19: 42 | I19: 1 | J19: 76 | K19: 7 | AC19: 2021-07-31 | AD19: 423159
AC20: 2021-06-30 | AD20: 291445
AC21: 2021-05-31 | AD21: 596158
AC22: 2021-04-30 | AD22: 282149
AC23: 2021-03-31 | AD23: 487897
AC24: 2021-02-28 | AD24: 282977
B25: Alternative Method: | AC25: 2021-01-31 | AD25: 371800
AC26: 2020-12-31 | AD26: 179265
B27: Mean Test Score | D27: =AVERAGE(_xlfn._xlws.FILTER(C8:K19,LEFT(C7:K7)="T")) -> 69.29166667 | F27: =_xlfn.IFNA(_xlfn.FORMULATEXT(D27),"") -> =AVERAGE(FILTER(C8:K19,LEFT(C7:K7)="T")) | AC27: 2020-11-30 | AD27: 282570
B28: Mean Quiz Score | D28: =AVERAGE(_xlfn._xlws.FILTER(C8:K19,LEFT(C7:K7)="Q")) -> 5.55 | F28: =_xlfn.IFNA(_xlfn.FORMULATEXT(D28),"") -> =AVERAGE(FILTER(C8:K19,LEFT(C7:K7)="Q")) | AC28: 2020-10-31 | AD28: 548348
AC29: 2020-09-30 | AD29: 226192
AC30: 2020-08-31 | AD30: 239634
AC31: 2020-07-31 | AD31: 260717
AC32: 2020-06-30 | AD32: 137409
AC33: 2020-05-31 | AD33: 195947
AC34: 2020-04-30 | AD34: 258165
AC35: 2020-03-31 | AD35: 469009
AC36: 2020-02-29 | AD36: 454513
AC37: 2020-01-31 | AD37: 154396

Sheet BonusV(9an)
AD1: ="Sales Boom Inc. "&TEXT(MIN(AD6:AD31),"mmm, yy")&" to "&TEXT(MAX(AD6:AD31),"mmm, yy") -> Sales Boom Inc. Jun, 20 to Jul, 22 | AP1: =_xlfn.IFNA(ADDRESS(ROW(AP6),COLUMN(AP6),4)&": "&_xlfn.FORMULATEXT(AP6),"") -> AP6: =LET(a,AE6:AE36,nm,6,s,SCAN(0,SEQUENCE(ROWS(a)),LAMBDA(v,i,AVERAGE(INDEX(a,SEQUENCE(nm,,i))))),FILTER(s,NOT(ISERR(s))))
B2: What if you need the mean (average) from many ranges? | R2: What if you need the "moving average", like average of last 7 days or last 12 months? | AT2: =_xlfn.IFNA(ADDRESS(ROW(AT6),COLUMN(AT6),4)&": "&_xlfn.FORMULATEXT(AT6),"") -> AT6: =LET(sales,AE6:AE36,num_months,6,scan,SCAN(0,SEQUENCE(ROWS(sales)),LAMBDA(a,r,AVERAGE(INDEX(sales,SEQUENCE(num_months,,r))))),FILTER(scan,NOT(ISERR(scan))))
R3: Moving averages "smooth out" numbers to give you a better over view of the trend.
B4: Mean Test Score | D4: =AVERAGE(C8:C19,G8:H19,J8:J19) -> 69.29166667 | F4: =_xlfn.IFNA(_xlfn.FORMULATEXT(D4),"") -> =AVERAGE(C8:C19,G8:H19,J8:J19) | R4: https://covid.cdc.gov/covid-data-tracker/#trends_dailycases | AW4: Create data set:
B5: Mean Quiz Score | D5: =AVERAGE(D8:F19,I8:I19,K8:K19) -> 5.55 | F5: =AVERAGE(D8:F19,I8:I19,K8:K19) | AD5: Month End | AE5: Sales | AF5: 6-month Moving Ave. | AP5: ExcelLambda spilled solution: | AT5: Try:
R6: Date | S6: New Cases | T6: 7-Day Moving Average | AD6: 2022-07-31 | AE6: 614212 | AF6: =AVERAGE(AE6:AE11) -> 494630.5 | AP6: =_xlfn.LET(_xlpm.a,AE6:AE36,_xlpm.nm,6,_xlpm.s,_xlfn.SCAN(0,_xlfn.SEQUENCE(ROWS(_xlpm.a)),_xlfn.LAMBDA(_xlpm.v,_xlpm.i,AVERAGE(INDEX(_xlpm.a,_xlfn.SEQUENCE(_xlpm.nm,,_xlpm.i))))),_xlfn._xlws.FILTER(_xlpm.s,NOT(ISERR(_xlpm.s)))) -> 494630.5 | AT6: =_xlfn.LET(_xlpm.sales,AE6:AE36,_xlpm.num_months,6,_xlpm.scan,_xlfn.SCAN(0,_xlfn.SEQUENCE(ROWS(_xlpm.sales)),_xlfn.LAMBDA(_xlpm.a,_xlpm.r,AVERAGE(INDEX(_xlpm.sales,_xlfn.SEQUENCE(_xlpm.num_months,,_xlpm.r))))),_xlfn._xlws.FILTER(_xlpm.scan,NOT(ISERR(_xlpm.scan)))) -> 494630.5 | AW6: Month End | AX6: Sales
B7: Student | C7: Test 1 | D7: Quiz 1 | E7: Quiz 2 | F7: Quiz 3 | G7: Test 2 | H7: Test 3 | I7: Quiz 4 | J7: Test 4 | K7: Quiz 5 | R7: 2021-12-29 | S7: 486428 | T7: =AVERAGE(S7:S13) -> 316277 | AD7: 2022-06-30 | AE7: 551250 | AF7: =AVERAGE(AE7:AE12) -> 456527.8333 | AP7: 456527.8333 | AT7: 456527.8333 | AW7: 2020-01-31 | AX7: =CHOOSE(RANDBETWEEN(1,2),RANDBETWEEN(150000,599000),ABS(INT(_xlfn.NORM.INV(RAND(),225555,75000)))) -> 320558
B8: Jo | C8: 61 | D8: 5 | E8: 9 | F8: 1 | G8: 96 | H8: 24 | I8: 5 | J8: 55 | K8: 7 | R8: 2021-12-28 | S8: 439624 | T8: 281851.4286 | AD8: 2022-05-31 | AE8: 352220 | AF8: 410296.8333 | AP8: 410296.8333 | AT8: 410296.8333
B9: Mo | C9: 43 | D9: 5 | E9: 6 | F9: 4 | G9: 32 | H9: 69 | I9: 3 | J9: 31 | K9: 8 | R9: 2021-12-27 | S9: 453519 | T9: 248630.4286 | AD9: 2022-04-30 | AE9: 607028 | AF9: 405090.1667 | AP9: 405090.1667 | AT9: 405090.1667
B10: Pham | C10: 63 | D10: 10 | E10: 6 | F10: 5 | G10: 45 | H10: 63 | I10: 2 | J10: 89 | K10: 2 | R10: 2021-12-26 | S10: 206794 | T10: 223778.5714 | AD10: 2022-03-31 | AE10: 494401 | AF10: 342149.3333 | AP10: 342149.3333 | AT10: 342149.3333
B11: Chin | C11: 48 | D11: 3 | E11: 10 | F11: 0 | G11: 96 | H11: 77 | I11: 3 | J11: 94 | K11: 3 | R11: 2021-12-25 | S11: 114168 | T11: 208386.8571 | AD11: 2022-02-28 | AE11: 348672 | AF11: 283648.3333 | AP11: 283648.3333 | AT11: 283648.3333
B12: Bob | C12: 49 | D12: 4 | E12: 2 | F12: 6 | G12: 57 | H12: 97 | I12: 4 | J12: 45 | K12: 6 | R12: 2021-12-24 | S12: 232143 | T12: 203870.7143 | AD12: 2022-01-31 | AE12: 385596 | AF12: 273680.5 | AP12: 273680.5 | AT12: 273680.5
B13: Ty | C13: 100 | D13: 2 | E13: 2 | F13: 1 | G13: 25 | H13: 45 | I13: 4 | J13: 28 | K13: 0 | R13: 2021-12-23 | S13: 281263 | T13: 193805.5714 | AD13: 2021-12-31 | AE13: 273864 | AF13: 279941 | AP13: 279941 | AT13: 279941
B14: Chantel | C14: 89 | D14: 10 | E14: 10 | F14: 8 | G14: 92 | H14: 98 | I14: 10 | J14: 100 | K14: 9 | R14: 2021-12-22 | S14: 245449 | T14: 176457 | AD14: 2021-11-30 | AE14: 320980 | AF14: 282871.1667 | AP14: 282871.1667 | AT14: 282871.1667
B15: Tyrone | C15: 94 | D15: 8 | E15: 8 | F15: 10 | G15: 97 | H15: 98 | I15: 8 | J15: 93 | K15: 10 | R15: 2021-12-21 | S15: 207077 | T15: 162325.1429 | AD15: 2021-10-31 | AE15: 229383 | AF15: 328734.1667 | AP15: 328734.1667 | AT15: 328734.1667
B16: Miki | C16: 52 | D16: 7 | E16: 7 | F16: 8 | G16: 95 | H16: 105 | I16: 1 | J16: 42 | K16: 3 | R16: 2021-12-20 | S16: 279556 | T16: 150751 | AD16: 2021-09-30 | AE16: 143395 | AF16: 337528.5 | AP16: 337528.5 | AT16: 337528.5
B17: Dylan | C17: 31 | D17: 0 | E17: 3 | F17: 1 | G17: 80 | H17: 57 | I17: 8 | J17: 48 | K17: 7 | R17: 2021-12-19 | S17: 99052 | T17: 138357.5714 | AD17: 2021-08-31 | AE17: 288865 | AF17: 394945.5 | AP17: 394945.5 | AT17: 394945.5
B18: Shariee | C18: 88 | D18: 8 | E18: 10 | F18: 9 | G18: 101 | H18: 89 | I18: 9 | J18: 97 | K18: 9 | R18: 2021-12-18 | S18: 82555 | T18: 131996.5714 | AD18: 2021-07-31 | AE18: 423159 | AF18: 393964.1667 | AP18: 393964.1667 | AT18: 393964.1667
B19: Dean | C19: 25 | D19: 7 | E19: 0 | F19: 9 | G19: 105 | H19: 42 | I19: 1 | J19: 76 | K19: 7 | R19: 2021-12-17 | S19: 161687 | T19: 128742.2857 | AD19: 2021-06-30 | AE19: 291445 | AF19: 385404.3333 | AP19: 385404.3333 | AT19: 385404.3333
R20: 2021-12-16 | S20: 159823 | T20: 124718.7143 | AD20: 2021-05-31 | AE20: 596158 | AF20: 366707.6667 | AP20: 366707.6667 | AT20: 366707.6667
R21: 2021-12-15 | S21: 146526 | T21: 121667.4286 | AD21: 2021-04-30 | AE21: 282149 | AF21: 314443 | AP21: 314443 | AT21: 314443
R22: 2021-12-14 | S22: 126058 | T22: 119356.5714 | AD22: 2021-03-31 | AE22: 487897 | AF22: 358809.5 | AP22: 358809.5 | AT22: 358809.5
R23: 2021-12-13 | S23: 192802 | T23: 119385.7143 | AD23: 2021-02-28 | AE23: 282977 | AF23: 315192 | AP23: 315192 | AT23: 315192
R24: 2021-12-12 | S24: 54525 | T24: 119339.8571 | AD24: 2021-01-31 | AE24: 371800 | AF24: 307968.1667 | AP24: 307968.1667 | AT24: 307968.1667
B25: Alternative Method: | R25: 2021-12-11 | S25: 59775 | T25: 118898.2857 | AD25: 2020-12-31 | AE25: 179265 | AF25: 289454.3333 | AP25: 289454.3333 | AT25: 289454.3333
R26: 2021-12-10 | S26: 133522 | T26: 119038.2857 | AD26: 2020-11-30 | AE26: 282570 | AF26: 282478.3333 | AP26: 282478.3333 | AT26: 282478.3333
B27: Mean Test Score | D27: =AVERAGE(_xlfn._xlws.FILTER(C8:K19,LEFT(C7:K7)="T")) -> 69.29166667 | F27: =_xlfn.IFNA(_xlfn.FORMULATEXT(D27),"") -> =AVERAGE(FILTER(C8:K19,LEFT(C7:K7)="T")) | R27: 2021-12-09 | S27: 138464 | T27: 121555.1429 | AD27: 2020-10-31 | AE27: 548348 | AF27: 268041.1667 | AP27: 268041.1667 | AT27: 268041.1667
B28: Mean Quiz Score | D28: =AVERAGE(_xlfn._xlws.FILTER(C8:K19,LEFT(C7:K7)="Q")) -> 5.55 | F28: =_xlfn.IFNA(_xlfn.FORMULATEXT(D28),"") -> =AVERAGE(FILTER(C8:K19,LEFT(C7:K7)="Q")) | R28: 2021-12-08 | S28: 130350 | T28: 122251.7143 | AD28: 2020-09-30 | AE28: 226192 | AF28: 219677.3333 | AP28: 219677.3333 | AT28: 219677.3333
R29: 2021-12-07 | S29: 126262 | T29: 122673 | AD29: 2020-08-31 | AE29: 239634 | AF29: 260146.8333 | AP29: 260146.8333 | AT29: 260146.8333
R30: 2021-12-06 | S30: 192481 | T30: 121844.5714 | AD30: 2020-07-31 | AE30: 260717 | AF30: 295960 | AP30: 295960 | AT30: 295960
R31: 2021-12-05 | S31: 51434 | T31: 108778.5714 | AD31: 2020-06-30 | AE31: 137409 | AF31: 278239.8333 | AP31: 278239.8333 | AT31: 278239.8333
R32: 2021-12-04 | S32: 60755 | T32: 109056 | AD32: 2020-05-31 | AE32: 195947
R33: 2021-12-03 | S33: 151140 | T33: 107435.1429 | AD33: 2020-04-30 | AE33: 258165
R34: 2021-12-02 | S34: 143340 | T34: 97409.85714 | AD34: 2020-03-31 | AE34: 469009
R35: 2021-12-01 | S35: 133299 | T35: 86977.85714 | AD35: 2020-02-29 | AE35: 454513
R36: 2021-11-30 | S36: 120463 | T36: 82980.14286 | AD36: 2020-01-31 | AE36: 154396
R37: 2021-11-29 | S37: 101019 | T37: 80345.71429
R38: 2021-11-28 | S38: 53376 | T38: 87937
R39: 2021-11-27 | S39: 49409 | T39: 85181.71429
R40: 2021-11-26 | S40: 80963 | T40: 83700.14286
R41: 2021-11-25 | S41: 70316 | T41: 88377.71429
R42: 2021-11-24 | S42: 105315 | T42: 94549
R43: 2021-11-23 | S43: 102022 | T43: 94686
R44: 2021-11-22 | S44: 154158 | T44: 93942.28571
R45: 2021-11-21 | S45: 34089 | T45: 92457.57143
R46: 2021-11-20 | S46: 39038 | T46: 91682.42857
R47: 2021-11-19 | S47: 113706 | T47: 92892.42857
R48: 2021-11-18 | S48: 113515 | T48: 94246
R49: 2021-11-17 | S49: 106274 | T49: 88266.71429
R50: 2021-11-16 | S50: 96816 | T50: 86010
R51: 2021-11-15 | S51: 143765 | T51: 84052.71429
R52: 2021-11-14 | S52: 28663 | T52: 81833.28571
R53: 2021-11-13 | S53: 47508 | T53: 81454
R54: 2021-11-12 | S54: 123181 | T54: 78738
R55: 2021-11-11 | S55: 71660 | T55: 73933.85714
R56: 2021-11-10 | S56: 90477 | T56: 76288.28571
R57: 2021-11-09 | S57: 83115 | T57: 74789.85714
R58: 2021-11-08 | S58: 128229 | T58: 73362.42857
R59: 2021-11-07 | S59: 26008 | T59: 72226.14286
R60: 2021-11-06 | S60: 28496 | T60: 71448.28571
R61: 2021-11-05 | S61: 89552 | T61: 71487
R62: 2021-11-04 | S62: 88141 | T62: 71129.42857
R63: 2021-11-03 | S63: 79988 | T63: 70248.28571
R64: 2021-11-02 | S64: 73123 | T64: 70809
R65: 2021-11-01 | S65: 120275 | T65: 74999
R66: 2021-10-31 | S66: 20563 | T66: 71333.85714
R67: 2021-10-30 | S67: 28767 | T67: 71768.85714
R68: 2021-10-29 | S68: 87049 | T68: 71914.28571
R69: 2021-10-28 | S69: 81973 | T69: 71020
R70: 2021-10-27 | S70: 83913 | T70: 71783.71429
R71: 2021-10-26 | S71: 102453 | T71: =AVERAGE(S71:S77) -> 70712.14286
R72: 2021-10-25 | S72: 94619 | T72: 67654.85714
R73: 2021-10-24 | S73: 23608 | T73: 64222
R74: 2021-10-23 | S74: 29785 | T74: 67889.85714
R75: 2021-10-22 | S75: 80789 | T75: 72518.28571
R76: 2021-10-21 | S76: 87319 | T76: 73975.28571
R77: 2021-10-20 | S77: 76412 | T77: 75313.85714
R78: 2021-10-19 | S78: 81052 | T78: 78260.71429
R79: 2021-10-18 | S79: 70589 | T79: 79704.42857
R80: 2021-10-17 | S80: 49283 | T80: 80365.42857
R81: 2021-10-16 | S81: 62184 | T81: 81826.71429
R82: 2021-10-15 | S82: 90988 | T82: 82946
R83: 2021-10-14 | S83: 96689 | T83: 85348.57143
R84: 2021-10-13 | S84: 97040 | T84: 87539.85714
R85: 2021-10-12 | S85: 91158 | T85: 89083.28571
R86: 2021-10-11 | S86: 75216 | T86: 91049.71429
R87: 2021-10-10 | S87: 59512 | T87: 92813.42857
R88: 2021-10-09 | S88: 70019 | T88: 94086.71429
R89: 2021-10-08 | S89: 107806 | T89: 95709.42857
R90: 2021-10-07 | S90: 112028 | T90: 97470.28571
R91: 2021-10-06 | S91: 107844 | T91: 98977.42857
R92: 2021-10-05 | S92: 104923 | T92: 100201.1429
R93: 2021-10-04 | S93: 87562 | T93: 101944.5714
R94: 2021-10-03 | S94: 68425 | T94: 104212.5714
R95: 2021-10-02 | S95: 81378 | T95: 105449.1429
R96: 2021-10-01 | S96: 120132 | T96: 107489.1429
R97: 2021-09-30 | S97: 122578 | T97: 109341.1429
R98: 2021-09-29 | S98: 116410 | T98: 111199.1429
R99: 2021-09-28 | S99: 117127 | T99: 113484.2857
R100: 2021-09-27 | S100: 103438 | T100: 116045.1429
R101: 2021-09-26 | S101: 77081 | T101: 114653.8571
R102: 2021-09-25 | S102: 95658 | T102: 117510.7143
R103: 2021-09-24 | S103: 133096 | T103: 121431
R104: 2021-09-23 | S104: 135584 | T104: 124928.5714
R105: 2021-09-22 | S105: 132406 | T105: 129467
R106: 2021-09-21 | S106: 135053 | T106: 133848.8571
R107: 2021-09-20 | S107: 93699 | T107: 137726.5714
R108: 2021-09-19 | S108: 97079 | T108: 140588.1429
R109: 2021-09-18 | S109: 123100 | T109: 143330.8571
R110: 2021-09-17 | S110: 157579 | T110: 147635.1429
R111: 2021-09-16 | S111: 167353 | T111: 149331.5714
R112: 2021-09-15 | S112: 163079 | T112: 152108.8571
R113: 2021-09-14 | S113: 162197 | T113: 153100.5714
R114: 2021-09-13 | S114: 113730 | T114: 146841.5714
R115: 2021-09-12 | S115: 116278 | T115: 146349.1429
R116: 2021-09-11 | S116: 153230 | T116: 147548.5714
R117: 2021-09-10 | S117: 169454 | T117: 145973.5714
R118: 2021-09-09 | S118: 186794 | T118: 147895.1429
R119: 2021-09-08 | S119: 170021 | T119: 147251.2857
R120: 2021-09-07 | S120: 118384 | T120: 151367.8571
R121: 2021-09-06 | S121: 110283 | T121: 159733
R122: 2021-09-05 | S122: 124674 | T122: 163206.8571
R123: 2021-09-04 | S123: 142205 | T123: 162287.7143
R124: 2021-09-03 | S124: 182905 | T124: 163570.4286
R125: 2021-09-02 | S125: 182287 | T125: 163551.1429
R126: 2021-09-01 | S126: 198837 | T126: 164233.5714
R127: 2021-08-31 | S127: 176940 | T127: 161227
R128: 2021-08-30 | S128: 134600 | T128: 159338.1429
R129: 2021-08-29 | S129: 118240 | T129: 156882.5714
R130: 2021-08-28 | S130: 151184 | T130: 158134.7143
R131: 2021-08-27 | S131: 182770 | T131: 156943.7143
R132: 2021-08-26 | S132: 187064 | T132: 154679.2857
R133: 2021-08-25 | S133: 177791 | T133: 152949
R134: 2021-08-24 | S134: 163718 | T134: 151574.7143
R135: 2021-08-23 | S135: 117411 | T135: =AVERAGE(S135:S141) -> 149727.7143
R136: 2021-08-22 | S136: 127005 | T136: 148710.7143
R137: 2021-08-21 | S137: 142847 | T137: 146369.8571
R138: 2021-08-20 | S138: 166919 | T138: 145837.8571
R139: 2021-08-19 | S139: 174952 | T139: 142928.8571
R140: 2021-08-18 | S140: 168171 | T140: 139589
R141: 2021-08-17 | S141: 150789 | T141: 136217.4286
R142: 2021-08-16 | S142: 110292 | T142: 134187.1429
R143: 2021-08-15 | S143: 110619 | T143: 131852.7143
R144: 2021-08-14 | S144: 139123 | T144: 129924
R145: 2021-08-13 | S145: 146556 | T145: 127187.8571
R146: 2021-08-12 | S146: 151573 | T146: 124242.1429
R147: 2021-08-11 | S147: 144570 | T147: 121036.1429
R148: 2021-08-10 | S148: 136577 | T148: 118109.5714
R149: 2021-08-09 | S149: 93951 | T149: 114395.7143
R150: 2021-08-08 | S150: 97118 | T150: 115777
R151: 2021-08-07 | S151: 119970 | T151: 110905
R152: 2021-08-06 | S152: 125936 | T152: 105409.2857
R153: 2021-08-05 | S153: 129131 | T153: 102417.8571
R154: 2021-08-04 | S154: 124084 | T154: 98156.14286
R155: 2021-08-03 | S155: 110580 | T155: 93216.14286
R156: 2021-08-02 | S156: 103620 | T156: 89715.57143
R157: 2021-08-01 | S157: 63014 | T157: 85135
R158: 2021-07-31 | S158: 81500 | T158: 82313.71429
R159: 2021-07-30 | S159: 104996 | T159: 78285.85714
R160: 2021-07-29 | S160: 99299 | T160: 73068.28571
R161: 2021-07-28 | S161: 89504 | T161: 69288.14286
R162: 2021-07-27 | S162: 86076 | T162: 65301.14286
R163: 2021-07-26 | S163: 71556 | T163: 60290.42857
R164: 2021-07-25 | S164: 43265 | T164: 56565.71429
R165: 2021-07-24 | S165: 53305 | T165: 54440.28571
R166: 2021-07-23 | S166: 68473 | T166: 51326.14286
R167: 2021-07-22 | S167: 72838 | T167: 47594.57143
R168: 2021-07-21 | S168: 61595 | T168: 42982.14286
R169: 2021-07-20 | S169: 51001 | T169: 39678
R170: 2021-07-19 | S170: 45483 | T170: 37375.14286
R171: 2021-07-18 | S171: 28387 | T171: 35069.85714
R172: 2021-07-17 | S172: 31506 | T172: 33409.57143
R173: 2021-07-16 | S173: 42352 | T173: 31841
R174: 2021-07-15 | S174: 40551 | T174: 29735.42857
R175: 2021-07-14 | S175: 38466 | T175: 27958.71429
R176: 2021-07-13 | S176: 34881 | T176: 25721
R177: 2021-07-12 | S177: 29346 | T177: 23623.42857
R178: 2021-07-11 | S178: 16765 | T178: 20747.85714
R179: 2021-07-10 | S179: 20526 | T179: 19834.85714
R180: 2021-07-09 | S180: 27613 | T180: 18764.57143
R181: 2021-07-08 | S181: 28114 | T181: 17225.14286
R182: 2021-07-07 | S182: 22802 | T182: 15880.85714
R183: 2021-07-06 | S183: 20198 | T183: 14281.71429
R184: 2021-07-05 | S184: 9217 | T184: 13644.28571
R185: 2021-07-04 | S185: 10374 | T185: 13850.85714
R186: 2021-07-03 | S186: 13034 | T186: 13869
R187: 2021-07-02 | S187: 16837 | T187: 13889.57143
R188: 2021-07-01 | S188: 18704 | T188: 13640.28571
R189: 2021-06-30 | S189: 11608 | T189: 13187.85714
R190: 2021-06-29 | S190: 15736 | T190: 13509.71429
R191: 2021-06-28 | S191: 10663 | T191: 13186.85714
R192: 2021-06-27 | S192: 10501 | T192: 12899.71429
R193: 2021-06-26 | S193: 13178 | T193: 12675.57143
R194: 2021-06-25 | S194: 15092 | T194: 12564.14286
R195: 2021-06-24 | S195: 15537 | T195: 12126.14286
R196: 2021-06-23 | S196: 13861 | T196: 11803
R197: 2021-06-22 | S197: 13476 | T197: 11710
R198: 2021-06-21 | S198: 8653 | T198: 11619.57143
R199: 2021-06-20 | S199: 8932 | T199: =AVERAGE(S199:S205) -> 11566.71429
R200: 2021-06-19 | S200: 12398 | T200: 11517.85714
... 513 more rows

Sheet WeightedMean
B2: Measure of central location
B3: Average = "Typical Values" calculated so that we have one value that can represent all the data points
B4: 4) Weighted Mean
B5: Fast way to calculate Mean when you have a Frequency Table or Relative Frequency Table | N5: Purchases Last Year of Quad Boomerangs | U5: Purchases Last Year of Quad Boomerangs
B6: In Excel use: SUMPRODUCT(Values, Weights)/SUM(Weights) | N6: The Accounting Department needs the weighted average to calculate COGS and End Inventory | U6: The Accounting Department gives you % Frequency and needs the weighted average to calculate the End Inventory
B8: Quiz Scores (list of scores) | D8: Unique List of Quiz Scores, xi | E8: Frequency, wi | F8: wi * xi = M1 | N8: Date | O8: Quantity Purchased wi | P8: Price per Unit xi | R8: Calcuate % Frequency | U8: Price per Unit xi | V8: Percent Frequency (PF)
B9: 5 | D9: 0 | E9: 1 | N9: 2021-01-02 | O9: 108 | P9: 24.3 | U9: 24.3 | V9: 0.1058823529
B10: 6 | D10: 2 | E10: 1 | N10: 2021-02-15 | O10: 72 | P10: 26.45 | U10: 26.45 | V10: 0.07058823529
B11: 8 | D11: 5 | E11: 2 | N11: 2021-03-28 | O11: 120 | P11: 26.45 | U11: 26.45 | V11: 0.1176470588
B12: 10 | D12: 6 | E12: 3 | H12: Xbar | I12: = | J12: Sample Mean | K12: "Xbar" | N12: 2021-04-27 | O12: 108 | P12: 17.42 | U12: 17.42 | V12: 0.1058823529 | X12: Chapter 5, they will call this sort of Weighted Average an "Expected Value"
B13: 2 | D13: 8 | E13: 3 | H13: xi | I13: = | J13: Particular Value | K13: "x sub i" | N13: 2021-05-19 | O13: 36 | P13: 26.02 | U13: 26.02 | V13: 0.03529411765
B14: 0 | D14: 10 | E14: 2 | H14: wi | I14: = | J14: Particular Weight | K14: "w sub i" | N14: 2021-06-19 | O14: 96 | P14: 21.72 | U14: 21.72 | V14: 0.09411764706
B15: 5 | D15: Total | H15: ∑ | I15: = | J15: Greek Letter used for "adding" | K15: "Sigma" | N15: 2021-07-22 | O15: 36 | P15: 20.64 | U15: 20.64 | V15: 0.03529411765
B16: 6 | H16: n | I16: = | J16: Count of sample items | K16: "n" | N16: 2021-09-04 | O16: 120 | P16: 25.37 | U16: 25.37 | V16: 0.1176470588
B17: 8 | N17: 2021-09-26 | O17: 36 | P17: 23.44 | U17: 23.44 | V17: 0.03529411765
B18: 6 | D18: Mean | G18: =_xlfn.IFNA("Cell "&ADDRESS(ROW(E18),COLUMN(E18),4)&": "&_xlfn.FORMULATEXT(E18),"") ->  | N18: 2021-11-03 | O18: 144 | P18: 21.72 | U18: 21.72 | V18: 0.1411764706
B19: 10 | D19: Mean | G19: =_xlfn.IFNA("Cell "&ADDRESS(ROW(E19),COLUMN(E19),4)&": "&_xlfn.FORMULATEXT(E19),"") ->  | N19: 2021-12-03 | O19: 144 | P19: 20.21 | U19: 20.21 | V19: 0.1411764706
B20: 8 | G20: =_xlfn.IFNA("Cell "&ADDRESS(ROW(F9),COLUMN(F9),4)&": "&_xlfn.FORMULATEXT(F9),"") ->  | V20: 1
A21: Mean | D21: =_xlfn.IFNA("Cell "&ADDRESS(ROW(B21),COLUMN(B21),4)&": "&_xlfn.FORMULATEXT(B21),"") ->  | G21: =_xlfn.IFNA("Cell "&ADDRESS(ROW(F15),COLUMN(F15),4)&": "&_xlfn.FORMULATEXT(F15),"") ->  | N21: Total Units | R21: =_xlfn.IFNA("Cell "&ADDRESS(ROW(P21),COLUMN(P21),4)&": "&_xlfn.FORMULATEXT(P21),"") -> 
G22: =_xlfn.IFNA("Cell "&ADDRESS(ROW(E15),COLUMN(E15),4)&": "&_xlfn.FORMULATEXT(E15),"") ->  | N22: Total Inventory Value | R22: =_xlfn.IFNA("Cell "&ADDRESS(ROW(P22),COLUMN(P22),4)&": "&_xlfn.FORMULATEXT(P22),"") -> 
N23: Weighted Average | U23: Weighted Average | Y23: =_xlfn.IFNA("Cell "&ADDRESS(ROW(W23),COLUMN(W23),4)&": "&_xlfn.FORMULATEXT(W23),"") -> 
N24: Units Left on Shelf in 2021 | P24: 155 | U24: Total Units in 2021 | W24: 1020 | Y24: =_xlfn.IFNA("Cell "&ADDRESS(ROW(W24),COLUMN(W24),4)&": "&_xlfn.FORMULATEXT(W24),"") -> 
N25: End Inventory | U25: Units Sold in 2021 | W25: 865 | Y25: =_xlfn.IFNA("Cell "&ADDRESS(ROW(W25),COLUMN(W25),4)&": "&_xlfn.FORMULATEXT(W25),"") -> 
N26: COGS | U26: COGS | Y26: =_xlfn.IFNA("Cell "&ADDRESS(ROW(W26),COLUMN(W26),4)&": "&_xlfn.FORMULATEXT(W26),"") -> 
N27: COGS | U27: End Inventory | Y27: =_xlfn.IFNA("Cell "&ADDRESS(ROW(W27),COLUMN(W27),4)&": "&_xlfn.FORMULATEXT(W27),"") -> 
N28: Check Total

Sheet WeightedMean (an)
B2: Measure of central location
B3: Average = "Typical Values" calculated so that we have one value that can represent all the data points
B4: 4) Weighted Mean
B5: Fast way to calculate Mean when you have a Frequency Table or Relative Frequency Table | N5: Purchases Last Year of Quad Boomerangs | U5: Purchases Last Year of Quad Boomerangs
B6: In Excel use: SUMPRODUCT(Values, Weights)/SUM(Weights) | N6: The Accounting Department needs the weighted average to calculate COGS and End Inventory | U6: The Accounting Department gives you % Frequency and needs the weighted average to calculate the End Inventory
B8: Quiz Scores (list of scores) | D8: Unique List of Quiz Scores, xi | E8: Frequency, wi | F8: wi * xi = M1 | N8: Date | O8: Quantity Purchased wi | P8: Price per Unit xi | R8: Calcuate % Frequency | U8: Price per Unit xi | V8: Percent Frequency (PF)
B9: 5 | D9: 0 | E9: 1 | F9: =D9:D14*E9:E14 -> 0 | N9: 2021-01-02 | O9: 108 | P9: 24.3 | R9: =O9:O19/P21 -> 0.1058823529 | U9: 24.3 | V9: 0.1058823529
B10: 6 | D10: 2 | E10: 1 | F10: 2 | N10: 2021-02-15 | O10: 72 | P10: 26.45 | R10: 0.07058823529 | U10: 26.45 | V10: 0.07058823529
B11: 8 | D11: 5 | E11: 2 | F11: 10 | N11: 2021-03-28 | O11: 120 | P11: 26.45 | R11: 0.1176470588 | U11: 26.45 | V11: 0.1176470588
B12: 10 | D12: 6 | E12: 3 | F12: 18 | H12: Xbar | I12: = | J12: Sample Mean | K12: "Xbar" | N12: 2021-04-27 | O12: 108 | P12: 17.42 | R12: 0.1058823529 | U12: 17.42 | V12: 0.1058823529 | X12: Chapter 5, they will call this sort of Weighted Average an "Expected Value"
B13: 2 | D13: 8 | E13: 3 | F13: 24 | H13: xi | I13: = | J13: Particular Value | K13: "x sub i" | N13: 2021-05-19 | O13: 36 | P13: 26.02 | R13: 0.03529411765 | U13: 26.02 | V13: 0.03529411765
B14: 0 | D14: 10 | E14: 2 | F14: 20 | H14: wi | I14: = | J14: Particular Weight | K14: "w sub i" | N14: 2021-06-19 | O14: 96 | P14: 21.72 | R14: 0.09411764706 | U14: 21.72 | V14: 0.09411764706
B15: 5 | D15: Total | E15: =SUM(E9:E14) -> 12 | F15: =SUM(_xlfn.ANCHORARRAY(F9)) -> 74 | H15: ∑ | I15: = | J15: Greek Letter used for "adding" | K15: "Sigma" | N15: 2021-07-22 | O15: 36 | P15: 20.64 | R15: 0.03529411765 | U15: 20.64 | V15: 0.03529411765
B16: 6 | H16: n | I16: = | J16: Count of sample items | K16: "n" | N16: 2021-09-04 | O16: 120 | P16: 25.37 | R16: 0.1176470588 | U16: 25.37 | V16: 0.1176470588
B17: 8 | N17: 2021-09-26 | O17: 36 | P17: 23.44 | R17: 0.03529411765 | U17: 23.44 | V17: 0.03529411765
B18: 6 | D18: Mean | E18: =F15/E15 -> 6.166666667 | G18: =_xlfn.IFNA("Cell "&ADDRESS(ROW(E18),COLUMN(E18),4)&": "&_xlfn.FORMULATEXT(E18),"") -> Cell E18: =F15/E15 | N18: 2021-11-03 | O18: 144 | P18: 21.72 | R18: 0.1411764706 | U18: 21.72 | V18: 0.1411764706
B19: 10 | D19: Mean | E19: =SUMPRODUCT(D9:D14,E9:E14)/SUM(E9:E14) -> 6.166666667 | G19: =_xlfn.IFNA("Cell "&ADDRESS(ROW(E19),COLUMN(E19),4)&": "&_xlfn.FORMULATEXT(E19),"") -> Cell E19: =SUMPRODUCT(D9:D14,E9:E14)/SUM(E9:E14) | N19: 2021-12-03 | O19: 144 | P19: 20.21 | R19: 0.1411764706 | U19: 20.21 | V19: 0.1411764706
B20: 8 | G20: =_xlfn.IFNA("Cell "&ADDRESS(ROW(F9),COLUMN(F9),4)&": "&_xlfn.FORMULATEXT(F9),"") -> Cell F9: =D9:D14*E9:E14 | V20: 1
A21: Mean | B21: =AVERAGE(B9:B20) -> 6.166666667 | D21: =_xlfn.IFNA("Cell "&ADDRESS(ROW(B21),COLUMN(B21),4)&": "&_xlfn.FORMULATEXT(B21),"") -> Cell B21: =AVERAGE(B9:B20) | G21: =_xlfn.IFNA("Cell "&ADDRESS(ROW(F15),COLUMN(F15),4)&": "&_xlfn.FORMULATEXT(F15),"") -> Cell F15: =SUM(F9#) | N21: Total Units | P21: =SUM(O9:O19) -> 1020 | R21: =_xlfn.IFNA("Cell "&ADDRESS(ROW(P21),COLUMN(P21),4)&": "&_xlfn.FORMULATEXT(P21),"") -> Cell P21: =SUM(O9:O19)
G22: =_xlfn.IFNA("Cell "&ADDRESS(ROW(E15),COLUMN(E15),4)&": "&_xlfn.FORMULATEXT(E15),"") -> Cell E15: =SUM(E9:E14) | N22: Total Inventory Value | P22: =SUMPRODUCT(O9:O19,P9:P19) -> 23275.2 | R22: =_xlfn.IFNA("Cell "&ADDRESS(ROW(P22),COLUMN(P22),4)&": "&_xlfn.FORMULATEXT(P22),"") -> Cell P22: =SUMPRODUCT(O9:O19,P9:P19)
N23: Weighted Average | P23: =P22/P21 -> 22.81882353 | R23: Cell P23: =P22/P21 | U23: Weighted Average | W23: =SUMPRODUCT(U9:U19,V9:V19) -> 22.81882353 | Y23: =_xlfn.IFNA("Cell "&ADDRESS(ROW(W23),COLUMN(W23),4)&": "&_xlfn.FORMULATEXT(W23),"") -> Cell W23: =SUMPRODUCT(U9:U19,V9:V19)
N24: Units Left on Shelf in 2021 | P24: 155 | U24: Total Units in 2021 | W24: 1020 | Y24: =_xlfn.IFNA("Cell "&ADDRESS(ROW(W24),COLUMN(W24),4)&": "&_xlfn.FORMULATEXT(W24),"") -> 
N25: End Inventory | P25: =P24*P23 -> 3536.917647 | R25: Cell P25: =P24*P23 | U25: Units Sold in 2021 | W25: 865 | Y25: =_xlfn.IFNA("Cell "&ADDRESS(ROW(W25),COLUMN(W25),4)&": "&_xlfn.FORMULATEXT(W25),"") -> 
N26: COGS | P26: =P22-P25 -> 19738.28235 | R26: Cell P26: =P22-P25 | U26: COGS | W26: =W25*W23 -> 19738.28235 | Y26: =_xlfn.IFNA("Cell "&ADDRESS(ROW(W26),COLUMN(W26),4)&": "&_xlfn.FORMULATEXT(W26),"") -> Cell W26: =W25*W23
N27: COGS | P27: =(P21-P24)*P23 -> 19738.28235 | R27: Cell P27: =(P21-P24)*P23 | U27: End Inventory | W27: =(W24-W25)*W23 -> 3536.917647 | Y27: =_xlfn.IFNA("Cell "&ADDRESS(ROW(W27),COLUMN(W27),4)&": "&_xlfn.FORMULATEXT(W27),"") -> Cell W27: =(W24-W25)*W23
N28: Check Total | P28: =SUM(P25:P26) -> 23275.2 | R28: Cell P28: =SUM(P25:P26)

Sheet GeoMean
B2: Measure of central location
B3: Average = "Typical Values" calculated so that we have one value that can represent all the data points
B4: 5) Geometric Mean
B5: Used to calculate the average compounding rate per period for % change or % growth numbers.
B6: The average compounding rate per period is the rate that can be used in multiplicative growth formulas to calculate an end amount from a begin amount across equal size time periods.
B7: In finance it is used to calculate the "Average Compounding Rate Per Period" for an investment.
B8: Geometric Mean Formula 1:
B9: Use when you are given all the "Growth Rates" or "Rates of Change" or "% Change" amounts across all equal sized periods
B10: "Growth Rates" or "Rates of Change" or "% Change" = % change from one equal size period to the next
B11: Growth Factor = 1 + Growth Rate = Factor you can multiply by Begin Value to get End Value. Growth Factor ALWAYS >= 0
B12: In Excel use:
B13: GEOMEAN(RangeOfGrowthRates+1) = 1 + Geometric Mean = 1 + Average Compounding Rate per Period
B14: GEOMEAN(RangeOfGrowthRates+1)-1 = Geometric Mean = Average Compounding Rate per Period
B15: Geometric Mean Formula 2:
B16: Use when you are given the Begin Value, End Value and the number of periods
B17: Use when you are given the Begin Value, End Value and the number of periods
B18: In Excel use:
B19: RRI function. Function arguments: RRI(n,PV,FV) = RRI(NumberOfPeriods,BegValue, EndValue) = Geometric Mean = Average Compounding Rate per Period
B20: Formula: =(EndValue/BegValue)^(1/NumberOfPeriods)-1 = Geometric Mean = Ave. Compounding Rate per Period
B21: MUST use Geometric Mean (not arithmetic mean) if you want the true "average" compounding rate per period
B22: Arithmetic Mean overestimates
B23: Arithmetic Mean is for additive processes. Geomean is for multiplicative processes
B24: In finance, when calculating End Values, use Geometric Mean; however, arithmetic mean is used in some situations like for Standard Deviation, Correlation,
B25: and other calculations that do not require true "average" compounding rate per period.
B29: Measure of central location
B30: Average = "Typical Values" calculated so that we have one value that can represent all the data points
B31: 5) Geometric Mean
B32: Used to calculate the average compounding rate per period for % change or % growth numbers.
B33: The average compounding rate per period is the rate that can be used in multiplicative growth formulas to calculate an end amount from a begin amount across equal size time periods.
B34: In finance it is used to calculate the "Average Compounding Rate Per Period" for an investment.
U46: =_xlfn.IFNA("Cell "&ADDRESS(ROW(U52),COLUMN(U52),4)&": "&_xlfn.FORMULATEXT(U52),"") -> Cell U52: =T52:T85/T51:T84-1
V47: =_xlfn.IFNA("Cell "&ADDRESS(ROW(V52),COLUMN(V52),4)&": "&_xlfn.FORMULATEXT(V52),"") -> Cell V52: =1+U52#
R48: Spilled Formula Version: | W48: =_xlfn.IFNA("Cell "&ADDRESS(ROW(W52),COLUMN(W52),4)&": "&_xlfn.FORMULATEXT(W52),"") -> Cell W52: =T51:T84*(1+U52#)
B50: Year | C50: Last Trade Day | D50: Adj. Close MSFT Stock Price | E50: % Change (Growth Rate) | F50: Growth Factor | G50: How to Use GF | I50: Number Periods | L50: =_xlfn.IFNA("Cell "&ADDRESS(ROW(J50),COLUMN(J50),4)&": "&_xlfn.FORMULATEXT(J50),"") ->  | R50: Year | S50: Last Trade Day | T50: Adj. Close MSFT Stock Price | U50: % Change (Growth Rate) | V50: Growth Factor | W50: How to Use GF | Z50: % Change (Growth Rate)
B51: 1987 | C51: 1987-12-31 | D51: 0.237842 | I51: Number Periods | L51: =_xlfn.IFNA("Cell "&ADDRESS(ROW(J51),COLUMN(J51),4)&": "&_xlfn.FORMULATEXT(J51),"") ->  | R51: 1987 | S51: 1987-12-31 | T51: 0.237842 | Z51: Excel Lambda:
B52: 1988 | C52: 1988-12-30 | D52: 0.233458 | R52: 1988 | S52: 1988-12-30 | T52: 0.233458 | U52: =T52:T85/T51:T84-1 -> -0.01843240471 | V52: =1+_xlfn.ANCHORARRAY(U52) -> 0.9815675953 | W52: =T51:T84*(1+_xlfn.ANCHORARRAY(U52)) -> 0.233458 | Z52: =_xlfn.LET(_xlpm.a,D51:D87,_xlpm.r,ROWS(_xlpm.a)-1,_xlpm.s,_xlfn.SEQUENCE(_xlpm.r),INDEX(_xlpm.a,_xlpm.s+1)/INDEX(_xlpm.a,_xlpm.s)-1) -> -0.01843240471
B53: 1989 | C53: 1989-12-29 | D53: 0.381424 | I53: Average Compounding Rate Per Period | R53: 1989 | S53: 1989-12-29 | T53: 0.381424 | U53: 0.633801369 | V53: 1.633801369 | W53: 0.381424 | Z53: 0.633801369
B54: 1990 | C54: 1990-12-31 | D54: 0.659819 | I54: Geometric Mean | R54: 1990 | S54: 1990-12-31 | T54: 0.659819 | U54: 0.7298832795 | V54: 1.729883279 | W54: 0.659819 | Z54: 0.7298832795
B55: 1991 | C55: 1991-12-31 | D55: 1.46322 | I55: "Average Return" | R55: 1991 | S55: 1991-12-31 | T55: 1.46322 | U55: 1.217608162 | V55: 2.217608162 | W55: 1.46322 | Z55: 1.217608162
B56: 1992 | C56: 1992-12-31 | D56: 1.684347 | I56: If you have Growth Rates: | R56: 1992 | S56: 1992-12-31 | T56: 1.684347 | U56: 0.1511235494 | V56: 1.151123549 | W56: 1.684347 | Z56: 0.1511235494
B57: 1993 | C57: 1993-12-31 | D57: 1.590634 | I57: Geo Mean 1: | L57: =_xlfn.IFNA("Cell "&ADDRESS(ROW(J57),COLUMN(J57),4)&": "&_xlfn.FORMULATEXT(J57),"") ->  | R57: 1993 | S57: 1993-12-31 | T57: 1.590634 | U57: -0.05563758537 | V57: 0.9443624146 | W57: 1.590634 | Z57: -0.05563758537
B58: 1994 | C58: 1994-12-30 | D58: 2.411846 | I58: Geo Mean 2: | L58: =_xlfn.IFNA("Cell "&ADDRESS(ROW(J58),COLUMN(J58),4)&": "&_xlfn.FORMULATEXT(J58),"") ->  | R58: 1994 | S58: 1994-12-30 | T58: 2.411846 | U58: 0.5162796721 | V58: 1.516279672 | W58: 2.411846 | Z58: 0.5162796721
B59: 1995 | C59: 1995-12-29 | D59: 3.462404 | I59: If youhave Begin and End Amounts: | R59: 1995 | S59: 1995-12-29 | T59: 3.462404 | U59: 0.4355825372 | V59: 1.435582537 | W59: 3.462404 | Z59: 0.4355825372
B60: 1996 | C60: 1996-12-31 | D60: 6.520368 | I60: Geo Mean 3: | L60: =_xlfn.IFNA("Cell "&ADDRESS(ROW(J60),COLUMN(J60),4)&": "&_xlfn.FORMULATEXT(J60),"") ->  | R60: 1996 | S60: 1996-12-31 | T60: 6.520368 | U60: 0.8831909852 | V60: 1.883190985 | W60: 6.520368 | Z60: 0.8831909852
B61: 1997 | C61: 1997-12-31 | D61: 10.199791 | I61: Geo Mean 4: | L61: =_xlfn.IFNA("Cell "&ADDRESS(ROW(J61),COLUMN(J61),4)&": "&_xlfn.FORMULATEXT(J61),"") ->  | R61: 1997 | S61: 1997-12-31 | T61: 10.199791 | U61: 0.5642968311 | V61: 1.564296831 | W61: 10.199791 | Z61: 0.5642968311
B62: 1998 | C62: 1998-12-31 | D62: 21.889107 | I62: Also: | L62: =_xlfn.IFNA("Cell "&ADDRESS(ROW(J62),COLUMN(J62),4)&": "&_xlfn.FORMULATEXT(J62),"") ->  | R62: 1998 | S62: 1998-12-31 | T62: 21.889107 | U62: 1.146034855 | V62: 2.146034855 | W62: 21.889107 | Z62: 1.146034855
B63: 1999 | C63: 1999-12-31 | D63: 36.853409 | I63: Prove that it is average compounding rate per period: | R63: 1999 | S63: 1999-12-31 | T63: 36.853409 | U63: 0.6836415026 | V63: 1.683641503 | W63: 36.853409 | Z63: 0.6836415026
B64: 2000 | C64: 2000-12-29 | D64: 13.691785 | I64: Get End from Begin | L64: =_xlfn.IFNA("Cell "&ADDRESS(ROW(J64),COLUMN(J64),4)&": "&_xlfn.FORMULATEXT(J64),"") ->  | R64: 2000 | S64: 2000-12-29 | T64: 13.691785 | U64: -0.6284798239 | V64: 0.3715201761 | W64: 13.691785 | Z64: -0.6284798239
B65: 2001 | C65: 2001-12-31 | D65: 20.912529 | R65: 2001 | S65: 2001-12-31 | T65: 20.912529 | U65: 0.5273778401 | V65: 1.52737784 | W65: 20.912529 | Z65: 0.5273778401
B66: 2002 | C66: 2002-12-31 | D66: 16.319658 | I66: NOT Mean XXX | L66: =_xlfn.IFNA("Cell "&ADDRESS(ROW(J66),COLUMN(J66),4)&": "&_xlfn.FORMULATEXT(J66),"") ->  | R66: 2002 | S66: 2002-12-31 | T66: 16.319658 | U66: -0.2196229351 | V66: 0.7803770649 | W66: 16.319658 | Z66: -0.2196229351
B67: 2003 | C67: 2003-12-31 | D67: 17.432083 | I67: End too big!!! | L67: =_xlfn.IFNA("Cell "&ADDRESS(ROW(J67),COLUMN(J67),4)&": "&_xlfn.FORMULATEXT(J67),"") ->  | R67: 2003 | S67: 2003-12-31 | T67: 17.432083 | U67: 0.06816472502 | V67: 1.068164725 | W67: 17.432083 | Z67: 0.06816472502
B68: 2004 | C68: 2004-12-31 | D68: 19.02331 | R68: 2004 | S68: 2004-12-31 | T68: 19.02331 | U68: 0.09128151811 | V68: 1.091281518 | W68: 19.02331 | Z68: 0.09128151811
B69: 2005 | C69: 2005-12-30 | D69: 18.844831 | I69: 2nd Example: | R69: 2005 | S69: 2005-12-30 | T69: 18.844831 | U69: -0.009382121198 | V69: 0.9906178788 | W69: 18.844831 | Z69: -0.009382121198
B70: 2006 | C70: 2006-12-29 | D70: 21.829721 | I70: Investment | J70: Year | R70: 2006 | S70: 2006-12-29 | T70: 21.829721 | U70: 0.1583930363 | V70: 1.158393036 | W70: 21.829721 | Z70: 0.1583930363
B71: 2007 | C71: 2007-12-31 | D71: 26.379683 | I71: 2500 | J71: 1999 | R71: 2007 | S71: 2007-12-31 | T71: 26.379683 | U71: 0.2084296909 | V71: 1.208429691 | W71: 26.379683 | Z71: 0.2084296909
B72: 2008 | C72: 2008-12-31 | D72: 14.670892 | I72: =I71*(1+0.067)^(J72-J71) -> 6613.118427 | J72: 2014 | R72: 2008 | S72: 2008-12-31 | T72: 14.670892 | U72: -0.4438563951 | V72: 0.5561436049 | W72: 14.670892 | Z72: -0.4438563951
B73: 2009 | C73: 2009-12-31 | D73: 23.541965 | R73: 2009 | S73: 2009-12-31 | T73: 23.541965 | U73: 0.6046716859 | V73: 1.604671686 | W73: 23.541965 | Z73: 0.6046716859
B74: 2010 | C74: 2010-12-31 | D74: 22.005939 | I74: Average Compounding Rate | L74: =_xlfn.IFNA("Cell "&ADDRESS(ROW(K74),COLUMN(K74),4)&": "&_xlfn.FORMULATEXT(K74),"") ->  | R74: 2010 | S74: 2010-12-31 | T74: 22.005939 | U74: -0.06524629529 | V74: 0.9347537047 | W74: 22.005939 | Z74: -0.06524629529
B75: 2011 | C75: 2011-12-30 | D75: 21.01222 | I75: Prove: | L75: =_xlfn.IFNA("Cell "&ADDRESS(ROW(K75),COLUMN(K75),4)&": "&_xlfn.FORMULATEXT(K75),"") ->  | R75: 2011 | S75: 2011-12-30 | T75: 21.01222 | U75: -0.04515685516 | V75: 0.9548431448 | W75: 21.01222 | Z75: -0.04515685516
B76: 2012 | C76: 2012-12-31 | D76: 22.230688 | R76: 2012 | S76: 2012-12-31 | T76: 22.230688 | U76: 0.05798854191 | V76: 1.057988542 | W76: 22.230688 | Z76: 0.05798854191
B77: 2013 | C77: 2013-12-31 | D77: 32.078442 | I77: 3rd Example: | R77: 2013 | S77: 2013-12-31 | T77: 32.078442 | U77: 0.4429801723 | V77: 1.442980172 | W77: 32.078442 | Z77: 0.4429801723
B78: 2014 | C78: 2014-12-31 | D78: 40.920738 | I78: Population Growth from Previous Year | J78: Year | R78: 2014 | S78: 2014-12-31 | T78: 40.920738 | U78: 0.2756460554 | V78: 1.275646055 | W78: 40.920738 | Z78: 0.2756460554
B79: 2015 | C79: 2015-12-31 | D79: 50.206421 | I79: 0.01 | J79: 2004 | R79: 2015 | S79: 2015-12-31 | T79: 50.206421 | U79: 0.2269187569 | V79: 1.226918757 | W79: 50.206421 | Z79: 0.2269187569
B80: 2016 | C80: 2016-12-30 | D80: 57.776409 | I80: 0.005 | J80: 2005 | R80: 2016 | S80: 2016-12-30 | T80: 57.776409 | U80: 0.150777288 | V80: 1.150777288 | W80: 57.776409 | Z80: 0.150777288
B81: 2017 | C81: 2017-12-29 | D81: 81.309105 | I81: 0.02 | J81: 2006 | R81: 2017 | S81: 2017-12-29 | T81: 81.309105 | U81: 0.4073063108 | V81: 1.407306311 | W81: 81.309105 | Z81: 0.4073063108
B82: 2018 | C82: 2018-12-31 | D82: 98.217552 | I82: 0.025 | J82: 2007 | R82: 2018 | S82: 2018-12-31 | T82: 98.217552 | U82: 0.2079526887 | V82: 1.207952689 | W82: 98.217552 | Z82: 0.2079526887
B83: 2019 | C83: 2019-12-31 | D83: 154.749725 | R83: 2019 | S83: 2019-12-31 | T83: 154.749725 | U83: 0.575581165 | V83: 1.575581165 | W83: 154.749725 | Z83: 0.575581165
B84: 2020 | C84: 2020-12-31 | D84: 220.571106 | I84: Average Growth Rate | M84: =_xlfn.IFNA("Cell "&ADDRESS(ROW(K84),COLUMN(K84),4)&": "&_xlfn.FORMULATEXT(K84),"") ->  | R84: 2020 | S84: 2020-12-31 | T84: 220.571106 | U84: 0.4253408592 | V84: 1.425340859 | W84: 220.571106 | Z84: 0.4253408592
B85: 2021 | C85: 2021-12-31 | D85: 336.320007 | I85: Prove: | R85: 2021 | S85: 2021-12-31 | T85: 336.320007 | U85: 0.524769101 | V85: 1.524769101 | W85: 336.320007 | Z85: 0.524769101
Z86: -1
E87: < < < | I87: Population | J87: Year
E88: =_xlfn.IFNA("Cell "&ADDRESS(ROW(E52),COLUMN(E52),4)&": "&_xlfn.FORMULATEXT(E52),"") ->  | F88: < < < | I88: 45122 | J88: 2003
F89: =_xlfn.IFNA("Cell "&ADDRESS(ROW(F52),COLUMN(F52),4)&": "&_xlfn.FORMULATEXT(F52),"") ->  | I89: =I88*(1+K84)^ROWS(J79:J82) -> 45122 | J89: 2007
G90: < < <
G91: =_xlfn.IFNA("Cell "&ADDRESS(ROW(G52),COLUMN(G52),4)&": "&_xlfn.FORMULATEXT(G52),"") -> 
I93: When Mean and Geo Mean are equal, all other times, Mean will be bigger than Geomean:
I95: % Change | K95: Mean | L95: GeoMean
I96: 0.02 | K96: =AVERAGE(I96:I99) -> 0.02 | L96: =GEOMEAN(I96:I99+1)-1 -> 0.02
I97: 0.02
I98: 0.02 | K98: =_xlfn.IFNA("Cell "&ADDRESS(ROW(L96),COLUMN(L96),4)&": "&_xlfn.FORMULATEXT(L96),"") -> Cell L96: =GEOMEAN(I96:I99+1)-1
I99: 0.02 | L99: =_xlfn.IFNA("Cell "&ADDRESS(ROW(L96),COLUMN(L96),4)&": "&_xlfn.FORMULATEXT(L96),"") -> Cell L96: =GEOMEAN(I96:I99+1)-1

Sheet GeoMean (an)
B2: Measure of central location
B3: Average = "Typical Values" calculated so that we have one value that can represent all the data points
B4: 5) Geometric Mean
B5: Used to calculate the average compounding rate per period for % change or % growth numbers.
B6: The average compounding rate per period is the rate that can be used in multiplicative growth formulas to calculate an end amount from a begin amount across equal size time periods.
B7: In finance it is used to calculate the "Average Compounding Rate Per Period" for an investment.
B8: Geometric Mean Formula 1:
B9: Use when you are given all the "Growth Rates" or "Rates of Change" or "% Change" amounts across all equal sized periods
B10: "Growth Rates" or "Rates of Change" or "% Change" = % change from one equal size period to the next
B11: Growth Factor = 1 + Growth Rate = Factor you can multiply by Begin Value to get End Value. Growth Factor ALWAYS >= 0
B12: In Excel use:
B13: GEOMEAN(RangeOfGrowthRates+1) = 1 + Geometric Mean = 1 + Average Compounding Rate per Period
B14: GEOMEAN(RangeOfGrowthRates+1)-1 = Geometric Mean = Average Compounding Rate per Period
B15: Geometric Mean Formula 2:
B16: Use when you are given the Begin Value, End Value and the number of periods
B17: Use when you are given the Begin Value, End Value and the number of periods
B18: In Excel use:
B19: RRI function. Function arguments: RRI(n,PV,FV) = RRI(NumberOfPeriods,BegValue, EndValue) = Geometric Mean = Average Compounding Rate per Period
B20: Formula: =(EndValue/BegValue)^(1/NumberOfPeriods)-1 = Geometric Mean = Ave. Compounding Rate per Period
B21: MUST use Geometric Mean (not arithmetic mean) if you want the true "average" compounding rate per period
B22: Arithmetic Mean overestimates
B23: Arithmetic Mean is for additive processes. Geomean is for multiplicative processes
B24: In finance, when calculating End Values, use Geometric Mean; however, arithmetic mean is used in some situations like for Standard Deviation, Correlation,
B25: and other calculations that do not require true "average" compounding rate per period.
B29: Measure of central location
B30: Average = "Typical Values" calculated so that we have one value that can represent all the data points
B31: 5) Geometric Mean
B32: Used to calculate the average compounding rate per period for % change or % growth numbers.
B33: The average compounding rate per period is the rate that can be used in multiplicative growth formulas to calculate an end amount from a begin amount across equal size time periods.
B34: In finance it is used to calculate the "Average Compounding Rate Per Period" for an investment.
U46: =_xlfn.IFNA("Cell "&ADDRESS(ROW(U52),COLUMN(U52),4)&": "&_xlfn.FORMULATEXT(U52),"") -> Cell U52: =T52:T85/T51:T84-1
V47: =_xlfn.IFNA("Cell "&ADDRESS(ROW(V52),COLUMN(V52),4)&": "&_xlfn.FORMULATEXT(V52),"") -> Cell V52: =1+U52#
R48: Spilled Formula Version: | W48: =_xlfn.IFNA("Cell "&ADDRESS(ROW(W52),COLUMN(W52),4)&": "&_xlfn.FORMULATEXT(W52),"") -> Cell W52: =T51:T84*(1+U52#)
B50: Year | C50: Last Trade Day | D50: Adj. Close MSFT Stock Price | E50: % Change (Growth Rate) | F50: Growth Factor | G50: How to Use GF | I50: Number Periods | J50: =ROWS(E52:E85) -> 34 | L50: =_xlfn.IFNA("Cell "&ADDRESS(ROW(J50),COLUMN(J50),4)&": "&_xlfn.FORMULATEXT(J50),"") -> Cell J50: =ROWS(E52:E85) | R50: Year | S50: Last Trade Day | T50: Adj. Close MSFT Stock Price | U50: % Change (Growth Rate) | V50: Growth Factor | W50: How to Use GF | Z50: % Change (Growth Rate)
B51: 1987 | C51: 1987-12-31 | D51: 0.237842 | I51: Number Periods | J51: =B85-B51 -> 34 | L51: Cell J51: =B85-B51 | R51: 1987 | S51: 1987-12-31 | T51: 0.237842 | Z51: Excel Lambda:
B52: 1988 | C52: 1988-12-30 | D52: 0.233458 | E52: =D52/D51-1 -> -0.01843240471 | F52: =1+E52 -> 0.9815675953 | G52: =D51*(1+E52) -> 0.233458 | R52: 1988 | S52: 1988-12-30 | T52: 0.233458 | U52: =T52:T85/T51:T84-1 -> -0.01843240471 | V52: =1+_xlfn.ANCHORARRAY(U52) -> 0.9815675953 | W52: =T51:T84*(1+_xlfn.ANCHORARRAY(U52)) -> 0.233458 | Z52: =_xlfn.LET(_xlpm.a,D51:D87,_xlpm.r,ROWS(_xlpm.a)-1,_xlpm.s,_xlfn.SEQUENCE(_xlpm.r),INDEX(_xlpm.a,_xlpm.s+1)/INDEX(_xlpm.a,_xlpm.s)-1) -> -0.01843240471
B53: 1989 | C53: 1989-12-29 | D53: 0.381424 | E53: =D53/D52-1 -> 0.633801369 | F53: =1+E53 -> 1.633801369 | G53: =D52*(1+E53) -> 0.381424 | I53: Average Compounding Rate Per Period | R53: 1989 | S53: 1989-12-29 | T53: 0.381424 | U53: 0.633801369 | V53: 1.633801369 | W53: 0.381424 | Z53: 0.633801369
B54: 1990 | C54: 1990-12-31 | D54: 0.659819 | E54: =D54/D53-1 -> 0.7298832795 | F54: 1.729883279 | G54: =D53*(1+E54) -> 0.659819 | I54: Geometric Mean | R54: 1990 | S54: 1990-12-31 | T54: 0.659819 | U54: 0.7298832795 | V54: 1.729883279 | W54: 0.659819 | Z54: 0.7298832795
B55: 1991 | C55: 1991-12-31 | D55: 1.46322 | E55: =D55/D54-1 -> 1.217608162 | F55: 2.217608162 | G55: 1.46322 | I55: "Average Return" | R55: 1991 | S55: 1991-12-31 | T55: 1.46322 | U55: 1.217608162 | V55: 2.217608162 | W55: 1.46322 | Z55: 1.217608162
B56: 1992 | C56: 1992-12-31 | D56: 1.684347 | E56: =D56/D55-1 -> 0.1511235494 | F56: 1.151123549 | G56: 1.684347 | I56: If you have Growth Rates: | R56: 1992 | S56: 1992-12-31 | T56: 1.684347 | U56: 0.1511235494 | V56: 1.151123549 | W56: 1.684347 | Z56: 0.1511235494
B57: 1993 | C57: 1993-12-31 | D57: 1.590634 | E57: -0.05563758537 | F57: 0.9443624146 | G57: 1.590634 | I57: Geo Mean 1: | J57: =PRODUCT(1+E52:E85)^(1/J51)-1 -> 0.2378291632 | L57: =_xlfn.IFNA("Cell "&ADDRESS(ROW(J57),COLUMN(J57),4)&": "&_xlfn.FORMULATEXT(J57),"") -> Cell J57: =PRODUCT(1+E52:E85)^(1/J51)-1 | R57: 1993 | S57: 1993-12-31 | T57: 1.590634 | U57: -0.05563758537 | V57: 0.9443624146 | W57: 1.590634 | Z57: -0.05563758537
B58: 1994 | C58: 1994-12-30 | D58: 2.411846 | E58: 0.5162796721 | F58: 1.516279672 | G58: 2.411846 | I58: Geo Mean 2: | J58: =GEOMEAN(1+E52:E85)-1 -> 0.2378291632 | L58: =_xlfn.IFNA("Cell "&ADDRESS(ROW(J58),COLUMN(J58),4)&": "&_xlfn.FORMULATEXT(J58),"") -> Cell J58: =GEOMEAN(1+E52:E85)-1 | R58: 1994 | S58: 1994-12-30 | T58: 2.411846 | U58: 0.5162796721 | V58: 1.516279672 | W58: 2.411846 | Z58: 0.5162796721
B59: 1995 | C59: 1995-12-29 | D59: 3.462404 | E59: 0.4355825372 | F59: 1.435582537 | G59: 3.462404 | I59: If youhave Begin and End Amounts: | R59: 1995 | S59: 1995-12-29 | T59: 3.462404 | U59: 0.4355825372 | V59: 1.435582537 | W59: 3.462404 | Z59: 0.4355825372
B60: 1996 | C60: 1996-12-31 | D60: 6.520368 | E60: 0.8831909852 | F60: 1.883190985 | G60: 6.520368 | I60: Geo Mean 3: | J60: =(D85/D51)^(1/J51)-1 -> 0.2378291632 | L60: =_xlfn.IFNA("Cell "&ADDRESS(ROW(J60),COLUMN(J60),4)&": "&_xlfn.FORMULATEXT(J60),"") -> Cell J60: =(D85/D51)^(1/J51)-1 | R60: 1996 | S60: 1996-12-31 | T60: 6.520368 | U60: 0.8831909852 | V60: 1.883190985 | W60: 6.520368 | Z60: 0.8831909852
B61: 1997 | C61: 1997-12-31 | D61: 10.199791 | E61: 0.5642968311 | F61: 1.564296831 | G61: 10.199791 | I61: Geo Mean 4: | J61: =_xlfn.RRI(J51,D51,D85) -> 0.2378291632 | L61: =_xlfn.IFNA("Cell "&ADDRESS(ROW(J61),COLUMN(J61),4)&": "&_xlfn.FORMULATEXT(J61),"") -> Cell J61: =RRI(J51,D51,D85) | R61: 1997 | S61: 1997-12-31 | T61: 10.199791 | U61: 0.5642968311 | V61: 1.564296831 | W61: 10.199791 | Z61: 0.5642968311
B62: 1998 | C62: 1998-12-31 | D62: 21.889107 | E62: 1.146034855 | F62: 2.146034855 | G62: 21.889107 | I62: Also: | J62: =POWER(PRODUCT(1+E52:E85),(1/J51))-1 -> 0.2378291632 | L62: =_xlfn.IFNA("Cell "&ADDRESS(ROW(J62),COLUMN(J62),4)&": "&_xlfn.FORMULATEXT(J62),"") -> Cell J62: =POWER(PRODUCT(1+E52:E85),(1/J51))-1 | R62: 1998 | S62: 1998-12-31 | T62: 21.889107 | U62: 1.146034855 | V62: 2.146034855 | W62: 21.889107 | Z62: 1.146034855
B63: 1999 | C63: 1999-12-31 | D63: 36.853409 | E63: 0.6836415026 | F63: 1.683641503 | G63: 36.853409 | I63: Prove that it is average compounding rate per period: | R63: 1999 | S63: 1999-12-31 | T63: 36.853409 | U63: 0.6836415026 | V63: 1.683641503 | W63: 36.853409 | Z63: 0.6836415026
B64: 2000 | C64: 2000-12-29 | D64: 13.691785 | E64: -0.6284798239 | F64: 0.3715201761 | G64: 13.691785 | I64: Get End from Begin | J64: =D51*(1+J57)^J51 -> 336.320007 | L64: =_xlfn.IFNA("Cell "&ADDRESS(ROW(J64),COLUMN(J64),4)&": "&_xlfn.FORMULATEXT(J64),"") -> Cell J64: =D51*(1+J57)^J51 | R64: 2000 | S64: 2000-12-29 | T64: 13.691785 | U64: -0.6284798239 | V64: 0.3715201761 | W64: 13.691785 | Z64: -0.6284798239
B65: 2001 | C65: 2001-12-31 | D65: 20.912529 | E65: 0.5273778401 | F65: 1.52737784 | G65: 20.912529 | R65: 2001 | S65: 2001-12-31 | T65: 20.912529 | U65: 0.5273778401 | V65: 1.52737784 | W65: 20.912529 | Z65: 0.5273778401
B66: 2002 | C66: 2002-12-31 | D66: 16.319658 | E66: -0.2196229351 | F66: 0.7803770649 | G66: 16.319658 | I66: NOT Mean XXX | J66: =AVERAGE(E52:E85) -> 0.3067414048 | L66: =_xlfn.IFNA("Cell "&ADDRESS(ROW(J66),COLUMN(J66),4)&": "&_xlfn.FORMULATEXT(J66),"") -> Cell J66: =AVERAGE(E52:E85) | R66: 2002 | S66: 2002-12-31 | T66: 16.319658 | U66: -0.2196229351 | V66: 0.7803770649 | W66: 16.319658 | Z66: -0.2196229351
B67: 2003 | C67: 2003-12-31 | D67: 17.432083 | E67: 0.06816472502 | F67: 1.068164725 | G67: 17.432083 | I67: End too big!!! | J67: =D51*(1+J66)^J51 -> 2121.957699 | L67: =_xlfn.IFNA("Cell "&ADDRESS(ROW(J67),COLUMN(J67),4)&": "&_xlfn.FORMULATEXT(J67),"") -> Cell J67: =D51*(1+J66)^J51 | R67: 2003 | S67: 2003-12-31 | T67: 17.432083 | U67: 0.06816472502 | V67: 1.068164725 | W67: 17.432083 | Z67: 0.06816472502
B68: 2004 | C68: 2004-12-31 | D68: 19.02331 | E68: 0.09128151811 | F68: 1.091281518 | G68: 19.02331 | R68: 2004 | S68: 2004-12-31 | T68: 19.02331 | U68: 0.09128151811 | V68: 1.091281518 | W68: 19.02331 | Z68: 0.09128151811
B69: 2005 | C69: 2005-12-30 | D69: 18.844831 | E69: -0.009382121198 | F69: 0.9906178788 | G69: 18.844831 | I69: 2nd Example: | R69: 2005 | S69: 2005-12-30 | T69: 18.844831 | U69: -0.009382121198 | V69: 0.9906178788 | W69: 18.844831 | Z69: -0.009382121198
B70: 2006 | C70: 2006-12-29 | D70: 21.829721 | E70: 0.1583930363 | F70: 1.158393036 | G70: 21.829721 | I70: Investment | J70: Year | R70: 2006 | S70: 2006-12-29 | T70: 21.829721 | U70: 0.1583930363 | V70: 1.158393036 | W70: 21.829721 | Z70: 0.1583930363
B71: 2007 | C71: 2007-12-31 | D71: 26.379683 | E71: 0.2084296909 | F71: 1.208429691 | G71: 26.379683 | I71: 2500 | J71: 1999 | R71: 2007 | S71: 2007-12-31 | T71: 26.379683 | U71: 0.2084296909 | V71: 1.208429691 | W71: 26.379683 | Z71: 0.2084296909
B72: 2008 | C72: 2008-12-31 | D72: 14.670892 | E72: -0.4438563951 | F72: 0.5561436049 | G72: 14.670892 | I72: =I71*(1+0.067)^(J72-J71) -> 6613.118427 | J72: 2014 | R72: 2008 | S72: 2008-12-31 | T72: 14.670892 | U72: -0.4438563951 | V72: 0.5561436049 | W72: 14.670892 | Z72: -0.4438563951
B73: 2009 | C73: 2009-12-31 | D73: 23.541965 | E73: 0.6046716859 | F73: 1.604671686 | G73: 23.541965 | R73: 2009 | S73: 2009-12-31 | T73: 23.541965 | U73: 0.6046716859 | V73: 1.604671686 | W73: 23.541965 | Z73: 0.6046716859
B74: 2010 | C74: 2010-12-31 | D74: 22.005939 | E74: -0.06524629529 | F74: 0.9347537047 | G74: 22.005939 | I74: Average Compounding Rate | K74: =_xlfn.RRI(J72-J71,I71,I72) -> 0.067 | L74: =_xlfn.IFNA("Cell "&ADDRESS(ROW(K74),COLUMN(K74),4)&": "&_xlfn.FORMULATEXT(K74),"") -> Cell K74: =RRI(J72-J71,I71,I72) | R74: 2010 | S74: 2010-12-31 | T74: 22.005939 | U74: -0.06524629529 | V74: 0.9347537047 | W74: 22.005939 | Z74: -0.06524629529
B75: 2011 | C75: 2011-12-30 | D75: 21.01222 | E75: -0.04515685516 | F75: 0.9548431448 | G75: 21.01222 | I75: Prove: | K75: =I71*(1+K74)^(J72-J71) -> 6613.118427 | L75: =_xlfn.IFNA("Cell "&ADDRESS(ROW(K75),COLUMN(K75),4)&": "&_xlfn.FORMULATEXT(K75),"") -> Cell K75: =I71*(1+K74)^(J72-J71) | R75: 2011 | S75: 2011-12-30 | T75: 21.01222 | U75: -0.04515685516 | V75: 0.9548431448 | W75: 21.01222 | Z75: -0.04515685516
B76: 2012 | C76: 2012-12-31 | D76: 22.230688 | E76: 0.05798854191 | F76: 1.057988542 | G76: 22.230688 | R76: 2012 | S76: 2012-12-31 | T76: 22.230688 | U76: 0.05798854191 | V76: 1.057988542 | W76: 22.230688 | Z76: 0.05798854191
B77: 2013 | C77: 2013-12-31 | D77: 32.078442 | E77: 0.4429801723 | F77: 1.442980172 | G77: 32.078442 | I77: 3rd Example: | R77: 2013 | S77: 2013-12-31 | T77: 32.078442 | U77: 0.4429801723 | V77: 1.442980172 | W77: 32.078442 | Z77: 0.4429801723
B78: 2014 | C78: 2014-12-31 | D78: 40.920738 | E78: 0.2756460554 | F78: 1.275646055 | G78: 40.920738 | I78: Population Growth from Previous Year | J78: Year | R78: 2014 | S78: 2014-12-31 | T78: 40.920738 | U78: 0.2756460554 | V78: 1.275646055 | W78: 40.920738 | Z78: 0.2756460554
B79: 2015 | C79: 2015-12-31 | D79: 50.206421 | E79: 0.2269187569 | F79: 1.226918757 | G79: 50.206421 | I79: 0.01 | J79: 2004 | R79: 2015 | S79: 2015-12-31 | T79: 50.206421 | U79: 0.2269187569 | V79: 1.226918757 | W79: 50.206421 | Z79: 0.2269187569
B80: 2016 | C80: 2016-12-30 | D80: 57.776409 | E80: 0.150777288 | F80: 1.150777288 | G80: 57.776409 | I80: 0.005 | J80: 2005 | R80: 2016 | S80: 2016-12-30 | T80: 57.776409 | U80: 0.150777288 | V80: 1.150777288 | W80: 57.776409 | Z80: 0.150777288
B81: 2017 | C81: 2017-12-29 | D81: 81.309105 | E81: 0.4073063108 | F81: 1.407306311 | G81: 81.309105 | I81: 0.02 | J81: 2006 | R81: 2017 | S81: 2017-12-29 | T81: 81.309105 | U81: 0.4073063108 | V81: 1.407306311 | W81: 81.309105 | Z81: 0.4073063108
B82: 2018 | C82: 2018-12-31 | D82: 98.217552 | E82: 0.2079526887 | F82: 1.207952689 | G82: 98.217552 | I82: 0.025 | J82: 2007 | R82: 2018 | S82: 2018-12-31 | T82: 98.217552 | U82: 0.2079526887 | V82: 1.207952689 | W82: 98.217552 | Z82: 0.2079526887
B83: 2019 | C83: 2019-12-31 | D83: 154.749725 | E83: 0.575581165 | F83: 1.575581165 | G83: 154.749725 | R83: 2019 | S83: 2019-12-31 | T83: 154.749725 | U83: 0.575581165 | V83: 1.575581165 | W83: 154.749725 | Z83: 0.575581165
B84: 2020 | C84: 2020-12-31 | D84: 220.571106 | E84: 0.4253408592 | F84: 1.425340859 | G84: 220.571106 | I84: Average Growth Rate | K84: =GEOMEAN(1+I79:I82)-1 -> 0.01496921102 | M84: =_xlfn.IFNA("Cell "&ADDRESS(ROW(K84),COLUMN(K84),4)&": "&_xlfn.FORMULATEXT(K84),"") -> Cell K84: =GEOMEAN(1+I79:I82)-1 | R84: 2020 | S84: 2020-12-31 | T84: 220.571106 | U84: 0.4253408592 | V84: 1.425340859 | W84: 220.571106 | Z84: 0.4253408592
B85: 2021 | C85: 2021-12-31 | D85: 336.320007 | E85: 0.524769101 | F85: 1.524769101 | G85: 336.320007 | I85: Prove: | K85: =I88*(1+K84)^(J89-J88) -> 47885.03552 | M85: Cell K85: =I88*(1+K84)^(J89-J88) | R85: 2021 | S85: 2021-12-31 | T85: 336.320007 | U85: 0.524769101 | V85: 1.524769101 | W85: 336.320007 | Z85: 0.524769101
Z86: -1
E87: < < < | I87: Population | J87: Year
E88: =_xlfn.IFNA("Cell "&ADDRESS(ROW(E52),COLUMN(E52),4)&": "&_xlfn.FORMULATEXT(E52),"") -> Cell E52: =D52/D51-1 | F88: < < < | I88: 45122 | J88: 2003
F89: =_xlfn.IFNA("Cell "&ADDRESS(ROW(F52),COLUMN(F52),4)&": "&_xlfn.FORMULATEXT(F52),"") -> Cell F52: =1+E52 | I89: =I88*(1+K84)^ROWS(J79:J82) -> 47885.03552 | J89: 2007
G90: < < <
G91: =_xlfn.IFNA("Cell "&ADDRESS(ROW(G52),COLUMN(G52),4)&": "&_xlfn.FORMULATEXT(G52),"") -> Cell G52: =D51*(1+E52)
I93: When Mean and Geo Mean are equal, all other times, Mean will be bigger than Geomean:
I95: % Change | K95: Mean | L95: GeoMean
I96: 0.02 | K96: =AVERAGE(I96:I99) -> 0.02 | L96: =GEOMEAN(I96:I99+1)-1 -> 0.02
I97: 0.02
I98: 0.02 | K98: =_xlfn.IFNA("Cell "&ADDRESS(ROW(L96),COLUMN(L96),4)&": "&_xlfn.FORMULATEXT(L96),"") -> Cell L96: =GEOMEAN(I96:I99+1)-1
I99: 0.02 | L99: =_xlfn.IFNA("Cell "&ADDRESS(ROW(L96),COLUMN(L96),4)&": "&_xlfn.FORMULATEXT(L96),"") -> Cell L96: =GEOMEAN(I96:I99+1)-1

Sheet P
B4: No. | C4: Name | D4: Interview Exam Scores | F4: Number in Data Set | G4: =ROWS(D5:D25) -> 21 | I4: =_xlfn.IFNA("Cell "&ADDRESS(ROW(G4),COLUMN(G4),4)&": "&_xlfn.FORMULATEXT(G4),"") -> Cell G4: =ROWS(D5:D25)
B5: 1 | C5: Jo | D5: 31 | F5: Percentile | G5: 0.75
B6: 2 | C6: Don | D6: 47 | F6: Percentile Marker | G6: =_xlfn.PERCENTILE.EXC(D5:D25,G5) -> 84.5 | I6: =_xlfn.IFNA("Cell "&ADDRESS(ROW(G6),COLUMN(G6),4)&": "&_xlfn.FORMULATEXT(G6),"") -> Cell G6: =PERCENTILE.EXC(D5:D25,G5)
B7: 3 | C7: Bob | D7: 54 | I7: =_xlfn.IFNA("Cell "&ADDRESS(ROW(G7),COLUMN(G7),4)&": "&_xlfn.FORMULATEXT(G7),"") -> 
B8: 4 | C8: Minny | D8: 55 | F8: Number in Data Set | G8: =ROWS(D9:D29) -> 21 | I8: =_xlfn.IFNA("Cell "&ADDRESS(ROW(G8),COLUMN(G8),4)&": "&_xlfn.FORMULATEXT(G8),"") -> Cell G8: =ROWS(D9:D29)
B9: 5 | C9: Gigi | D9: 57 | F9: Quartile | G9: 3 | K9: =IF(ISNUMBER(G7)," approx. "&TEXT(1-G5,"0.00%")&" of the values are above.","") -> 
B10: 6 | C10: Lim | D10: 58 | F10: Percentile Marker | G10: =_xlfn.QUARTILE.EXC(D5:D25,G9) -> 84.5 | I10: =_xlfn.IFNA("Cell "&ADDRESS(ROW(G10),COLUMN(G10),4)&": "&_xlfn.FORMULATEXT(G10),"") -> Cell G10: =QUARTILE.EXC(D5:D25,G9)
B11: 7 | C11: Chris | D11: 60
B12: 8 | C12: Shelia | D12: 61
B13: 9 | C13: Dino | D13: 63
B14: 10 | C14: Fran | D14: 67
B15: 11 | C15: Homer | D15: 68
B16: 12 | C16: Tina | D16: 69
B17: 13 | C17: Sue | D17: 72
B18: 14 | C18: Sioux | D18: 76
B19: 15 | C19: Chin | D19: 78
B20: 16 | C20: Luong | D20: 84
B21: 17 | C21: Your Name | D21: 85 | H21: =IF(ISNUMBER(G6),"<<== "&G6&" marks the point at which","") -> <<== 84.5 marks the point at which
B22: 18 | C22: Chantel | D22: 89 | H22: =IF(ISNUMBER(G6)," approx. "&TEXT(G5,"0.00%")&" of the values are below and","") -> approx. 75.00% of the values are below and
B23: 19 | C23: Samuel | D23: 91 | H23: =IF(ISNUMBER(G6)," approx. "&TEXT(1-G5,"0.00%")&" of the values are above.","") -> approx. 25.00% of the values are above.
B24: 20 | C24: Mims | D24: 93
B25: 21 | C25: Tyrone | D25: 95

Sheet PercentileQuartile
B2: Percentiles/Quartiles
B3: Marker that divides the sorted data set (ascending sort) and says what % are above and what % are below
B4: 1) Percentiles
B5: Provides information about how the data are spread over an interval from smallest to largest value (ascending)
B6: A number that divides the ascending sorted data set, or marks the point in the ascending sorted list where approximately X% of the numbers are below and
B7: approximately 1-X% of the numbers are above the marking point. For example, on a recent exam a score of 78.75 marks the point in the ascending sorted data set,
B8: where 75% of the scores were below that score ands 25% of the scores were above that score.
B9: Use Percentiles for quantitative data without a lot of duplicates
B10: Note: There is NOT just one way to calculate percentiles. Percentile calculations are estimations, this is why we use the word "approximate" when we refer to percentiles
B11: In Excel use:
B12: PERCENTILE.EXC function. Function arguments: PERCENTILE.EXC(array,k) = PERCENTILE.EXC(ArrayOfNumbers, %PercentileValue) = Number that divides the ascending sorted list.
B13: The function uses formula: P%*(n+1) to get the position. If the k argument contains a 0% or 100% (min or max values), the function yields an error.
B14: The "EXC" in the function name indicates that the function excludes the min and max values. This is the function that the textbook uses.
B15: PERCENTILE.INC function. Function arguments: PERCENTILE.INC(array,k) = PERCENTILE.INC(ArrayOfNumbers, %PercentileValue) = Number that divides the ascending sorted list.
B16: The function uses formula: p*n+(1-p) to get the position. This function allows the k argument to contain a 0% or 100% to deliver the min or max values.
B17: The "INC" in the function name indicates that the function includes the min and max values.
B18: For big data sets, these two function deliver similar results.
B19: 2) Quartiles
B20: Provides the three values that will divides the ascending sorted data set into four parts: first 25%, second 25%, third 25% and fourth 25%
B21: In Excel use:
B22: QUARTILE.EXC function. Function arguments: QUARTILE.EXC(array,quart) = QUARTILE.EXC(ArrayOfNumbers, 1or2or3). The function uses formula: P%*(n+1) to get the position.
B23: The "EXC" in the function name indicates that the function excludes the min and max values. This is the function that the textbook uses.
B24: QUARTILE.INC function. Function arguments: QUARTILE.INC(array,quart) = QUARTILE.INC(ArrayOfNumbers, 0or1or2or3,or5). The function uses formula: p*n+(1-p) to get the position.
B25: The "INC" in the function name indicates that the function includes the min and max values. To deliver the Five Number Summary, use the formula:
B26: =QUARTILE.INC(ArrayOfNumbers, {1;2;3;4;5}) to display the numbers vertically, or =QUARTILE.INC(ArrayOfNumbers, {1,2,3,4,5}) to display the numbers horizontally.
B27: 3) Percentile Rank
B28: PERCENTRANK.EXC and PERCENTRANK.INC opposite of PERCENTILE.EXC and PERCENTILE.INC.
B29: Whereas PERCENTILE functions calculates the marker value when you give it a % Percentile Value, PERCENTRANK functions calculates % Percentile Value when you give it a value.
B30: 4) Rank
B31: Counting, 1st, 2nd, 3rd for "Biggest to Smallest" or "Smallest to Biggest"
B32: In Excel use the functions: RANK.AVG (ties get an average of the ranks) or RANK.EQ (ties all get the same rank)
I35: Percentile:
A36: 1) | B36: No. | C36: Name | D36: Interview Exam Scores | F36: Your Interview Exam Scores | G36: 85 | I36: Marker that divides the sorted data set (ascending sort) and says: | O36: PERCENTILE.EXC Formula for position = P%*(n+1)
B37: 1 | C37: Jo | D37: 31 | F37: ="Above "&TEXT(G37,"0%")&" percentile gets interview" -> Above 75% percentile gets interview | G37: 0.75 | I37: about what % are above and about what % are below that marker | O37: Position | R37: =_xlfn.IFNA("Cell "&ADDRESS(ROW(P37),COLUMN(P37),4)&": "&_xlfn.FORMULATEXT(P37),"") -> 
B38: 2 | C38: Don | D38: 47 | F38: ="Number "&D36 -> Number Interview Exam Scores | I38: =_xlfn.IFNA("Cell "&ADDRESS(ROW(G38),COLUMN(G38),4)&": "&_xlfn.FORMULATEXT(G38),"") ->  | O38: Fractional distance through interval
B39: 3 | C39: Bob | D39: 54 | F39: Min Score to get interview | I39: =_xlfn.IFNA("Cell "&ADDRESS(ROW(G39),COLUMN(G39),4)&": "&_xlfn.FORMULATEXT(G39),"") ->  | K39: =IF(ISNUMBER(G39),"<<== "&G39&" marks the point at which approx. ","") ->  | O39: Percentile Marker
B40: 4 | C40: Minny | D40: 55 | F40: Min Score to get interview | I40: =_xlfn.IFNA("Cell "&ADDRESS(ROW(G40),COLUMN(G40),4)&": "&_xlfn.FORMULATEXT(G40),"") ->  | K40: =IF(ISNUMBER(G39)," approx. "&TEXT(G37,"0.00%")&" of the values are below and","") -> 
B41: 5 | C41: Gigi | D41: 57 | K41: =IF(ISNUMBER(G39)," approx. "&TEXT(1-G37,"0.00%")&" of the values are above.","") ->  | O41: PERCENTILE.INC Formula for position = P%*n+(1-P%)
B42: 6 | C42: Lim | D42: 58 | F42: 50% Marker | I42: =_xlfn.IFNA("Cell "&ADDRESS(ROW(G42),COLUMN(G42),4)&": "&_xlfn.FORMULATEXT(G42),"") ->  | K42: half | O42: Position
B43: 7 | C43: Chris | D43: 60 | F43: 50% Marker | K43: 0.5 | O43: Fractional distance through interval
B44: 8 | C44: Shelia | D44: 61 | F44: 50% Marker | K44: 0.5 | O44: Percentile Marker
B45: 9 | C45: Dino | D45: 63 | F45: 50% Marker | K45: 2
B46: 10 | C46: Fran | D46: 67 | F46: 50% Marker | K46: 2
B47: 11 | C47: Homer | D47: 68
B48: 12 | C48: Tina | D48: 69 | F48: If your score was: | G48: 90
B49: 13 | C49: Sue | D49: 72 | F49: What Percentile are you?
B50: 14 | C50: Sioux | D50: 76 | I50: =IF(_xlfn.ISFORMULA(G49),"Approximately "&TEXT(G49,"0.00%")&" of scores below you and "&TEXT(1-G49,"0.00%")&" of the values above you.","") ->  | O50: Functions used in Video:
B51: 15 | C51: Chin | D51: 78 | F51: If your score was: | G51: 85 | O51: =_xlfn.LET(_xlpm.r,I38:I68,_xlpm.c,REPLACE(_xlpm.r,1,SEARCH("=",_xlpm.r),""),_xlpm.f,_xlfn.UNIQUE(LEFT(_xlpm.c,SEARCH("(",_xlpm.c)-1)),_xlfn.ARRAYTOTEXT(_xlfn._xlws.FILTER(_xlpm.f,NOT(ISERR(_xlpm.f))))) -> 
B52: 16 | C52: Luong | D52: 84 | F52: What is your rank? | I52: =_xlfn.IFNA("Cell "&ADDRESS(ROW(G52),COLUMN(G52),4)&": "&_xlfn.FORMULATEXT(G52),"") ->  | K52: * Averages if there is a tie
B53: 17 | C53: Your Name | D53: 85
B54: 18 | C54: Chantel | D54: 89
B55: 19 | C55: Samuel | D55: 91 | F55: 16/21
B56: 20 | C56: Mims | D56: 93 | F56: =16/21 -> 0.7619047619 | H56: =_xlfn.IFNA("Cell "&ADDRESS(ROW(F56),COLUMN(F56),4)&": "&_xlfn.FORMULATEXT(F56),"") -> Cell F56: =16/21
B57: 21 | C57: Tyrone | D57: 95
B60: No. | C60: CPA Scores | E60: Five Number Summary:
B61: =_xlfn.SEQUENCE(ROWS(C61:C550)) -> 1 | C61: 1
B62: 2 | C62: 1 | E62: 0 | F62: Min | I62: =_xlfn.IFNA(_xlfn.FORMULATEXT(G62),"") ->  | L62: =G62&" is min score" -> is min score
B63: 3 | C63: 2 | E63: 1 | F63: Quartile 1 | L63: ="Approximately "&TEXT(E69,"0%")&" of scores are below "&G63&" and "&TEXT(1-E69,"0%")&" are above" -> Approximately 25% of scores are below and 75% are above
B64: 4 | C64: 2 | E64: 2 | F64: Quartile 2 | L64: ="Approximately "&TEXT(E70,"0%")&" of scores are below "&G64&" and "&TEXT(1-E70,"0%")&" are above" -> Approximately 50% of scores are below and 50% are above
B65: 5 | C65: 2 | E65: 3 | F65: Quartile 3 | L65: Approximately 75% of scores are below and 25% are above
B66: 6 | C66: 2 | E66: 4 | F66: Max | L66: =G66&" is max score" -> is max score
B67: 7 | C67: 2
B68: 8 | C68: 3 | E68: 0 | F68: Min | I68: =_xlfn.IFNA(_xlfn.FORMULATEXT(G68),"") ->  | L68: =G68&" is min score" -> is min score
B69: 9 | C69: 4 | E69: 0.25 | F69: Quartile 1 | L69: ="Approximately "&TEXT(E69,"0%")&" of scores are below "&G69&" and "&TEXT(1-E69,"0%")&" are above" -> Approximately 25% of scores are below and 75% are above
B70: 10 | C70: 4 | E70: 0.5 | F70: Quartile 2 | L70: ="Approximately "&TEXT(E70,"0%")&" of scores are below "&G70&" and "&TEXT(1-E70,"0%")&" are above" -> Approximately 50% of scores are below and 50% are above
B71: 11 | C71: 4 | E71: 0.75 | F71: Quartile 3 | L71: Approximately 75% of scores are below and 25% are above
B72: 12 | C72: 5 | E72: 1 | F72: Max | L72: =G72&" is max score" -> is max score
B73: 13 | C73: 6
B74: 14 | C74: 7 | G74: Sales Example:
B75: 15 | C75: 7
B76: 16 | C76: 8 | G76: Quarter | H76: Sales | J76: Q1, 2022 Sales | K76: 425129.7
B77: 17 | C77: 8 | G77: Q1, 2011 | H77: 90835.13 | J77: ="Percentile "&TEXT(K77,"0%") -> Percentile 90% | K77: 0.9
B78: 18 | C78: 9 | G78: Q2, 2011 | H78: 141533.87 | J78: Count = n | M78: =_xlfn.IFNA("Cell "&ADDRESS(ROW(K78),COLUMN(K78),4)&": "&_xlfn.FORMULATEXT(K78),"") -> 
B79: 19 | C79: 9 | G79: Q3, 2011 | H79: 301222.49 | J79: =$J$77&" marker" -> Percentile 90% marker | M79: =_xlfn.IFNA("Cell "&ADDRESS(ROW(K79),COLUMN(K79),4)&": "&_xlfn.FORMULATEXT(K79),"") -> 
B80: 20 | C80: 9 | G80: Q4, 2011 | H80: 237230.4 | J80: Rank | M80: =_xlfn.IFNA("Cell "&ADDRESS(ROW(K80),COLUMN(K80),4)&": "&_xlfn.FORMULATEXT(K80),"") -> 
B81: 21 | C81: 9 | G81: Q1, 2012 | H81: 89577.65 | J81: Percentile Rank
B82: 22 | C82: 10 | G82: Q2, 2012 | H82: 136884.67
B83: 23 | C83: 10 | G83: Q3, 2012 | H83: 105032.38
B84: 24 | C84: 10 | G84: Q4, 2012 | H84: 91630.83
B85: 25 | C85: 10 | G85: Q1, 2013 | H85: 407175.71
B86: 26 | C86: 10 | G86: Q2, 2013 | H86: 159178.19
B87: 27 | C87: 10 | G87: Q3, 2013 | H87: 208595.5
B88: 28 | C88: 11 | G88: Q4, 2013 | H88: 224116.76
B89: 29 | C89: 11 | G89: Q1, 2014 | H89: 355171.91
B90: 30 | C90: 12 | G90: Q2, 2014 | H90: 260661.49
B91: 31 | C91: 12 | G91: Q3, 2014 | H91: 166200.08
B92: 32 | C92: 13 | G92: Q4, 2014 | H92: 77177.57
B93: 33 | C93: 13 | G93: Q1, 2015 | H93: 184731.27
B94: 34 | C94: 13 | G94: Q2, 2015 | H94: 284803.72
B95: 35 | C95: 14 | G95: Q3, 2015 | H95: 149885.57
B96: 36 | C96: 14 | G96: Q4, 2015 | H96: 242273.23
B97: 37 | C97: 15 | G97: Q1, 2016 | H97: 378706.97
B98: 38 | C98: 15 | G98: Q2, 2016 | H98: 288860.23
B99: 39 | C99: 15 | G99: Q3, 2016 | H99: 279597.51
B100: 40 | C100: 16 | G100: Q4, 2016 | H100: 269871.18
B101: 41 | C101: 16 | G101: Q1, 2018 | H101: 420742.56
B102: 42 | C102: 16 | G102: Q2, 2018 | H102: 250589.83
B103: 43 | C103: 16 | G103: Q3, 2018 | H103: 333855.93
B104: 44 | C104: 18 | G104: Q4, 2018 | H104: 446251.49
B105: 45 | C105: 18 | G105: Q1, 2019 | H105: 476679.84
B106: 46 | C106: 19 | G106: Q2, 2019 | H106: 421750.24
B107: 47 | C107: 20 | G107: Q3, 2019 | H107: 475311.59
B108: 48 | C108: 20 | G108: Q4, 2019 | H108: 534000.07
B109: 49 | C109: 20 | G109: Q1, 2020 | H109: 235992.52
B110: 50 | C110: 20 | G110: Q2, 2020 | H110: 473107.35
B111: 51 | C111: 23 | G111: Q3, 2020 | H111: 406045.01
B112: 52 | C112: 23 | G112: Q4, 2020 | H112: 277033.7
B113: 53 | C113: 23 | G113: Q1, 2021 | H113: 322143.2
B114: 54 | C114: 24 | G114: Q2, 2021 | H114: 230332.75
B115: 55 | C115: 25 | G115: Q3, 2021 | H115: 340663.63
B116: 56 | C116: 26 | G116: Q4, 2021 | H116: 392459.03
B117: 57 | C117: 26 | G117: Q1, 2022 | H117: 425129.7
B118: 58 | C118: 26
B119: 59 | C119: 27
B120: 60 | C120: 27
B121: 61 | C121: 27
B122: 62 | C122: 27
B123: 63 | C123: 28
B124: 64 | C124: 28
B125: 65 | C125: 29
B126: 66 | C126: 29
B127: 67 | C127: 29
B128: 68 | C128: 30
B129: 69 | C129: 31
B130: 70 | C130: 31
B131: 71 | C131: 32
B132: 72 | C132: 32
B133: 73 | C133: 32
B134: 74 | C134: 33
B135: 75 | C135: 33
B136: 76 | C136: 33
B137: 77 | C137: 34
B138: 78 | C138: 35
B139: 79 | C139: 35
B140: 80 | C140: 36
B141: 81 | C141: 36
B142: 82 | C142: 36
B143: 83 | C143: 36
B144: 84 | C144: 36
B145: 85 | C145: 36
B146: 86 | C146: 36
B147: 87 | C147: 36
B148: 88 | C148: 36
B149: 89 | C149: 36
B150: 90 | C150: 37
B151: 91 | C151: 37
B152: 92 | C152: 37
B153: 93 | C153: 37
B154: 94 | C154: 37
B155: 95 | C155: 37
B156: 96 | C156: 38
B157: 97 | C157: 38
B158: 98 | C158: 38
B159: 99 | C159: 38
B160: 100 | C160: 38
B161: 101 | C161: 38
B162: 102 | C162: 38
B163: 103 | C163: 38
B164: 104 | C164: 39
B165: 105 | C165: 39
B166: 106 | C166: 39
B167: 107 | C167: 39
B168: 108 | C168: 40
B169: 109 | C169: 40
B170: 110 | C170: 41
B171: 111 | C171: 41
B172: 112 | C172: 41
B173: 113 | C173: 41
B174: 114 | C174: 41
B175: 115 | C175: 41
B176: 116 | C176: 41
B177: 117 | C177: 42
B178: 118 | C178: 43
B179: 119 | C179: 43
B180: 120 | C180: 43
B181: 121 | C181: 43
B182: 122 | C182: 43
B183: 123 | C183: 43
B184: 124 | C184: 43
B185: 125 | C185: 44
B186: 126 | C186: 44
B187: 127 | C187: 44
B188: 128 | C188: 44
B189: 129 | C189: 44
B190: 130 | C190: 45
B191: 131 | C191: 45
B192: 132 | C192: 45
B193: 133 | C193: 45
B194: 134 | C194: 45
B195: 135 | C195: 45
B196: 136 | C196: 45
B197: 137 | C197: 46
B198: 138 | C198: 46
B199: 139 | C199: 47
B200: 140 | C200: 47
B201: 141 | C201: 47
B202: 142 | C202: 48
B203: 143 | C203: 48
B204: 144 | C204: 48
B205: 145 | C205: 48
... 345 more rows

Sheet PercentileQuartile (an)
B2: Percentiles/Quartiles
B3: Marker that divides the sorted data set (ascending sort) and says what % are above and what % are below
B4: 1) Percentiles
B5: Provides information about how the data are spread over an interval from smallest to largest value (ascending)
B6: A number that divides the ascending sorted data set, or marks the point in the ascending sorted list where approximately X% of the numbers are below and
B7: approximately 1-X% of the numbers are above the marking point. For example, on a recent exam a score of 78.75 marks the point in the ascending sorted data set,
B8: where 75% of the scores were below that score ands 25% of the scores were above that score.
B9: Use Percentiles for quantitative data without a lot of duplicates
B10: Note: There is NOT just one way to calculate percentiles. Percentile calculations are estimations, this is why we use the word "approximate" when we refer to percentiles
B11: In Excel use:
B12: PERCENTILE.EXC function. Function arguments: PERCENTILE.EXC(array,k) = PERCENTILE.EXC(ArrayOfNumbers, %PercentileValue) = Number that divides the ascending sorted list.
B13: The function uses formula: P%*(n+1) to get the position. If the k argument contains a 0% or 100% (min or max values), the function yields an error.
B14: The "EXC" in the function name indicates that the function excludes the min and max values. This is the function that the textbook uses.
B15: PERCENTILE.INC function. Function arguments: PERCENTILE.INC(array,k) = PERCENTILE.INC(ArrayOfNumbers, %PercentileValue) = Number that divides the ascending sorted list.
B16: The function uses formula: p*n+(1-p) to get the position. This function allows the k argument to contain a 0% or 100% to deliver the min or max values.
B17: The "INC" in the function name indicates that the function includes the min and max values.
B18: For big data sets, these two function deliver similar results.
B19: 2) Quartiles
B20: Provides the three values that will divides the ascending sorted data set into four parts: first 25%, second 25%, third 25% and fourth 25%
B21: In Excel use:
B22: QUARTILE.EXC function. Function arguments: QUARTILE.EXC(array,quart) = QUARTILE.EXC(ArrayOfNumbers, 1or2or3). The function uses formula: P%*(n+1) to get the position.
B23: The "EXC" in the function name indicates that the function excludes the min and max values. This is the function that the textbook uses.
B24: QUARTILE.INC function. Function arguments: QUARTILE.INC(array,quart) = QUARTILE.INC(ArrayOfNumbers, 0or1or2or3,or5). The function uses formula: p*n+(1-p) to get the position.
B25: The "INC" in the function name indicates that the function includes the min and max values. To deliver the Five Number Summary, use the formula:
B26: =QUARTILE.INC(ArrayOfNumbers, {1;2;3;4;5}) to display the numbers vertically, or =QUARTILE.INC(ArrayOfNumbers, {1,2,3,4,5}) to display the numbers horizontally.
B27: 3) Percentile Rank
B28: PERCENTRANK.EXC and PERCENTRANK.INC opposite of PERCENTILE.EXC and PERCENTILE.INC.
B29: Whereas PERCENTILE functions calculates the marker value when you give it a % Percentile Value, PERCENTRANK functions calculates % Percentile Value when you give it a value.
B30: 4) Rank
B31: Counting, 1st, 2nd, 3rd for "Biggest to Smallest" or "Smallest to Biggest"
B32: In Excel use the functions: RANK.AVG (ties get an average of the ranks) or RANK.EQ (ties all get the same rank)
I35: Percentile:
A36: 1) | B36: No. | C36: Name | D36: Interview Exam Scores | F36: Your Interview Exam Scores | G36: 85 | I36: Marker that divides the sorted data set (ascending sort) and says: | O36: PERCENTILE.EXC Formula for position = P%*(n+1)
B37: 1 | C37: Jo | D37: 31 | F37: ="Above "&TEXT(G37,"0%")&" percentile gets interview" -> Above 75% percentile gets interview | G37: 0.75 | I37: about what % are above and about what % are below that marker | O37: Position | P37: =G37*(G38+1) -> 16.5 | R37: =_xlfn.IFNA("Cell "&ADDRESS(ROW(P37),COLUMN(P37),4)&": "&_xlfn.FORMULATEXT(P37),"") -> Cell P37: =G37*(G38+1)
B38: 2 | C38: Don | D38: 47 | F38: ="Number "&D36 -> Number Interview Exam Scores | G38: =ROWS(D37:D57) -> 21 | I38: =_xlfn.IFNA("Cell "&ADDRESS(ROW(G38),COLUMN(G38),4)&": "&_xlfn.FORMULATEXT(G38),"") -> Cell G38: =ROWS(D37:D57) | O38: Fractional distance through interval | P38: =P37-INT(P37) -> 0.5 | R38: Cell P38: =P37-INT(P37)
B39: 3 | C39: Bob | D39: 54 | F39: Min Score to get interview | G39: =_xlfn.PERCENTILE.EXC(D37:D57,G37) -> 84.5 | I39: =_xlfn.IFNA("Cell "&ADDRESS(ROW(G39),COLUMN(G39),4)&": "&_xlfn.FORMULATEXT(G39),"") -> Cell G39: =PERCENTILE.EXC(D37:D57,G37) | K39: =IF(ISNUMBER(G39),"<<== "&G39&" marks the point at which approx. ","") -> <<== 84.5 marks the point at which approx. | O39: Percentile Marker | P39: =D52+(D53-D52)*P38 -> 84.5 | R39: Cell P39: =D52+(D53-D52)*P38
B40: 4 | C40: Minny | D40: 55 | F40: Min Score to get interview | G40: =_xlfn.PERCENTILE.INC(D37:D57,G37) -> 84 | I40: =_xlfn.IFNA("Cell "&ADDRESS(ROW(G40),COLUMN(G40),4)&": "&_xlfn.FORMULATEXT(G40),"") -> Cell G40: =PERCENTILE.INC(D37:D57,G37) | K40: =IF(ISNUMBER(G39)," approx. "&TEXT(G37,"0.00%")&" of the values are below and","") -> approx. 75.00% of the values are below and | O40: Percentile Marker (automatic) | P40: =_xlfn.XLOOKUP(P37,B37:B57,D37:D57,,-1)+(_xlfn.XLOOKUP(P37+1,B37:B57,D37:D57,,-1)-_xlfn.XLOOKUP(P37,B37:B57,D37:D57,,-1))*P38 -> 84.5 | R40: Cell P40: =XLOOKUP(P37,B37:B57,D37:D57,,-1)+(XLOOKUP(P37+1,B37:B57,D37:D57,,-1)-XLOOKUP(P37,B37:B57,D37:D57,,-1))*P38
B41: 5 | C41: Gigi | D41: 57 | K41: =IF(ISNUMBER(G39)," approx. "&TEXT(1-G37,"0.00%")&" of the values are above.","") -> approx. 25.00% of the values are above. | O41: PERCENTILE.INC Formula for position = P%*n+(1-P%)
B42: 6 | C42: Lim | D42: 58 | F42: 50% Marker | G42: =MEDIAN(D37:D57) -> 68 | I42: =_xlfn.IFNA("Cell "&ADDRESS(ROW(G42),COLUMN(G42),4)&": "&_xlfn.FORMULATEXT(G42),"") -> Cell G42: =MEDIAN(D37:D57) | K42: half | O42: Position | P42: =G37*G38+(1-G37) -> 16 | R42: Cell P42: =G37*G38+(1-G37)
B43: 7 | C43: Chris | D43: 60 | F43: 50% Marker | G43: =_xlfn.PERCENTILE.EXC(D37:D57,K43) -> 68 | I43: Cell G43: =PERCENTILE.EXC(D37:D57,K43) | K43: 0.5 | O43: Fractional distance through interval | P43: =P42-INT(P42) -> 0 | R43: Cell P43: =P42-INT(P42)
B44: 8 | C44: Shelia | D44: 61 | F44: 50% Marker | G44: =_xlfn.PERCENTILE.INC(D37:D57,K44) -> 68 | I44: Cell G44: =PERCENTILE.INC(D37:D57,K44) | K44: 0.5 | O44: Percentile Marker | P44: =D52 -> 84 | R44: Cell P44: =D52
B45: 9 | C45: Dino | D45: 63 | F45: 50% Marker | G45: =_xlfn.QUARTILE.EXC(D37:D57,K45) -> 68 | I45: Cell G45: =QUARTILE.EXC(D37:D57,K45) | K45: 2 | O45: Percentile Marker (automatic) | P45: =_xlfn.XLOOKUP(P42,B42:B62,D42:D62,,-1)+(_xlfn.XLOOKUP(P42+1,B42:B62,D42:D62,,-1)-_xlfn.XLOOKUP(P42,B42:B62,D42:D62,,-1))*P43 -> 84 | R45: Cell P45: =XLOOKUP(P42,B42:B62,D42:D62,,-1)+(XLOOKUP(P42+1,B42:B62,D42:D62,,-1)-XLOOKUP(P42,B42:B62,D42:D62,,-1))*P43
B46: 10 | C46: Fran | D46: 67 | F46: 50% Marker | G46: =_xlfn.QUARTILE.INC(D37:D57,K46) -> 68 | I46: Cell G46: =QUARTILE.INC(D37:D57,K46) | K46: 2
B47: 11 | C47: Homer | D47: 68
B48: 12 | C48: Tina | D48: 69 | F48: If your score was: | G48: 90
B49: 13 | C49: Sue | D49: 72 | F49: What Percentile are you? | G49: =_xlfn.PERCENTRANK.INC(D37:D57,G48) -> 0.875 | I49: Cell G49: =PERCENTRANK.INC(D37:D57,G48)
B50: 14 | C50: Sioux | D50: 76 | I50: =IF(_xlfn.ISFORMULA(G49),"Approximately "&TEXT(G49,"0.00%")&" of scores below you and "&TEXT(1-G49,"0.00%")&" of the values above you.","") -> Approximately 87.50% of scores below you and 12.50% of the values above you. | O50: Functions used in Video:
B51: 15 | C51: Chin | D51: 78 | F51: If your score was: | G51: 85 | O51: =_xlfn.LET(_xlpm.r,I38:I68,_xlpm.c,REPLACE(_xlpm.r,1,SEARCH("=",_xlpm.r),""),_xlpm.f,_xlfn.UNIQUE(LEFT(_xlpm.c,SEARCH("(",_xlpm.c)-1)),_xlfn.ARRAYTOTEXT(_xlfn._xlws.FILTER(_xlpm.f,NOT(ISERR(_xlpm.f))))) -> ROWS, PERCENTILE.EXC, PERCENTILE.INC, MEDIAN, QUARTILE.EXC, QUARTILE.INC, PERCENTRANK.INC, RANK.AVG
B52: 16 | C52: Luong | D52: 84 | F52: What is your rank? | G52: =_xlfn.RANK.AVG(G51,D37:D57,0) -> 5 | I52: =_xlfn.IFNA("Cell "&ADDRESS(ROW(G52),COLUMN(G52),4)&": "&_xlfn.FORMULATEXT(G52),"") -> Cell G52: =RANK.AVG(G51,D37:D57,0) | K52: * Averages if there is a tie
B53: 17 | C53: Your Name | D53: 85
B54: 18 | C54: Chantel | D54: 89
B55: 19 | C55: Samuel | D55: 91 | F55: 16/21
B56: 20 | C56: Mims | D56: 93 | F56: =16/21 -> 0.7619047619 | H56: =_xlfn.IFNA("Cell "&ADDRESS(ROW(F56),COLUMN(F56),4)&": "&_xlfn.FORMULATEXT(F56),"") -> Cell F56: =16/21
B57: 21 | C57: Tyrone | D57: 95
B60: No. | C60: CPA Scores | E60: Five Number Summary:
B61: =_xlfn.SEQUENCE(ROWS(C61:C550)) -> 1 | C61: 1
B62: 2 | C62: 1 | E62: 0 | F62: Min | G62: =_xlfn.QUARTILE.INC(C61:C550,E62:E66) -> 1 | I62: =_xlfn.IFNA(_xlfn.FORMULATEXT(G62),"") -> =QUARTILE.INC(C61:C550,E62:E66) | L62: =G62&" is min score" -> 1 is min score
B63: 3 | C63: 2 | E63: 1 | F63: Quartile 1 | G63: 43 | L63: ="Approximately "&TEXT(E69,"0%")&" of scores are below "&G63&" and "&TEXT(1-E69,"0%")&" are above" -> Approximately 25% of scores are below 43 and 75% are above
B64: 4 | C64: 2 | E64: 2 | F64: Quartile 2 | G64: 67 | L64: ="Approximately "&TEXT(E70,"0%")&" of scores are below "&G64&" and "&TEXT(1-E70,"0%")&" are above" -> Approximately 50% of scores are below 67 and 50% are above
B65: 5 | C65: 2 | E65: 3 | F65: Quartile 3 | G65: 76 | L65: Approximately 75% of scores are below 76 and 25% are above
B66: 6 | C66: 2 | E66: 4 | F66: Max | G66: 100 | L66: =G66&" is max score" -> 100 is max score
B67: 7 | C67: 2
B68: 8 | C68: 3 | E68: 0 | F68: Min | G68: =_xlfn.PERCENTILE.INC(C61:C550,E68:E72) -> 1 | I68: =_xlfn.IFNA(_xlfn.FORMULATEXT(G68),"") -> =PERCENTILE.INC(C61:C550,E68:E72) | L68: =G68&" is min score" -> 1 is min score
B69: 9 | C69: 4 | E69: 0.25 | F69: Quartile 1 | G69: 43 | L69: ="Approximately "&TEXT(E69,"0%")&" of scores are below "&G69&" and "&TEXT(1-E69,"0%")&" are above" -> Approximately 25% of scores are below 43 and 75% are above
B70: 10 | C70: 4 | E70: 0.5 | F70: Quartile 2 | G70: 67 | L70: ="Approximately "&TEXT(E70,"0%")&" of scores are below "&G70&" and "&TEXT(1-E70,"0%")&" are above" -> Approximately 50% of scores are below 67 and 50% are above
B71: 11 | C71: 4 | E71: 0.75 | F71: Quartile 3 | G71: 76 | L71: Approximately 75% of scores are below 76 and 25% are above
B72: 12 | C72: 5 | E72: 1 | F72: Max | G72: 100 | L72: =G72&" is max score" -> 100 is max score
B73: 13 | C73: 6
B74: 14 | C74: 7 | G74: Sales Example:
B75: 15 | C75: 7
B76: 16 | C76: 8 | G76: Quarter | H76: Sales | J76: Q1, 2022 Sales | K76: 425129.7
B77: 17 | C77: 8 | G77: Q1, 2011 | H77: 90835.13 | J77: ="Percentile "&TEXT(K77,"0%") -> Percentile 90% | K77: 0.9
B78: 18 | C78: 9 | G78: Q2, 2011 | H78: 141533.87 | J78: Count = n | K78: =ROWS(fSalesAnswer[Sales]) -> 41 | M78: =_xlfn.IFNA("Cell "&ADDRESS(ROW(K78),COLUMN(K78),4)&": "&_xlfn.FORMULATEXT(K78),"") -> Cell K78: =ROWS(fSalesAnswer[Sales])
B79: 19 | C79: 9 | G79: Q3, 2011 | H79: 301222.49 | J79: =$J$77&" marker" -> Percentile 90% marker | K79: =_xlfn.PERCENTILE.INC(fSalesAnswer[Sales],K77) -> 446251.49 | M79: =_xlfn.IFNA("Cell "&ADDRESS(ROW(K79),COLUMN(K79),4)&": "&_xlfn.FORMULATEXT(K79),"") -> Cell K79: =PERCENTILE.INC(fSalesAnswer[Sales],K77)
B80: 20 | C80: 9 | G80: Q4, 2011 | H80: 237230.4 | J80: Rank | K80: =_xlfn.RANK.AVG(K76,fSalesAnswer[Sales],0) -> 6 | M80: =_xlfn.IFNA("Cell "&ADDRESS(ROW(K80),COLUMN(K80),4)&": "&_xlfn.FORMULATEXT(K80),"") -> Cell K80: =RANK.AVG(K76,fSalesAnswer[Sales],0)
B81: 21 | C81: 9 | G81: Q1, 2012 | H81: 89577.65 | J81: Percentile Rank | K81: =_xlfn.PERCENTRANK.INC(fSalesAnswer[Sales],K76) -> 0.875 | M81: Cell K81: =PERCENTRANK.INC(fSalesAnswer[Sales],K76)
B82: 22 | C82: 10 | G82: Q2, 2012 | H82: 136884.67
B83: 23 | C83: 10 | G83: Q3, 2012 | H83: 105032.38
B84: 24 | C84: 10 | G84: Q4, 2012 | H84: 91630.83
B85: 25 | C85: 10 | G85: Q1, 2013 | H85: 407175.71
B86: 26 | C86: 10 | G86: Q2, 2013 | H86: 159178.19
B87: 27 | C87: 10 | G87: Q3, 2013 | H87: 208595.5
B88: 28 | C88: 11 | G88: Q4, 2013 | H88: 224116.76
B89: 29 | C89: 11 | G89: Q1, 2014 | H89: 355171.91
B90: 30 | C90: 12 | G90: Q2, 2014 | H90: 260661.49
B91: 31 | C91: 12 | G91: Q3, 2014 | H91: 166200.08
B92: 32 | C92: 13 | G92: Q4, 2014 | H92: 77177.57
B93: 33 | C93: 13 | G93: Q1, 2015 | H93: 184731.27
B94: 34 | C94: 13 | G94: Q2, 2015 | H94: 284803.72
B95: 35 | C95: 14 | G95: Q3, 2015 | H95: 149885.57
B96: 36 | C96: 14 | G96: Q4, 2015 | H96: 242273.23
B97: 37 | C97: 15 | G97: Q1, 2016 | H97: 378706.97
B98: 38 | C98: 15 | G98: Q2, 2016 | H98: 288860.23
B99: 39 | C99: 15 | G99: Q3, 2016 | H99: 279597.51
B100: 40 | C100: 16 | G100: Q4, 2016 | H100: 269871.18
B101: 41 | C101: 16 | G101: Q1, 2018 | H101: 420742.56
B102: 42 | C102: 16 | G102: Q2, 2018 | H102: 250589.83
B103: 43 | C103: 16 | G103: Q3, 2018 | H103: 333855.93
B104: 44 | C104: 18 | G104: Q4, 2018 | H104: 446251.49
B105: 45 | C105: 18 | G105: Q1, 2019 | H105: 476679.84
B106: 46 | C106: 19 | G106: Q2, 2019 | H106: 421750.24
B107: 47 | C107: 20 | G107: Q3, 2019 | H107: 475311.59
B108: 48 | C108: 20 | G108: Q4, 2019 | H108: 534000.07
B109: 49 | C109: 20 | G109: Q1, 2020 | H109: 235992.52
B110: 50 | C110: 20 | G110: Q2, 2020 | H110: 473107.35
B111: 51 | C111: 23 | G111: Q3, 2020 | H111: 406045.01
B112: 52 | C112: 23 | G112: Q4, 2020 | H112: 277033.7
B113: 53 | C113: 23 | G113: Q1, 2021 | H113: 322143.2
B114: 54 | C114: 24 | G114: Q2, 2021 | H114: 230332.75
B115: 55 | C115: 25 | G115: Q3, 2021 | H115: 340663.63
B116: 56 | C116: 26 | G116: Q4, 2021 | H116: 392459.03
B117: 57 | C117: 26 | G117: Q1, 2022 | H117: 425129.7
B118: 58 | C118: 26
B119: 59 | C119: 27
B120: 60 | C120: 27
B121: 61 | C121: 27
B122: 62 | C122: 27
B123: 63 | C123: 28
B124: 64 | C124: 28
B125: 65 | C125: 29
B126: 66 | C126: 29
B127: 67 | C127: 29
B128: 68 | C128: 30
B129: 69 | C129: 31
B130: 70 | C130: 31
B131: 71 | C131: 32
B132: 72 | C132: 32
B133: 73 | C133: 32
B134: 74 | C134: 33
B135: 75 | C135: 33
B136: 76 | C136: 33
B137: 77 | C137: 34
B138: 78 | C138: 35
B139: 79 | C139: 35
B140: 80 | C140: 36
B141: 81 | C141: 36
B142: 82 | C142: 36
B143: 83 | C143: 36
B144: 84 | C144: 36
B145: 85 | C145: 36
B146: 86 | C146: 36
B147: 87 | C147: 36
B148: 88 | C148: 36
B149: 89 | C149: 36
B150: 90 | C150: 37
B151: 91 | C151: 37
B152: 92 | C152: 37
B153: 93 | C153: 37
B154: 94 | C154: 37
B155: 95 | C155: 37
B156: 96 | C156: 38
B157: 97 | C157: 38
B158: 98 | C158: 38
B159: 99 | C159: 38
B160: 100 | C160: 38
B161: 101 | C161: 38
B162: 102 | C162: 38
B163: 103 | C163: 38
B164: 104 | C164: 39
B165: 105 | C165: 39
B166: 106 | C166: 39
B167: 107 | C167: 39
B168: 108 | C168: 40
B169: 109 | C169: 40
B170: 110 | C170: 41
B171: 111 | C171: 41
B172: 112 | C172: 41
B173: 113 | C173: 41
B174: 114 | C174: 41
B175: 115 | C175: 41
B176: 116 | C176: 41
B177: 117 | C177: 42
B178: 118 | C178: 43
B179: 119 | C179: 43
B180: 120 | C180: 43
B181: 121 | C181: 43
B182: 122 | C182: 43
B183: 123 | C183: 43
B184: 124 | C184: 43
B185: 125 | C185: 44
B186: 126 | C186: 44
B187: 127 | C187: 44
B188: 128 | C188: 44
B189: 129 | C189: 44
B190: 130 | C190: 45
B191: 131 | C191: 45
B192: 132 | C192: 45
B193: 133 | C193: 45
B194: 134 | C194: 45
B195: 135 | C195: 45
B196: 136 | C196: 45
B197: 137 | C197: 46
B198: 138 | C198: 46
B199: 139 | C199: 47
B200: 140 | C200: 47
B201: 141 | C201: 47
B202: 142 | C202: 48
B203: 143 | C203: 48
B204: 144 | C204: 48
B205: 145 | C205: 48
... 345 more rows

Sheet V(1)
B2: Which Mean More Fairly Represents Its Data Points?
B4: Month | C4: Job #1: Hours Worked / Week | D4: Job #2: Hours Worked / Week
B5: 2021-03-16 | C5: 55 | D5: 35
B6: =B5+7 -> 2021-03-23 | C6: 25 | D6: 34
B7: =B6+7 -> 2021-03-30 | C7: 62 | D7: 36
B8: 2021-04-06 | C8: 15 | D8: 37
B9: 2021-04-13 | C9: 34 | D9: 43
B10: 2021-04-20 | C10: 19 | D10: 32
B11: 2021-04-27 | C11: 38 | D11: 33
B12: 2021-05-04 | C12: 29 | D12: 35
B13: 2021-05-11 | C13: 64 | D13: 36
B14: 2021-05-18 | C14: 31 | D14: 37
B15: 2021-05-25 | C15: 59 | D15: 35
B16: 2021-06-01 | C16: 12 | D16: 39
B17: 2021-06-08 | C17: 15 | D17: 32
B18: 2021-06-15 | C18: 42 | D18: 31
B19: 2021-06-22 | C19: 25 | D19: 30
B20: Mean | C20: =AVERAGE(C5:C19) -> 35 | D20: =AVERAGE(D5:D19) -> 35
C22: =ADDRESS(ROW(C20),COLUMN(C20),4)&": "&_xlfn.FORMULATEXT(C20) -> C20: =AVERAGE(C5:C19)
D23: =ADDRESS(ROW(D20),COLUMN(D20),4)&": "&_xlfn.FORMULATEXT(D20) -> D20: =AVERAGE(D5:D19)
B45: X | C45: =C4 -> Job #1: Hours Worked / Week | E45: X | F45: =D4 -> Job #2: Hours Worked / Week
B46: =C5 -> 55 | C46: 0.2 | E46: =D5 -> 35 | F46: 0.7
B47: 25 | C47: 0.2 | E47: 34 | F47: 0.7
B48: 62 | C48: 0.2 | E48: 36 | F48: 0.7
B49: 15 | C49: 0.2 | E49: 37 | F49: 0.7
B50: 34 | C50: 0.2 | E50: 43 | F50: 0.7
B51: 19 | C51: 0.2 | E51: 32 | F51: 0.7
B52: 38 | C52: 0.2 | E52: 33 | F52: 0.7
B53: 29 | C53: 0.2 | E53: 35 | F53: 0.7
B54: 64 | C54: 0.2 | E54: 36 | F54: 0.7
B55: 31 | C55: 0.2 | E55: 37 | F55: 0.7
B56: 59 | C56: 0.2 | E56: 35 | F56: 0.7
B57: 12 | C57: 0.2 | E57: 39 | F57: 0.7
B58: 15 | C58: 0.2 | E58: 32 | F58: 0.7
B59: 42 | C59: 0.2 | E59: 31 | F59: 0.7
B60: 25 | C60: 0.2 | E60: 30 | F60: 0.7
B62: X | C62: Job #1 Mean Hours/Week | E62: X | F62: Job #2 Mean Hours/Week
B63: =C20 -> 35 | C63: 0.3 | E63: =D20 -> 35 | F63: 0.8
B67: Lower | C67: Upper | D67: Hour Bins | E67: RF Job 1 | F67: RF Job 2
B68: 10 | C68: =B68+10 -> 20 | D68: =B68&" up to "&C68 -> 10 up to 20 | E68: =COUNTIFS(C$5:C$19,">="&$B68,C$5:C$19,"<"&$C68)/$C$75 -> 0.2666666667 | F68: 0
B69: =C68 -> 20 | C69: 30 | D69: 20 up to 30 | E69: 0.2 | F69: 0
B70: =C69 -> 30 | C70: 40 | D70: 30 up to 40 | E70: 0.2 | F70: 0.9333333333
B71: =C70 -> 40 | C71: 50 | D71: 40 up to 50 | E71: 0.06666666667 | F71: 0.06666666667
B72: =C71 -> 50 | C72: 60 | D72: 50 up to 60 | E72: 0.1333333333 | F72: 0
B73: =C72 -> 60 | C73: 70 | D73: 60 up to 70 | E73: 0.1333333333 | F73: 0
B75: Count | C75: =COUNT(B5:B19) -> 15

Sheet V(2)
B2: Where are gas prices more volatile? | Z2: Gas Prices Burien | AA2: Gas Prices Seattle
Z3: =ROUND(CHOOSE(RANDBETWEEN(1,3),RANDBETWEEN(204,349),RANDBETWEEN(227,279),_xlfn.NORM.INV(RAND(),239,5))/100,2) -> 2.4 | AA3: =ROUND(CHOOSE(RANDBETWEEN(1,3),RANDBETWEEN(199,389),RANDBETWEEN(217,299),_xlfn.NORM.INV(RAND(),249,7))/100,2) -> 2.87
B4: Sample | C4: Burien Gas Price Data Points | D4: Seattle Gas Price Data Points
B5: Sample 1 | C5: 3.01 | D5: 3.86
B6: Sample 2 | C6: 2.35 | D6: 2.93
B7: Sample 3 | C7: 2.47 | D7: 2.42
B8: Sample 4 | C8: 2.48 | D8: 1.99
B9: Sample 5 | C9: 2.28 | D9: 2.51
B10: Sample 6 | C10: 2.6 | D10: 2.6
B11: Sample 7 | C11: 3.31 | D11: 2.52
B12: Sample 8 | C12: 2.37 | D12: 2.48
B13: Sample 9 | C13: 2.52 | D13: 2.46
B14: Sample 10 | C14: 2.5 | D14: 2.44
B15: Sample 11 | C15: 2.37 | D15: 2.42
B16: Sample 12 | C16: 3.01 | D16: 3.56
B17: Sample 13 | C17: 2.36 | D17: 2.39
B18: Sample 14 | C18: 2.45 | D18: 2.79
B19: Sample 15 | C19: 2.38 | D19: 2.58
B20: Xbar | C20: =ROUND(AVERAGE(C5:C19),2) -> 2.56 | D20: =ROUND(AVERAGE(D5:D19),2) -> 2.66
C22: =ADDRESS(ROW(C20),COLUMN(C20),4)&": "&_xlfn.FORMULATEXT(C20) -> C20: =ROUND(AVERAGE(C5:C19),2)
D23: =ADDRESS(ROW(D20),COLUMN(D20),4)&": "&_xlfn.FORMULATEXT(D20) -> D20: =ROUND(AVERAGE(D5:D19),2)
B41: X | C41: =C4 -> Burien Gas Price Data Points | E41: X | F41: =D4 -> Seattle Gas Price Data Points
B42: =C5 -> 3.01 | C42: 0.2 | E42: =D5 -> 3.86 | F42: 0.7
B43: 2.35 | C43: 0.2 | E43: 2.93 | F43: 0.7
B44: 2.47 | C44: 0.2 | E44: 2.42 | F44: 0.7
B45: 2.48 | C45: 0.2 | E45: 1.99 | F45: 0.7
B46: 2.28 | C46: 0.2 | E46: 2.51 | F46: 0.7
B47: 2.6 | C47: 0.2 | E47: 2.6 | F47: 0.7
B48: 3.31 | C48: 0.2 | E48: 2.52 | F48: 0.7
B49: 2.37 | C49: 0.2 | E49: 2.48 | F49: 0.7 | J49: =SUBSTITUTE(C41,"Data Points ","") -> Burien Gas Price Data Points
B50: 2.52 | C50: 0.2 | E50: 2.46 | F50: 0.7
B51: 2.5 | C51: 0.2 | E51: 2.44 | F51: 0.7
B52: 2.37 | C52: 0.2 | E52: 2.42 | F52: 0.7
B53: 3.01 | C53: 0.2 | E53: 3.56 | F53: 0.7
B54: 2.36 | C54: 0.2 | E54: 2.39 | F54: 0.7
B55: 2.45 | C55: 0.2 | E55: 2.79 | F55: 0.7
B56: 2.38 | C56: 0.2 | E56: 2.58 | F56: 0.7
B58: X | C58: =SUBSTITUTE(C41," Data Points","")&" MEAN" -> Burien Gas Price MEAN | E58: X | F58: =SUBSTITUTE(F41," Data Points","")&" MEAN" -> Seattle Gas Price MEAN
B59: =C20 -> 2.56 | C59: 0.3 | E59: =D20 -> 2.66 | F59: 0.8
B63: Lower | C63: Upper | D63: Return Bins | E63: RF Stock A | F63: RF Stock B
B64: 1.8 | C64: =B64+0.2 -> 2 | D64: =TEXT(B64,"$0.00")&CHAR(10)&"up to"&CHAR(10)&TEXT(C64,"$0.00") -> $1.80 up to $2.00 | E64: =COUNTIFS(C$5:C$19,">="&$B64,C$5:C$19,"<"&$C64)/$C$76 -> 0 | F64: 0.06666666667
B65: =C64 -> 2 | C65: =B65+0.2 -> 2.2 | D65: =TEXT(B65,"$0.00")&CHAR(10)&"up to"&CHAR(10)&TEXT(C65,"$0.00") -> $2.00 up to $2.20 | E65: 0 | F65: 0
B66: 2.2 | C66: 2.4 | D66: $2.20 up to $2.40 | E66: 0.4 | F66: 0.06666666667
B67: 2.4 | C67: 2.6 | D67: $2.40 up to $2.60 | E67: 0.3333333333 | F67: 0.5333333333
B68: 2.6 | C68: 2.8 | D68: $2.60 up to $2.80 | E68: 0.06666666667 | F68: 0.1333333333
B69: 2.8 | C69: 3 | D69: $2.80 up to $3.00 | E69: 0 | F69: 0.06666666667
B70: 3 | C70: 3.2 | D70: $3.00 up to $3.20 | E70: 0.1333333333 | F70: 0
B71: 3.2 | C71: 3.4 | D71: $3.20 up to $3.40 | E71: 0.06666666667 | F71: 0
B72: =C71 -> 3.4 | C72: 3.6 | D72: $3.40 up to $3.60 | E72: 0 | F72: 0.06666666667
B73: =C72 -> 3.6 | C73: 3.8 | D73: $3.60 up to $3.80 | E73: 0 | F73: 0
B74: =C73 -> 3.8 | C74: 4 | D74: $3.80 up to $4.00 | E74: 0 | F74: 0.06666666667
B76: Count | C76: =COUNTA(B5:B19) -> 15

Sheet V(3)
B2: Based on Average Days To Fill Order, which supplier is more reliable?
B4: Order # | C4: Banderson's, Days to fill order | D4: Plywood & Floor, Days to fill order
B5: Order 1 | C5: 4 | D5: 10
B6: Order 2 | C6: 6 | D6: 11
B7: Order 3 | C7: 12 | D7: 9
B8: Order 4 | C8: 11 | D8: 9
B9: Order 5 | C9: 13 | D9: 10
B10: Order 6 | C10: 16 | D10: 8
B11: Order 7 | C11: 5 | D11: 9
B12: Order 8 | C12: 8 | D12: 10
B13: Order 9 | C13: 9 | D13: 10
B14: Order 10 | C14: 6 | D14: 9
B15: Order 11 | C15: 8 | D15: 8
B16: Order 12 | C16: 6 | D16: 9
B17: Order 13 | C17: 12 | D17: 6
B18: Order 14 | C18: 6 | D18: 8
B19: Order 15 | C19: 13 | D19: 9
B20: Mean | C20: =AVERAGE(C5:C19) -> 9 | D20: =AVERAGE(D5:D19) -> 9
C22: =ADDRESS(ROW(C20),COLUMN(C20),4)&": "&_xlfn.FORMULATEXT(C20) -> C20: =AVERAGE(C5:C19)
D23: =ADDRESS(ROW(D20),COLUMN(D20),4)&": "&_xlfn.FORMULATEXT(D20) -> D20: =AVERAGE(D5:D19)
B49: X | C49: =C4 -> Banderson's, Days to fill order | E49: X | F49: =D4 -> Plywood & Floor, Days to fill order
B50: =C5 -> 4 | C50: 0.2 | E50: =D5 -> 10 | F50: 0.7
B51: 6 | C51: 0.2 | E51: 11 | F51: 0.7
B52: 12 | C52: 0.2 | E52: 9 | F52: 0.7
B53: 11 | C53: 0.2 | E53: 9 | F53: 0.7
B54: 13 | C54: 0.2 | E54: 10 | F54: 0.7
B55: 16 | C55: 0.2 | E55: 8 | F55: 0.7
B56: 5 | C56: 0.2 | E56: 9 | F56: 0.7
B57: 8 | C57: 0.2 | E57: 10 | F57: 0.7
B58: 9 | C58: 0.2 | E58: 10 | F58: 0.7
B59: 6 | C59: 0.2 | E59: 9 | F59: 0.7
B60: 8 | C60: 0.2 | E60: 8 | F60: 0.7
B61: 6 | C61: 0.2 | E61: 9 | F61: 0.7
B62: 12 | C62: 0.2 | E62: 6 | F62: 0.7
B63: 6 | C63: 0.2 | E63: 8 | F63: 0.7
B64: 13 | C64: 0.2 | E64: 9 | F64: 0.7
B66: X | C66: Ave Days To Fill Order, Banderson's | E66: X | F66: Ave Days To Fill Order, Plywood & Floor
B67: =C20 -> 9 | C67: 0.3 | E67: =D20 -> 9 | F67: 0.8
B70: Days | C70: RF Banderson's | D70: RF Plywood & Floor
B71: 4 | C71: =COUNTIFS(C$5:C$19,$B71)/$C$86 -> 0.06666666667 | D71: 0
B72: 5 | C72: 0.06666666667 | D72: 0
B73: 6 | C73: 0.2666666667 | D73: 0.06666666667
B74: 7 | C74: 0 | D74: 0
B75: 8 | C75: 0.1333333333 | D75: 0.2
B76: 9 | C76: 0.06666666667 | D76: 0.4
B77: 10 | C77: 0 | D77: 0.2666666667
B78: 11 | C78: 0.06666666667 | D78: 0.06666666667
B79: 12 | C79: 0.1333333333 | D79: 0
B80: 13 | C80: 0.1333333333 | D80: 0
B81: 14 | C81: 0 | D81: 0
B82: 15 | C82: 0 | D82: 0
B83: 16 | C83: 0.06666666667 | D83: 0
B84: Total | C84: =SUM(C71:C83) -> 1 | D84: =SUM(D71:D83) -> 1
B86: Count | C86: =COUNTA(B5:B19) -> 15

Sheet VariationFormulas
B2: Variability
B3: Variability answers the questions:
B4: What is the dispersion in the data?
B5: How spread out is the data?
B6: 1) Range
B7: Range = Max value - Min value
B8: The bigger the range, the more the variability or spread in the data
B9: It is simple to calculate, but sensitive to extreme values
B10: 2) Interquartile Range
B11: Interquartile Range = Quartile 3 - Quartile 1
B12: The bigger the range, the more the variability or spread in the data
B13: The Interquartile Range tells you the range for the middle 50% of the data. It overcomes the sensitivity to extreme values that range has
B14: 3) Deviation
B15: Deviation = Particular X value - Mean
B16: It tells you how far one datum is from the mean. "How far above or below the mean is the particular value?"
B17: For any data set, the sum of the deviations is always zero!!!! | Z17: Xbar | AA17: = | AB17: Sample Mean | AC17: "Xbar"
B18: This is why mathematically, we either square (Variance or Standard Deviation) or take the absolute value (Mean Absolute Value)
B19: 4) Variance | Z19: µ | AA19: = | AB19: Population Mean | AC19: "Mew"
B20: A Numerical Measure that says how much variability there is in the data points | Z20: s | AA20: = | AB20: Sample Standard Deviation | AC20: "s"
B21: Variance uses all the data points, not just some like Range and Interquartile Range | Z21: s | AA21: = | AB21: Sample Standard Deviation | AC21: "sigma"
B22: Variance has squared units, which makes interpreting it difficult. Standard Deviation undoes the squared units and is thus easier to interpret and is more commonly used | Z22: xi | AA22: = | AB22: Particular Value | AC22: "x sub i"
B23: Math Formulas below ê | Z23: ∑ | AA23: = | AB23: Greek Letter used for "adding" | AC23: "Sigma"
B24: In Excel use: VAR.P function for population data and VAR.S for sample data | Z24: n | AA24: = | AB24: Count of sample items | AC24: "n"
B25: 5) Standard Deviation | Z25: N | AA25: = | AB25: Count of population items | AC25: "n"
B26: Standard Deviation uses all the data points, not just some like Range and Interquartile Range
B27: Standard Deviation does not have squared units (like Variance) and is thus easier to interpret; the standard deviation has the same units as the data. | Z27: These two not required for this class:
B28: Population Standard Deviation = "little sigma" = s ; Sample Standard Deviation = s | Z28: Alternative for variability measure called Mean Absolute Error
B29: The sample standard deviation is a point estimator of the population standard deviation
B30: Interpretation of Standard Deviation:
B31: A numerical measure that says how much variability there is in the data points
B32: Standard Deviation is like an average of the deviations
B33: * Standard Deviation tells us how fairly the mean represents its data points (key concept is statistics) | Z33: Alternative to calculate Sample SD
B34: * Standard Deviation tells us how clustered the data points are around the mean (key concept is statistics)
B35: For financial assets standard deviation is a measure of risk or fluctuation in asset value
B36: Math Formulas below ê
B37: In Excel use: STDEV.P function for population data and STDEV.S for sample data
B38: 6) Coefficient of Variation
B39: Math Formula = (Standard Deviation)/Mean = Coefficient of Variation
B40: Coefficient of Variation converts Standard Deviation to Standard Deviation per unit of Mean so you can compare:
B41: 1) Data in different units.
B42: or
B43: 2) Data in the same units, but the means are far apart.
B44: Coefficient of Variation answers the question: "For every one unit of mean, what is the Standard Deviation?"
B45: In Finance you see the inverse formula = (Average Return)/(Standard Deviation) = Return for 1 unit of risk
B55: These two not required for this class: | L55: Xbar | M55: = | N55: "Xbar" | O55: Sample Mean
B56: Alternative for variability measure called Mean Absolute Error
L57: µ | M57: = | N57: "Mew" | O57: Population Mean
L58: s | M58: = | N58: "s" | O58: Sample Standard Deviation
L59: s | M59: = | N59: "sigma" | O59: Sample Standard Deviation
L60: xi | M60: = | N60: "x sub i" | O60: Particular Value
B61: Alternative to calculate Sample SD | L61: ∑ | M61: = | N61: "Sigma" | O61: Greek Letter used for "adding"
L62: n | M62: = | N62: "n" | O62: Count of sample items
L63: N | M63: = | N63: "n" | O63: Count of population items

Sheet V(4)
B2: Number of Days to Fill Order for Custom Birch Plywood for boomerang manufacturer
C3: Banderson's | D3: Plywood & Floor | I3: Days to Fill Order | J3: ="Count for "&C2 -> Count for | K3: ="Count for "&D2 -> Count for
C4: 4 | D4: 10 | I4: =_xlfn.LET(_xlpm.max,MAX(C4:D18),_xlpm.min,MIN(C4:D18),_xlfn.SEQUENCE(_xlpm.max-_xlpm.min+1,,_xlpm.min)) -> 4 | J4: =COUNTIFS(C4:C18,_xlfn.ANCHORARRAY($I$4)) -> 1 | K4: =-COUNTIFS(D4:D18,_xlfn.ANCHORARRAY($I$4)) -> 0
C5: 6 | D5: 11 | I5: 5 | J5: 1 | K5: 0
C6: 12 | D6: 9 | I6: 6 | J6: 4 | K6: -1
C7: 11 | D7: 9 | I7: 7 | J7: 0 | K7: 0
C8: 13 | D8: 10 | I8: 8 | J8: 2 | K8: -3
C9: 16 | D9: 8 | I9: 9 | J9: 1 | K9: -6
C10: 5 | D10: 9 | I10: 10 | J10: 0 | K10: -4
C11: 8 | D11: 10 | I11: 11 | J11: 1 | K11: -1
C12: 9 | D12: 10 | I12: 12 | J12: 2 | K12: 0
C13: 6 | D13: 9 | I13: 13 | J13: 2 | K13: 0
C14: 8 | D14: 8 | I14: 14 | J14: 0 | K14: 0
C15: 6 | D15: 9 | I15: 15 | J15: 0 | K15: 0
C16: 12 | D16: 6 | I16: 16 | J16: 1 | K16: 0
C17: 6 | D17: 8
C18: 13 | D18: 9
B19: Based on Average Days to Fill Order, which Supplier do you prefer? It is hard to know, without looking at the variability of past delivery times.
B20: Xbar = Mean | G20: =_xlfn.IFNA("Cell "&ADDRESS(ROW(D20),COLUMN(D20),4)&": "&_xlfn.FORMULATEXT(D20),"") -> 
B21: Range = Max - Min. Simple to calculate. It is very sensitive to the smallest and largest data values (extreme values).
B22: Min | G22: =_xlfn.IFNA("Cell "&ADDRESS(ROW(D22),COLUMN(D22),4)&": "&_xlfn.FORMULATEXT(D22),"") -> 
B23: Max | G23: =_xlfn.IFNA("Cell "&ADDRESS(ROW(D23),COLUMN(D23),4)&": "&_xlfn.FORMULATEXT(D23),"") -> 
B24: Range
B25: Interquartile Range = Quartile 3 - Quartile 1. The range for the middle 50% of the data. It overcomes the sensitivity to extreme data values.
A26: 1 | B26: Quartile 1 | G26: =_xlfn.IFNA("Cell "&ADDRESS(ROW(D26),COLUMN(D26),4)&": "&_xlfn.FORMULATEXT(D26),"") -> 
A27: 3 | B27: Quartile 3 | G27: =_xlfn.IFNA("Cell "&ADDRESS(ROW(D27),COLUMN(D27),4)&": "&_xlfn.FORMULATEXT(D27),"") -> 
B28: Interquartile Range
B29: Standard deviation. A numerical measure that says how much variability/dispersion there is in the data in relation to the mean.
B30: Standard Deviation is like an average of the deviations, that tells you how fairly the mean represents its data points and how clustered the data points are around the mean
B31: Sample Standard Deviation = s | G31: =_xlfn.IFNA("Cell "&ADDRESS(ROW(D31),COLUMN(D31),4)&": "&_xlfn.FORMULATEXT(D31),"") -> 
B32: Although they both deliver in an average of 9 days, Banderson's has a standard deviation of
B33: about 3.5 days and Plywood and Floor has a standard deviation of about 1.2 days.
B34: For planning business activities, a smaller standard Deviation (average deviation) is more helpful and reliable.
B35: A smaller standard deviation indicates that there is less variation in the number of days it will take to deliver the custom birch plywood.

Sheet V(4an)
B2: Number of Days to Fill Order for Custom Birch Plywood for boomerang manufacturer
C3: Banderson's | D3: Plywood & Floor | I3: Days to Fill Order | J3: ="Count for "&C2 -> Count for | K3: ="Count for "&D2 -> Count for
C4: 4 | D4: 10 | I4: =_xlfn.LET(_xlpm.max,MAX(C4:D18),_xlpm.min,MIN(C4:D18),_xlfn.SEQUENCE(_xlpm.max-_xlpm.min+1,,_xlpm.min)) -> 4 | J4: =COUNTIFS(C4:C18,_xlfn.ANCHORARRAY($I$4)) -> 1 | K4: =-COUNTIFS(D4:D18,_xlfn.ANCHORARRAY($I$4)) -> 0
C5: 6 | D5: 11 | I5: 5 | J5: 1 | K5: 0
C6: 12 | D6: 9 | I6: 6 | J6: 4 | K6: -1
C7: 11 | D7: 9 | I7: 7 | J7: 0 | K7: 0
C8: 13 | D8: 10 | I8: 8 | J8: 2 | K8: -3
C9: 16 | D9: 8 | I9: 9 | J9: 1 | K9: -6
C10: 5 | D10: 9 | I10: 10 | J10: 0 | K10: -4
C11: 8 | D11: 10 | I11: 11 | J11: 1 | K11: -1
C12: 9 | D12: 10 | I12: 12 | J12: 2 | K12: 0
C13: 6 | D13: 9 | I13: 13 | J13: 2 | K13: 0
C14: 8 | D14: 8 | I14: 14 | J14: 0 | K14: 0
C15: 6 | D15: 9 | I15: 15 | J15: 0 | K15: 0
C16: 12 | D16: 6 | I16: 16 | J16: 1 | K16: 0
C17: 6 | D17: 8
C18: 13 | D18: 9
B19: Based on Average Days to Fill Order, which Supplier do you prefer? It is hard to know, without looking at the variability of past delivery times.
B20: Xbar = Mean | C20: =AVERAGE(C4:C18) -> 9 | D20: =AVERAGE(D4:D18) -> 9 | G20: =_xlfn.IFNA("Cell "&ADDRESS(ROW(D20),COLUMN(D20),4)&": "&_xlfn.FORMULATEXT(D20),"") -> Cell D20: =AVERAGE(D4:D18)
B21: Range = Max - Min. Simple to calculate. It is very sensitive to the smallest and largest data values (extreme values).
B22: Min | C22: =MIN(C4:C18) -> 4 | D22: =MIN(D4:D18) -> 6 | G22: =_xlfn.IFNA("Cell "&ADDRESS(ROW(D22),COLUMN(D22),4)&": "&_xlfn.FORMULATEXT(D22),"") -> Cell D22: =MIN(D4:D18)
B23: Max | C23: =MAX(C4:C18) -> 16 | D23: =MAX(D4:D18) -> 11 | G23: =_xlfn.IFNA("Cell "&ADDRESS(ROW(D23),COLUMN(D23),4)&": "&_xlfn.FORMULATEXT(D23),"") -> Cell D23: =MAX(D4:D18)
B24: Range | C24: =C23-C22 -> 12 | D24: =D23-D22 -> 5 | G24: Cell D24: =D23-D22
B25: Interquartile Range = Quartile 3 - Quartile 1. The range for the middle 50% of the data. It overcomes the sensitivity to extreme data values.
A26: 1 | B26: Quartile 1 | C26: =_xlfn.QUARTILE.INC(C4:C18,$A$26:$A$27) -> 6 | D26: =_xlfn.QUARTILE.INC(D4:D18,$A$26:$A$27) -> 8.5 | G26: =_xlfn.IFNA("Cell "&ADDRESS(ROW(D26),COLUMN(D26),4)&": "&_xlfn.FORMULATEXT(D26),"") -> Cell D26: =QUARTILE.INC(D4:D18,$A$26:$A$27)
A27: 3 | B27: Quartile 3 | C27: 12 | D27: 10 | G27: =_xlfn.IFNA("Cell "&ADDRESS(ROW(D27),COLUMN(D27),4)&": "&_xlfn.FORMULATEXT(D27),"") -> 
B28: Interquartile Range | C28: =C27-C26 -> 6 | D28: =D27-D26 -> 1.5 | G28: Cell D28: =D27-D26
B29: Standard deviation. A numerical measure that says how much variability/dispersion there is in the data in relation to the mean.
B30: Standard Deviation is like an average of the deviations, that tells you how fairly the mean represents its data points and how clustered the data points are around the mean
B31: Sample Standard Deviation = s | C31: =_xlfn.STDEV.S(C4:C18) -> 3.605551275 | D31: =_xlfn.STDEV.S(D4:D18) -> 1.195228609 | G31: =_xlfn.IFNA("Cell "&ADDRESS(ROW(D31),COLUMN(D31),4)&": "&_xlfn.FORMULATEXT(D31),"") -> Cell D31: =STDEV.S(D4:D18)
B32: Although they both deliver in an average of 9 days, Banderson's has a standard deviation of
B33: about 3.5 days and Plywood and Floor has a standard deviation of about 1.2 days.
B34: For planning business activities, a smaller standard Deviation (average deviation) is more helpful and reliable.
B35: A smaller standard deviation indicates that there is less variation in the number of days it will take to deliver the custom birch plywood.

Sheet V(5)
B2: 3) Deviation
B3: Deviation = Particular X value - Mean
B4: It tells you how far one datum is from the mean. "How far above or below the mean is the particular value?"
B5: For any data set, the sum of the deviations is always zero!!!!
B6: 4) Variance
B7: A Numerical Measure that says how much variability there is in the data points
B8: Variance has squared units, which makes interpreting it difficult. Standard Deviation undoes the squared units and is thus easier to interpret and is more commonly used
B9: 5) Standard Deviation
B10: Standard Deviation does not have squared units (like Variance) and is thus easier to interpret; the standard deviation has the same units as the data.
B11: The sample standard deviation is a point estimator of the population standard deviation
B12: Interpretation of Standard Deviation:
B13: A numerical measure that says how much variability/dispersion there is in the data in relation to the mean
B14: Standard Deviation is like an average of the deviations
B15: Standard Deviation tells us how fairly the mean represents its data points
B16: Standard Deviation tells us how clustered the data points are around the mean
B17: For financial assets standard deviation is a measure of risk or fluctuation in asset value
B19: Count | O19: =_xlfn.IFNA("Cell "&ADDRESS(ROW(F19),COLUMN(F19),4)&": "&_xlfn.FORMULATEXT(F19),"") -> 
B20: Count -1 | G20: Sample data divided by just the count underestimates | O20: =_xlfn.IFNA("Cell "&ADDRESS(ROW(F20),COLUMN(F20),4)&": "&_xlfn.FORMULATEXT(F20),"") -> 
B21: Mean = Xbar | G21: What minus one does: 10/5 = 2, but 10/(5-1) = 2.5
B22: Order # | C22: Days to fill order Banderson's, xi | D22: Deviation Xi - Xbar | E22: Deviation ^2 (Xi - Xbar)^2 | F22: Days to fill order Plywood & Floor | G22: Deviation Xi - Xbar | H22: Deviation ^2 (Xi - Xbar)^2
B23: Order 1 | C23: 4 | F23: 10 | O23: =_xlfn.IFNA("Cell "&ADDRESS(ROW(G23),COLUMN(G23),4)&": "&_xlfn.FORMULATEXT(G23),"") -> 
B24: Order 2 | C24: 6 | F24: 11 | O24: =_xlfn.IFNA("Cell "&ADDRESS(ROW(H23),COLUMN(H23),4)&": "&_xlfn.FORMULATEXT(H23),"") -> 
B25: Order 3 | C25: 12 | F25: 9
B26: Order 4 | C26: 11 | F26: 9
B27: Order 5 | C27: 13 | F27: 10
B28: Order 6 | C28: 16 | F28: 8 | O28: In statistics, the number of degrees of freedom is the
B29: Order 7 | C29: 5 | F29: 9 | O29: number of values in the final calculation of a statistic that are
B30: Order 8 | C30: 8 | F30: 10 | O30: free to vary.
B31: Order 9 | C31: 9 | F31: 10 | O31: https://en.wikipedia.org/wiki/Degrees_of_freedom_(statistics)
B32: Order 10 | C32: 6 | F32: 9
B33: Order 11 | C33: 8 | F33: 8
B34: Order 12 | C34: 6 | F34: 9
B35: Order 13 | C35: 12 | F35: 6
B36: Order 14 | C36: 6 | F36: 8
B37: Order 15 | C37: 13 | F37: 9
C38: Total
B39: Sum Deviations ALWAYS = 0!
B40: Why we have to square!!!
C41: Sample Variance = s2 | F41: =_xlfn.IFNA("Cell "&ADDRESS(ROW(E41),COLUMN(E41),4)&": "&_xlfn.FORMULATEXT(E41),"") ->  | I41: Units are squared | O41: =_xlfn.IFNA("Cell "&ADDRESS(ROW(H41),COLUMN(H41),4)&": "&_xlfn.FORMULATEXT(H41),"") -> 
C42: Sample Variance = s2 | F42: =_xlfn.IFNA("Cell "&ADDRESS(ROW(E42),COLUMN(E42),4)&": "&_xlfn.FORMULATEXT(E42),"") ->  | I42: VAR.S (Variance for Sample) | O42: =_xlfn.IFNA("Cell "&ADDRESS(ROW(H42),COLUMN(H42),4)&": "&_xlfn.FORMULATEXT(H42),"") -> 
C43: Sample Standard Deviation = s | F43: =_xlfn.IFNA("Cell "&ADDRESS(ROW(E43),COLUMN(E43),4)&": "&_xlfn.FORMULATEXT(E43),"") ->  | I43: Square root to get back to same unit | O43: =_xlfn.IFNA("Cell "&ADDRESS(ROW(H43),COLUMN(H43),4)&": "&_xlfn.FORMULATEXT(H43),"") -> 
F44: =_xlfn.IFNA("Cell "&ADDRESS(ROW(E44),COLUMN(E44),4)&": "&_xlfn.FORMULATEXT(E44),"") ->  | I44: STDEV.S (Standard Deviation for Sample) | O44: =_xlfn.IFNA("Cell "&ADDRESS(ROW(H44),COLUMN(H44),4)&": "&_xlfn.FORMULATEXT(H44),"") -> 
I45: The sample SD, s, is a point estimator of the population SD, sigma σ
I46: Which mean more fairly represents its data points?
B71: ALTERNATIVE TO CALCULATE Sample SD
B77: Count | C77: =COUNT(C81:C95) -> 15 | F77: =COUNT(F81:F95) -> 15
B78: Count -1 | C78: =C77-1 -> 14 | F78: =F77-1 -> 14
B79: Mean = Xbar | C79: =AVERAGE(C81:C95) -> 9 | F79: =AVERAGE(F81:F95) -> 9
B80: Order # | C80: Days to fill order Banderson's, xi | D80: xi^2 | F80: Days to fill order Plywood & Floor | G80: xi^2
B81: Order 1 | C81: 4 | D81: =C81^2 -> 16 | F81: 10 | G81: =F81^2 -> 100
B82: Order 2 | C82: 6 | D82: 36 | F82: 11 | G82: 121
B83: Order 3 | C83: 12 | D83: 144 | F83: 9 | G83: 81
B84: Order 4 | C84: 11 | D84: 121 | F84: 9 | G84: 81
B85: Order 5 | C85: 13 | D85: 169 | F85: 10 | G85: 100
B86: Order 6 | C86: 16 | D86: 256 | F86: 8 | G86: 64
B87: Order 7 | C87: 5 | D87: 25 | F87: 9 | G87: 81
B88: Order 8 | C88: 8 | D88: 64 | F88: 10 | G88: 100
B89: Order 9 | C89: 9 | D89: 81 | F89: 10 | G89: 100
B90: Order 10 | C90: 6 | D90: 36 | F90: 9 | G90: 81
B91: Order 11 | C91: 8 | D91: 64 | F91: 8 | G91: 64
B92: Order 12 | C92: 6 | D92: 36 | F92: 9 | G92: 81
B93: Order 13 | C93: 12 | D93: 144 | F93: 6 | G93: 36
B94: Order 14 | C94: 6 | D94: 36 | F94: 8 | G94: 64
B95: Order 15 | C95: 13 | D95: 169 | F95: 9 | G95: 81
C97: Total | D97: =SUM(D81:D95) -> 1397 | F97: Total | G97: =SUM(G81:G95) -> 1235
C98: s | D98: =SQRT((D97-C77*C79^2)/C78) -> 3.605551275 | F98: s | G98: =SQRT((G97-F77*F79^2)/F78) -> 1.195228609
B101: Alternative for variability measure called Mean Absolute Error
B106: Count | C106: =COUNT(C109:C123) -> 15 | F106: =COUNT(F109:F123) -> 15
B107: Mean = Xbar | C107: =AVERAGE(C109:C123) -> 9 | F107: =AVERAGE(F109:F123) -> 9
B108: Order # | C108: Days to fill order Banderson's, xi | D108: ABS(Xi - Xbar) | F108: Days to fill order Plywood & Floor | G108: ABS(Xi - Xbar)
B109: Order 1 | C109: 4 | D109: =ABS(C109-C$107) -> 5 | F109: 10 | G109: =ABS(F109-F$107) -> 1
B110: Order 2 | C110: 6 | D110: 3 | F110: 11 | G110: 2
B111: Order 3 | C111: 12 | D111: 3 | F111: 9 | G111: 0
B112: Order 4 | C112: 11 | D112: 2 | F112: 9 | G112: 0
B113: Order 5 | C113: 13 | D113: 4 | F113: 10 | G113: 1
B114: Order 6 | C114: 16 | D114: 7 | F114: 8 | G114: 1
B115: Order 7 | C115: 5 | D115: 4 | F115: 9 | G115: 0
B116: Order 8 | C116: 8 | D116: 1 | F116: 10 | G116: 1
B117: Order 9 | C117: 9 | D117: 0 | F117: 10 | G117: 1
B118: Order 10 | C118: 6 | D118: 3 | F118: 9 | G118: 0
B119: Order 11 | C119: 8 | D119: 1 | F119: 8 | G119: 1
B120: Order 12 | C120: 6 | D120: 3 | F120: 9 | G120: 0
B121: Order 13 | C121: 12 | D121: 3 | F121: 6 | G121: 3
B122: Order 14 | C122: 6 | D122: 3 | F122: 8 | G122: 1
B123: Order 15 | C123: 13 | D123: 4 | F123: 9 | G123: 0
C125: Total | D125: =SUM(D109:D123) -> 46 | F125: Total | G125: =SUM(G109:G123) -> 12
C126: s | D126: =D125/C106 -> 3.066666667 | F126: s | G126: =G125/F106 -> 0.8
D127: =AVEDEV(C109:C123 ) -> 3.066666667 | G127: =AVEDEV(F109:F123 ) -> 0.8 | H127: AVEDEV (Mean Absolute Error or Average Absolute Deviations)
B132: Which Mean More Fairly Represents Its Data Points?
B134: Month | C134: # of Hours/Week worked Job 1 | D134: # of Hours/Week worked Job 2
B135: 2014-03-16 | C135: 55 | D135: 35
B136: =B135+7 -> 2014-03-23 | C136: 25 | D136: 34
B137: =B136+7 -> 2014-03-30 | C137: 62 | D137: 36
B138: 2014-04-06 | C138: 15 | D138: 37
B139: 2014-04-13 | C139: 34 | D139: 43
B140: 2014-04-20 | C140: 19 | D140: 32
B141: 2014-04-27 | C141: 38 | D141: 33
B142: 2014-05-04 | C142: 29 | D142: 35
B143: 2014-05-11 | C143: 64 | D143: 36
B144: 2014-05-18 | C144: 31 | D144: 37
B145: 2014-05-25 | C145: 59 | D145: 35
B146: 2014-06-01 | C146: 12 | D146: 39
B147: 2014-06-08 | C147: 15 | D147: 32
B148: 2014-06-15 | C148: 42 | D148: 31
B149: 2014-06-22 | C149: 25 | D149: 30
B150: Mean | C150: =AVERAGE(C135:C149) -> 35 | D150: =AVERAGE(D135:D149) -> 35
B152: Sample SD
B155: Where are gas prices more volatile?
B157: Sample | C157: Gas Prices Burien | D157: Gas Prices Seattle
B158: Sample 1 | C158: 3.01 | D158: 3.86
B159: Sample 2 | C159: 2.35 | D159: 2.93
B160: Sample 3 | C160: 2.47 | D160: 2.42
B161: Sample 4 | C161: 2.48 | D161: 1.99
B162: Sample 5 | C162: 2.28 | D162: 2.51
B163: Sample 6 | C163: 2.6 | D163: 2.6
B164: Sample 7 | C164: 3.31 | D164: 2.52
B165: Sample 8 | C165: 2.37 | D165: 2.48
B166: Sample 9 | C166: 2.52 | D166: 2.46
B167: Sample 10 | C167: 2.5 | D167: 2.44
B168: Sample 11 | C168: 2.37 | D168: 2.42
B169: Sample 12 | C169: 3.01 | D169: 3.56
B170: Sample 13 | C170: 2.36 | D170: 2.39
B171: Sample 14 | C171: 2.45 | D171: 2.79
B172: Sample 15 | C172: 2.38 | D172: 2.58
B173: Xbar | C173: =AVERAGE(C158:C172) -> 2.564 | D173: =AVERAGE(D158:D172) -> 2.663333333
B175: Sample SD

Sheet V(5an)
B2: 3) Deviation
B3: Deviation = Particular X value - Mean
B4: It tells you how far one datum is from the mean. "How far above or below the mean is the particular value?"
B5: For any data set, the sum of the deviations is always zero!!!!
B6: 4) Variance
B7: A Numerical Measure that says how much variability there is in the data points
B8: Variance has squared units, which makes interpreting it difficult. Standard Deviation undoes the squared units and is thus easier to interpret and is more commonly used
B9: 5) Standard Deviation
B10: Standard Deviation does not have squared units (like Variance) and is thus easier to interpret; the standard deviation has the same units as the data.
B11: The sample standard deviation is a point estimator of the population standard deviation
B12: Interpretation of Standard Deviation:
B13: A numerical measure that says how much variability/dispersion there is in the data in relation to the mean
B14: Standard Deviation is like an average of the deviations
B15: Standard Deviation tells us how fairly the mean represents its data points
B16: Standard Deviation tells us how clustered the data points are around the mean
B17: For financial assets standard deviation is a measure of risk or fluctuation in asset value
B19: Count | C19: =ROWS(C23:C37) -> 15 | F19: =ROWS(F23:F37) -> 15 | O19: =_xlfn.IFNA("Cell "&ADDRESS(ROW(F19),COLUMN(F19),4)&": "&_xlfn.FORMULATEXT(F19),"") -> Cell F19: =ROWS(F23:F37)
B20: Count -1 | C20: =C19-1 -> 14 | F20: =F19-1 -> 14 | G20: Sample data divided by just the count underestimates | O20: =_xlfn.IFNA("Cell "&ADDRESS(ROW(F20),COLUMN(F20),4)&": "&_xlfn.FORMULATEXT(F20),"") -> Cell F20: =F19-1
B21: Mean = Xbar | C21: =AVERAGE(C23:C37) -> 9 | F21: =AVERAGE(F23:F37) -> 9 | G21: What minus one does: 10/5 = 2, but 10/(5-1) = 2.5 | O21: Cell F21: =AVERAGE(F23:F37)
B22: Order # | C22: Days to fill order Banderson's, xi | D22: Deviation Xi - Xbar | E22: Deviation ^2 (Xi - Xbar)^2 | F22: Days to fill order Plywood & Floor | G22: Deviation Xi - Xbar | H22: Deviation ^2 (Xi - Xbar)^2
B23: Order 1 | C23: 4 | D23: =C23:C37-C21 -> -5 | E23: =_xlfn.ANCHORARRAY(D23)^2 -> 25 | F23: 10 | G23: =F23:F37-F21 -> 1 | H23: =_xlfn.ANCHORARRAY(G23)^2 -> 1 | O23: =_xlfn.IFNA("Cell "&ADDRESS(ROW(G23),COLUMN(G23),4)&": "&_xlfn.FORMULATEXT(G23),"") -> Cell G23: =F23:F37-F21
B24: Order 2 | C24: 6 | D24: -3 | E24: 9 | F24: 11 | G24: 2 | H24: 4 | O24: =_xlfn.IFNA("Cell "&ADDRESS(ROW(H23),COLUMN(H23),4)&": "&_xlfn.FORMULATEXT(H23),"") -> Cell H23: =G23#^2
B25: Order 3 | C25: 12 | D25: 3 | E25: 9 | F25: 9 | G25: 0 | H25: 0
B26: Order 4 | C26: 11 | D26: 2 | E26: 4 | F26: 9 | G26: 0 | H26: 0
B27: Order 5 | C27: 13 | D27: 4 | E27: 16 | F27: 10 | G27: 1 | H27: 1
B28: Order 6 | C28: 16 | D28: 7 | E28: 49 | F28: 8 | G28: -1 | H28: 1 | O28: In statistics, the number of degrees of freedom is the
B29: Order 7 | C29: 5 | D29: -4 | E29: 16 | F29: 9 | G29: 0 | H29: 0 | O29: number of values in the final calculation of a statistic that are
B30: Order 8 | C30: 8 | D30: -1 | E30: 1 | F30: 10 | G30: 1 | H30: 1 | O30: free to vary.
B31: Order 9 | C31: 9 | D31: 0 | E31: 0 | F31: 10 | G31: 1 | H31: 1 | O31: https://en.wikipedia.org/wiki/Degrees_of_freedom_(statistics)
B32: Order 10 | C32: 6 | D32: -3 | E32: 9 | F32: 9 | G32: 0 | H32: 0
B33: Order 11 | C33: 8 | D33: -1 | E33: 1 | F33: 8 | G33: -1 | H33: 1
B34: Order 12 | C34: 6 | D34: -3 | E34: 9 | F34: 9 | G34: 0 | H34: 0
B35: Order 13 | C35: 12 | D35: 3 | E35: 9 | F35: 6 | G35: -3 | H35: 9
B36: Order 14 | C36: 6 | D36: -3 | E36: 9 | F36: 8 | G36: -1 | H36: 1
B37: Order 15 | C37: 13 | D37: 4 | E37: 16 | F37: 9 | G37: 0 | H37: 0
C38: Total | D38: =SUM(_xlfn.ANCHORARRAY(D23)) -> 0 | E38: =SUM(_xlfn.ANCHORARRAY(E23)) -> 182 | G38: =SUM(_xlfn.ANCHORARRAY(G23)) -> 0 | H38: =SUM(_xlfn.ANCHORARRAY(H23)) -> 20
B39: Sum Deviations ALWAYS = 0!
B40: Why we have to square!!!
C41: Sample Variance = s2 | E41: =E38/C20 -> 13 | F41: =_xlfn.IFNA("Cell "&ADDRESS(ROW(E41),COLUMN(E41),4)&": "&_xlfn.FORMULATEXT(E41),"") -> Cell E41: =E38/C20 | H41: =H38/F20 -> 1.428571429 | I41: Units are squared | O41: =_xlfn.IFNA("Cell "&ADDRESS(ROW(H41),COLUMN(H41),4)&": "&_xlfn.FORMULATEXT(H41),"") -> Cell H41: =H38/F20
C42: Sample Variance = s2 | E42: =_xlfn.VAR.S(C23:C37) -> 13 | F42: =_xlfn.IFNA("Cell "&ADDRESS(ROW(E42),COLUMN(E42),4)&": "&_xlfn.FORMULATEXT(E42),"") -> Cell E42: =VAR.S(C23:C37) | H42: =_xlfn.VAR.S(F23:F37) -> 1.428571429 | I42: VAR.S (Variance for Sample) | O42: =_xlfn.IFNA("Cell "&ADDRESS(ROW(H42),COLUMN(H42),4)&": "&_xlfn.FORMULATEXT(H42),"") -> Cell H42: =VAR.S(F23:F37)
C43: Sample Standard Deviation = s | E43: =SQRT(E41) -> 3.605551275 | F43: =_xlfn.IFNA("Cell "&ADDRESS(ROW(E43),COLUMN(E43),4)&": "&_xlfn.FORMULATEXT(E43),"") -> Cell E43: =SQRT(E41) | H43: =SQRT(H42) -> 1.195228609 | I43: Square root to get back to same unit | O43: =_xlfn.IFNA("Cell "&ADDRESS(ROW(H43),COLUMN(H43),4)&": "&_xlfn.FORMULATEXT(H43),"") -> Cell H43: =SQRT(H42)
E44: =_xlfn.STDEV.S(C23:C37) -> 3.605551275 | F44: =_xlfn.IFNA("Cell "&ADDRESS(ROW(E44),COLUMN(E44),4)&": "&_xlfn.FORMULATEXT(E44),"") -> Cell E44: =STDEV.S(C23:C37) | H44: =_xlfn.STDEV.S(F23:F37) -> 1.195228609 | I44: STDEV.S (Standard Deviation for Sample) | O44: =_xlfn.IFNA("Cell "&ADDRESS(ROW(H44),COLUMN(H44),4)&": "&_xlfn.FORMULATEXT(H44),"") -> Cell H44: =STDEV.S(F23:F37)
I45: The sample SD, s, is a point estimator of the population SD, sigma σ
I46: Which mean more fairly represents its data points?
B71: ALTERNATIVE TO CALCULATE Sample SD
B77: Count | C77: =COUNT(C81:C95) -> 15 | F77: =COUNT(F81:F95) -> 15
B78: Count -1 | C78: =C77-1 -> 14 | F78: =F77-1 -> 14
B79: Mean = Xbar | C79: =AVERAGE(C81:C95) -> 9 | F79: =AVERAGE(F81:F95) -> 9
B80: Order # | C80: Days to fill order Banderson's, xi | D80: xi^2 | F80: Days to fill order Plywood & Floor | G80: xi^2
B81: Order 1 | C81: 4 | D81: =C81^2 -> 16 | F81: 10 | G81: =F81^2 -> 100
B82: Order 2 | C82: 6 | D82: 36 | F82: 11 | G82: 121
B83: Order 3 | C83: 12 | D83: 144 | F83: 9 | G83: 81
B84: Order 4 | C84: 11 | D84: 121 | F84: 9 | G84: 81
B85: Order 5 | C85: 13 | D85: 169 | F85: 10 | G85: 100
B86: Order 6 | C86: 16 | D86: 256 | F86: 8 | G86: 64
B87: Order 7 | C87: 5 | D87: 25 | F87: 9 | G87: 81
B88: Order 8 | C88: 8 | D88: 64 | F88: 10 | G88: 100
B89: Order 9 | C89: 9 | D89: 81 | F89: 10 | G89: 100
B90: Order 10 | C90: 6 | D90: 36 | F90: 9 | G90: 81
B91: Order 11 | C91: 8 | D91: 64 | F91: 8 | G91: 64
B92: Order 12 | C92: 6 | D92: 36 | F92: 9 | G92: 81
B93: Order 13 | C93: 12 | D93: 144 | F93: 6 | G93: 36
B94: Order 14 | C94: 6 | D94: 36 | F94: 8 | G94: 64
B95: Order 15 | C95: 13 | D95: 169 | F95: 9 | G95: 81
C97: Total | D97: =SUM(D81:D95) -> 1397 | F97: Total | G97: =SUM(G81:G95) -> 1235
C98: s | D98: =SQRT((D97-C77*C79^2)/C78) -> 3.605551275 | F98: s | G98: =SQRT((G97-F77*F79^2)/F78) -> 1.195228609
B101: Alternative for variability measure called Mean Absolute Error
B106: Count | C106: =COUNT(C109:C123) -> 15 | F106: =COUNT(F109:F123) -> 15
B107: Mean = Xbar | C107: =AVERAGE(C109:C123) -> 9 | F107: =AVERAGE(F109:F123) -> 9
B108: Order # | C108: Days to fill order Banderson's, xi | D108: ABS(Xi - Xbar) | F108: Days to fill order Plywood & Floor | G108: ABS(Xi - Xbar)
B109: Order 1 | C109: 4 | D109: =ABS(C109-C$107) -> 5 | F109: 10 | G109: =ABS(F109-F$107) -> 1
B110: Order 2 | C110: 6 | D110: 3 | F110: 11 | G110: 2
B111: Order 3 | C111: 12 | D111: 3 | F111: 9 | G111: 0
B112: Order 4 | C112: 11 | D112: 2 | F112: 9 | G112: 0
B113: Order 5 | C113: 13 | D113: 4 | F113: 10 | G113: 1
B114: Order 6 | C114: 16 | D114: 7 | F114: 8 | G114: 1
B115: Order 7 | C115: 5 | D115: 4 | F115: 9 | G115: 0
B116: Order 8 | C116: 8 | D116: 1 | F116: 10 | G116: 1
B117: Order 9 | C117: 9 | D117: 0 | F117: 10 | G117: 1
B118: Order 10 | C118: 6 | D118: 3 | F118: 9 | G118: 0
B119: Order 11 | C119: 8 | D119: 1 | F119: 8 | G119: 1
B120: Order 12 | C120: 6 | D120: 3 | F120: 9 | G120: 0
B121: Order 13 | C121: 12 | D121: 3 | F121: 6 | G121: 3
B122: Order 14 | C122: 6 | D122: 3 | F122: 8 | G122: 1
B123: Order 15 | C123: 13 | D123: 4 | F123: 9 | G123: 0
C125: Total | D125: =SUM(D109:D123) -> 46 | F125: Total | G125: =SUM(G109:G123) -> 12
C126: s | D126: =D125/C106 -> 3.066666667 | F126: s | G126: =G125/F106 -> 0.8
D127: =AVEDEV(C109:C123 ) -> 3.066666667 | G127: =AVEDEV(F109:F123 ) -> 0.8 | H127: AVEDEV (Mean Absolute Error or Average Absolute Deviations)
B132: Which Mean More Fairly Represents Its Data Points?
B134: Month | C134: # of Hours/Week worked Job 1 | D134: # of Hours/Week worked Job 2
B135: 2014-03-16 | C135: 55 | D135: 35
B136: =B135+7 -> 2014-03-23 | C136: 25 | D136: 34
B137: =B136+7 -> 2014-03-30 | C137: 62 | D137: 36
B138: 2014-04-06 | C138: 15 | D138: 37
B139: 2014-04-13 | C139: 34 | D139: 43
B140: 2014-04-20 | C140: 19 | D140: 32
B141: 2014-04-27 | C141: 38 | D141: 33
B142: 2014-05-04 | C142: 29 | D142: 35
B143: 2014-05-11 | C143: 64 | D143: 36
B144: 2014-05-18 | C144: 31 | D144: 37
B145: 2014-05-25 | C145: 59 | D145: 35
B146: 2014-06-01 | C146: 12 | D146: 39
B147: 2014-06-08 | C147: 15 | D147: 32
B148: 2014-06-15 | C148: 42 | D148: 31
B149: 2014-06-22 | C149: 25 | D149: 30
B150: Mean | C150: =AVERAGE(C135:C149) -> 35 | D150: =AVERAGE(D135:D149) -> 35
B152: Sample SD
B155: Where are gas prices more volatile?
B157: Sample | C157: Gas Prices Burien | D157: Gas Prices Seattle
B158: Sample 1 | C158: 3.01 | D158: 3.86
B159: Sample 2 | C159: 2.35 | D159: 2.93
B160: Sample 3 | C160: 2.47 | D160: 2.42
B161: Sample 4 | C161: 2.48 | D161: 1.99
B162: Sample 5 | C162: 2.28 | D162: 2.51
B163: Sample 6 | C163: 2.6 | D163: 2.6
B164: Sample 7 | C164: 3.31 | D164: 2.52
B165: Sample 8 | C165: 2.37 | D165: 2.48
B166: Sample 9 | C166: 2.52 | D166: 2.46
B167: Sample 10 | C167: 2.5 | D167: 2.44
B168: Sample 11 | C168: 2.37 | D168: 2.42
B169: Sample 12 | C169: 3.01 | D169: 3.56
B170: Sample 13 | C170: 2.36 | D170: 2.39
B171: Sample 14 | C171: 2.45 | D171: 2.79
B172: Sample 15 | C172: 2.38 | D172: 2.58
B173: Xbar | C173: =AVERAGE(C158:C172) -> 2.564 | D173: =AVERAGE(D158:D172) -> 2.663333333
B175: Sample SD

Sheet V(6)
B2: Sample Standard Deviation = s | C2: =_xlfn.STDEV.S(B8:B30) -> 3.530874775 | E2: =_xlfn.IFNA("Cell "&ADDRESS(ROW(C2),COLUMN(C2),4)&": "&_xlfn.FORMULATEXT(C2),"") -> Cell C2: =STDEV.S(B8:B30) | F2: Use STDEV.S for calculating Sample Standard Deviation = s
B3: Population Standard Deviation = σ | C3: =_xlfn.STDEV.P(D$8:D$111) -> 3.652441101 | E3: =_xlfn.IFNA("Cell "&ADDRESS(ROW(C3),COLUMN(C3),4)&": "&_xlfn.FORMULATEXT(C3),"") -> Cell C3: =STDEV.P(D$8:D$111) | F3: Use STDEV.P for calculating Population Standard Deviation = σ
B5: Wage Data | H5: Xbar | I5: = | J5: "Xbar" | K5: Sample Mean
B7: Sample1 | D7: Population 1 | H7: µ | I7: = | J7: "Mew" | K7: Population Mean
B8: 22.35 | D8: 15.35 | H8: s | I8: = | J8: "s" | K8: Sample Standard Deviation
B9: 14.01 | D9: 32.16 | H9: s | I9: = | J9: "sigma" | K9: Sample Standard Deviation
B10: 15.2 | D10: 12.55 | H10: xi | I10: = | J10: "x sub i" | K10: Particular Value
B11: 18.3 | D11: 13.74 | H11: ∑ | I11: = | J11: "Sigma" | K11: Greek Letter used for "adding"
B12: 13.63 | D12: 22.35 | H12: n | I12: = | J12: "n" | K12: Count of sample items
B13: 14.08 | D13: 15.4 | H13: N | I13: = | J13: "n" | K13: Count of population items
B14: 15.44 | D14: 14.3
B15: 10.75 | D15: 14.79
B16: 14.67 | D16: 20.94
B17: 11.29 | D17: 11.91
B18: 15.02 | D18: 12.4
B19: 17.97 | D19: 12.05
B20: 22.12 | D20: 18.11
B21: 22.12 | D21: 14.83
B22: 20.68 | D22: 13.93
B23: 13.21 | D23: 11.66
B24: 18.74 | D24: 12.69
B25: 13.66 | D25: 14.01
B26: 12.94 | D26: 12.52
B27: 12.94 | D27: 14.35
B28: 13.34 | D28: 15.2
B29: 13.68 | D29: 12.68
B30: 12.36 | D30: 12.32
D31: 15.65
D32: 18.02
D33: 14.55
D34: 18.3
D35: 13.63
D36: 17.47
D37: 15.62
D38: 13.71
D39: 14.87
D40: 14.08
D41: 13.03
D42: 20.51
D43: 12.73
D44: 15.66
D45: 13.58
D46: 15.89
D47: 15.44
D48: 14.65
D49: 14.37
D50: 10.75
D51: 11.99
D52: 18.63
D53: 14.67
D54: 11.29
D55: 15.66
D56: 14.32
D57: 26.81
D58: 14.03
D59: 15.02
D60: 14.93
D61: 16.16
D62: 21.79
D63: 15.49
D64: 19.85
D65: 12.75
D66: 17.97
D67: 10.97
D68: 22.12
D69: 20.68
D70: 20.68
D71: 14.3
D72: 16.13
D73: 12.41
D74: 22.53
D75: 21.66
D76: 19.08
D77: 14.88
D78: 22.52
D79: 20.97
D80: 15.42
D81: 11.46
D82: 13.03
D83: 14.53
D84: 17.21
D85: 12.68
D86: 12.02
D87: 13.21
D88: 18.74
D89: 15.89
D90: 13.42
D91: 13.66
D92: 13.11
D93: 15.93
D94: 15.01
D95: 12.94
D96: 16.31
D97: 12.87
D98: 13.71
D99: 20.43
D100: 13.44
D101: 15.94
D102: 14.32
D103: 15.22
D104: 22.59
D105: 12.32
D106: 13.34
D107: 14.52
D108: 23.7
D109: 13.21
D110: 13.68
D111: 12.36

Sheet V(7)
B2: 6) Coefficient of Variation
B3: Math Formula = (Standard Deviation)/Mean = Coefficient of Variation
B4: Coefficient of Variation converts Standard Deviation to Standard Deviation per unit of Mean so you can compare:
B5: 1) Data in different units.
B6: or
B7: 2) Data in the same units, but the means are far apart.
B8: Coefficient of Variation answers the question: "For every one unit of mean, what is the Standard Deviation?"
B9: In Finance you see the inverse formula = (Average Return)/(Standard Deviation) = Return for 1 unit of risk
B11: Compare Relative Variability (Dispersion) in Two Distributions
B13: Mean bonus paid per employee = Xbar | C13: 2000 | E13: Mean years worked = Xbar | F13: 15
B14: Standard Deviation = s | C14: 755 | E14: Standard Deviation = s | F14: 3
B15: Coefficient of Variance | E15: Coefficient of Variance | O15: =_xlfn.IFNA("Cell "&ADDRESS(ROW(C15),COLUMN(C15),4)&": "&_xlfn.FORMULATEXT(C15),"") -> 
B17: There is more variability relative to the mean in the distribution of bonus paid compared with the distribution of years worked
B18: *Notice here that the units cancel out
B21: Mean Wage Data City 1 | E21: Mean Wage Data City 2 | O21: =_xlfn.IFNA("Cell "&ADDRESS(ROW(C21),COLUMN(C21),4)&": "&_xlfn.FORMULATEXT(C21),"") -> 
B22: Standard Deviation, Wage Data City 1 | E22: Standard Deviation, Wage Data City 2 | O22: =_xlfn.IFNA("Cell "&ADDRESS(ROW(C22),COLUMN(C22),4)&": "&_xlfn.FORMULATEXT(C22),"") -> 
B23: Coefficient of Variance | E23: Coefficient of Variance
B25: Wage sample in City 1 | E25: Wage sample in City 2
B26: 12.54 | E26: 25.5
B27: 15.68 | E27: 23.68
B28: 19.58 | E28: 78.25
B29: 25.71 | E29: 25.12
B30: 45.68 | E30: 12.5
B31: 15.69 | E31: 19.85
B32: 14.78 | E32: 45.54
B33: 35.5 | E33: 35.98
B34: 19.57 | E34: 15.24
B35: 18.71 | E35: 110
B36: 35.45 | E36: 28.58
B37: 12.75 | E37: 35.21

Sheet V(7an)
B2: 6) Coefficient of Variation
B3: Math Formula = (Standard Deviation)/Mean = Coefficient of Variation
B4: Coefficient of Variation converts Standard Deviation to Standard Deviation per unit of Mean so you can compare:
B5: 1) Data in different units.
B6: or
B7: 2) Data in the same units, but the means are far apart.
B8: Coefficient of Variation answers the question: "For every one unit of mean, what is the Standard Deviation?"
B9: In Finance you see the inverse formula = (Average Return)/(Standard Deviation) = Return for 1 unit of risk
B11: Compare Relative Variability (Dispersion) in Two Distributions
B13: Mean bonus paid per employee = Xbar | C13: 2000 | E13: Mean years worked = Xbar | F13: 15
B14: Standard Deviation = s | C14: 755 | E14: Standard Deviation = s | F14: 3
B15: Coefficient of Variance | C15: =C14/C13 -> 0.3775 | E15: Coefficient of Variance | F15: =F14/F13 -> 0.2 | O15: =_xlfn.IFNA("Cell "&ADDRESS(ROW(C15),COLUMN(C15),4)&": "&_xlfn.FORMULATEXT(C15),"") -> Cell C15: =C14/C13
B17: There is more variability relative to the mean in the distribution of bonus paid compared with the distribution of years worked
B18: *Notice here that the units cancel out
B21: Mean Wage Data City 1 | C21: =AVERAGE(B26:B37) -> 22.63666667 | E21: Mean Wage Data City 2 | F21: =AVERAGE(E26:E37) -> 37.95416667 | O21: =_xlfn.IFNA("Cell "&ADDRESS(ROW(C21),COLUMN(C21),4)&": "&_xlfn.FORMULATEXT(C21),"") -> Cell C21: =AVERAGE(B26:B37)
B22: Standard Deviation, Wage Data City 1 | C22: =_xlfn.STDEV.S(B26:B37) -> 10.71244504 | E22: Standard Deviation, Wage Data City 2 | F22: =_xlfn.STDEV.S(E26:E37) -> 28.58223652 | O22: =_xlfn.IFNA("Cell "&ADDRESS(ROW(C22),COLUMN(C22),4)&": "&_xlfn.FORMULATEXT(C22),"") -> Cell C22: =STDEV.S(B26:B37)
B23: Coefficient of Variance | C23: =C22/C21 -> 0.4732342089 | E23: Coefficient of Variance | F23: =F22/F21 -> 0.7530724301 | O23: Cell C23: =C22/C21
B25: Wage sample in City 1 | E25: Wage sample in City 2
B26: 12.54 | E26: 25.5
B27: 15.68 | E27: 23.68
B28: 19.58 | E28: 78.25
B29: 25.71 | E29: 25.12
B30: 45.68 | E30: 12.5
B31: 15.69 | E31: 19.85
B32: 14.78 | E32: 45.54
B33: 35.5 | E33: 35.98
B34: 19.57 | E34: 15.24
B35: 18.71 | E35: 110
B36: 35.45 | E36: 28.58
B37: 12.75 | E37: 35.21

Sheet V(8)
B2: For financial assets standard deviation is a measure of risk or fluctuation in asset value
B3: Geometric mean is used to calculate the average compounding rate per period, but mean and standard deviation are used to gage risk (volatility)
B5: Based on Average Returns, which stock do you prefer? It is hard to know, without looking at the volitility of past stock returns.
B7: Geo Mean | C7: =GEOMEAN(C12:C26+1)-1 -> 0.03512553947 | D7: =GEOMEAN(D12:D26+1)-1 -> 0.04115980256
B8: Mean | C8: =AVERAGE(C12:C26) -> 0.04133333333 | D8: =AVERAGE(D12:D26) -> 0.0412
B9: s = SD = Volitility = Risk
B11: Year | C11: Stock Return A | D11: Stock Return B
B12: 2005 | C12: 0.05 | D12: 0.02
B13: 2006 | C13: 0.1 | D13: 0.04
B14: 2007 | C14: 0.12 | D14: 0.035
B15: 2008 | C15: 0.17 | D15: 0.055
B16: 2009 | C16: 0.19 | D16: 0.04
B17: 2010 | C17: 0.01 | D17: 0.042
B18: 2011 | C18: -0.15 | D18: 0.043
B19: 2012 | C19: -0.03 | D19: 0.047
B20: 2013 | C20: 0.03 | D20: 0.05
B21: 2014 | C21: 0.055 | D21: 0.051
B22: 2015 | C22: 0.1 | D22: 0.03
B23: 2016 | C23: 0.065 | D23: 0.029
B24: 2017 | C24: -0.02 | D24: 0.046
B25: 2018 | C25: -0.22 | D25: 0.049
B26: 2019 | C26: 0.15 | D26: 0.041
C27: Total

Sheet V(8an)
B2: For financial assets standard deviation is a measure of risk or fluctuation in asset value
B3: Geometric mean is used to calculate the average compounding rate per period, but mean and standard deviation are used to gage risk (volatility)
B5: Based on Average Returns, which stock do you prefer? It is hard to know, without looking at the volitility of past stock returns.
B7: Geo Mean | C7: =GEOMEAN(1+C12:C26)-1 -> 0.03512553947 | D7: =GEOMEAN(1+D12:D26)-1 -> 0.04115980256
B8: Mean | C8: =AVERAGE(C12:C26) -> 0.04133333333 | D8: =AVERAGE(D12:D26) -> 0.0412
B9: s = SD = Volitility = Risk | C9: =_xlfn.STDEV.S(C12:C26) -> 0.1131444504 | D9: =_xlfn.STDEV.S(D12:D26) -> 0.009450623562
B11: Year | C11: Stock Return A | D11: Stock Return B
B12: 2005 | C12: 0.05 | D12: 0.02
B13: 2006 | C13: 0.1 | D13: 0.04
B14: 2007 | C14: 0.12 | D14: 0.035
B15: 2008 | C15: 0.17 | D15: 0.055
B16: 2009 | C16: 0.19 | D16: 0.04
B17: 2010 | C17: 0.01 | D17: 0.042
B18: 2011 | C18: -0.15 | D18: 0.043
B19: 2012 | C19: -0.03 | D19: 0.047
B20: 2013 | C20: 0.03 | D20: 0.05
B21: 2014 | C21: 0.055 | D21: 0.051
B22: 2015 | C22: 0.1 | D22: 0.03
B23: 2016 | C23: 0.065 | D23: 0.029
B24: 2017 | C24: -0.02 | D24: 0.046
B25: 2018 | C25: -0.22 | D25: 0.049
B26: 2019 | C26: 0.15 | D26: 0.041
C27: Total

Sheet z
B2: Relative Location
B3: The goal of relative location is to determine, in a data set, how far a particular x value is from the mean.
B4: Z-Score = Standardized Value
B5: Z-score measures the relative location of a particular x in the data set (as compared to the mean), in units of standard deviation.
B6: Z-Score tells you "How Many Standard Deviations The Particular Value Is Away From The Mean". 1? -1? 1.5? 0?
B7: zi < 0, value below mean zi > 0, value above mean zi = 0, value is equal to mean
B8: Observations in 2 different data sets that have the same z-score are said to have the same relative location or the same number of standard deviations away from the mean.
B9: In Excel use the formulas:
B10: Z-Score = (Particular Value - Mean)/StandardDeviation = zi = (xi-Xbar)/s
B11: Use STANDARDIZE function to calculate z-score. Function arguments: STANDARDIZE(a,mean, standard_dev) = STANDARDIZE(ParticularXiValue,Mean,StandardDeviation
J13: Xbar | K13: = | L13: Sample Mean | M13: "Xbar" | AD13: x | AE13: Calculus Test Scores | AG13: x | AH13: Xbar | AJ13: s | AL13: z | AN13: x | AO13: Your Score | AQ13: Label for Mean | AR13: Label for Your Score | AU13: x | AV13: History Test Scores | AX13: x | AY13: Xbar | BA13: s | BC13: z | BE13: x | BF13: Bro's Score | BH13: Label for Mean | BI13: Label for Your Score
J14: xi | K14: = | L14: Particular Value | M14: "x sub i" | AD14: 74 | AE14: 0.5 | AG14: =ROUND(AVERAGE(AD14:AD38),0) -> 76 | AH14: 1 | AJ14: =ROUND(_xlfn.STDEV.S(AD14:AD38),0) -> 7 | AL14: 1 | AN14: =ROUND(AG14+AL14*AJ14,0) -> 83 | AO14: 1 | AQ14: =AH13&" = "&AG14&CHAR(10)&AJ13&" = "&AJ14 -> Xbar = 76 s = 7 | AR14: =AO13&" = "&AN14&CHAR(10)&" "&AL14&" SD Above Mean" -> Your Score = 83 1 SD Above Mean | AU14: 91 | AV14: 0.5 | AX14: =ROUND(AVERAGE(AU14:AU38),0) -> 91 | AY14: 1 | BA14: =ROUND(_xlfn.STDEV.S(AU14:AU38),0) -> 4 | BC14: 1.25 | BE14: =ROUND(AX14-BC14*BA14,0) -> 86 | BF14: 1 | BH14: =AY13&" = "&AX14&CHAR(10)&BA13&" = "&BA14 -> Xbar = 91 s = 4 | BI14: =BF13&" = "&BE14&CHAR(10)&" "&BC14&" SD Below Mean" -> Bro's Score = 86 1.25 SD Below Mean
J15: s | K15: = | L15: Sample Standard Deviation | M15: "s" | AD15: 70 | AE15: 0.5 | AU15: 87 | AV15: 0.5
J16: z | K16: = | L16: Number of Standard Deviations Away From Xbar | M16: "z" | AD16: 80 | AE16: 0.5 | AU16: 91 | AV16: 0.5
AD17: 78 | AE17: 0.5 | AU17: 99 | AV17: 0.5
B18: Who did better? You or your Brother? | AD18: 84 | AE18: 0.5 | AU18: 86 | AV18: 0.5
B19: Your Calculus Test score, Xi = | C19: =AN14 -> 83 | E19: =IF(C23="","",FIXED(C23,2)&" standard deviations "&IF(C23>0,"above","below")&" the mean") ->  | AD19: 83 | AE19: 0.5 | AU19: 87 | AV19: 0.5
B20: Mean for Calculus Test, Xbar = | C20: =AG14 -> 76 | E20: =IF(C23="","","Relative location of a particular x in the data set (as compared to the mean),") ->  | AD20: 76 | AE20: 0.5 | AU20: 93 | AV20: 0.5
B21: Standard Deviation for Calculus Test, s = | C21: =AJ14 -> 7 | E21: =IF(C23="",""," in units of standard deviation.") ->  | AD21: 57 | AE21: 0.5 | AU21: 91 | AV21: 0.5
B22: z = (x - Xbar)/s = | M22: =_xlfn.IFNA("Cell "&ADDRESS(ROW(C22),COLUMN(C22),4)&": "&_xlfn.FORMULATEXT(C22),"") ->  | AD22: 75 | AE22: 0.5 | AU22: 93 | AV22: 0.5
B23: STANDARDIZE function | M23: =_xlfn.IFNA("Cell "&ADDRESS(ROW(C23),COLUMN(C23),4)&": "&_xlfn.FORMULATEXT(C23),"") ->  | AD23: 80 | AE23: 0.5 | AU23: 92 | AV23: 0.5
B24: Brother's History Test score, Xi = | C24: =BE14 -> 86 | E24: =IF(C28="","",FIXED(C28,2)&" standard deviations "&IF(C28>0,"above","below")&" the mean") ->  | AD24: 76 | AE24: 0.5 | AU24: 88 | AV24: 0.5
B25: Mean for History Test, Xbar = | C25: =AX14 -> 91 | E25: =IF(C28="","","Relative location of a particular x in the data set (as compared to the mean),") ->  | AD25: 78 | AE25: 0.5 | AU25: 95 | AV25: 0.5
B26: Standard Deviation for History Test, s = | C26: =BA14 -> 4 | E26: =IF(C28="",""," in units of standard deviation.") ->  | AD26: 70 | AE26: 0.5 | AU26: 88 | AV26: 0.5
B27: z = (x - Xbar)/s = | AD27: 71 | AE27: 0.5 | AU27: 91 | AV27: 0.5
B28: STANDARDIZE function | AD28: 80 | AE28: 0.5 | AU28: 92 | AV28: 0.5
B29: Joe's Calculus Test score, Xi = | C29: =AG14 -> 76 | AD29: 76 | AE29: 0.5 | AU29: 92 | AV29: 0.5
B30: z score | AD30: 72 | AE30: 0.5 | AU30: 87 | AV30: 0.5
AD31: 74 | AE31: 0.5 | AU31: 89 | AV31: 0.5
AD32: 76 | AE32: 0.5 | AU32: 81 | AV32: 0.5
AD33: 87 | AE33: 0.5 | AU33: 92 | AV33: 0.5
AD34: 72 | AE34: 0.5 | AU34: 93 | AV34: 0.5
AD35: 85 | AE35: 0.5 | AU35: 97 | AV35: 0.5
AD36: 77 | AE36: 0.5 | AU36: 96 | AV36: 0.5
G37: Z-score measures the relative location of a particular x in the data set (as compared to the mean), in units of standard deviation. | AD37: 63 | AE37: 0.5 | AU37: 87 | AV37: 0.5
AD38: 92 | AE38: 0.5 | AU38: 87 | AV38: 0.5

Sheet z(1)
B2: Relative Location
B3: The goal of relative location is to determine, in a data set, how far a particular x value is from the mean.
B4: Z-Score = Standardized Value
B5: Z-score measures the relative location of a particular x in the data set (as compared to the mean), in units of standard deviation.
B6: Z-Score tells you "How Many Standard Deviations The Particular Value Is Away From The Mean". 1? -1? 1.5? 0?
B7: zi < 0, value below mean zi > 0, value above mean zi = 0, value is equal to mean
B8: Observations in 2 different data sets that have the same z-score are said to have the same relative location or the same number of standard deviations away from the mean.
B9: In Excel use the formulas:
B10: Z-Score = (Particular Value - Mean)/StandardDeviation = zi = (xi-Xbar)/s
B11: Use STANDARDIZE function to calculate z-score. Function arguments: STANDARDIZE(a,mean, standard_dev) = STANDARDIZE(ParticularXiValue,Mean,StandardDeviation
J13: Xbar | K13: = | L13: Sample Mean | M13: "Xbar" | AD13: x | AE13: Calculus Test Scores | AG13: x | AH13: Xbar | AJ13: s | AL13: z | AN13: x | AO13: Your Score | AQ13: Label for Mean | AR13: Label for Your Score | AU13: x | AV13: History Test Scores | AX13: x | AY13: Xbar | BA13: s | BC13: z | BE13: x | BF13: Bro's Score | BH13: Label for Mean | BI13: Label for Your Score
J14: xi | K14: = | L14: Particular Value | M14: "x sub i" | AD14: 74 | AE14: 0.5 | AG14: =ROUND(AVERAGE(AD14:AD38),0) -> 76 | AH14: 1 | AJ14: =ROUND(_xlfn.STDEV.S(AD14:AD38),0) -> 7 | AL14: 1 | AN14: =ROUND(AG14+AL14*AJ14,0) -> 83 | AO14: 1 | AQ14: =AH13&" = "&AG14&CHAR(10)&AJ13&" = "&AJ14 -> Xbar = 76 s = 7 | AR14: =AO13&" = "&AN14&CHAR(10)&" "&AL14&" SD Above Mean" -> Your Score = 83 1 SD Above Mean | AU14: 91 | AV14: 0.5 | AX14: =ROUND(AVERAGE(AU14:AU38),0) -> 91 | AY14: 1 | BA14: =ROUND(_xlfn.STDEV.S(AU14:AU38),0) -> 4 | BC14: 1.25 | BE14: =ROUND(AX14-BC14*BA14,0) -> 86 | BF14: 1 | BH14: =AY13&" = "&AX14&CHAR(10)&BA13&" = "&BA14 -> Xbar = 91 s = 4 | BI14: =BF13&" = "&BE14&CHAR(10)&" "&BC14&" SD Below Mean" -> Bro's Score = 86 1.25 SD Below Mean
J15: s | K15: = | L15: Sample Standard Deviation | M15: "s" | AD15: 70 | AE15: 0.5 | AU15: 87 | AV15: 0.5
J16: z | K16: = | L16: Number of Standard Deviations Away From Xbar | M16: "z" | AD16: 80 | AE16: 0.5 | AU16: 91 | AV16: 0.5
AD17: 78 | AE17: 0.5 | AU17: 99 | AV17: 0.5
B18: Who did better? You or your Brother? | AD18: 84 | AE18: 0.5 | AU18: 86 | AV18: 0.5
B19: Your Calculus Test score, Xi = | C19: =AN14 -> 83 | E19: =IF(C23="","",FIXED(C23,2)&" standard deviations "&IF(C23>0,"above","below")&" the mean") ->  | AD19: 83 | AE19: 0.5 | AU19: 87 | AV19: 0.5
B20: Mean for Calculus Test, Xbar = | C20: =AG14 -> 76 | E20: =IF(C23="","","Relative location of a particular x in the data set (as compared to the mean),") ->  | AD20: 76 | AE20: 0.5 | AU20: 93 | AV20: 0.5
B21: Standard Deviation for Calculus Test, s = | C21: =AJ14 -> 7 | E21: =IF(C23="",""," in units of standard deviation.") ->  | AD21: 57 | AE21: 0.5 | AU21: 91 | AV21: 0.5
B22: z = (x - Xbar)/s = | M22: =_xlfn.IFNA("Cell "&ADDRESS(ROW(C22),COLUMN(C22),4)&": "&_xlfn.FORMULATEXT(C22),"") ->  | AD22: 75 | AE22: 0.5 | AU22: 93 | AV22: 0.5
B23: STANDARDIZE function | M23: =_xlfn.IFNA("Cell "&ADDRESS(ROW(C23),COLUMN(C23),4)&": "&_xlfn.FORMULATEXT(C23),"") ->  | AD23: 80 | AE23: 0.5 | AU23: 92 | AV23: 0.5
B24: Brother's History Test score, Xi = | C24: =BE14 -> 86 | E24: =IF(C28="","",FIXED(C28,2)&" standard deviations "&IF(C28>0,"above","below")&" the mean") ->  | AD24: 76 | AE24: 0.5 | AU24: 88 | AV24: 0.5
B25: Mean for History Test, Xbar = | C25: =AX14 -> 91 | E25: =IF(C28="","","Relative location of a particular x in the data set (as compared to the mean),") ->  | AD25: 78 | AE25: 0.5 | AU25: 95 | AV25: 0.5
B26: Standard Deviation for History Test, s = | C26: =BA14 -> 4 | E26: =IF(C28="",""," in units of standard deviation.") ->  | AD26: 70 | AE26: 0.5 | AU26: 88 | AV26: 0.5
B27: z = (x - Xbar)/s = | AD27: 71 | AE27: 0.5 | AU27: 91 | AV27: 0.5
B28: STANDARDIZE function | AD28: 80 | AE28: 0.5 | AU28: 92 | AV28: 0.5
B29: Joe's Calculus Test score, Xi = | C29: =AG14 -> 76 | AD29: 76 | AE29: 0.5 | AU29: 92 | AV29: 0.5
B30: z score | AD30: 72 | AE30: 0.5 | AU30: 87 | AV30: 0.5
AD31: 74 | AE31: 0.5 | AU31: 89 | AV31: 0.5
AD32: 76 | AE32: 0.5 | AU32: 81 | AV32: 0.5
AD33: 87 | AE33: 0.5 | AU33: 92 | AV33: 0.5
AD34: 72 | AE34: 0.5 | AU34: 93 | AV34: 0.5
AD35: 85 | AE35: 0.5 | AU35: 97 | AV35: 0.5
AD36: 77 | AE36: 0.5 | AU36: 96 | AV36: 0.5
AD37: 63 | AE37: 0.5 | AU37: 87 | AV37: 0.5
AD38: 92 | AE38: 0.5 | AU38: 87 | AV38: 0.5

Sheet z(1an)
B2: Relative Location
B3: The goal of relative location is to determine, in a data set, how far a particular x value is from the mean.
B4: Z-Score = Standardized Value
B5: Z-score measures the relative location of a particular x in the data set (as compared to the mean), in units of standard deviation.
B6: Z-Score tells you "How Many Standard Deviations The Particular Value Is Away From The Mean". 1? -1? 1.5? 0?
B7: zi < 0, value below mean zi > 0, value above mean zi = 0, value is equal to mean
B8: Observations in 2 different data sets that have the same z-score are said to have the same relative location or the same number of standard deviations away from the mean.
B9: In Excel use the formulas:
B10: Z-Score = (Particular Value - Mean)/StandardDeviation = zi = (xi-Xbar)/s
B11: Use STANDARDIZE function to calculate z-score. Function arguments: STANDARDIZE(a,mean, standard_dev) = STANDARDIZE(ParticularXiValue,Mean,StandardDeviation
J13: Xbar | K13: = | L13: Sample Mean | M13: "Xbar" | AD13: x | AE13: Calculus Test Scores | AG13: x | AH13: Xbar | AJ13: s | AL13: z | AN13: x | AO13: Your Score | AQ13: Label for Mean | AR13: Label for Your Score | AU13: x | AV13: History Test Scores | AX13: x | AY13: Xbar | BA13: s | BC13: z | BE13: x | BF13: Bro's Score | BH13: Label for Mean | BI13: Label for Your Score
J14: xi | K14: = | L14: Particular Value | M14: "x sub i" | AD14: 74 | AE14: 0.5 | AG14: =ROUND(AVERAGE(AD14:AD38),0) -> 76 | AH14: 1 | AJ14: =ROUND(_xlfn.STDEV.S(AD14:AD38),0) -> 7 | AL14: 1 | AN14: =ROUND(AG14+AL14*AJ14,0) -> 83 | AO14: 1 | AQ14: =AH13&" = "&AG14&CHAR(10)&AJ13&" = "&AJ14 -> Xbar = 76 s = 7 | AR14: =AO13&" = "&AN14&CHAR(10)&" "&AL14&" SD Above Mean" -> Your Score = 83 1 SD Above Mean | AU14: 91 | AV14: 0.5 | AX14: =ROUND(AVERAGE(AU14:AU38),0) -> 91 | AY14: 1 | BA14: =ROUND(_xlfn.STDEV.S(AU14:AU38),0) -> 4 | BC14: 1.25 | BE14: =ROUND(AX14-BC14*BA14,0) -> 86 | BF14: 1 | BH14: =AY13&" = "&AX14&CHAR(10)&BA13&" = "&BA14 -> Xbar = 91 s = 4 | BI14: =BF13&" = "&BE14&CHAR(10)&" "&BC14&" SD Below Mean" -> Bro's Score = 86 1.25 SD Below Mean
J15: s | K15: = | L15: Sample Standard Deviation | M15: "s" | AD15: 70 | AE15: 0.5 | AU15: 87 | AV15: 0.5
J16: z | K16: = | L16: Number of Standard Deviations Away From Xbar | M16: "z" | AD16: 80 | AE16: 0.5 | AU16: 91 | AV16: 0.5
AD17: 78 | AE17: 0.5 | AU17: 99 | AV17: 0.5
B18: Who did better? You or your Brother? | AD18: 84 | AE18: 0.5 | AU18: 86 | AV18: 0.5
B19: Your Calculus Test score, Xi = | C19: =AN14 -> 83 | E19: =IF(C23="","",FIXED(C23,2)&" standard deviations "&IF(C23>0,"above","below")&" the mean") -> 1.00 standard deviations above the mean | AD19: 83 | AE19: 0.5 | AU19: 87 | AV19: 0.5
B20: Mean for Calculus Test, Xbar = | C20: =AG14 -> 76 | E20: =IF(C23="","","Relative location of a particular x in the data set (as compared to the mean),") -> Relative location of a particular x in the data set (as compared to the mean), | AD20: 76 | AE20: 0.5 | AU20: 93 | AV20: 0.5
B21: Standard Deviation for Calculus Test, s = | C21: =AJ14 -> 7 | E21: =IF(C23="",""," in units of standard deviation.") -> in units of standard deviation. | AD21: 57 | AE21: 0.5 | AU21: 91 | AV21: 0.5
B22: z = (x - Xbar)/s = | C22: =(C19-C20)/C21 -> 1 | M22: =_xlfn.IFNA("Cell "&ADDRESS(ROW(C22),COLUMN(C22),4)&": "&_xlfn.FORMULATEXT(C22),"") -> Cell C22: =(C19-C20)/C21 | AD22: 75 | AE22: 0.5 | AU22: 93 | AV22: 0.5
B23: STANDARDIZE function | C23: =STANDARDIZE(C19,C20,C21) -> 1 | M23: =_xlfn.IFNA("Cell "&ADDRESS(ROW(C23),COLUMN(C23),4)&": "&_xlfn.FORMULATEXT(C23),"") -> Cell C23: =STANDARDIZE(C19,C20,C21) | AD23: 80 | AE23: 0.5 | AU23: 92 | AV23: 0.5
B24: Brother's History Test score, Xi = | C24: =BE14 -> 86 | E24: =IF(C28="","",FIXED(C28,2)&" standard deviations "&IF(C28>0,"above","below")&" the mean") -> -1.25 standard deviations below the mean | AD24: 76 | AE24: 0.5 | AU24: 88 | AV24: 0.5
B25: Mean for History Test, Xbar = | C25: =AX14 -> 91 | E25: =IF(C28="","","Relative location of a particular x in the data set (as compared to the mean),") -> Relative location of a particular x in the data set (as compared to the mean), | AD25: 78 | AE25: 0.5 | AU25: 95 | AV25: 0.5
B26: Standard Deviation for History Test, s = | C26: =BA14 -> 4 | E26: =IF(C28="",""," in units of standard deviation.") -> in units of standard deviation. | AD26: 70 | AE26: 0.5 | AU26: 88 | AV26: 0.5
B27: z = (x - Xbar)/s = | C27: =(C24-C25)/C26 -> -1.25 | M27: Cell C27: =(C24-C25)/C26 | AD27: 71 | AE27: 0.5 | AU27: 91 | AV27: 0.5
B28: STANDARDIZE function | C28: =STANDARDIZE(C24,C25,C26) -> -1.25 | M28: Cell C28: =STANDARDIZE(C24,C25,C26) | AD28: 80 | AE28: 0.5 | AU28: 92 | AV28: 0.5
B29: Joe's Calculus Test score, Xi = | C29: =AG14 -> 76 | AD29: 76 | AE29: 0.5 | AU29: 92 | AV29: 0.5
B30: z score | C30: =(C29-C20)/C21 -> 0 | M30: Cell C30: =(C29-C20)/C21 | AD30: 72 | AE30: 0.5 | AU30: 87 | AV30: 0.5
AD31: 74 | AE31: 0.5 | AU31: 89 | AV31: 0.5
AD32: 76 | AE32: 0.5 | AU32: 81 | AV32: 0.5
AD33: 87 | AE33: 0.5 | AU33: 92 | AV33: 0.5
AD34: 72 | AE34: 0.5 | AU34: 93 | AV34: 0.5
AD35: 85 | AE35: 0.5 | AU35: 97 | AV35: 0.5
AD36: 77 | AE36: 0.5 | AU36: 96 | AV36: 0.5
AD37: 63 | AE37: 0.5 | AU37: 87 | AV37: 0.5
AD38: 92 | AE38: 0.5 | AU38: 87 | AV38: 0.5

Sheet z(2)
B2: Xbar (inches) | C2: =ROUND(AVERAGE(B6:B91),0) -> 71 | F2: =_xlfn.IFNA("Cell "&ADDRESS(ROW(C2),COLUMN(C2),4)&": "&_xlfn.FORMULATEXT(C2),"") -> Cell C2: =ROUND(AVERAGE(B6:B91),0) | T2: Min | U2: =MIN(B6:B91) -> 61
B3: s (inches) | C3: =ROUND(_xlfn.STDEV.P(B6:B91),0) -> 4 | F3: =_xlfn.IFNA("Cell "&ADDRESS(ROW(C3),COLUMN(C3),4)&": "&_xlfn.FORMULATEXT(C3),"") -> Cell C3: =ROUND(STDEV.P(B6:B91),0) | T3: Miax | U3: =MAX(B6:B91) -> 83
F4: =_xlfn.IFNA("Cell "&ADDRESS(ROW(C4),COLUMN(C4),4)&": "&_xlfn.FORMULATEXT(C4),"") -> 
B5: Heights of Students in Class (inches) | C5: z | F5: =_xlfn.IFNA("Cell "&ADDRESS(ROW(C5),COLUMN(C5),4)&": "&_xlfn.FORMULATEXT(C5),"") ->  | T5: Category | U5: Frequency
B6: 73 | F6: =_xlfn.IFNA("Cell "&ADDRESS(ROW(C6),COLUMN(C6),4)&": "&_xlfn.FORMULATEXT(C6),"") ->  | T6: 61 | U6: =COUNTIFS(B$6:B$91,T6) -> 1
B7: 68 | T7: 62 | U7: 0
B8: 77 | T8: 63 | U8: 1
B9: 75 | T9: 64 | U9: 2
B10: 61 | T10: 65 | U10: 3
B11: 78 | T11: 66 | U11: 3
B12: 69 | T12: 67 | U12: 5
B13: 70 | T13: 68 | U13: 5
B14: 75 | T14: 69 | U14: 6
B15: 73 | T15: 70 | U15: 8
B16: 71 | T16: 71 | U16: 10
B17: 70 | T17: 72 | U17: 9
B18: 72 | T18: 73 | U18: 8
B19: 69 | T19: 74 | U19: 6
B20: 79 | T20: 75 | U20: 6
B21: 71 | T21: 76 | U21: 4
B22: 67 | T22: 77 | U22: 4
B23: 73 | T23: 78 | U23: 1
B24: 63 | T24: 79 | U24: 2
B25: 74 | T25: 80 | U25: 0
B26: 76 | T26: 81 | U26: 1
B27: 65 | T27: 82 | U27: 0
B28: 75 | T28: 83 | U28: 1
B29: 72
B30: 76
B31: 71
B32: 70
B33: 64
B34: 74
B35: 83
B36: 65
B37: 74
B38: 67
B39: 72
B40: 71
B41: 68
B42: 74
B43: 73
B44: 70
B45: 74
B46: 76
B47: 69
B48: 71
B49: 72
B50: 77
B51: 66
B52: 77
B53: 70
B54: 64
B55: 66
B56: 70
B57: 71
B58: 70
B59: 72
B60: 68
B61: 71
B62: 70
B63: 75
B64: 67
B65: 69
B66: 75
B67: 67
B68: 73
B69: 72
B70: 79
B71: 71
B72: 74
B73: 68
B74: 72
B75: 72
B76: 67
B77: 71
B78: 76
B79: 73
B80: 69
B81: 71
B82: 73
B83: 68
B84: 73
B85: 65
B86: 69
B87: 72
B88: 66
B89: 75
B90: 81
B91: 77

Sheet z(2an)
B2: Xbar (inches) | C2: =ROUND(AVERAGE(B6:B91),0) -> 71 | F2: =_xlfn.IFNA("Cell "&ADDRESS(ROW(C2),COLUMN(C2),4)&": "&_xlfn.FORMULATEXT(C2),"") -> Cell C2: =ROUND(AVERAGE(B6:B91),0) | T2: Min | U2: =MIN(B6:B91) -> 61
B3: s (inches) | C3: =ROUND(_xlfn.STDEV.P(B6:B91),0) -> 4 | F3: =_xlfn.IFNA("Cell "&ADDRESS(ROW(C3),COLUMN(C3),4)&": "&_xlfn.FORMULATEXT(C3),"") -> Cell C3: =ROUND(STDEV.P(B6:B91),0) | T3: Miax | U3: =MAX(B6:B91) -> 83
F4: =_xlfn.IFNA("Cell "&ADDRESS(ROW(C4),COLUMN(C4),4)&": "&_xlfn.FORMULATEXT(C4),"") -> 
B5: Heights of Students in Class (inches) | C5: z | F5: =_xlfn.IFNA("Cell "&ADDRESS(ROW(C5),COLUMN(C5),4)&": "&_xlfn.FORMULATEXT(C5),"") ->  | T5: Category | U5: Frequency
B6: 73 | C6: =(B6:B91-C2)/C3 -> 0.5 | F6: =_xlfn.IFNA("Cell "&ADDRESS(ROW(C6),COLUMN(C6),4)&": "&_xlfn.FORMULATEXT(C6),"") -> Cell C6: =(B6:B91-C2)/C3 | T6: 61 | U6: =COUNTIFS(B$6:B$91,T6) -> 1
B7: 68 | C7: -0.75 | T7: 62 | U7: 0
B8: 77 | C8: 1.5 | T8: 63 | U8: 1
B9: 75 | C9: 1 | T9: 64 | U9: 2
B10: 61 | C10: -2.5 | T10: 65 | U10: 3
B11: 78 | C11: 1.75 | T11: 66 | U11: 3
B12: 69 | C12: -0.5 | T12: 67 | U12: 5
B13: 70 | C13: -0.25 | T13: 68 | U13: 5
B14: 75 | C14: 1 | T14: 69 | U14: 6
B15: 73 | C15: 0.5 | T15: 70 | U15: 8
B16: 71 | C16: 0 | T16: 71 | U16: 10
B17: 70 | C17: -0.25 | T17: 72 | U17: 9
B18: 72 | C18: 0.25 | T18: 73 | U18: 8
B19: 69 | C19: -0.5 | T19: 74 | U19: 6
B20: 79 | C20: 2 | T20: 75 | U20: 6
B21: 71 | C21: 0 | T21: 76 | U21: 4
B22: 67 | C22: -1 | T22: 77 | U22: 4
B23: 73 | C23: 0.5 | T23: 78 | U23: 1
B24: 63 | C24: -2 | T24: 79 | U24: 2
B25: 74 | C25: 0.75 | T25: 80 | U25: 0
B26: 76 | C26: 1.25 | T26: 81 | U26: 1
B27: 65 | C27: -1.5 | T27: 82 | U27: 0
B28: 75 | C28: 1 | T28: 83 | U28: 1
B29: 72 | C29: 0.25
B30: 76 | C30: 1.25
B31: 71 | C31: 0
B32: 70 | C32: -0.25
B33: 64 | C33: -1.75
B34: 74 | C34: 0.75
B35: 83 | C35: 3
B36: 65 | C36: -1.5
B37: 74 | C37: 0.75
B38: 67 | C38: -1
B39: 72 | C39: 0.25
B40: 71 | C40: 0
B41: 68 | C41: -0.75
B42: 74 | C42: 0.75
B43: 73 | C43: 0.5
B44: 70 | C44: -0.25
B45: 74 | C45: 0.75
B46: 76 | C46: 1.25
B47: 69 | C47: -0.5
B48: 71 | C48: 0
B49: 72 | C49: 0.25
B50: 77 | C50: 1.5
B51: 66 | C51: -1.25
B52: 77 | C52: 1.5
B53: 70 | C53: -0.25
B54: 64 | C54: -1.75
B55: 66 | C55: -1.25
B56: 70 | C56: -0.25
B57: 71 | C57: 0
B58: 70 | C58: -0.25
B59: 72 | C59: 0.25
B60: 68 | C60: -0.75
B61: 71 | C61: 0
B62: 70 | C62: -0.25
B63: 75 | C63: 1
B64: 67 | C64: -1
B65: 69 | C65: -0.5
B66: 75 | C66: 1
B67: 67 | C67: -1
B68: 73 | C68: 0.5
B69: 72 | C69: 0.25
B70: 79 | C70: 2
B71: 71 | C71: 0
B72: 74 | C72: 0.75
B73: 68 | C73: -0.75
B74: 72 | C74: 0.25
B75: 72 | C75: 0.25
B76: 67 | C76: -1
B77: 71 | C77: 0
B78: 76 | C78: 1.25
B79: 73 | C79: 0.5
B80: 69 | C80: -0.5
B81: 71 | C81: 0
B82: 73 | C82: 0.5
B83: 68 | C83: -0.75
B84: 73 | C84: 0.5
B85: 65 | C85: -1.5
B86: 69 | C86: -0.5
B87: 72 | C87: 0.25
B88: 66 | C88: -1.25
B89: 75 | C89: 1
B90: 81 | C90: 2.5
B91: 77 | C91: 1.5

Sheet Empirical Rule
B2: Determine the proportion of data values that lie between +/- a given number of standard deviations (z-score) using the Empirical Rule:
B3: The Empirical Rule can determine the proportion of data values that lie between +/- a given number of standard deviations (z-score) for a bell-shape or normal distribution (symmetric distribution)
B4: Empirical Rule:
B5: Approximately 68% of the data values will be within 1 Standard Deviation of the Mean
B6: Approximately 95% of the data values will be within 2 Standard Deviations of the Mean
B7: Approximately 99% of the data values (almost all the data) will be within 3 Standard Deviations of Mean
B8: * MUCH more about Normal Distribution / Bell Shaped Distribution and the Empirical Rule later in the class.
B28: Empirical Rule:
B29: About 99.0% of the values will lie between +/- 3 SD | J29: 25 SD event article: | L29: https://paulclaireaux.com/the-bankers-standard-deviations/
B30: About 95.0% of the values will lie between +/- 2 SD
B31: About 68.0% of the values will lie between +/- 1 SD
B33: Mean Height | C33: 71 | E33: *assuming population distribution is bell shaped.
B34: SD | C34: 4
B35: 68% of the values lie between what two values? | K35: 0.68 | L35: heights
B36: z | C36: 1
B37: Lower X | N37: =_xlfn.IFNA("Cell "&ADDRESS(ROW(C37),COLUMN(C37),4)&": "&_xlfn.FORMULATEXT(C37),"") -> 
B38: Upper X | D38: =IF(ISNUMBER(C38),"About "&TEXT(K35,"0%")&" of the "&L35&" will be between "&TEXT(C37,"0\""")&" and "&TEXT(C38,"0\"""),"") ->  | N38: =_xlfn.IFNA("Cell "&ADDRESS(ROW(C38),COLUMN(C38),4)&": "&_xlfn.FORMULATEXT(C38),"") -> 
B39: 95% of the values lie between what two values? | K39: 0.95 | L39: heights
B40: z | C40: 2
B41: Lower X
B42: Upper X | D42: =IF(ISNUMBER(C42),"About "&TEXT(K39,"0%")&" of the "&L39&" will be between "&TEXT(C41,"0\""")&" and "&TEXT(C42,"0\"""),"") -> 
B43: 99% of the values lie between what two values? | K43: 0.99 | L43: heights
B44: z | C44: 3
B45: Lower X
B46: Upper X | D46: =IF(ISNUMBER(C46),"About "&TEXT(K43,"0%")&" of the "&L43&" will be between "&TEXT(C45,"0\""")&" and "&TEXT(C46,"0\"""),"") -> 
B48: Empirical Rule:
B49: About 99.0% of the values will lie between +/- 3 SD
B50: About 95.0% of the values will lie between +/- 2 SD
B51: About 68.0% of the values will lie between +/- 1 SD
B53: Mean Gas Price | C53: 4.01 | E53: *assuming population distribution is bell shaped. | J53: Chapter 6 and later we will be using this rule to check reasonableness of peoples claims.
B54: SD | C54: 0.12
B55: 68% of the values lie between what two values? | K55: 0.68 | L55: prices
B56: z | C56: 1
B57: Lower X | N57: =_xlfn.IFNA("Cell "&ADDRESS(ROW(C57),COLUMN(C57),4)&": "&_xlfn.FORMULATEXT(C57),"") -> 
B58: Upper X | D58: =IF(ISNUMBER(C58),"About "&TEXT(K55,"0%")&" of the "&L55&" will be between "&TEXT(C57,"$0.00")&" and "&TEXT(C58,"$0.00"),"") ->  | N58: =_xlfn.IFNA("Cell "&ADDRESS(ROW(C58),COLUMN(C58),4)&": "&_xlfn.FORMULATEXT(C58),"") -> 
B59: 95% of the values lie between what two values? | K59: 0.95 | L59: prices
B60: z | C60: 2
B61: Lower X
B62: Upper X | D62: =IF(ISNUMBER(C62),"About "&TEXT(K59,"0%")&" of the "&L59&" will be between "&TEXT(C61,"$0.00")&" and "&TEXT(C62,"$0.00"),"") -> 
B63: 99% of the values lie between what two values? | K63: 0.99 | L63: prices
B64: z | C64: 3
B65: Lower X | N65: =_xlfn.IFNA("Cell "&ADDRESS(ROW(C65),COLUMN(C65),4)&": "&_xlfn.FORMULATEXT(C65),"") -> 
B66: Upper X | D66: =IF(ISNUMBER(C66),"About "&TEXT(K63,"0%")&" of the "&L63&" will be between "&TEXT(C65,"$0.00")&" and "&TEXT(C66,"$0.00"),"") -> 
B68: Empirical Rule:
B69: About 99.0% of the values will lie between +/- 3 SD
B70: About 95.0% of the values will lie between +/- 2 SD
B71: About 68.0% of the values will lie between +/- 1 SD | F71: Chapter 6 and later we will be using this rule to check whether production machines are filling correctly
B73: Mean Cereal Box Weight | C73: 32 | D73: oz. | E73: *assuming population distribution is bell shaped.
B74: SD | C74: 0.35 | D74: oz.
B75: 68% of the values lie between what two values? | K75: 0.68 | L75: weight
B76: z | C76: 1
B77: Lower X | N77: =_xlfn.IFNA("Cell "&ADDRESS(ROW(C77),COLUMN(C77),4)&": "&_xlfn.FORMULATEXT(C77),"") -> 
B78: Upper X | D78: =IF(ISNUMBER(C78),"About "&TEXT(K75,"0%")&" of the "&L75&" will be between "&TEXT(C77,"0.00 oz.")&" and "&TEXT(C78,"0.00 oz."),"") ->  | N78: =_xlfn.IFNA("Cell "&ADDRESS(ROW(C78),COLUMN(C78),4)&": "&_xlfn.FORMULATEXT(C78),"") -> 
B79: 95% of the values lie between what two values? | K79: 0.95 | L79: weight
B80: z | C80: 2
B81: Lower X
B82: Upper X | D82: =IF(ISNUMBER(C82),"About "&TEXT(K79,"0%")&" of the "&L79&" will be between "&TEXT(C81,"0.00 oz.")&" and "&TEXT(C82,"0.00 oz."),"") -> 
B83: 95% of the values lie between what two values? | K83: 0.99 | L83: weight
B84: z | C84: 3
B85: Lower X
B86: Upper X | D86: =IF(ISNUMBER(C86),"About "&TEXT(K83,"0%")&" of the "&L83&" will be between "&TEXT(C85,"0.00 oz.")&" and "&TEXT(C86,"0.00 oz."),"") -> 
B89: Empirical Rule Areas:
B90: SD | C90: % | D90: 1/2 area
B91: +/- 1 SD | C91: 0.68 | D91: =C91/2 -> 0.34 | G91: =_xlfn.IFNA("Cell "&ADDRESS(ROW(D91),COLUMN(D91),4)&": "&_xlfn.FORMULATEXT(D91),"") -> Cell D91: =C91/2
B92: +/- 2 SD | C92: 0.95 | D92: =C92/2 -> 0.475 | G92: =_xlfn.IFNA("Cell "&ADDRESS(ROW(D92),COLUMN(D92),4)&": "&_xlfn.FORMULATEXT(D92),"") -> Cell D92: =C92/2
B93: +/- 3 SD | C93: 0.99 | D93: =C93/2 -> 0.495 | G93: Cell D93: =C93/2
B95: Mean Gas Price | C95: =C53 -> 4.01
B96: SD | C96: 0.12
B97: ="What is the probability of getting a gas price between "&DOLLAR(C98)&" and "&DOLLAR(C99)&"?" -> What is the probability of getting a gas price between $4.01 and $4.25?
B98: Lower X | C98: 4.01
B99: Upper X | C99: 4.25
B100: Lower Z | W100: =_xlfn.IFNA("Cell "&ADDRESS(ROW(C100),COLUMN(C100),4)&": "&_xlfn.FORMULATEXT(C100),"") -> 
B101: Upper Z | N101: =_xlfn.NORM.S.DIST(C101,1)-_xlfn.NORM.S.DIST(C100,1) -> 0 | W101: =_xlfn.IFNA("Cell "&ADDRESS(ROW(C101),COLUMN(C101),4)&": "&_xlfn.FORMULATEXT(C101),"") -> 
B102: Probability | D102: =IF(ISNUMBER(C102),"The probability of getting a gas price between "&DOLLAR(C98)&" and "&DOLLAR(C99)&" is approximately "&TEXT(C102,"0.0%"),"") -> 
B103: ="What is the probability of getting a gas price between "&DOLLAR(C104)&" and "&DOLLAR(C105)&"?" -> What is the probability of getting a gas price between $3.77 and $4.13?
B104: Lower X | C104: 3.77
B105: Upper X | C105: 4.13
B106: Lower Z
B107: Upper Z | N107: =_xlfn.NORM.S.DIST(C107,1)-_xlfn.NORM.S.DIST(C106,1) -> 0
B108: Probability | D108: =IF(ISNUMBER(C108),"The probability of getting a gas price between "&DOLLAR(C104)&" and "&DOLLAR(C105)&" is approximately "&TEXT(C108,"0.0%"),"") -> 
B109: ="What is the probability of getting a gas price above "&DOLLAR(C110) -> What is the probability of getting a gas price above $3.89
B110: X Value | C110: 3.89
B111: Z Value | N111: =1-_xlfn.NORM.S.DIST(C111,1) -> 0.5
B112: Probability | D112: =IF(ISNUMBER(C112),"The probability of getting a gas price above "&DOLLAR(C110)&" is approximately "&TEXT(C112,"0.0%"),"") -> 

Sheet Empirical Rule (an)
B2: Determine the proportion of data values that lie between +/- a given number of standard deviations (z-score) using the Empirical Rule:
B3: The Empirical Rule can determine the proportion of data values that lie between +/- a given number of standard deviations (z-score) for a bell-shape or normal distribution (symmetric distribution)
B4: Empirical Rule:
B5: Approximately 68% of the data values will be within 1 Standard Deviation of the Mean
B6: Approximately 95% of the data values will be within 2 Standard Deviations of the Mean
B7: Approximately 99% of the data values (almost all the data) will be within 3 Standard Deviations of Mean
B8: * MUCH more about Normal Distribution / Bell Shaped Distribution and the Empirical Rule later in the class.
V25: 59 | W25: =V25/12 -> 4.916666667
V26: 60 | W26: =V26/12 -> 5
V27: 61 | W27: 5.083333333
B28: Empirical Rule: | V28: 62 | W28: 5.166666667
B29: About 99.0% of the values will lie between +/- 3 SD | J29: 25 SD event article: | L29: https://paulclaireaux.com/the-bankers-standard-deviations/ | V29: 63 | W29: 5.25
B30: About 95.0% of the values will lie between +/- 2 SD | V30: 64 | W30: 5.333333333
B31: About 68.0% of the values will lie between +/- 1 SD | V31: 65 | W31: 5.416666667
V32: 66 | W32: 5.5
B33: Mean Height | C33: 71 | E33: *assuming population distribution is bell shaped. | V33: 67 | W33: 5.583333333
B34: SD | C34: 4 | V34: 68 | W34: 5.666666667
B35: 68% of the values lie between what two values? | K35: 0.68 | L35: heights | V35: 69 | W35: 5.75
B36: z | C36: 1 | V36: 70 | W36: 5.833333333
B37: Lower X | C37: =C33-C36*C34 -> 67 | N37: =_xlfn.IFNA("Cell "&ADDRESS(ROW(C37),COLUMN(C37),4)&": "&_xlfn.FORMULATEXT(C37),"") -> Cell C37: =C33-C36*C34 | V37: 71 | W37: 5.916666667
B38: Upper X | C38: =C33+C36*C34 -> 75 | D38: =IF(ISNUMBER(C38),"About "&TEXT(K35,"0%")&" of the "&L35&" will be between "&TEXT(C37,"0\""")&" and "&TEXT(C38,"0\"""),"") -> About 68% of the heights will be between 67" and 75" | N38: =_xlfn.IFNA("Cell "&ADDRESS(ROW(C38),COLUMN(C38),4)&": "&_xlfn.FORMULATEXT(C38),"") -> Cell C38: =C33+C36*C34 | V38: 72 | W38: 6
B39: 95% of the values lie between what two values? | K39: 0.95 | L39: heights | V39: 73 | W39: 6.083333333
B40: z | C40: 2 | V40: 74 | W40: 6.166666667
B41: Lower X | C41: =C33-C40*C34 -> 63 | N41: Cell C41: =C33-C40*C34 | V41: 75 | W41: 6.25
B42: Upper X | C42: =C33+C40*C34 -> 79 | D42: =IF(ISNUMBER(C42),"About "&TEXT(K39,"0%")&" of the "&L39&" will be between "&TEXT(C41,"0\""")&" and "&TEXT(C42,"0\"""),"") -> About 95% of the heights will be between 63" and 79" | N42: Cell C42: =C33+C40*C34 | V42: 76 | W42: 6.333333333
B43: 99% of the values lie between what two values? | K43: 0.99 | L43: heights | V43: 77 | W43: 6.416666667
B44: z | C44: 3 | V44: 78 | W44: 6.5
B45: Lower X | C45: =C33-C44*C34 -> 59 | N45: Cell C45: =C33-C44*C34 | V45: 79 | W45: 6.583333333
B46: Upper X | C46: =C33+C44*C34 -> 83 | D46: =IF(ISNUMBER(C46),"About "&TEXT(K43,"0%")&" of the "&L43&" will be between "&TEXT(C45,"0\""")&" and "&TEXT(C46,"0\"""),"") -> About 99% of the heights will be between 59" and 83" | N46: Cell C46: =C33+C44*C34 | V46: 80 | W46: 6.666666667
V47: 81 | W47: 6.75
B48: Empirical Rule: | V48: 82 | W48: 6.833333333
B49: About 99.0% of the values will lie between +/- 3 SD | V49: 83 | W49: 6.916666667
B50: About 95.0% of the values will lie between +/- 2 SD
B51: About 68.0% of the values will lie between +/- 1 SD
B53: Mean Gas Price | C53: 4.01 | E53: *assuming population distribution is bell shaped. | J53: Chapter 6 and later we will be using this rule to check reasonableness of peoples claims.
B54: SD | C54: 0.12
B55: 68% of the values lie between what two values? | K55: 0.68 | L55: prices
B56: z | C56: 1
B57: Lower X | C57: =$C$53-C56*$C$54 -> 3.89 | N57: =_xlfn.IFNA("Cell "&ADDRESS(ROW(C57),COLUMN(C57),4)&": "&_xlfn.FORMULATEXT(C57),"") -> Cell C57: =$C$53-C56*$C$54
B58: Upper X | C58: =$C$53+C56*$C$54 -> 4.13 | D58: =IF(ISNUMBER(C58),"About "&TEXT(K55,"0%")&" of the "&L55&" will be between "&TEXT(C57,"$0.00")&" and "&TEXT(C58,"$0.00"),"") -> About 68% of the prices will be between $3.89 and $4.13 | N58: =_xlfn.IFNA("Cell "&ADDRESS(ROW(C58),COLUMN(C58),4)&": "&_xlfn.FORMULATEXT(C58),"") -> Cell C58: =$C$53+C56*$C$54
B59: 95% of the values lie between what two values? | K59: 0.95 | L59: prices
B60: z | C60: 2
B61: Lower X | C61: =$C$53-C60*$C$54 -> 3.77 | N61: Cell C61: =$C$53-C60*$C$54
B62: Upper X | C62: =$C$53+C60*$C$54 -> 4.25 | D62: =IF(ISNUMBER(C62),"About "&TEXT(K59,"0%")&" of the "&L59&" will be between "&TEXT(C61,"$0.00")&" and "&TEXT(C62,"$0.00"),"") -> About 95% of the prices will be between $3.77 and $4.25 | N62: Cell C62: =$C$53+C60*$C$54
B63: 99% of the values lie between what two values? | K63: 0.99 | L63: prices
B64: z | C64: 3
B65: Lower X | C65: =$C$53-C64*$C$54 -> 3.65 | N65: =_xlfn.IFNA("Cell "&ADDRESS(ROW(C65),COLUMN(C65),4)&": "&_xlfn.FORMULATEXT(C65),"") -> Cell C65: =$C$53-C64*$C$54
B66: Upper X | C66: =$C$53+C64*$C$54 -> 4.37 | D66: =IF(ISNUMBER(C66),"About "&TEXT(K63,"0%")&" of the "&L63&" will be between "&TEXT(C65,"$0.00")&" and "&TEXT(C66,"$0.00"),"") -> About 99% of the prices will be between $3.65 and $4.37 | N66: Cell C66: =$C$53+C64*$C$54
B68: Empirical Rule:
B69: About 99.0% of the values will lie between +/- 3 SD
B70: About 95.0% of the values will lie between +/- 2 SD
B71: About 68.0% of the values will lie between +/- 1 SD | F71: Chapter 6 and later we will be using this rule to check whether production machines are filling correctly
B73: Mean Cereal Box Weight | C73: 32 | D73: oz. | E73: *assuming population distribution is bell shaped.
B74: SD | C74: 0.35 | D74: oz.
B75: 68% of the values lie between what two values? | K75: 0.68 | L75: weight
B76: z | C76: 1
B77: Lower X | C77: =$C$73-C76*$C$74 -> 31.65 | N77: =_xlfn.IFNA("Cell "&ADDRESS(ROW(C77),COLUMN(C77),4)&": "&_xlfn.FORMULATEXT(C77),"") -> Cell C77: =$C$73-C76*$C$74
B78: Upper X | C78: =$C$73+C76*$C$74 -> 32.35 | D78: =IF(ISNUMBER(C78),"About "&TEXT(K75,"0%")&" of the "&L75&" will be between "&TEXT(C77,"0.00 oz.")&" and "&TEXT(C78,"0.00 oz."),"") -> About 68% of the weight will be between 31.65 oz. and 32.35 oz. | N78: =_xlfn.IFNA("Cell "&ADDRESS(ROW(C78),COLUMN(C78),4)&": "&_xlfn.FORMULATEXT(C78),"") -> Cell C78: =$C$73+C76*$C$74
B79: 95% of the values lie between what two values? | K79: 0.95 | L79: weight
B80: z | C80: 2
B81: Lower X | C81: =$C$73-C80*$C$74 -> 31.3 | N81: Cell C81: =$C$73-C80*$C$74
B82: Upper X | C82: =$C$73+C80*$C$74 -> 32.7 | D82: =IF(ISNUMBER(C82),"About "&TEXT(K79,"0%")&" of the "&L79&" will be between "&TEXT(C81,"0.00 oz.")&" and "&TEXT(C82,"0.00 oz."),"") -> About 95% of the weight will be between 31.30 oz. and 32.70 oz. | N82: Cell C82: =$C$73+C80*$C$74
B83: 95% of the values lie between what two values? | K83: 0.99 | L83: weight
B84: z | C84: 3
B85: Lower X | C85: =$C$73-C84*$C$74 -> 30.95 | N85: Cell C85: =$C$73-C84*$C$74
B86: Upper X | C86: =$C$73+C84*$C$74 -> 33.05 | D86: =IF(ISNUMBER(C86),"About "&TEXT(K83,"0%")&" of the "&L83&" will be between "&TEXT(C85,"0.00 oz.")&" and "&TEXT(C86,"0.00 oz."),"") -> About 99% of the weight will be between 30.95 oz. and 33.05 oz. | N86: Cell C86: =$C$73+C84*$C$74
B89: Empirical Rule Areas:
B90: SD | C90: % | D90: 1/2 area
B91: +/- 1 SD | C91: 0.68 | D91: =C91/2 -> 0.34 | G91: =_xlfn.IFNA("Cell "&ADDRESS(ROW(D91),COLUMN(D91),4)&": "&_xlfn.FORMULATEXT(D91),"") -> Cell D91: =C91/2
B92: +/- 2 SD | C92: 0.95 | D92: =C92/2 -> 0.475 | G92: =_xlfn.IFNA("Cell "&ADDRESS(ROW(D92),COLUMN(D92),4)&": "&_xlfn.FORMULATEXT(D92),"") -> Cell D92: =C92/2
B93: +/- 3 SD | C93: 0.99 | D93: =C93/2 -> 0.495 | G93: Cell D93: =C93/2
B95: Mean Gas Price | C95: =C53 -> 4.01
B96: SD | C96: 0.12
B97: ="What is the probability of getting a gas price between "&DOLLAR(C98)&" and "&DOLLAR(C99)&"?" -> What is the probability of getting a gas price between $4.01 and $4.25?
B98: Lower X | C98: 4.01
B99: Upper X | C99: 4.25
B100: Lower Z | C100: =(C98-$C$95)/$C$96 -> 0 | W100: =_xlfn.IFNA("Cell "&ADDRESS(ROW(C100),COLUMN(C100),4)&": "&_xlfn.FORMULATEXT(C100),"") -> Cell C100: =(C98-$C$95)/$C$96
B101: Upper Z | C101: =(C99-$C$95)/$C$96 -> 2 | N101: =_xlfn.NORM.S.DIST(C101,1)-_xlfn.NORM.S.DIST(C100,1) -> 0.4772498681 | W101: =_xlfn.IFNA("Cell "&ADDRESS(ROW(C101),COLUMN(C101),4)&": "&_xlfn.FORMULATEXT(C101),"") -> Cell C101: =(C99-$C$95)/$C$96
B102: Probability | C102: =D92 -> 0.475 | D102: =IF(ISNUMBER(C102),"The probability of getting a gas price between "&DOLLAR(C98)&" and "&DOLLAR(C99)&" is approximately "&TEXT(C102,"0.0%"),"") -> The probability of getting a gas price between $4.01 and $4.25 is approximately 47.5% | W102: Cell C102: =D92
B103: ="What is the probability of getting a gas price between "&DOLLAR(C104)&" and "&DOLLAR(C105)&"?" -> What is the probability of getting a gas price between $3.77 and $4.13?
B104: Lower X | C104: 3.77
B105: Upper X | C105: 4.13
B106: Lower Z | C106: =(C104-$C$95)/$C$96 -> -2 | W106: Cell C106: =(C104-$C$95)/$C$96
B107: Upper Z | C107: =(C105-$C$95)/$C$96 -> 1 | N107: =_xlfn.NORM.S.DIST(C107,1)-_xlfn.NORM.S.DIST(C106,1) -> 0.8185946141 | W107: Cell C107: =(C105-$C$95)/$C$96
B108: Probability | C108: =D92+D91 -> 0.815 | D108: =IF(ISNUMBER(C108),"The probability of getting a gas price between "&DOLLAR(C104)&" and "&DOLLAR(C105)&" is approximately "&TEXT(C108,"0.0%"),"") -> The probability of getting a gas price between $3.77 and $4.13 is approximately 81.5% | W108: Cell C108: =D92+D91
B109: ="What is the probability of getting a gas price above "&DOLLAR(C110) -> What is the probability of getting a gas price above $3.89
B110: X Value | C110: 3.89
B111: Z Value | C111: =(C110-C95)/C96 -> -1 | N111: =1-_xlfn.NORM.S.DIST(C111,1) -> 0.8413447461 | W111: Cell C111: =(C110-C95)/C96
B112: Probability | C112: =0.5+D91 -> 0.84 | D112: =IF(ISNUMBER(C112),"The probability of getting a gas price above "&DOLLAR(C110)&" is approximately "&TEXT(C112,"0.0%"),"") -> The probability of getting a gas price above $3.89 is approximately 84.0% | W112: Cell C112: =0.5+D91

Sheet Chebyshev
B2: Determine the proportion of data values that lie between +/- a given number of standard deviations (z-score) using Chebyshev's Theorem:
B3: Russian Mathematician, P.L. Chebyshev (1821-1894)
B4: Chebyshev's Theorem
B5: Determine the proportion of data values that lie between +/- a given number of standard deviations (z-score) for any shape distribution
B6: For example: 75% of the students must have a test score between 34 and 86
B7: Rule: At least (1 - 1/z^2) of the values in any data set will be within z standard deviations of the mean, where z is any value greater than 1.
B8: Real power of this Theorem: Applies to any data set regardless of the shape of the distribution of the data!
B9: At least 0.75, or 75.00%, of the data values must be within z = 2 standard deviations of the mean
B10: At least 0.89, or 89.00%, of the data values must be within z = 3 standard deviations of the mean
B11: At least 0.94, or 94.00%, of the data values must be within z = 4 standard deviations of the mean
B19: Test Mean | C19: 60 | M19: =_xlfn.IFNA("Cell "&ADDRESS(ROW(C19),COLUMN(C19),4)&": "&_xlfn.FORMULATEXT(C19),"") -> 
B20: Test SD | C20: 13 | M20: =_xlfn.IFNA("Cell "&ADDRESS(ROW(C20),COLUMN(C20),4)&": "&_xlfn.FORMULATEXT(C20),"") -> 
B22: We want to know what proportion of test scores must lie between +/- 2 SD of the Mean?
B23: z | C23: 2
B24: Proportion | D24: =IF(ISNUMBER(C24),"At least "&TEXT(C24,"0.0%")&", of the data values must be within +/- "&C23&" SD of the Mean","") -> 
B25: Given the Proportions from Chebyshev's Theorem, what are the low and high values?
B26: Lower X
B27: Upper X | D27: =IF(ISNUMBER(C27),"At least "&TEXT(C24,"0.0%")&", of the data values must be within "&C26&" and "&C27,"") -> 
B28: We want to know what proportion of test scores must lie between +/- 3 SD of the Mean?
B29: z | C29: 3
B30: Proportion | D30: =IF(ISNUMBER(C30),"At least "&TEXT(C30,"0.0%")&", of the data values must be within +/- "&C29&" SD of the Mean","") -> 
B31: Given the Proportions from Chebyshev's Theorem, what are the low and high values?
B32: Lower X
B33: Upper X | D33: =IF(ISNUMBER(C33),"At least "&TEXT(C30,"0.0%")&", of the data values must be within "&C32&" and "&C33,"") -> 
B38: ="According to Chebyshev's Theorem, at least what percent of any data set will be within "&C39&" standard deviation of the mean?" -> According to Chebyshev's Theorem, at least what percent of any data set will be within 1.8 standard deviation of the mean?
B39: z | C39: 1.8
B40: Percent: | D40: =IF(C40="","","Accoring to Chebyshev's Theorem, at least "&TEXT(C40,"0.00%")&" of any data set will be within +/- 1.8 standard deviation of the mean.") -> 
M41: =_xlfn.IFNA("Cell "&ADDRESS(ROW(C42),COLUMN(C42),4)&": "&_xlfn.FORMULATEXT(C42),"") -> 
B42: We want to know what proportion of test scores must lie between +/- 2 SD of the Mean? | M42: =_xlfn.IFNA("Cell "&ADDRESS(ROW(C44),COLUMN(C44),4)&": "&_xlfn.FORMULATEXT(C44),"") -> 
B43: z = # sd | C43: 2
B44: Chebyshev's Theorem | M44: Cell C46: =$C$19-C43*$C$20
B45: Proportion | C45: 0.75 | M45: Cell C47: =$C$19+C43*$C$20
B46: Lower X | C46: =$C$19-C43*$C$20 -> 34
B47: Upper X | C47: =$C$19+C43*$C$20 -> 86 | D47: =IF(ISNUMBER(C47),"At least "&TEXT(C45,"0.0%")&", of the data values must be within "&C46&" and "&C47,"") -> At least 75.0%, of the data values must be within 34 and 86
B48: Empirical Rule | M48: Cell C50: =$C$19-C43*$C$20
B49: Proportion | C49: 0.95 | M49: Cell C51: =$C$19+C43*$C$20
B50: Lower X | C50: =$C$19-C43*$C$20 -> 34 | M50: =_xlfn.IFNA("Cell "&ADDRESS(ROW(#REF!),COLUMN(#REF!),4)&": "&_xlfn.FORMULATEXT(#REF!),"") -> 
B51: Upper X | C51: =$C$19+C43*$C$20 -> 86 | D51: =IF(ISNUMBER(C51),"At least "&TEXT(C49,"0.0%")&", of the data values must be within "&C50&" and "&C51,"") -> At least 95.0%, of the data values must be within 34 and 86 | M51: =_xlfn.IFNA("Cell "&ADDRESS(ROW(#REF!),COLUMN(#REF!),4)&": "&_xlfn.FORMULATEXT(#REF!),"") -> 
B60: Chebyshev's Theorem: Proportion of data values that lie between +/- a given number of standard deviations
B61: Rule: At least (1 - 1/z^2) of the values in any data set will be within z standard deviations of the mean, where z is any value greater than 1.
B62: Real power of this Theorem: Applies to any data set regardless of the shape of the distribution of the data!
B63: Chebyshev's Theorem:
B64: At least 0.75, or 75.00%, of the data values must be within z = 2 standard deviations of the mean
B65: At least 0.89, or 89.00%, of the data values must be within z = 3 standard deviations of the mean
B66: At least 0.94, or 94.00%, of the data values must be within z = 4 standard deviations of the mean

Sheet Chebyshev (an)
B2: Determine the proportion of data values that lie between +/- a given number of standard deviations (z-score) using Chebyshev's Theorem:
B3: Russian Mathematician, P.L. Chebyshev (1821-1894)
B4: Chebyshev's Theorem
B5: Determine the proportion of data values that lie between +/- a given number of standard deviations (z-score) for any shape distribution
B6: For example: 75% of the students must have a test score between 34 and 86
B7: Rule: At least (1 - 1/z^2) of the values in any data set will be within z standard deviations of the mean, where z is any value greater than 1.
B8: Real power of this Theorem: Applies to any data set regardless of the shape of the distribution of the data!
B9: At least 0.75, or 75.00%, of the data values must be within z = 2 standard deviations of the mean
B10: At least 0.89, or 89.00%, of the data values must be within z = 3 standard deviations of the mean
B11: At least 0.94, or 94.00%, of the data values must be within z = 4 standard deviations of the mean
B19: Test Mean | C19: 60 | M19: =_xlfn.IFNA("Cell "&ADDRESS(ROW(C19),COLUMN(C19),4)&": "&_xlfn.FORMULATEXT(C19),"") -> 
B20: Test SD | C20: 13 | M20: =_xlfn.IFNA("Cell "&ADDRESS(ROW(C20),COLUMN(C20),4)&": "&_xlfn.FORMULATEXT(C20),"") -> 
B22: We want to know what proportion of test scores must lie between +/- 2 SD of the Mean?
B23: z | C23: 2
B24: Proportion | C24: =1-1/C23^2 -> 0.75 | D24: =IF(ISNUMBER(C24),"At least "&TEXT(C24,"0.0%")&", of the data values must be within +/- "&C23&" SD of the Mean","") -> At least 75.0%, of the data values must be within +/- 2 SD of the Mean | M24: Cell C24: =1-1/C23^2
B25: Given the Proportions from Chebyshev's Theorem, what are the low and high values?
B26: Lower X | C26: =$C$19-C23*$C$20 -> 34 | M26: Cell C26: =$C$19-C23*$C$20
B27: Upper X | C27: =$C$19+C23*$C$20 -> 86 | D27: =IF(ISNUMBER(C27),"At least "&TEXT(C24,"0.0%")&", of the data values must be within "&C26&" and "&C27,"") -> At least 75.0%, of the data values must be within 34 and 86 | M27: Cell C27: =$C$19+C23*$C$20
B28: We want to know what proportion of test scores must lie between +/- 3 SD of the Mean?
B29: z | C29: 3
B30: Proportion | C30: =1-1/C29^2 -> 0.8888888889 | D30: =IF(ISNUMBER(C30),"At least "&TEXT(C30,"0.0%")&", of the data values must be within +/- "&C29&" SD of the Mean","") -> At least 88.9%, of the data values must be within +/- 3 SD of the Mean | M30: Cell C30: =1-1/C29^2
B31: Given the Proportions from Chebyshev's Theorem, what are the low and high values?
B32: Lower X | C32: =$C$19-C29*$C$20 -> 21 | M32: Cell C32: =$C$19-C29*$C$20
B33: Upper X | C33: =$C$19+C29*$C$20 -> 99 | D33: =IF(ISNUMBER(C33),"At least "&TEXT(C30,"0.0%")&", of the data values must be within "&C32&" and "&C33,"") -> At least 88.9%, of the data values must be within 21 and 99 | M33: Cell C33: =$C$19+C29*$C$20
B38: ="According to Chebyshev's Theorem, at least what percent of any data set will be within "&C39&" standard deviation of the mean?" -> According to Chebyshev's Theorem, at least what percent of any data set will be within 1.8 standard deviation of the mean?
B39: z | C39: 1.8
B40: Percent: | C40: =1-1/C39^2 -> 0.6913580247 | D40: =IF(C40="","","Accoring to Chebyshev's Theorem, at least "&TEXT(C40,"0.00%")&" of any data set will be within +/- 1.8 standard deviation of the mean.") -> Accoring to Chebyshev's Theorem, at least 69.14% of any data set will be within +/- 1.8 standard deviation of the mean. | M40: Cell C40: =1-1/C39^2
M41: =_xlfn.IFNA("Cell "&ADDRESS(ROW(C42),COLUMN(C42),4)&": "&_xlfn.FORMULATEXT(C42),"") -> 
B42: We want to know what proportion of test scores must lie between +/- 2 SD of the Mean? | M42: =_xlfn.IFNA("Cell "&ADDRESS(ROW(C44),COLUMN(C44),4)&": "&_xlfn.FORMULATEXT(C44),"") -> 
B43: z = # sd | C43: 2
B44: Chebyshev's Theorem | M44: Cell C46: =$C$19-C43*$C$20
B45: Proportion | C45: 0.75 | M45: Cell C47: =$C$19+C43*$C$20
B46: Lower X | C46: =$C$19-C43*$C$20 -> 34
B47: Upper X | C47: =$C$19+C43*$C$20 -> 86 | D47: =IF(ISNUMBER(C47),"At least "&TEXT(C45,"0.0%")&", of the data values must be within "&C46&" and "&C47,"") -> At least 75.0%, of the data values must be within 34 and 86
B48: Empirical Rule | M48: Cell C50: =$C$19-C43*$C$20
B49: Proportion | C49: 0.95 | M49: Cell C51: =$C$19+C43*$C$20
B50: Lower X | C50: =$C$19-C43*$C$20 -> 34 | M50: =_xlfn.IFNA("Cell "&ADDRESS(ROW(#REF!),COLUMN(#REF!),4)&": "&_xlfn.FORMULATEXT(#REF!),"") -> 
B51: Upper X | C51: =$C$19+C43*$C$20 -> 86 | D51: =IF(ISNUMBER(C51),"At least "&TEXT(C49,"0.0%")&", of the data values must be within "&C50&" and "&C51,"") -> At least 95.0%, of the data values must be within 34 and 86 | M51: =_xlfn.IFNA("Cell "&ADDRESS(ROW(#REF!),COLUMN(#REF!),4)&": "&_xlfn.FORMULATEXT(#REF!),"") -> 
B60: Chebyshev's Theorem: Proportion of data values that lie between +/- a given number of standard deviations
B61: Rule: At least (1 - 1/z^2) of the values in any data set will be within z standard deviations of the mean, where z is any value greater than 1.
B62: Real power of this Theorem: Applies to any data set regardless of the shape of the distribution of the data!
B63: Chebyshev's Theorem:
B64: At least 0.75, or 75.00%, of the data values must be within z = 2 standard deviations of the mean
B65: At least 0.89, or 89.00%, of the data values must be within z = 3 standard deviations of the mean
B66: At least 0.94, or 94.00%, of the data values must be within z = 4 standard deviations of the mean

Sheet B & C
B2: If the distribution of weights for a Lettuce Filling Machine are normally distributed (Bell Shape) with a mean of 13 oz and a standard deviation of .1 oz, what percent of the values should lie between 2 standard deviations and what are the low and high values associated with the percentage?
B4: Mean | C4: 13 | D4: oz
B5: SD | C5: 0.1 | D5: oz
B6: # SD | C6: 2
B7: Percent = | C7: 0.95 | E7: Empirical Rule
B8: Lower Values | K8: =_xlfn.IFNA("Cell "&ADDRESS(ROW(C8),COLUMN(C8),4)&": "&_xlfn.FORMULATEXT(C8),"") -> 
B9: Upper Value | K9: =_xlfn.IFNA("Cell "&ADDRESS(ROW(C9),COLUMN(C9),4)&": "&_xlfn.FORMULATEXT(C9),"") -> 
B10: =IF(C9="","","Because the distribution is bell shaped, we can say that approximately "&TEXT(C7,"0.00%")&" of the values should lie between "&C9&" oz. and "&C8&" oz.") -> 
B12: Mean | C12: 13 | D12: oz
B13: SD | C13: 0.1 | D13: oz
B14: # SD | C14: 2
B15: Percent = | C15: 0.75 | E15: Chebyshev's Theorem | H15: =1-1/C14^2 -> 0.75
B16: Lower Values | K16: =_xlfn.IFNA("Cell "&ADDRESS(ROW(C16),COLUMN(C16),4)&": "&_xlfn.FORMULATEXT(C16),"") -> 
B17: Upper Value | K17: =_xlfn.IFNA("Cell "&ADDRESS(ROW(C17),COLUMN(C17),4)&": "&_xlfn.FORMULATEXT(C17),"") -> 
B18: =IF(C17="","","Because the distribution is not bell shaped, we can say that approximately "&TEXT(C15,"0.00%")&" of the values should lie between "&C17&" oz. and "&C16&" oz.") -> 
B20: .

Sheet B & C (an)
B2: If the distribution of weights for a Lettuce Filling Machine are normally distributed (Bell Shape) with a mean of 13 oz and a standard deviation of .1 oz, what percent of the values should lie between 2 standard deviations and what are the low and high values associated with the percentage?
B4: Mean | C4: 13 | D4: oz
B5: SD | C5: 0.1 | D5: oz
B6: # SD | C6: 2
B7: Percent = | C7: 0.95 | E7: Empirical Rule
B8: Lower Values | C8: =C4-C5*C6 -> 12.8 | K8: =_xlfn.IFNA("Cell "&ADDRESS(ROW(C8),COLUMN(C8),4)&": "&_xlfn.FORMULATEXT(C8),"") -> Cell C8: =C4-C5*C6
B9: Upper Value | C9: =C4+C5*C6 -> 13.2 | K9: =_xlfn.IFNA("Cell "&ADDRESS(ROW(C9),COLUMN(C9),4)&": "&_xlfn.FORMULATEXT(C9),"") -> Cell C9: =C4+C5*C6
B10: =IF(C9="","","Because the distribution is bell shaped, we can say that approximately "&TEXT(C7,"0.00%")&" of the values should lie between "&C9&" oz. and "&C8&" oz.") -> Because the distribution is bell shaped, we can say that approximately 95.00% of the values should lie between 13.2 oz. and 12.8 oz.
B12: Mean | C12: 13 | D12: oz
B13: SD | C13: 0.1 | D13: oz
B14: # SD | C14: 2
B15: Percent = | C15: 0.75 | E15: Chebyshev's Theorem | H15: =1-1/C14^2 -> 0.75
B16: Lower Values | C16: =C12-C13*C14 -> 12.8 | K16: =_xlfn.IFNA("Cell "&ADDRESS(ROW(C16),COLUMN(C16),4)&": "&_xlfn.FORMULATEXT(C16),"") -> Cell C16: =C12-C13*C14
B17: Upper Value | C17: =C12+C13*C14 -> 13.2 | K17: =_xlfn.IFNA("Cell "&ADDRESS(ROW(C17),COLUMN(C17),4)&": "&_xlfn.FORMULATEXT(C17),"") -> Cell C17: =C12+C13*C14
B18: =IF(C17="","","Because the distribution is not bell shaped, we can say that approximately "&TEXT(C15,"0.00%")&" of the values should lie between "&C17&" oz. and "&C16&" oz.") -> Because the distribution is not bell shaped, we can say that approximately 75.00% of the values should lie between 13.2 oz. and 12.8 oz.
B20: .

Sheet Outliers
B2: Detecting Outliers
B3: Outlier
B4: An outlier is an unusually small or unusually large value in a data set.
B5: +/- 3 Z Scores Outlier Rule
B6: A data value with a z-score less than -3 or greater than +3 might be considered an outlier.
B7: An outlirer might be:
B8: 1) an incorrectly recorded data value
B9: 2) a data value that was incorrectly included in the data set
B10: 3) a correctly recorded data value that belongs in the data set
B11: In Excel, the ABS function determines the absolute value of a numner (distance away from zero)
B14: No | C14: Sales | D14: z | E14: Outlier = z >3 | G14: Mean | H14: SD | I14: Count TRUES
B15: 1 | C15: 610.6290047
B16: 2 | C16: 461.7005818
B17: 3 | C17: 557.9494272
B18: 4 | C18: 612.5697654
B19: 5 | C19: 674.0528933
B20: 6 | C20: 202.35
B21: 7 | C21: 658.6058561
B22: 8 | C22: 638.8686918
B23: 9 | C23: 360.4100034
B24: 10 | C24: 608.6981556
B25: 11 | C25: 998.98
B26: 12 | C26: 587.3148896
B27: 13 | C27: 662.6933468
B28: 14 | C28: 582.0823424
B29: 15 | C29: 422.1711482
B30: 16 | C30: 502.7009155
B31: 17 | C31: 597.3810324
B32: 18 | C32: 912.4428957
B33: 19 | C33: 656.4759124
B34: 20 | C34: 540.5760705
B35: 21 | C35: 549.5259251
B36: 22 | C36: 564.2371037
B37: 23 | C37: 652.7905768
B38: 24 | C38: 803.024406
B39: 25 | C39: 495.4805446
B40: 26 | C40: 526.4136462
B41: 27 | C41: 678.7669445
B42: 28 | C42: 686.1722517
B43: 29 | C43: 594.6627067
B44: 30 | C44: 685.9862053
B45: 31 | C45: 614.2066087
B46: 32 | C46: 463.7615779
B47: 33 | C47: 594.7359658
B48: 34 | C48: 682.5996415
B49: 35 | C49: 595.0749806
B50: 36 | C50: 765.425009
B51: 37 | C51: 759.7301122
B52: 38 | C52: 563.1371646
B53: 39 | C53: 572.9260438
B54: 40 | C54: 623.0441273
B55: 41 | C55: 592.23751
B56: 42 | C56: 782.5634906
B57: 43 | C57: 757.3814812
B58: 44 | C58: 793.3732145
B59: 45 | C59: 777.6975628
B60: 46 | C60: 628.1571535
B61: 47 | C61: 389.3882779
B62: 48 | C62: 698.9754127
B63: 49 | C63: 440.3723812
B64: 50 | C64: 437.9590774
B65: 51 | C65: 334.6726913
B66: 52 | C66: 723.5672562
B67: 53 | C67: 764.7248552
B68: 54 | C68: 778.47166
B69: 55 | C69: 521.4854776
B70: 56 | C70: 711.9520571
B71: 57 | C71: 587.6246787
B72: 58 | C72: 642.5954764
B73: 59 | C73: 635.4977729
B74: 60 | C74: 445.8103282
B75: 61 | C75: 668.7213528
B76: 62 | C76: 648.0559049
B77: 63 | C77: 750.0296621
B78: 64 | C78: 690.3170613
B79: 65 | C79: 400.7694164
B80: 66 | C80: 696.574725
B81: 67 | C81: 491.8011513
B82: 68 | C82: 670.8463003
B83: 69 | C83: 720.2014085
B84: 70 | C84: 539.7365225
B85: 71 | C85: 376.6851657
B86: 72 | C86: 665.393016
B87: 73 | C87: 657.5441117
B88: 74 | C88: 506.4831224
B89: 75 | C89: 540.676798
B90: 76 | C90: 650.5145871
B91: 77 | C91: 698.0151508
B92: 78 | C92: 534.6105524
B93: 79 | C93: 735.3982586
B94: 80 | C94: 391.2015002
B95: 81 | C95: 736.93274
B96: 82 | C96: 492.2316299
B97: 83 | C97: 492.5305591
B98: 84 | C98: 585.3276921
B99: 85 | C99: 543.3622307
B100: 86 | C100: 487.1763431
B101: 87 | C101: 604.3168309
B102: 88 | C102: 636.2239609
B103: 89 | C103: 656.053113
B104: 90 | C104: 649.9714946
B105: 91 | C105: 455.5714409
B106: 92 | C106: 388.5906809
B107: 93 | C107: 788.6034296
B108: 94 | C108: 591.1400477
B109: 95 | C109: 644.9503706
B110: 96 | C110: 544.0526547
B111: 97 | C111: 812.2007701
B112: 98 | C112: 648.7282879
B113: 99 | C113: 780.5267014
B114: 100 | C114: 643.6579465
B115: 101 | C115: 418.7407829
B116: 102 | C116: 690.2508772
B117: 103 | C117: 373.277603
B118: 104 | C118: 559.9931267
B119: 105 | C119: 521.6858213
B120: 106 | C120: 466.8428583
B121: 107 | C121: 336.552717
B122: 108 | C122: 551.6547279
B123: 109 | C123: 802.8187111
B124: 110 | C124: 560.4757882
B125: 111 | C125: 875.9032129
B126: 112 | C126: 444.4628059
B127: 113 | C127: 565.3974303
B128: 114 | C128: 697.6195
B129: 115 | C129: 576.6695615
B130: 116 | C130: 601.285568
B131: 117 | C131: 621.6530804
B132: 118 | C132: 674.0756656

Sheet Outliers (an)
B2: Detecting Outliers
B3: Outlier
B4: An outlier is an unusually small or unusually large value in a data set.
B5: +/- 3 Z Scores Outlier Rule
B6: A data value with a z-score less than -3 or greater than +3 might be considered an outlier.
B7: An outlirer might be:
B8: 1) an incorrectly recorded data value
B9: 2) a data value that was incorrectly included in the data set
B10: 3) a correctly recorded data value that belongs in the data set
B11: In Excel, the ABS function determines the absolute value of a numner (distance away from zero)
B14: No | C14: Sales | D14: z | E14: Outlier = z >3 | G14: Mean | H14: SD | I14: Count TRUES
B15: 1 | C15: 610.6290047 | D15: =(C15-$G$15)/$H$15 -> 0.04739069299 | E15: =ABS(D15)>3 -> FALSE | G15: =AVERAGE(C15:C132) -> 604.406329 | H15: =_xlfn.STDEV.S(C15:C132) -> 131.3058608 | I15: =COUNTIFS(E15:E132,TRUE) -> 2
B16: 2 | C16: 461.7005818 | D16: =(C16-$G$15)/$H$15 -> -1.086819326 | E16: =ABS(D16)>3 -> FALSE
B17: 3 | C17: 557.9494272 | D17: -0.3538067649 | E17: FALSE
B18: 4 | C18: 612.5697654 | D18: 0.06217115014 | E18: FALSE
B19: 5 | C19: 674.0528933 | D19: 0.5304147424 | E19: FALSE
B20: 6 | C20: 202.35 | D20: -3.061983118 | E20: TRUE
B21: 7 | C21: 658.6058561 | D21: 0.4127730995 | E21: FALSE
B22: 8 | C22: 638.8686918 | D22: 0.2624586794 | E22: FALSE
B23: 9 | C23: 360.4100034 | D23: -1.85822875 | E23: FALSE
B24: 10 | C24: 608.6981556 | D24: 0.0326857201 | E24: FALSE
B25: 11 | C25: 998.98 | D25: 3.004996644 | E25: TRUE
B26: 12 | C26: 587.3148896 | D26: -0.1301650915 | E26: FALSE
B27: 13 | C27: 662.6933468 | D27: 0.4439026368 | E27: FALSE
B28: 14 | C28: 582.0823424 | D28: -0.1700151575 | E28: FALSE
B29: 15 | C29: 422.1711482 | D29: -1.387867835 | E29: FALSE
B30: 16 | C30: 502.7009155 | D30: -0.7745687273 | E30: FALSE
B31: 17 | C31: 597.3810324 | D31: -0.05350329767 | E31: FALSE
B32: 18 | C32: 912.4428957 | D32: 2.345946821 | E32: FALSE
B33: 19 | C33: 656.4759124 | D33: 0.396551861 | E33: FALSE
B34: 20 | C34: 540.5760705 | D34: -0.4861188836 | E34: FALSE
B35: 21 | C35: 549.5259251 | D35: -0.4179585248 | E35: FALSE
B36: 22 | C36: 564.2371037 | D36: -0.3059210386 | E36: FALSE
B37: 23 | C37: 652.7905768 | D37: 0.3684850588 | E37: FALSE
B38: 24 | C38: 803.024406 | D38: 1.5126368 | E38: FALSE
B39: 25 | C39: 495.4805446 | D39: -0.8295576732 | E39: FALSE
B40: 26 | C40: 526.4136462 | D40: -0.5939771639 | E40: FALSE
B41: 27 | C41: 678.7669445 | D41: 0.5663160427 | E41: FALSE
B42: 28 | C42: 686.1722517 | D42: 0.6227134282 | E42: FALSE
B43: 29 | C43: 594.6627067 | D43: -0.07420554026 | E43: FALSE
B44: 30 | C44: 685.9862053 | D44: 0.6212965348 | E44: FALSE
B45: 31 | C45: 614.2066087 | D45: 0.07463703196 | E45: FALSE
B46: 32 | C46: 463.7615779 | D46: -1.071123179 | E46: FALSE
B47: 33 | C47: 594.7359658 | D47: -0.07364761289 | E47: FALSE
B48: 34 | C48: 682.5996415 | D48: 0.5955051209 | E48: FALSE
B49: 35 | C49: 595.0749806 | D49: -0.07106574146 | E49: FALSE
B50: 36 | C50: 765.425009 | D50: 1.226287075 | E50: FALSE
B51: 37 | C51: 759.7301122 | D51: 1.182915845 | E51: FALSE
B52: 38 | C52: 563.1371646 | D52: -0.3142979618 | E52: FALSE
B53: 39 | C53: 572.9260438 | D53: -0.239747754 | E53: FALSE
B54: 40 | C54: 623.0441273 | D54: 0.1419418613 | E54: FALSE
B55: 41 | C55: 592.23751 | D55: -0.09267536824 | E55: FALSE
B56: 42 | C56: 782.5634906 | D56: 1.356810431 | E56: FALSE
B57: 43 | C57: 757.3814812 | D57: 1.165029126 | E57: FALSE
B58: 44 | C58: 793.3732145 | D58: 1.439135194 | E58: FALSE
B59: 45 | C59: 777.6975628 | D59: 1.319752468 | E59: FALSE
B60: 46 | C60: 628.1571535 | D60: 0.1808816783 | E60: FALSE
B61: 47 | C61: 389.3882779 | D61: -1.637535825 | E61: FALSE
B62: 48 | C62: 698.9754127 | D62: 0.720219822 | E62: FALSE
B63: 49 | C63: 440.3723812 | D63: -1.249250771 | E63: FALSE
B64: 50 | C64: 437.9590774 | D64: -1.267630025 | E64: FALSE
B65: 51 | C65: 334.6726913 | D65: -2.054239134 | E65: FALSE
B66: 52 | C66: 723.5672562 | D66: 0.9075065384 | E66: FALSE
B67: 53 | C67: 764.7248552 | D67: 1.220954839 | E67: FALSE
B68: 54 | C68: 778.47166 | D68: 1.325647842 | E68: FALSE
B69: 55 | C69: 521.4854776 | D69: -0.6315091415 | E69: FALSE
B70: 56 | C70: 711.9520571 | D70: 0.819047432 | E70: FALSE
B71: 57 | C71: 587.6246787 | D71: -0.1278057977 | E71: FALSE
B72: 58 | C72: 642.5954764 | D72: 0.290841149 | E72: FALSE
B73: 59 | C73: 635.4977729 | D73: 0.2367864141 | E73: FALSE
B74: 60 | C74: 445.8103282 | D74: -1.20783642 | E74: FALSE
B75: 61 | C75: 668.7213528 | D75: 0.4898107627 | E75: FALSE
B76: 62 | C76: 648.0559049 | D76: 0.3324267146 | E76: FALSE
B77: 63 | C77: 750.0296621 | D77: 1.109039096 | E77: FALSE
B78: 64 | C78: 690.3170613 | D78: 0.6542794953 | E78: FALSE
B79: 65 | C79: 400.7694164 | D79: -1.550859279 | E79: FALSE
B80: 66 | C80: 696.574725 | D80: =(C80-$G$15)/$H$15 -> 0.70193665 | E80: =ABS(D80)>3 -> FALSE
B81: 67 | C81: 491.8011513 | D81: -0.8575792202 | E81: FALSE
B82: 68 | C82: 670.8463003 | D82: 0.5059939509 | E82: FALSE
B83: 69 | C83: 720.2014085 | D83: 0.8818728942 | E83: FALSE
B84: 70 | C84: 539.7365225 | D84: -0.4925127187 | E84: FALSE
B85: 71 | C85: 376.6851657 | D85: -1.734280267 | E85: FALSE
B86: 72 | C86: 665.393016 | D86: 0.4644627943 | E86: FALSE
B87: 73 | C87: 657.5441117 | D87: 0.4046870596 | E87: FALSE
B88: 74 | C88: 506.4831224 | D88: -0.7457641726 | E88: FALSE
B89: 75 | C89: 540.676798 | D89: -0.4853517629 | E89: FALSE
B90: 76 | C90: 650.5145871 | D90: 0.3511515619 | E90: FALSE
B91: 77 | C91: 698.0151508 | D91: 0.7129066539 | E91: FALSE
B92: 78 | C92: 534.6105524 | D92: -0.5315511144 | E92: FALSE
B93: 79 | C93: 735.3982586 | D93: 0.9976091611 | E93: FALSE
B94: 80 | C94: 391.2015002 | D94: -1.623726675 | E94: FALSE
B95: 81 | C95: 736.93274 | D95: 1.009295474 | E95: FALSE
B96: 82 | C96: 492.2316299 | D96: -0.8543007782 | E96: FALSE
B97: 83 | C97: 492.5305591 | D97: -0.8520241917 | E97: FALSE
B98: 84 | C98: 585.3276921 | D98: -0.1452992029 | E98: FALSE
B99: 85 | C99: 543.3622307 | D99: -0.4649000278 | E99: FALSE
B100: 86 | C100: 487.1763431 | D100: -0.8928008637 | E100: FALSE
B101: 87 | C101: 604.3168309 | D101: -0.0006816001227 | E101: FALSE
B102: 88 | C102: 636.2239609 | D102: 0.242316921 | E102: FALSE
B103: 89 | C103: 656.053113 | D103: 0.3933319026 | E103: FALSE
B104: 90 | C104: 649.9714946 | D104: 0.347015475 | E104: FALSE
B105: 91 | C105: 455.5714409 | D105: -1.133497676 | E105: FALSE
B106: 92 | C106: 388.5906809 | D106: -1.64361017 | E106: FALSE
B107: 93 | C107: 788.6034296 | D107: 1.402809437 | E107: FALSE
B108: 94 | C108: 591.1400477 | D108: -0.1010334284 | E108: FALSE
B109: 95 | C109: 644.9503706 | D109: 0.3087755669 | E109: FALSE
B110: 96 | C110: 544.0526547 | D110: -0.4596418919 | E110: FALSE
B111: 97 | C111: 812.2007701 | D111: 1.582522211 | E111: FALSE
B112: 98 | C112: 648.7282879 | D112: 0.3375474532 | E112: FALSE
B113: 99 | C113: 780.5267014 | D113: 1.341298639 | E113: FALSE
B114: 100 | C114: 643.6579465 | D114: 0.2989327156 | E114: FALSE
B115: 101 | C115: 418.7407829 | D115: -1.413992833 | E115: FALSE
B116: 102 | C116: 690.2508772 | D116: 0.6537754502 | E116: FALSE
B117: 103 | C117: 373.277603 | D117: -1.760231605 | E117: FALSE
B118: 104 | C118: 559.9931267 | D118: -0.3382423455 | E118: FALSE
B119: 105 | C119: 521.6858213 | D119: -0.6299833622 | E119: FALSE
B120: 106 | C120: 466.8428583 | D120: -1.047656745 | E120: FALSE
B121: 107 | C121: 336.552717 | D121: -2.039921222 | E121: FALSE
B122: 108 | C122: 551.6547279 | D122: -0.4017459749 | E122: FALSE
B123: 109 | C123: 802.8187111 | D123: 1.511070267 | E123: FALSE
B124: 110 | C124: 560.4757882 | D124: -0.3345664888 | E124: FALSE
B125: 111 | C125: 875.9032129 | D125: 2.067667675 | E125: FALSE
B126: 112 | C126: 444.4628059 | D126: -1.218098889 | E126: FALSE
B127: 113 | C127: 565.3974303 | D127: -0.297084216 | E127: FALSE
B128: 114 | C128: 697.6195 | D128: 0.7098934538 | E128: FALSE
B129: 115 | C129: 576.6695615 | D129: -0.2112378486 | E129: FALSE
B130: 116 | C130: 601.285568 | D130: -0.02376711145 | E130: FALSE
B131: 117 | C131: 621.6530804 | D131: 0.131347918 | E131: FALSE
B132: 118 | C132: 674.0756656 | D132: 0.5305881716 | E132: FALSE

Sheet 5NS-Key

Sheet 5NSBP
B2: 5 Number Summary Provides information like:
B3: Minimum Value
B4: Maximum Value
B5: Median
B6: Range (Max - Min)
B7: Quartiles
B8: Interquartile Range (Quart 3 - Quart 1 = range for middle 50%)
B9: Basis for building Box Plot
B10: Box Plot (Box and Whisker) Chart and Outliers Rule of 1.5
B11: A Box Plot is a visual way to show the spread in the data. It visualizes the 5 Number Summary and shows outliers
B12: In Excel use the: "Box and Whisker" Chart.
B13: Horizontal lines for Lower and Upper Limits that indicate that anything past is an Outlier.
B14: Lower Limit = Quartile 1 - 1.5*Interquartile Range, or 0.
B15: Upper Limit = Quartile 3 + 1.5*Interquartile Range
B16: **Although for this class we will use 1.5, other multiples can be used
H21: 0 | I21: Min | P21: =_xlfn.IFNA("Cell "&ADDRESS(ROW(J21),COLUMN(J21),4)&": "&_xlfn.FORMULATEXT(J21),"") -> 
H22: 1 | I22: Quartile 1
H23: 2 | I23: Median
H24: 3 | I24: Quartile 3
H25: 4 | I25: Max
I26: Interquartile Range
I27: Lower Outlier Hurdle
I28: Upper Outlier Hurdle | R28: ="Quartile 1 - "&J32&"*Interquartile Range" -> Quartile 1 - 1.5*Interquartile Range
I29: Count Lower Outliers | R29: ="Quartile 3 + "&J32&"*Interquartile Range" -> Quartile 3 + 1.5*Interquartile Range
I30: Count Upper Outliers
I32: Outlier Multiple | J32: 1.5
M33: =_xlfn.IFNA("Cell "&ADDRESS(ROW(J33),COLUMN(J33),4)&": "&_xlfn.FORMULATEXT(J33),"") -> 
I34: Mean
O36: Chart Title: | P36: Sample CPA Scores Last Five Tests, Inclusive
I37: Lower Outliers?

Sheet 5NSBP (an)
B2: 5 Number Summary Provides information like:
B3: Minimum Value
B4: Maximum Value
B5: Median
B6: Range (Max - Min)
B7: Quartiles
B8: Interquartile Range (Quart 3 - Quart 1 = range for middle 50%)
B9: Basis for building Box Plot
B10: Box Plot (Box and Whisker) Chart and Outliers Rule of 1.5
B11: A Box Plot is a visual way to show the spread in the data. It visualizes the 5 Number Summary and shows outliers
B12: In Excel use the: "Box and Whisker" Chart.
B13: Horizontal lines for Lower and Upper Limits that indicate that anything past is an Outlier.
B14: Lower Limit = Quartile 1 - 1.5*Interquartile Range, or 0.
B15: Upper Limit = Quartile 3 + 1.5*Interquartile Range
B16: **Although for this class we will use 1.5, other multiples can be used
B20: CPA Test 1 | C20: CPA Test 2 | D20: CPA Test 3 | E20: CPA Test 4 | F20: CPA Test 5 | J20: ='5NSBP (an)'!$B$20:$F$20 -> CPA Test 1 | K20: CPA Test 2 | L20: CPA Test 3 | M20: CPA Test 4 | N20: CPA Test 5
B21: 22 | C21: 28 | D21: 43 | E21: 35 | F21: 55 | H21: 0 | I21: Min | J21: =_xlfn.QUARTILE.INC('5NSBP (an)'!$B$21:$B$403,$H$21:$H$25) -> 2 | K21: =_xlfn.QUARTILE.INC('5NSBP (an)'!$C$21:$C$403,$H$21:$H$25) -> 1 | L21: =_xlfn.QUARTILE.INC('5NSBP (an)'!$D$21:$D$403,$H$21:$H$25) -> 3 | M21: =_xlfn.QUARTILE.INC('5NSBP (an)'!$E$21:$E$403,$H$21:$H$25) -> 0 | N21: =_xlfn.QUARTILE.INC('5NSBP (an)'!$F$21:$F$403,$H$21:$H$25) -> 10 | P21: =_xlfn.IFNA("Cell "&ADDRESS(ROW(J21),COLUMN(J21),4)&": "&_xlfn.FORMULATEXT(J21),"") -> Cell J21: =QUARTILE.INC('5NSBP (an)'!$B$21:$B$403,$H$21:$H$25)
B22: 49 | C22: 14 | D22: 32 | E22: 45 | F22: 53 | H22: 1 | I22: Quartile 1 | J22: 42 | K22: 45 | L22: 41 | M22: 39 | N22: 54.5
B23: 70 | C23: 5 | D23: 52 | E23: 61 | F23: 30 | H23: 2 | I23: Median | J23: 50 | K23: 52 | L23: 50 | M23: 52 | N23: 64
B24: 13 | C24: 65 | D24: 5 | E24: 37 | F24: 68 | H24: 3 | I24: Quartile 3 | J24: 59 | K24: 65 | L24: 59 | M24: 61 | N24: 69
B25: 52 | C25: 80 | D25: 51 | E25: 52 | F25: 58 | H25: 4 | I25: Max | J25: 91 | K25: 97 | L25: 89 | M25: 91 | N25: 90 | AE25: Amazing advanced array formulas from ExcelLambda from comments below video:
B26: 44 | C26: 67 | D26: 62 | E26: 55 | F26: 31 | I26: Interquartile Range | J26: =J24:N24-J22:N22 -> 17 | K26: 20 | L26: 18 | M26: 22 | N26: 14.5 | P26: Cell J26: =J24:N24-J22:N22
B27: 18 | C27: 81 | D27: 56 | E27: 45 | F27: 61 | I27: Lower Outlier Hurdle | J27: =J22:N22-J32*_xlfn.ANCHORARRAY(J26) -> 16.5 | K27: 15 | L27: 14 | M27: 6 | N27: 32.75 | P27: Cell J27: =J22:N22-J32*J26# | AE27: Spill Quartiles
B28: 52 | C28: 47 | D28: 31 | E28: 7 | F28: 57 | I28: Upper Outlier Hurdle | J28: =J24:N24+J32*_xlfn.ANCHORARRAY(J26) -> 84.5 | K28: 95 | L28: 86 | M28: 94 | N28: 90.75 | P28: Cell J28: =J24:N24+J32*J26# | R28: ="Quartile 1 - "&J32&"*Interquartile Range" -> Quartile 1 - 1.5*Interquartile Range | Z28: Test Name | AA28: CPA Score | AE28: CPA Test 1 | AF28: CPA Test 2 | AG28: CPA Test 3 | AH28: CPA Test 4 | AI28: CPA Test 5
B29: 49 | C29: 51 | D29: 47 | E29: 44 | F29: 87 | I29: Count Lower Outliers | J29: =COUNTIFS('5NSBP (an)'!$B$21:$B$403,"<"&J27) -> 11 | K29: =COUNTIFS('5NSBP (an)'!$C$21:$C$403,"<"&K27) -> 14 | L29: =COUNTIFS('5NSBP (an)'!$D$21:$D$403,"<"&L27) -> 11 | M29: =COUNTIFS('5NSBP (an)'!$E$21:$E$403,"<"&M27) -> 5 | N29: =COUNTIFS('5NSBP (an)'!$F$21:$F$403,"<"&N27) -> 36 | P29: Cell J29: =COUNTIFS('5NSBP (an)'!$B$21:$B$403,"<"&J27) | R29: ="Quartile 3 + "&J32&"*Interquartile Range" -> Quartile 3 + 1.5*Interquartile Range | Z29: CPA Test 1 | AA29: 22 | AE29: =_xlfn.REDUCE(0,_xlfn.SEQUENCE(5),_xlfn.LAMBDA(_xlpm.v,_xlpm.i,IF(_xlfn.SEQUENCE(_xlpm.i)=_xlpm.i,_xlfn.BYCOL(B21:F403,_xlfn.LAMBDA(_xlpm.a,_xlfn.QUARTILE.INC(_xlpm.a,_xlpm.i-1))),_xlpm.v))) -> 2 | AF29: 1 | AG29: 3 | AH29: 0 | AI29: 10
B30: 37 | C30: 67 | D30: 12 | E30: 57 | F30: 60 | I30: Count Upper Outliers | J30: =COUNTIFS('5NSBP (an)'!$B$21:$B$403,">"&J28) -> 3 | K30: =COUNTIFS('5NSBP (an)'!$C$21:$C$403,">"&K28) -> 2 | L30: =COUNTIFS('5NSBP (an)'!$D$21:$D$403,">"&L28) -> 1 | M30: =COUNTIFS('5NSBP (an)'!$E$21:$E$403,">"&M28) -> 0 | N30: =COUNTIFS('5NSBP (an)'!$F$21:$F$403,">"&N28) -> 0 | P30: Cell J30: =COUNTIFS('5NSBP (an)'!$B$21:$B$403,">"&J28) | Z30: CPA Test 2 | AA30: 28 | AE30: 42 | AF30: 45 | AG30: 41 | AH30: 39 | AI30: 54.5
B31: 78 | C31: 66 | D31: 64 | E31: 58 | F31: 66 | Z31: CPA Test 3 | AA31: 43 | AE31: 50 | AF31: 52 | AG31: 50 | AH31: 52 | AI31: 64 | AL31: Rows | AM31: =ROWS(B21:B403) -> 383
B32: 75 | C32: 81 | D32: 61 | E32: 50 | F32: 66 | I32: Outlier Multiple | J32: 1.5 | Z32: CPA Test 4 | AA32: 35 | AE32: 59 | AF32: 65 | AG32: 59 | AH32: 61 | AI32: 69 | AL32: Columns | AM32: =COLUMNS(B20:F20) -> 5
B33: 70 | C33: 63 | D33: 49 | E33: 53 | F33: 64 | M33: =_xlfn.IFNA("Cell "&ADDRESS(ROW(J33),COLUMN(J33),4)&": "&_xlfn.FORMULATEXT(J33),"") ->  | Z33: CPA Test 5 | AA33: 55 | AE33: 91 | AF33: 97 | AG33: 89 | AH33: 91 | AI33: 90 | AL33: Total cells: | AM33: =AM31*AM32 -> 1915
B34: 51 | C34: 15 | D34: 67 | E34: 39 | F34: 32 | I34: Mean | J34: =AVERAGE('5NSBP (an)'!$B$21:$B$403) -> 49.67885117 | K34: =AVERAGE('5NSBP (an)'!$C$21:$C$403) -> 53.12793734 | L34: =AVERAGE('5NSBP (an)'!$D$21:$D$403) -> 48.79895561 | M34: =AVERAGE('5NSBP (an)'!$E$21:$E$403) -> 49.04960836 | N34: =AVERAGE('5NSBP (an)'!$F$21:$F$403) -> 59.76501305 | P34: Cell J34: =AVERAGE('5NSBP (an)'!$B$21:$B$403) | Z34: CPA Test 1 | AA34: 49
B35: 50 | C35: 54 | D35: 34 | E35: 34 | F35: 62 | Z35: CPA Test 2 | AA35: 14 | AL35: excelisfun Unpivot with formula
B36: 70 | C36: 50 | D36: 89 | E36: 60 | F36: 17 | O36: Chart Title: | P36: Sample CPA Scores Last Five Tests, Inclusive | Z36: CPA Test 3 | AA36: 32 | AE36: Unpivot with formula | AL36: =INDEX(B20:F20,ROUNDUP(_xlfn.SEQUENCE(AM33)/AM32,0)) -> CPA Test 1 | AM36: =INDEX(B21:F403,ROUNDUP(_xlfn.SEQUENCE(AM33)/AM32,0),MOD(_xlfn.SEQUENCE(AM33,,0),AM32)+1) -> 22
B37: 71 | C37: 54 | D37: 40 | E37: 40 | F37: 13 | I37: Lower Outliers? | Z37: CPA Test 4 | AA37: 45 | AE37: =_xlfn.LET(_xlpm.a,B21:F403,_xlpm.r,ROWS(_xlpm.a),_xlpm.c,COLUMNS(_xlpm.a),_xlpm.s,_xlfn.SEQUENCE(_xlpm.r*_xlpm.c),_xlpm.q,QUOTIENT(_xlpm.s-1,_xlpm.c)+1,_xlpm.m,MOD(_xlpm.s-1,_xlpm.c)+1,IF({1,0},INDEX(B20:F20,_xlpm.m),INDEX(_xlpm.a,_xlpm.q,_xlpm.m))) -> CPA Test 1 | AF37: 22 | AL37: CPA Test 1 | AM37: 28
B38: 72 | C38: 49 | D38: 73 | E38: 4 | F38: 59 | I38: =_xlfn._xlws.FILTER('5NSBP (an)'!$B$21:$B$403,'5NSBP (an)'!$B$21:$B$403<J27) -> 13 | Z38: CPA Test 5 | AA38: 53 | AE38: CPA Test 2 | AF38: 28 | AL38: CPA Test 1 | AM38: 43
B39: 17 | C39: 62 | D39: 47 | E39: 43 | F39: 77 | I39: 15 | Z39: CPA Test 1 | AA39: 70 | AE39: CPA Test 3 | AF39: 43 | AL39: CPA Test 1 | AM39: 35
B40: 45 | C40: 58 | D40: 69 | E40: 43 | F40: 56 | I40: 9 | Z40: CPA Test 2 | AA40: 5 | AE40: CPA Test 4 | AF40: 35 | AL40: CPA Test 1 | AM40: 55
B41: 62 | C41: 64 | D41: 31 | E41: 36 | F41: 74 | I41: 10 | Z41: CPA Test 3 | AA41: 52 | AE41: CPA Test 5 | AF41: 55 | AL41: CPA Test 2 | AM41: 49
B42: 40 | C42: 62 | D42: 43 | E42: 28 | F42: 71 | I42: 11 | Z42: CPA Test 4 | AA42: 61 | AE42: CPA Test 1 | AF42: 49 | AL42: CPA Test 2 | AM42: 14
B43: 50 | C43: 49 | D43: 55 | E43: 85 | F43: 49 | I43: 11 | Z43: CPA Test 5 | AA43: 30 | AE43: CPA Test 2 | AF43: 14 | AL43: CPA Test 2 | AM43: 32
B44: 77 | C44: 53 | D44: 16 | E44: 61 | F44: 23 | I44: 2 | Z44: CPA Test 1 | AA44: 13 | AE44: CPA Test 3 | AF44: 32 | AL44: CPA Test 2 | AM44: 45
B45: 56 | C45: 66 | D45: 41 | E45: 35 | F45: 73 | I45: 7 | Z45: CPA Test 2 | AA45: 65 | AE45: CPA Test 4 | AF45: 45 | AL45: CPA Test 2 | AM45: 53
B46: 51 | C46: 65 | D46: 37 | E46: 61 | F46: 59 | I46: 5 | Z46: CPA Test 3 | AA46: 5 | AE46: CPA Test 5 | AF46: 53 | AL46: CPA Test 3 | AM46: 70
B47: 53 | C47: 71 | D47: 29 | E47: 58 | F47: 67 | I47: 14 | Z47: CPA Test 4 | AA47: 37 | AE47: CPA Test 1 | AF47: 70 | AL47: CPA Test 3 | AM47: 5
B48: 15 | C48: 50 | D48: 85 | E48: 75 | F48: 67 | I48: 15 | Z48: CPA Test 5 | AA48: 68 | AE48: CPA Test 2 | AF48: 5 | AL48: CPA Test 3 | AM48: 52
B49: 54 | C49: 77 | D49: 40 | E49: 32 | F49: 55 | Z49: CPA Test 1 | AA49: 52 | AE49: CPA Test 3 | AF49: 52 | AL49: CPA Test 3 | AM49: 61
B50: 42 | C50: 47 | D50: 39 | E50: 11 | F50: 58 | Z50: CPA Test 2 | AA50: 80 | AE50: CPA Test 4 | AF50: 61 | AL50: CPA Test 3 | AM50: 30
B51: 71 | C51: 69 | D51: 48 | E51: 38 | F51: 67 | Z51: CPA Test 3 | AA51: 51 | AE51: CPA Test 5 | AF51: 30 | AL51: CPA Test 4 | AM51: 13
B52: 21 | C52: 73 | D52: 50 | E52: 44 | F52: 88 | Z52: CPA Test 4 | AA52: 52 | AE52: CPA Test 1 | AF52: 13 | AL52: CPA Test 4 | AM52: 65
B53: 51 | C53: 50 | D53: 47 | E53: 37 | F53: 59 | Z53: CPA Test 5 | AA53: 58 | AE53: CPA Test 2 | AF53: 65 | AL53: CPA Test 4 | AM53: 5
B54: 32 | C54: 75 | D54: 29 | E54: 30 | F54: 23 | Z54: CPA Test 1 | AA54: 44 | AE54: CPA Test 3 | AF54: 5 | AL54: CPA Test 4 | AM54: 37
B55: 91 | C55: 54 | D55: 58 | E55: 63 | F55: 64 | Z55: CPA Test 2 | AA55: 67 | AE55: CPA Test 4 | AF55: 37 | AL55: CPA Test 4 | AM55: 68
B56: 36 | C56: 97 | D56: 50 | E56: 70 | F56: 60 | Z56: CPA Test 3 | AA56: 62 | AE56: CPA Test 5 | AF56: 68 | AL56: CPA Test 5 | AM56: 52
B57: 36 | C57: 66 | D57: 40 | E57: 52 | F57: 68 | Z57: CPA Test 4 | AA57: 55 | AE57: CPA Test 1 | AF57: 52 | AL57: CPA Test 5 | AM57: 80
B58: 42 | C58: 57 | D58: 48 | E58: 46 | F58: 66 | Z58: CPA Test 5 | AA58: 31 | AE58: CPA Test 2 | AF58: 80 | AL58: CPA Test 5 | AM58: 51
B59: 53 | C59: 72 | D59: 60 | E59: 36 | F59: 69 | Z59: CPA Test 1 | AA59: 18 | AE59: CPA Test 3 | AF59: 51 | AL59: CPA Test 5 | AM59: 52
B60: 53 | C60: 46 | D60: 50 | E60: 91 | F60: 38 | Z60: CPA Test 2 | AA60: 81 | AE60: CPA Test 4 | AF60: 52 | AL60: CPA Test 5 | AM60: 58
B61: 41 | C61: 64 | D61: 50 | E61: 38 | F61: 75 | Z61: CPA Test 3 | AA61: 56 | AE61: CPA Test 5 | AF61: 58 | AM61: 44
B62: 48 | C62: 29 | D62: 45 | E62: 45 | F62: 58 | Z62: CPA Test 4 | AA62: 45 | AE62: CPA Test 1 | AF62: 44 | AM62: 67
B63: 66 | C63: 44 | D63: 49 | E63: 7 | F63: 42 | Z63: CPA Test 5 | AA63: 61 | AE63: CPA Test 2 | AF63: 67 | AM63: 62
B64: 49 | C64: 47 | D64: 37 | E64: 65 | F64: 18 | Z64: CPA Test 1 | AA64: 52 | AE64: CPA Test 3 | AF64: 62 | AM64: 55
B65: 9 | C65: 59 | D65: 6 | E65: 53 | F65: 58 | Z65: CPA Test 2 | AA65: 47 | AE65: CPA Test 4 | AF65: 55 | AM65: 31
B66: 57 | C66: 65 | D66: 34 | E66: 33 | F66: 55 | Z66: CPA Test 3 | AA66: 31 | AE66: CPA Test 5 | AF66: 31 | AM66: 18
B67: 55 | C67: 17 | D67: 39 | E67: 54 | F67: 75 | Z67: CPA Test 4 | AA67: 7 | AE67: CPA Test 1 | AF67: 18 | AM67: 81
B68: 49 | C68: 57 | D68: 51 | E68: 52 | F68: 63 | Z68: CPA Test 5 | AA68: 57 | AE68: CPA Test 2 | AF68: 81 | AM68: 56
B69: 55 | C69: 64 | D69: 49 | E69: 45 | F69: 12 | Z69: CPA Test 1 | AA69: 49 | AE69: CPA Test 3 | AF69: 56 | AM69: 45
B70: 54 | C70: 9 | D70: 49 | E70: 69 | F70: 27 | Z70: CPA Test 2 | AA70: 51 | AE70: CPA Test 4 | AF70: 45 | AM70: 61
B71: 73 | C71: 49 | D71: 47 | E71: 57 | F71: 67 | Z71: CPA Test 3 | AA71: 47 | AE71: CPA Test 5 | AF71: 61 | AM71: 52
B72: 46 | C72: 49 | D72: 15 | E72: 50 | F72: 51 | Z72: CPA Test 4 | AA72: 44 | AE72: CPA Test 1 | AF72: 52 | AM72: 47
B73: 65 | C73: 68 | D73: 64 | E73: 47 | F73: 26 | Z73: CPA Test 5 | AA73: 87 | AE73: CPA Test 2 | AF73: 47 | AM73: 31
B74: 58 | C74: 56 | D74: 76 | E74: 53 | F74: 63 | Z74: CPA Test 1 | AA74: 37 | AE74: CPA Test 3 | AF74: 31 | AM74: 7
B75: 48 | C75: 39 | D75: 53 | E75: 20 | F75: 59 | Z75: CPA Test 2 | AA75: 67 | AE75: CPA Test 4 | AF75: 7 | AM75: 57
B76: 60 | C76: 48 | D76: 80 | E76: 59 | F76: 53 | Z76: CPA Test 3 | AA76: 12 | AE76: CPA Test 5 | AF76: 57 | AM76: 49
B77: 44 | C77: 61 | D77: 47 | E77: 32 | F77: 20 | Z77: CPA Test 4 | AA77: 57 | AE77: CPA Test 1 | AF77: 49 | AM77: 51
B78: 48 | C78: 52 | D78: 67 | E78: 28 | F78: 42 | Z78: CPA Test 5 | AA78: 60 | AE78: CPA Test 2 | AF78: 51 | AM78: 47
B79: 58 | C79: 50 | D79: 42 | E79: 32 | F79: 63 | Z79: CPA Test 1 | AA79: 78 | AE79: CPA Test 3 | AF79: 47 | AM79: 44
B80: 40 | C80: 53 | D80: 54 | E80: 64 | F80: 67 | Z80: CPA Test 2 | AA80: 66 | AE80: CPA Test 4 | AF80: 44 | AM80: 87
B81: 49 | C81: 53 | D81: 62 | E81: 51 | F81: 62 | Z81: CPA Test 3 | AA81: 64 | AE81: CPA Test 5 | AF81: 87 | AM81: 37
B82: 48 | C82: 14 | D82: 44 | E82: 66 | F82: 71 | Z82: CPA Test 4 | AA82: 58 | AE82: CPA Test 1 | AF82: 37 | AM82: 67
B83: 64 | C83: 60 | D83: 59 | E83: 67 | F83: 67 | Z83: CPA Test 5 | AA83: 66 | AE83: CPA Test 2 | AF83: 67 | AM83: 12
B84: 37 | C84: 12 | D84: 20 | E84: 68 | F84: 83 | Z84: CPA Test 1 | AA84: 75 | AE84: CPA Test 3 | AF84: 12 | AM84: 57
B85: 33 | C85: 67 | D85: 51 | E85: 57 | F85: 12 | Z85: CPA Test 2 | AA85: 81 | AE85: CPA Test 4 | AF85: 57 | AM85: 60
B86: 50 | C86: 44 | D86: 52 | E86: 61 | F86: 64 | Z86: CPA Test 3 | AA86: 61 | AE86: CPA Test 5 | AF86: 60 | AM86: 78
B87: 56 | C87: 18 | D87: 50 | E87: 66 | F87: 74 | Z87: CPA Test 4 | AA87: 50 | AE87: CPA Test 1 | AF87: 78 | AM87: 66
B88: 48 | C88: 61 | D88: 51 | E88: 70 | F88: 62 | Z88: CPA Test 5 | AA88: 66 | AE88: CPA Test 2 | AF88: 66 | AM88: 64
B89: 77 | C89: 76 | D89: 61 | E89: 39 | F89: 40 | Z89: CPA Test 1 | AA89: 70 | AE89: CPA Test 3 | AF89: 64 | AM89: 58
B90: 34 | C90: 53 | D90: 51 | E90: 49 | F90: 69 | Z90: CPA Test 2 | AA90: 63 | AE90: CPA Test 4 | AF90: 58 | AM90: 66
B91: 49 | C91: 29 | D91: 24 | E91: 64 | F91: 42 | Z91: CPA Test 3 | AA91: 49 | AE91: CPA Test 5 | AF91: 66 | AM91: 75
B92: 47 | C92: 55 | D92: 51 | E92: 37 | F92: 58 | Z92: CPA Test 4 | AA92: 53 | AE92: CPA Test 1 | AF92: 75 | AM92: 81
B93: 71 | C93: 60 | D93: 53 | E93: 73 | F93: 79 | Z93: CPA Test 5 | AA93: 64 | AE93: CPA Test 2 | AF93: 81 | AM93: 61
B94: 49 | C94: 88 | D94: 26 | E94: 61 | F94: 64 | Z94: CPA Test 1 | AA94: 51 | AE94: CPA Test 3 | AF94: 61 | AM94: 50
B95: 62 | C95: 56 | D95: 20 | E95: 43 | F95: 57 | Z95: CPA Test 2 | AA95: 15 | AE95: CPA Test 4 | AF95: 50 | AM95: 66
B96: 68 | C96: 41 | D96: 50 | E96: 40 | F96: 20 | Z96: CPA Test 3 | AA96: 67 | AE96: CPA Test 5 | AF96: 66 | AM96: 70
B97: 33 | C97: 29 | D97: 55 | E97: 3 | F97: 79 | Z97: CPA Test 4 | AA97: 39 | AE97: CPA Test 1 | AF97: 70 | AM97: 63
B98: 43 | C98: 65 | D98: 51 | E98: 61 | F98: 67 | Z98: CPA Test 5 | AA98: 32 | AE98: CPA Test 2 | AF98: 63 | AM98: 49
B99: 48 | C99: 84 | D99: 51 | E99: 60 | F99: 57 | Z99: CPA Test 1 | AA99: 50 | AE99: CPA Test 3 | AF99: 49 | AM99: 53
B100: 71 | C100: 51 | D100: 64 | E100: 31 | F100: 57 | Z100: CPA Test 2 | AA100: 54 | AE100: CPA Test 4 | AF100: 53 | AM100: 64
B101: 71 | C101: 49 | D101: 41 | E101: 40 | F101: 85 | Z101: CPA Test 3 | AA101: 34 | AE101: CPA Test 5 | AF101: 64 | AM101: 51
B102: 22 | C102: 32 | D102: 68 | E102: 46 | F102: 75 | Z102: CPA Test 4 | AA102: 34 | AE102: CPA Test 1 | AF102: 51 | AM102: 15
B103: 57 | C103: 56 | D103: 74 | E103: 68 | F103: 79 | Z103: CPA Test 5 | AA103: 62 | AE103: CPA Test 2 | AF103: 15 | AM103: 67
B104: 38 | C104: 25 | D104: 38 | E104: 49 | F104: 68 | Z104: CPA Test 1 | AA104: 70 | AE104: CPA Test 3 | AF104: 67 | AM104: 39
B105: 51 | C105: 51 | D105: 30 | E105: 40 | F105: 64 | Z105: CPA Test 2 | AA105: 50 | AE105: CPA Test 4 | AF105: 39 | AM105: 32
B106: 47 | C106: 53 | D106: 45 | E106: 79 | F106: 20 | Z106: CPA Test 3 | AA106: 89 | AE106: CPA Test 5 | AF106: 32 | AM106: 50
B107: 49 | C107: 80 | D107: 27 | E107: 61 | F107: 54 | Z107: CPA Test 4 | AA107: 60 | AE107: CPA Test 1 | AF107: 50 | AM107: 54
B108: 57 | C108: 41 | D108: 46 | E108: 55 | F108: 66 | Z108: CPA Test 5 | AA108: 17 | AE108: CPA Test 2 | AF108: 54 | AM108: 34
B109: 66 | C109: 46 | D109: 64 | E109: 68 | F109: 38 | Z109: CPA Test 1 | AA109: 71 | AE109: CPA Test 3 | AF109: 34 | AM109: 34
B110: 74 | C110: 47 | D110: 75 | E110: 43 | F110: 68 | Z110: CPA Test 2 | AA110: 54 | AE110: CPA Test 4 | AF110: 34 | AM110: 62
B111: 32 | C111: 71 | D111: 48 | E111: 65 | F111: 67 | Z111: CPA Test 3 | AA111: 40 | AE111: CPA Test 5 | AF111: 62 | AM111: 70
B112: 48 | C112: 52 | D112: 43 | E112: 24 | F112: 66 | Z112: CPA Test 4 | AA112: 40 | AE112: CPA Test 1 | AF112: 70 | AM112: 50
B113: 45 | C113: 54 | D113: 72 | E113: 2 | F113: 71 | Z113: CPA Test 5 | AA113: 13 | AE113: CPA Test 2 | AF113: 50 | AM113: 89
B114: 43 | C114: 39 | D114: 54 | E114: 71 | F114: 47 | Z114: CPA Test 1 | AA114: 72 | AE114: CPA Test 3 | AF114: 89 | AM114: 60
B115: 64 | C115: 45 | D115: 48 | E115: 43 | F115: 62 | Z115: CPA Test 2 | AA115: 49 | AE115: CPA Test 4 | AF115: 60 | AM115: 17
B116: 23 | C116: 14 | D116: 70 | E116: 59 | F116: 67 | Z116: CPA Test 3 | AA116: 73 | AE116: CPA Test 5 | AF116: 17 | AM116: 71
B117: 40 | C117: 73 | D117: 71 | E117: 66 | F117: 17 | Z117: CPA Test 4 | AA117: 4 | AE117: CPA Test 1 | AF117: 71 | AM117: 54
B118: 30 | C118: 59 | D118: 17 | E118: 40 | F118: 65 | Z118: CPA Test 5 | AA118: 59 | AE118: CPA Test 2 | AF118: 54 | AM118: 40
B119: 46 | C119: 60 | D119: 35 | E119: 66 | F119: 69 | Z119: CPA Test 1 | AA119: 17 | AE119: CPA Test 3 | AF119: 40 | AM119: 40
B120: 61 | C120: 77 | D120: 27 | E120: 38 | F120: 73 | Z120: CPA Test 2 | AA120: 62 | AE120: CPA Test 4 | AF120: 40 | AM120: 13
B121: 50 | C121: 71 | D121: 36 | E121: 56 | F121: 45 | Z121: CPA Test 3 | AA121: 47 | AE121: CPA Test 5 | AF121: 13 | AM121: 72
B122: 42 | C122: 48 | D122: 43 | E122: 52 | F122: 74 | Z122: CPA Test 4 | AA122: 43 | AE122: CPA Test 1 | AF122: 72 | AM122: 49
B123: 39 | C123: 58 | D123: 61 | E123: 49 | F123: 67 | Z123: CPA Test 5 | AA123: 77 | AE123: CPA Test 2 | AF123: 49 | AM123: 73
B124: 74 | C124: 52 | D124: 67 | E124: 62 | F124: 69 | Z124: CPA Test 1 | AA124: 45 | AE124: CPA Test 3 | AF124: 73 | AM124: 4
B125: 51 | C125: 75 | D125: 59 | E125: 44 | F125: 62 | Z125: CPA Test 2 | AA125: 58 | AE125: CPA Test 4 | AF125: 4 | AM125: 59
B126: 24 | C126: 68 | D126: 71 | E126: 41 | F126: 67 | Z126: CPA Test 3 | AA126: 69 | AE126: CPA Test 5 | AF126: 59 | AM126: 17
B127: 45 | C127: 36 | D127: 43 | E127: 49 | F127: 67 | Z127: CPA Test 4 | AA127: 43 | AE127: CPA Test 1 | AF127: 17 | AM127: 62
B128: 51 | C128: 31 | D128: 34 | E128: 13 | F128: 67 | Z128: CPA Test 5 | AA128: 56 | AE128: CPA Test 2 | AF128: 62 | AM128: 47
B129: 57 | C129: 56 | D129: 40 | E129: 36 | F129: 68 | Z129: CPA Test 1 | AA129: 62 | AE129: CPA Test 3 | AF129: 47 | AM129: 43
B130: 47 | C130: 38 | D130: 54 | E130: 41 | F130: 65 | Z130: CPA Test 2 | AA130: 64 | AE130: CPA Test 4 | AF130: 43 | AM130: 77
B131: 46 | C131: 47 | D131: 47 | E131: 54 | F131: 68 | Z131: CPA Test 3 | AA131: 31 | AE131: CPA Test 5 | AF131: 77 | AM131: 45
B132: 52 | C132: 81 | D132: 67 | E132: 75 | F132: 90 | Z132: CPA Test 4 | AA132: 36 | AE132: CPA Test 1 | AF132: 45 | AM132: 58
B133: 48 | C133: 25 | D133: 55 | E133: 60 | F133: 59 | Z133: CPA Test 5 | AA133: 74 | AE133: CPA Test 2 | AF133: 58 | AM133: 69
B134: 56 | C134: 69 | D134: 22 | E134: 56 | F134: 67 | Z134: CPA Test 1 | AA134: 40 | AE134: CPA Test 3 | AF134: 69 | AM134: 43
B135: 56 | C135: 80 | D135: 80 | E135: 73 | F135: 73 | Z135: CPA Test 2 | AA135: 62 | AE135: CPA Test 4 | AF135: 43 | AM135: 56
B136: 27 | C136: 52 | D136: 12 | E136: 63 | F136: 64 | Z136: CPA Test 3 | AA136: 43 | AE136: CPA Test 5 | AF136: 56 | AM136: 62
B137: 47 | C137: 51 | D137: 61 | E137: 22 | F137: 51 | Z137: CPA Test 4 | AA137: 28 | AE137: CPA Test 1 | AF137: 62 | AM137: 64
B138: 84 | C138: 52 | D138: 52 | E138: 54 | F138: 65 | Z138: CPA Test 5 | AA138: 71 | AE138: CPA Test 2 | AF138: 64 | AM138: 31
B139: 70 | C139: 55 | D139: 48 | E139: 27 | F139: 58 | Z139: CPA Test 1 | AA139: 50 | AE139: CPA Test 3 | AF139: 31 | AM139: 36
B140: 77 | C140: 57 | D140: 41 | E140: 31 | F140: 41 | Z140: CPA Test 2 | AA140: 49 | AE140: CPA Test 4 | AF140: 36 | AM140: 74
B141: 45 | C141: 32 | D141: 73 | E141: 41 | F141: 70 | Z141: CPA Test 3 | AA141: 55 | AE141: CPA Test 5 | AF141: 74 | AM141: 40
B142: 58 | C142: 35 | D142: 51 | E142: 57 | F142: 70 | Z142: CPA Test 4 | AA142: 85 | AE142: CPA Test 1 | AF142: 40 | AM142: 62
B143: 54 | C143: 76 | D143: 62 | E143: 67 | F143: 56 | Z143: CPA Test 5 | AA143: 49 | AE143: CPA Test 2 | AF143: 62 | AM143: 43
B144: 56 | C144: 41 | D144: 51 | E144: 52 | F144: 65 | Z144: CPA Test 1 | AA144: 77 | AE144: CPA Test 3 | AF144: 43 | AM144: 28
B145: 33 | C145: 69 | D145: 55 | E145: 22 | F145: 88 | Z145: CPA Test 2 | AA145: 53 | AE145: CPA Test 4 | AF145: 28 | AM145: 71
B146: 41 | C146: 49 | D146: 51 | E146: 38 | F146: 69 | Z146: CPA Test 3 | AA146: 16 | AE146: CPA Test 5 | AF146: 71 | AM146: 50
B147: 45 | C147: 46 | D147: 50 | E147: 55 | F147: 64 | Z147: CPA Test 4 | AA147: 61 | AE147: CPA Test 1 | AF147: 50 | AM147: 49
B148: 47 | C148: 50 | D148: 49 | E148: 18 | F148: 62 | Z148: CPA Test 5 | AA148: 23 | AE148: CPA Test 2 | AF148: 49 | AM148: 55
B149: 49 | C149: 46 | D149: 66 | E149: 29 | F149: 76 | Z149: CPA Test 1 | AA149: 56 | AE149: CPA Test 3 | AF149: 55 | AM149: 85
B150: 67 | C150: 45 | D150: 57 | E150: 68 | F150: 60 | Z150: CPA Test 2 | AA150: 66 | AE150: CPA Test 4 | AF150: 85 | AM150: 49
B151: 45 | C151: 52 | D151: 49 | E151: 29 | F151: 85 | Z151: CPA Test 3 | AA151: 41 | AE151: CPA Test 5 | AF151: 49 | AM151: 77
B152: 75 | C152: 34 | D152: 51 | E152: 64 | F152: 69 | Z152: CPA Test 4 | AA152: 35 | AE152: CPA Test 1 | AF152: 77 | AM152: 53
B153: 24 | C153: 49 | D153: 73 | E153: 35 | F153: 75 | Z153: CPA Test 5 | AA153: 73 | AE153: CPA Test 2 | AF153: 53 | AM153: 16
B154: 64 | C154: 65 | D154: 53 | E154: 25 | F154: 16 | Z154: CPA Test 1 | AA154: 51 | AE154: CPA Test 3 | AF154: 16 | AM154: 61
B155: 27 | C155: 50 | D155: 84 | E155: 64 | F155: 62 | Z155: CPA Test 2 | AA155: 65 | AE155: CPA Test 4 | AF155: 61 | AM155: 23
B156: 44 | C156: 79 | D156: 79 | E156: 45 | F156: 74 | Z156: CPA Test 3 | AA156: 37 | AE156: CPA Test 5 | AF156: 23 | AM156: 56
B157: 53 | C157: 43 | D157: 52 | E157: 48 | F157: 12 | Z157: CPA Test 4 | AA157: 61 | AE157: CPA Test 1 | AF157: 56 | AM157: 66
B158: 21 | C158: 60 | D158: 54 | E158: 59 | F158: 17 | Z158: CPA Test 5 | AA158: 59 | AE158: CPA Test 2 | AF158: 66 | AM158: 41
B159: 44 | C159: 53 | D159: 55 | E159: 71 | F159: 53 | Z159: CPA Test 1 | AA159: 53 | AE159: CPA Test 3 | AF159: 41 | AM159: 35
B160: 73 | C160: 76 | D160: 52 | E160: 22 | F160: 59 | Z160: CPA Test 2 | AA160: 71 | AE160: CPA Test 4 | AF160: 35 | AM160: 73
B161: 23 | C161: 74 | D161: 45 | E161: 38 | F161: 60 | Z161: CPA Test 3 | AA161: 29 | AE161: CPA Test 5 | AF161: 73 | AM161: 51
B162: 31 | C162: 25 | D162: 48 | E162: 60 | F162: 77 | Z162: CPA Test 4 | AA162: 58 | AE162: CPA Test 1 | AF162: 51 | AM162: 65
B163: 74 | C163: 65 | D163: 59 | E163: 70 | F163: 43 | Z163: CPA Test 5 | AA163: 67 | AE163: CPA Test 2 | AF163: 65 | AM163: 37
B164: 67 | C164: 47 | D164: 59 | E164: 10 | F164: 72 | Z164: CPA Test 1 | AA164: 15 | AE164: CPA Test 3 | AF164: 37 | AM164: 61
B165: 61 | C165: 31 | D165: 25 | E165: 54 | F165: 17 | Z165: CPA Test 2 | AA165: 50 | AE165: CPA Test 4 | AF165: 61 | AM165: 59
B166: 26 | C166: 54 | D166: 51 | E166: 56 | F166: 46 | Z166: CPA Test 3 | AA166: 85 | AE166: CPA Test 5 | AF166: 59 | AM166: 53
B167: 10 | C167: 26 | D167: 57 | E167: 61 | F167: 70 | Z167: CPA Test 4 | AA167: 75 | AE167: CPA Test 1 | AF167: 53 | AM167: 71
B168: 76 | C168: 68 | D168: 53 | E168: 71 | F168: 27 | Z168: CPA Test 5 | AA168: 67 | AE168: CPA Test 2 | AF168: 71 | AM168: 29
B169: 54 | C169: 79 | D169: 54 | E169: 52 | F169: 72 | Z169: CPA Test 1 | AA169: 54 | AE169: CPA Test 3 | AF169: 29 | AM169: 58
B170: 24 | C170: 42 | D170: 47 | E170: 11 | F170: 61 | Z170: CPA Test 2 | AA170: 77 | AE170: CPA Test 4 | AF170: 58 | AM170: 67
B171: 35 | C171: 64 | D171: 54 | E171: 54 | F171: 63 | Z171: CPA Test 3 | AA171: 40 | AE171: CPA Test 5 | AF171: 67 | AM171: 15
B172: 48 | C172: 66 | D172: 61 | E172: 48 | F172: 70 | Z172: CPA Test 4 | AA172: 32 | AE172: CPA Test 1 | AF172: 15 | AM172: 50
B173: 43 | C173: 55 | D173: 8 | E173: 28 | F173: 71 | Z173: CPA Test 5 | AA173: 55 | AE173: CPA Test 2 | AF173: 50 | AM173: 85
B174: 54 | C174: 25 | D174: 76 | E174: 64 | F174: 46 | Z174: CPA Test 1 | AA174: 42 | AE174: CPA Test 3 | AF174: 85 | AM174: 75
B175: 50 | C175: 51 | D175: 55 | E175: 46 | F175: 61 | Z175: CPA Test 2 | AA175: 47 | AE175: CPA Test 4 | AF175: 75 | AM175: 67
B176: 74 | C176: 68 | D176: 51 | E176: 61 | F176: 71 | Z176: CPA Test 3 | AA176: 39 | AE176: CPA Test 5 | AF176: 67 | AM176: 54
B177: 51 | C177: 71 | D177: 48 | E177: 55 | F177: 43 | Z177: CPA Test 4 | AA177: 11 | AE177: CPA Test 1 | AF177: 54 | AM177: 77
B178: 28 | C178: 24 | D178: 79 | E178: 41 | F178: 79 | Z178: CPA Test 5 | AA178: 58 | AE178: CPA Test 2 | AF178: 77 | AM178: 40
B179: 52 | C179: 70 | D179: 63 | E179: 24 | F179: 66 | Z179: CPA Test 1 | AA179: 71 | AE179: CPA Test 3 | AF179: 40 | AM179: 32
B180: 72 | C180: 61 | D180: 72 | E180: 56 | F180: 74 | Z180: CPA Test 2 | AA180: 69 | AE180: CPA Test 4 | AF180: 32 | AM180: 55
B181: 51 | C181: 37 | D181: 65 | E181: 45 | F181: 65 | Z181: CPA Test 3 | AA181: 48 | AE181: CPA Test 5 | AF181: 55 | AM181: 42
B182: 60 | C182: 75 | D182: 46 | E182: 63 | F182: 26 | Z182: CPA Test 4 | AA182: 38 | AE182: CPA Test 1 | AF182: 42 | AM182: 47
B183: 73 | C183: 52 | D183: 77 | E183: 48 | F183: 66 | Z183: CPA Test 5 | AA183: 67 | AE183: CPA Test 2 | AF183: 47 | AM183: 39
B184: 38 | C184: 58 | D184: 72 | E184: 54 | F184: 64 | Z184: CPA Test 1 | AA184: 21 | AE184: CPA Test 3 | AF184: 39 | AM184: 11
B185: 40 | C185: 67 | D185: 44 | E185: 39 | F185: 87 | Z185: CPA Test 2 | AA185: 73 | AE185: CPA Test 4 | AF185: 11 | AM185: 58
B186: 64 | C186: 53 | D186: 59 | E186: 57 | F186: 56 | Z186: CPA Test 3 | AA186: 50 | AE186: CPA Test 5 | AF186: 58 | AM186: 71
B187: 54 | C187: 57 | D187: 56 | E187: 67 | F187: 67 | Z187: CPA Test 4 | AA187: 44 | AE187: CPA Test 1 | AF187: 71 | AM187: 69
B188: 41 | C188: 61 | D188: 33 | E188: 66 | F188: 64 | Z188: CPA Test 5 | AA188: 88 | AE188: CPA Test 2 | AF188: 69 | AM188: 48
B189: 48 | C189: 46 | D189: 56 | E189: 31 | F189: 63 | Z189: CPA Test 1 | AA189: 51 | AE189: CPA Test 3 | AF189: 48 | AM189: 38
B190: 44 | C190: 58 | D190: 39 | E190: 67 | F190: 66 | Z190: CPA Test 2 | AA190: 50 | AE190: CPA Test 4 | AF190: 38 | AM190: 67
B191: 74 | C191: 78 | D191: 73 | E191: 65 | F191: 63 | Z191: CPA Test 3 | AA191: 47 | AE191: CPA Test 5 | AF191: 67 | AM191: 21
B192: 70 | C192: 79 | D192: 43 | E192: 63 | F192: 57 | Z192: CPA Test 4 | AA192: 37 | AE192: CPA Test 1 | AF192: 21 | AM192: 73
B193: 30 | C193: 91 | D193: 74 | E193: 49 | F193: 73 | Z193: CPA Test 5 | AA193: 59 | AE193: CPA Test 2 | AF193: 73 | AM193: 50
B194: 32 | C194: 67 | D194: 67 | E194: 59 | F194: 69 | Z194: CPA Test 1 | AA194: 32 | AE194: CPA Test 3 | AF194: 50 | AM194: 44
B195: 18 | C195: 59 | D195: 48 | E195: 63 | F195: 71 | Z195: CPA Test 2 | AA195: 75 | AE195: CPA Test 4 | AF195: 44 | AM195: 88
B196: 69 | C196: 45 | D196: 57 | E196: 31 | F196: 77 | Z196: CPA Test 3 | AA196: 29 | AE196: CPA Test 5 | AF196: 88 | AM196: 51
B197: 54 | C197: 49 | D197: 69 | E197: 64 | F197: 69 | Z197: CPA Test 4 | AA197: 30 | AE197: CPA Test 1 | AF197: 51 | AM197: 50
B198: 60 | C198: 48 | D198: 62 | E198: 47 | F198: 58 | Z198: CPA Test 5 | AA198: 23 | AE198: CPA Test 2 | AF198: 50 | AM198: 47
B199: 71 | C199: 68 | D199: 66 | E199: 66 | F199: 34 | Z199: CPA Test 1 | AA199: 91 | AE199: CPA Test 3 | AF199: 47 | AM199: 37
B200: 45 | C200: 52 | D200: 31 | E200: 73 | F200: 68 | Z200: CPA Test 2 | AA200: 54 | AE200: CPA Test 4 | AF200: 37 | AM200: 59
B201: 43 | C201: 49 | D201: 52 | E201: 41 | F201: 48 | Z201: CPA Test 3 | AA201: 58 | AE201: CPA Test 5 | AF201: 59 | AM201: 32
B202: 52 | C202: 50 | D202: 31 | E202: 49 | F202: 62 | Z202: CPA Test 4 | AA202: 63 | AE202: CPA Test 1 | AF202: 32 | AM202: 75
B203: 35 | C203: 1 | D203: 74 | E203: 48 | F203: 63 | Z203: CPA Test 5 | AA203: 64 | AE203: CPA Test 2 | AF203: 75 | AM203: 29
B204: 73 | C204: 81 | D204: 43 | E204: 20 | F204: 90 | Z204: CPA Test 1 | AA204: 36 | AE204: CPA Test 3 | AF204: 29 | AM204: 30
... 1747 more rows

Sheet ImproperToProper
B2: Unpivot Power Query feature to convert an Improper Data Set to a Proper Data Set:
B3: The Improper Data Set has a unique list of elements from a single variable column show as column headers, with data points below each column header. The Improper Data Set is more difficult to deal with when performing data analysis. The Proper Data Set lists only the variable fields and does not show elements from a variable field as column headers. A Proper Data Set shows only variable fields, in the CPA example: CPATest and Score. The feature that you use to convert the Improper Data Set to a Proper Data Set is the Unpivot feature.
B5: Improper Data Set with a Pivoted Column (Field) | H5: Proper Data Set with only Variable Fields
B7: CPA Test 1 | C7: CPA Test 2 | D7: CPA Test 3 | E7: CPA Test 4 | F7: CPA Test 5 | H7: CPATest | I7: Score
B8: 22 | C8: 28 | D8: 43 | E8: 35 | F8: 55 | H8: CPA Test 1 | I8: 22
B9: 49 | C9: 14 | D9: 32 | E9: 45 | F9: 53 | H9: CPA Test 2 | I9: 28
B10: 70 | C10: 5 | D10: 52 | E10: 61 | F10: 30 | H10: CPA Test 3 | I10: 43
B11: 13 | C11: 65 | D11: 5 | E11: 37 | F11: 68 | H11: CPA Test 4 | I11: 35
B12: 52 | C12: 80 | D12: 51 | E12: 52 | F12: 58 | H12: CPA Test 5 | I12: 55
B13: 44 | C13: 67 | D13: 62 | E13: 55 | F13: 31 | H13: CPA Test 1 | I13: 49
B14: 18 | C14: 81 | D14: 56 | E14: 45 | F14: 61 | H14: CPA Test 2 | I14: 14
B15: 52 | C15: 47 | D15: 31 | E15: 7 | F15: 57 | H15: CPA Test 3 | I15: 32
B16: 49 | C16: 51 | D16: 47 | E16: 44 | F16: 87 | H16: CPA Test 4 | I16: 45
B17: 37 | C17: 67 | D17: 12 | E17: 57 | F17: 60 | H17: CPA Test 5 | I17: 53
B18: 78 | C18: 66 | D18: 64 | E18: 58 | F18: 66 | H18: CPA Test 1 | I18: 70
B19: 75 | C19: 81 | D19: 61 | E19: 50 | F19: 66 | H19: CPA Test 2 | I19: 5
B20: 70 | C20: 63 | D20: 49 | E20: 53 | F20: 64 | H20: CPA Test 3 | I20: 52
B21: 51 | C21: 15 | D21: 67 | E21: 39 | F21: 32 | H21: CPA Test 4 | I21: 61
B22: 50 | C22: 54 | D22: 34 | E22: 34 | F22: 62 | H22: CPA Test 5 | I22: 30
B23: 70 | C23: 50 | D23: 89 | E23: 60 | F23: 17 | H23: CPA Test 1 | I23: 13
B24: 71 | C24: 54 | D24: 40 | E24: 40 | F24: 13 | H24: CPA Test 2 | I24: 65
B25: 72 | C25: 49 | D25: 73 | E25: 4 | F25: 59 | H25: CPA Test 3 | I25: 5
B26: 17 | C26: 62 | D26: 47 | E26: 43 | F26: 77 | H26: CPA Test 4 | I26: 37
B27: 45 | C27: 58 | D27: 69 | E27: 43 | F27: 56 | H27: CPA Test 5 | I27: 68
B28: 62 | C28: 64 | D28: 31 | E28: 36 | F28: 74 | H28: CPA Test 1 | I28: 52
B29: 40 | C29: 62 | D29: 43 | E29: 28 | F29: 71 | H29: CPA Test 2 | I29: 80
B30: 50 | C30: 49 | D30: 55 | E30: 85 | F30: 49 | H30: CPA Test 3 | I30: 51
B31: 77 | C31: 53 | D31: 16 | E31: 61 | F31: 23 | H31: CPA Test 4 | I31: 52
B32: 56 | C32: 66 | D32: 41 | E32: 35 | F32: 73 | H32: CPA Test 5 | I32: 58
B33: 51 | C33: 65 | D33: 37 | E33: 61 | F33: 59 | H33: CPA Test 1 | I33: 44
B34: 53 | C34: 71 | D34: 29 | E34: 58 | F34: 67 | H34: CPA Test 2 | I34: 67
B35: 15 | C35: 50 | D35: 85 | E35: 75 | F35: 67 | H35: CPA Test 3 | I35: 62
B36: 54 | C36: 77 | D36: 40 | E36: 32 | F36: 55 | H36: CPA Test 4 | I36: 55
B37: 42 | C37: 47 | D37: 39 | E37: 11 | F37: 58 | H37: CPA Test 5 | I37: 31
B38: 71 | C38: 69 | D38: 48 | E38: 38 | F38: 67 | H38: CPA Test 1 | I38: 18
B39: 21 | C39: 73 | D39: 50 | E39: 44 | F39: 88 | H39: CPA Test 2 | I39: 81
B40: 51 | C40: 50 | D40: 47 | E40: 37 | F40: 59 | H40: CPA Test 3 | I40: 56
B41: 32 | C41: 75 | D41: 29 | E41: 30 | F41: 23 | H41: CPA Test 4 | I41: 45
B42: 91 | C42: 54 | D42: 58 | E42: 63 | F42: 64 | H42: CPA Test 5 | I42: 61
B43: 36 | C43: 97 | D43: 50 | E43: 70 | F43: 60 | H43: CPA Test 1 | I43: 52
B44: 36 | C44: 66 | D44: 40 | E44: 52 | F44: 68 | H44: CPA Test 2 | I44: 47
B45: 42 | C45: 57 | D45: 48 | E45: 46 | F45: 66 | H45: CPA Test 3 | I45: 31
B46: 53 | C46: 72 | D46: 60 | E46: 36 | F46: 69 | H46: CPA Test 4 | I46: 7
B47: 53 | C47: 46 | D47: 50 | E47: 91 | F47: 38 | H47: CPA Test 5 | I47: 57
B48: 41 | C48: 64 | D48: 50 | E48: 38 | F48: 75 | H48: CPA Test 1 | I48: 49
B49: 48 | C49: 29 | D49: 45 | E49: 45 | F49: 58 | H49: CPA Test 2 | I49: 51
B50: 66 | C50: 44 | D50: 49 | E50: 7 | F50: 42 | H50: CPA Test 3 | I50: 47
B51: 49 | C51: 47 | D51: 37 | E51: 65 | F51: 18 | H51: CPA Test 4 | I51: 44
B52: 9 | C52: 59 | D52: 6 | E52: 53 | F52: 58 | H52: CPA Test 5 | I52: 87
B53: 57 | C53: 65 | D53: 34 | E53: 33 | F53: 55 | H53: CPA Test 1 | I53: 37
B54: 55 | C54: 17 | D54: 39 | E54: 54 | F54: 75 | H54: CPA Test 2 | I54: 67
B55: 49 | C55: 57 | D55: 51 | E55: 52 | F55: 63 | H55: CPA Test 3 | I55: 12
B56: 55 | C56: 64 | D56: 49 | E56: 45 | F56: 12 | H56: CPA Test 4 | I56: 57
B57: 54 | C57: 9 | D57: 49 | E57: 69 | F57: 27 | H57: CPA Test 5 | I57: 60
B58: 73 | C58: 49 | D58: 47 | E58: 57 | F58: 67 | H58: CPA Test 1 | I58: 78
B59: 46 | C59: 49 | D59: 15 | E59: 50 | F59: 51 | H59: CPA Test 2 | I59: 66
B60: 65 | C60: 68 | D60: 64 | E60: 47 | F60: 26 | H60: CPA Test 3 | I60: 64
B61: 58 | C61: 56 | D61: 76 | E61: 53 | F61: 63 | H61: CPA Test 4 | I61: 58
B62: 48 | C62: 39 | D62: 53 | E62: 20 | F62: 59 | H62: CPA Test 5 | I62: 66
B63: 60 | C63: 48 | D63: 80 | E63: 59 | F63: 53 | H63: CPA Test 1 | I63: 75
B64: 44 | C64: 61 | D64: 47 | E64: 32 | F64: 20 | H64: CPA Test 2 | I64: 81
B65: 48 | C65: 52 | D65: 67 | E65: 28 | F65: 42 | H65: CPA Test 3 | I65: 61
B66: 58 | C66: 50 | D66: 42 | E66: 32 | F66: 63 | H66: CPA Test 4 | I66: 50
B67: 40 | C67: 53 | D67: 54 | E67: 64 | F67: 67 | H67: CPA Test 5 | I67: 66
B68: 49 | C68: 53 | D68: 62 | E68: 51 | F68: 62 | H68: CPA Test 1 | I68: 70
B69: 48 | C69: 14 | D69: 44 | E69: 66 | F69: 71 | H69: CPA Test 2 | I69: 63
B70: 64 | C70: 60 | D70: 59 | E70: 67 | F70: 67 | H70: CPA Test 3 | I70: 49
B71: 37 | C71: 12 | D71: 20 | E71: 68 | F71: 83 | H71: CPA Test 4 | I71: 53
B72: 33 | C72: 67 | D72: 51 | E72: 57 | F72: 12 | H72: CPA Test 5 | I72: 64
B73: 50 | C73: 44 | D73: 52 | E73: 61 | F73: 64 | H73: CPA Test 1 | I73: 51
B74: 56 | C74: 18 | D74: 50 | E74: 66 | F74: 74 | H74: CPA Test 2 | I74: 15
B75: 48 | C75: 61 | D75: 51 | E75: 70 | F75: 62 | H75: CPA Test 3 | I75: 67
B76: 77 | C76: 76 | D76: 61 | E76: 39 | F76: 40 | H76: CPA Test 4 | I76: 39
B77: 34 | C77: 53 | D77: 51 | E77: 49 | F77: 69 | H77: CPA Test 5 | I77: 32
B78: 49 | C78: 29 | D78: 24 | E78: 64 | F78: 42 | H78: CPA Test 1 | I78: 50
B79: 47 | C79: 55 | D79: 51 | E79: 37 | F79: 58 | H79: CPA Test 2 | I79: 54
B80: 71 | C80: 60 | D80: 53 | E80: 73 | F80: 79 | H80: CPA Test 3 | I80: 34
B81: 49 | C81: 88 | D81: 26 | E81: 61 | F81: 64 | H81: CPA Test 4 | I81: 34
B82: 62 | C82: 56 | D82: 20 | E82: 43 | F82: 57 | H82: CPA Test 5 | I82: 62
B83: 68 | C83: 41 | D83: 50 | E83: 40 | F83: 20 | H83: CPA Test 1 | I83: 70
B84: 33 | C84: 29 | D84: 55 | E84: 3 | F84: 79 | H84: CPA Test 2 | I84: 50
B85: 43 | C85: 65 | D85: 51 | E85: 61 | F85: 67 | H85: CPA Test 3 | I85: 89
B86: 48 | C86: 84 | D86: 51 | E86: 60 | F86: 57 | H86: CPA Test 4 | I86: 60
B87: 71 | C87: 51 | D87: 64 | E87: 31 | F87: 57 | H87: CPA Test 5 | I87: 17
B88: 71 | C88: 49 | D88: 41 | E88: 40 | F88: 85 | H88: CPA Test 1 | I88: 71
B89: 22 | C89: 32 | D89: 68 | E89: 46 | F89: 75 | H89: CPA Test 2 | I89: 54
B90: 57 | C90: 56 | D90: 74 | E90: 68 | F90: 79 | H90: CPA Test 3 | I90: 40
B91: 38 | C91: 25 | D91: 38 | E91: 49 | F91: 68 | H91: CPA Test 4 | I91: 40
B92: 51 | C92: 51 | D92: 30 | E92: 40 | F92: 64 | H92: CPA Test 5 | I92: 13
B93: 47 | C93: 53 | D93: 45 | E93: 79 | F93: 20 | H93: CPA Test 1 | I93: 72
B94: 49 | C94: 80 | D94: 27 | E94: 61 | F94: 54 | H94: CPA Test 2 | I94: 49
B95: 57 | C95: 41 | D95: 46 | E95: 55 | F95: 66 | H95: CPA Test 3 | I95: 73
B96: 66 | C96: 46 | D96: 64 | E96: 68 | F96: 38 | H96: CPA Test 4 | I96: 4
B97: 74 | C97: 47 | D97: 75 | E97: 43 | F97: 68 | H97: CPA Test 5 | I97: 59
B98: 32 | C98: 71 | D98: 48 | E98: 65 | F98: 67 | H98: CPA Test 1 | I98: 17
B99: 48 | C99: 52 | D99: 43 | E99: 24 | F99: 66 | H99: CPA Test 2 | I99: 62
B100: 45 | C100: 54 | D100: 72 | E100: 2 | F100: 71 | H100: CPA Test 3 | I100: 47
B101: 43 | C101: 39 | D101: 54 | E101: 71 | F101: 47 | H101: CPA Test 4 | I101: 43
B102: 64 | C102: 45 | D102: 48 | E102: 43 | F102: 62 | H102: CPA Test 5 | I102: 77
B103: 23 | C103: 14 | D103: 70 | E103: 59 | F103: 67 | H103: CPA Test 1 | I103: 45
B104: 40 | C104: 73 | D104: 71 | E104: 66 | F104: 17 | H104: CPA Test 2 | I104: 58
B105: 30 | C105: 59 | D105: 17 | E105: 40 | F105: 65 | H105: CPA Test 3 | I105: 69
B106: 46 | C106: 60 | D106: 35 | E106: 66 | F106: 69 | H106: CPA Test 4 | I106: 43
B107: 61 | C107: 77 | D107: 27 | E107: 38 | F107: 73 | H107: CPA Test 5 | I107: 56
B108: 50 | C108: 71 | D108: 36 | E108: 56 | F108: 45 | H108: CPA Test 1 | I108: 62
B109: 42 | C109: 48 | D109: 43 | E109: 52 | F109: 74 | H109: CPA Test 2 | I109: 64
B110: 39 | C110: 58 | D110: 61 | E110: 49 | F110: 67 | H110: CPA Test 3 | I110: 31
B111: 74 | C111: 52 | D111: 67 | E111: 62 | F111: 69 | H111: CPA Test 4 | I111: 36
B112: 51 | C112: 75 | D112: 59 | E112: 44 | F112: 62 | H112: CPA Test 5 | I112: 74
B113: 24 | C113: 68 | D113: 71 | E113: 41 | F113: 67 | H113: CPA Test 1 | I113: 40
B114: 45 | C114: 36 | D114: 43 | E114: 49 | F114: 67 | H114: CPA Test 2 | I114: 62
B115: 51 | C115: 31 | D115: 34 | E115: 13 | F115: 67 | H115: CPA Test 3 | I115: 43
B116: 57 | C116: 56 | D116: 40 | E116: 36 | F116: 68 | H116: CPA Test 4 | I116: 28
B117: 47 | C117: 38 | D117: 54 | E117: 41 | F117: 65 | H117: CPA Test 5 | I117: 71
B118: 46 | C118: 47 | D118: 47 | E118: 54 | F118: 68 | H118: CPA Test 1 | I118: 50
B119: 52 | C119: 81 | D119: 67 | E119: 75 | F119: 90 | H119: CPA Test 2 | I119: 49
B120: 48 | C120: 25 | D120: 55 | E120: 60 | F120: 59 | H120: CPA Test 3 | I120: 55
B121: 56 | C121: 69 | D121: 22 | E121: 56 | F121: 67 | H121: CPA Test 4 | I121: 85
B122: 56 | C122: 80 | D122: 80 | E122: 73 | F122: 73 | H122: CPA Test 5 | I122: 49
B123: 27 | C123: 52 | D123: 12 | E123: 63 | F123: 64 | H123: CPA Test 1 | I123: 77
B124: 47 | C124: 51 | D124: 61 | E124: 22 | F124: 51 | H124: CPA Test 2 | I124: 53
B125: 84 | C125: 52 | D125: 52 | E125: 54 | F125: 65 | H125: CPA Test 3 | I125: 16
B126: 70 | C126: 55 | D126: 48 | E126: 27 | F126: 58 | H126: CPA Test 4 | I126: 61
B127: 77 | C127: 57 | D127: 41 | E127: 31 | F127: 41 | H127: CPA Test 5 | I127: 23
B128: 45 | C128: 32 | D128: 73 | E128: 41 | F128: 70 | H128: CPA Test 1 | I128: 56
B129: 58 | C129: 35 | D129: 51 | E129: 57 | F129: 70 | H129: CPA Test 2 | I129: 66
B130: 54 | C130: 76 | D130: 62 | E130: 67 | F130: 56 | H130: CPA Test 3 | I130: 41
B131: 56 | C131: 41 | D131: 51 | E131: 52 | F131: 65 | H131: CPA Test 4 | I131: 35
B132: 33 | C132: 69 | D132: 55 | E132: 22 | F132: 88 | H132: CPA Test 5 | I132: 73
B133: 41 | C133: 49 | D133: 51 | E133: 38 | F133: 69 | H133: CPA Test 1 | I133: 51
B134: 45 | C134: 46 | D134: 50 | E134: 55 | F134: 64 | H134: CPA Test 2 | I134: 65
